Workbook

Sheet RRQ Allocations
D1: RRQ Type 1/
D2: T = Transportation
D3: P = Procurement | H3: % Residential | J3: % Residential | L3: % Bundled
B4: Allocation Methodology | D4: PPP = Public Purpose | F4: Description | H4: of Total Allocated | J4: that is Bundled 2/ | L4: of Total Allocated | N4: Authorizing Decision
B5: 100% Residential | D5: T | F5: 100% allocated to residential class | H5: 1 | J5: 0.8975890644 | L5: 0.8975890644 | N5: D.18-03-017 (for GHG)
B6: Core - Distribution | D6: T | H6: 0.8087646787 | J6: 0.8975890644 | L6: 0.812992294
B7: Distribution | D7: T | F7: • Marginal Cost using Rental Method for Customer Function and Marginal Cost of $373.74 for Distribution Function applied to peak day in avg. temp winter • Allocation to Small Commercial is capped at 17.717% with overage re-allocated to Residential | H7: 0.784859179 | J7: 0.8975890644 | L7: 0.8241155045 | N7: D.19-10-036
B8: ECPT - ALL | D8: T | H8: 0.2722742932 | J8: 0.8975890644 | L8: 0.3330589455
B9: ECPT - Core only | D9: T | F9: Core Brokerage Fee: The Core Brokerage Fee is part of the distribution revenue requirement. In transportation the RRQ is reduced and then it is recovered via the customers that pay PG&E procurement rates. Pension Contribution - GT&S Core: | H9: 0.6645587839 | J9: 0.8975890644 | L9: 0.8129201077 | N9: D.95-07-048 (for Core Brokerage Fee)
B10: ECPT - Noncore only | D10: T | H10: 0 | J10: 0 | L10: 0
B11: ECPT - 50% Core / 50% Noncore | D11: T | H11: 0.3322793919 | J11: 0.8975890644 | L11: 0.4064066796
B12: ECPT (excludes Covered Entities 3 yr avg vol) | D12: T | H12: 0.3579364261 | J12: 0.8975890644 | L12: 0.4375217629
B13: EE | D13: PPP | H13: 0.3384 | J13: 0.8975890644 | L13: 0.5263600131 | N13: D.19-10-036
B14: ESA | D14: PPP | H14: 1 | J14: 0.8975890644 | L14: 0.8975890644 | N14: D.19-10-036 D.95-12-053
B15: PPP ECPT | D15: PPP | H15: 0.3964019068 | J15: 0.8975890644 | L15: 0.4832992734
B16: SGIP allocation | D16: T | H16: 0.9155803564 | J16: 0.8975890644 | L16: 0.875994189
B17: CPUC Fee Allocation | D17: T | H17: 0.3675669459 | J17: 0.8975890644 | L17: 0.4477831178
B18: CAC Allocation | D18: T | H18: 0 | J18: 0 | L18: 0
B19: Storage Allocation (Procurement) | D19: P | H19: 0.7912905715 | J19: 1 | L19: 1
B20: Capacity Allocation (Procurement) | D20: P | H20: 0.7933288665 | J20: 1 | L20: 1
B21: ECPT - Core only (Procurement) | D21: P | F21: The Core Brokerage Fee is part of the distribution revenue requirement. In transportation the RRQ is reduced and then it is recovered via the customers that pay PG&E procurement rates. | H21: 0.7339650877 | J21: 1 | L21: 1 | N21: D.95-07-048 (for Core Brokerage Fee)
B22: 2023 GTS - Inventory Management | D22: T | F22: Adopted in 2023 GTS CARD | H22: 0.3591976846 | J22: 0.8975890644 | L22: 0.4303735271 | N22: D.24-03-002
B23: User Defined 1 | D23: T | F23: Short Description of Allocation
B24: User Defined 2 | D24: T | F24: Short Description of Allocation
B25: User Defined 3 | D25: T | F25: Short Description of Allocation
B29: NOTES:
B30: 1/ For User Defined allocations, user must select the RRQ type.
B31: =CONCATENATE("2/ If the allocation applies to the entire system, then the Bundled Residential percentage will be ",TEXT(J5,"0.00%"),". if the allocation applies only to Bundled, then the Bundled Residential percentage will be 100%.") -> 2/ If the allocation applies to the entire system, then the Bundled Residential percentage will be 89.76%. if the allocation applies only to Bundled, then the Bundled Residential percentage will be 100%.

Sheet Selected Data
A1: Summary of Selected Data
Q2: Revenue
Q3: Requirement
Q4: $000
A5: 1 | B5: Current total system-level revenue requirement that is used for defining the reporting threshold: | Q5: ='Incremental Rev Req'!D73 -> 6726747.229
B6: A | C6: One-percent reporting threshold | Q6: =Q5*0.01 -> 67267.47229
A8: 2 | B8: List of currently open proceedings for which affordability metrics have been filed:
B9: A | C9: A.24-11-009 | D9: 2024 Wildfire Mitigation and Catastrophic Events | Q9: ='Incremental Rev Req'!$D$84+'Incremental Rev Req'!$D$85 -> 72117.03317
B10: B | C10: A.25-05-009 | D10: 2027 GRC (incremental from 2026 authorized RRQs) | Q10: =SUM('Incremental Rev Req'!$O$95:$O$102) -> 102592.8834
B11: C | C11: A.25-11-001 | D11: Dixie and Kincade AB1054 Cost Recovery Proceeding Application | Q11: ='Incremental Rev Req'!$D$90+'Incremental Rev Req'!$D$91 -> 95666.69071
B12: D
B13: E
A15: 3 | B15: Total system-level revenue requirement if all pending revenue were granted in full: requests were granted in full
B16: A | C16: YE 2025 | Q16: ='Incremental Rev Req'!G73+'Incremental Rev Req'!M116 -> 6935209.051
B17: B | C17: YE 2026 | Q17: ='Incremental Rev Req'!H73+'Incremental Rev Req'!N116 -> 6896859.255
B18: C | C18: YE 2027 | Q18: ='Incremental Rev Req'!I73+'Incremental Rev Req'!O116 -> 6591505.955
B19: D | C19: YE 2028 | Q19: ='Incremental Rev Req'!J73+'Incremental Rev Req'!P116 -> 6780355.697
B20: E | C20: YE 2029 | Q20: ='Incremental Rev Req'!K73+'Incremental Rev Req'!Q116 -> 7040519.132
A22: 4 | B22: Illustrative bundled residential average rate (RAR) if all pending revenue were granted in full (from Cost and Rate Tracker (CRT) as submitted by utility): | R22: $/therm | T22: Live Link:
B23: A | C23: =C16 -> YE 2025 | R23: 2.318844263 | T23: =Summary!G47 -> 2.684308153
B24: B | C24: =C17 -> YE 2026 | R24: 2.711548304
B25: C | C25: =C18 -> YE 2027 | R25: 2.597593458
B26: D | C26: =C19 -> YE 2028 | R26: 2.674945484
B27: E | C27: =C20 -> YE 2029 | R27: 2.778705754
V28: Live Link: | W28: =Summary_Year -> 2026
A29: 5 | B29: =CONCATENATE("Illustrative bundled residential average monthly bill corresponding to RAR above for typical customer in climate zone X using ",Summary!L16," therms for Non-CARE and ",Summary!L17," therms for CARE (from CRT as submitted by utility):") -> Illustrative bundled residential average monthly bill corresponding to RAR above for typical customer in climate zone X using 31 therms for Non-CARE and 26 therms for CARE (from CRT as submitted by utility): | S29: Non-CARE | T29: CARE | V29: Non-CARE | W29: CARE
B30: A | C30: =C16 -> YE 2025 | S30: 89.05664404 | T30: 11.902852 | V30: =Summary!G103 -> 83.50277055 | W30: =Summary!G104 -> 53.59825585
B31: B | C31: =C17 -> YE 2026 | S31: 84.3917435 | T31: 54.1762941
B32: C | C32: =C18 -> YE 2027 | S32: 80.69322919 | T32: 51.69926738
B33: D | C33: =C19 -> YE 2028 | S33: 83.20743797 | T33: 53.36969324
B34: E | C34: =C20 -> YE 2029 | S34: 86.58477764 | T34: 55.59642887
A36: * | B36: Per Decision 25-12-044, metrics are only required for >1% increase requests in a General Rate Case filing. Therefore, PG&E has removed items previously numbered 2 and 4 related to affordability proceedings filed that either exceeded or did not exceed the affordability threshold.

Sheet Caveats
A1: Cost and Rate Tracking Tool Caveats
A2: * The Quarterly Tracker performs high-level rate and bill calculation estimates, which will not produce rate or bill impacts that match PG&E’s filing-quality models.
A3: * The forecast assumes perfect ratemaking, and does not include balancing account balances beyond the current year.
A4: * Different rate components use simplified allocations that may not reflect actual revenue allocation and rate design.
A5: * This model produces illustrative rates based on a single average throughput forecast. Actual ratemaking uses multiple throughput forecasts depending on revenue requirement type. Therefore, differences in illustrative v. actual rates will exist.

Sheet Instructions
A1: INSTRUCTIONS TO RUN "BASIC" MODEL
A2: CLICK HERE FOR INSTRUCTIONS ON VALIDATING AGAINST BILL INSERT
B5: The "non-hypothetical" portion of this model produces illustrative rates and illustrative residential bill calculations based on selected user inputs.
B6: PLEASE DO NOT INSERT ROWS OR COLUMNS INTO THE SUMMARY
B7: To run the "non-hypothetical" portion of the model:
B9: 1. | C9: User drop down selections are highlighted in green.
B10: 2. | C10: In cell D3 of the "Summary" tab, from the dropdown choices, select the year for which illustrative rate impacts are desired (ILLUSTRATION 1).
B11: 3. | C11: In cell D4 of the "Summary" tab, select, from the dropdown choices, the baseline territory for which illustrative bill impacts are desired.
B12: 4. | C12: On the "Summary" tab, in the "Pending Proceedings" section beginning on line 7, indicate whether the RRQ associated with the proceeding should be included in the illustrative bill impact analysis
C13: by selecting from the dropdown choices in column D, a "Y" or "N" where "Y" means to include the RRQ in the analysis and "N" means to not include the RRQ in the analysis (ILLUSTRATION 1).
B14: 5. | C14: Create illustrative tiered residential rates by executing the "Run Residential Rate Tiering" macro (ILLUSTRATION 1).
C15: - note that, pursuant to D.19-10-036, Ordering Paragraph 4, the tier ratios change in January of each year based on the year selected in step 2. above as described in the table below.
E16: For 2026 revenues | F16: . | G16: 1.20 (Note that the initial tiering factor for 2026 has been set at 1.246 therefore the factor for 2026 will remain at the already established value)
E17: For 2027 + revenues | F17: . | G17: 1.2
C19: ILLUSTRATION 1: | G19: 2. | H19: 3. | I19: 4. | L19: 5.
B34: 5. | C34: In cell D4 of the "Summary" tab, from the dropdown choices, select the baseline territory for which illustrative bill impacts are desired.
B36: RRQ ALLOCATION OPTIONS:
B37: 1. | C37: On the "RRQ Allocations" tab there are spaces for the user to enter their own allocation methodology (ILLUSTRATION 2).
C38: NOTE that this tab has not been fully populated by PG&E.
C40: ILLUSTRATION 2
B80: 2. | C80: Alternate allocation methodologies may be selected on the "Incremental Rev Req" tab (ILLUSTRATION 3).
C82: ILLUSTRATION 3
A115: VALIDATING THE RESULTS OF THE "TYPICAL CUSTOMER" BILL AGAINST A BILL INSERT
B117: 1. | C117: The model is set up to accept separate "typical" therms for Non-CARE and CARE customers. (See screenshot below, yellow highlights.)
B118: 2. | C118: Ensure that the therms entered in the model match the therms used in the bill insert.
B119: 3. | C119: Ensure that only the revenue requirement being evaluated is included in the impact. (See step 4 above.)
B120: 4. | C120: Run the model as described in the instructions above.
B121: 5. | C121: Note that, because this is a simplified model, the results will not exactly match the results in the bill insert.

Sheet Summary
B1: PLEASE DO NOT INSERT ROWS OR COLUMNS
B2: User Inputs (in green highlighted cells - select from drop down menu): | J2: Assumptions:
C3: Illustrative Rate Impact for Year (2026-2029) | D3: 2026 | J3: Current Effective Rates | L3: 2026-01-01
C4: Baseline Region - (Residential bill) | D4: X | J4: Throughput Forecast | L4: 2023 CARD
J5: Illustrative Residential bill calculated using | L5: Schedule G-1, Basic, Single Family
J6: Illustrative Non-CARE bill impact calculated with average summer usage of | N6: =IF($D$4="ALL CLIMATE ZONES",SUMPRODUCT('Res Bill Impact'!$Q$22:$Q$30,'Res Bill Impact'!$W$22:$W$30),VLOOKUP(Summary!$D$4,'Res Bill Impact'!$P$22:$V$30,2,FALSE)) -> 18 | O6: therms per month
B7: Pending Proceedings | D7: Include in Impact (Y/N) | E7: Applicable Year(s) | J7: Illustrative Non-CARE bill impact calculated with average winter off-peak usage of | N7: =IF($D$4="ALL CLIMATE ZONES",SUMPRODUCT('Res Bill Impact'!$R$22:$R$30,'Res Bill Impact'!$W$22:$W$30),VLOOKUP(Summary!$D$4,'Res Bill Impact'!$P$22:$V$30,3,FALSE)) -> 45 | O7: therms per month
J8: Illustrative Non-CARE bill impact calculated with average winter on-peak usage of | N8: =IF($D$4="ALL CLIMATE ZONES",SUMPRODUCT('Res Bill Impact'!$S$22:$S$30,'Res Bill Impact'!$W$22:$W$30),VLOOKUP(Summary!$D$4,'Res Bill Impact'!$P$22:$V$30,4,FALSE)) -> 59 | O8: therms per month
B9: ='Incremental Rev Req'!A110 -> 2027 Energy Savings Assistance Bridge Funding | D9: N | E9: 2027 | J9: Illustrative CARE bill impact calculated with average summer usage of | N9: =IF($D$4="ALL CLIMATE ZONES",SUMPRODUCT('Res Bill Impact'!$T$22:$T$30,'Res Bill Impact'!$X$22:$X$30),VLOOKUP(Summary!$D$4,'Res Bill Impact'!$P$22:$V$30,5,FALSE)) -> 17 | O9: therms per month
B10: ='Incremental Rev Req'!A111 -> 2027 CARE Administrative Bridge Funding | D10: N | E10: 2027 | J10: Illustrative CARE bill impact calculated with average winter off-peak usage of | N10: =IF($D$4="ALL CLIMATE ZONES",SUMPRODUCT('Res Bill Impact'!$U$22:$U$30,'Res Bill Impact'!$X$22:$X$30),VLOOKUP(Summary!$D$4,'Res Bill Impact'!$P$22:$V$30,6,FALSE)) -> 34 | O10: therms per month
B11: ='Incremental Rev Req'!A112 -> Income Qualified Program (ESA) PY 2028-2033 | D11: N | E11: 2028-2029 | J11: Illustrative CARE bill impact calculated with average winter on-peak usage of | N11: =IF($D$4="ALL CLIMATE ZONES",SUMPRODUCT('Res Bill Impact'!$V$22:$V$30,'Res Bill Impact'!$X$22:$X$30),VLOOKUP(Summary!$D$4,'Res Bill Impact'!$P$22:$V$30,7,FALSE)) -> 43 | O11: therms per month
B12: ='Incremental Rev Req'!A113 -> Income Qualified Program (CARE) PY 2028-2033 | D12: N | E12: 2028-2029 | J12: Average monthly usage is for all customers (Non-CARE and CARE) based on seasonal usage in | P12: 2025
B13: ='Incremental Rev Req'!A80 -> Billing Modernization (Distribution) | D13: N | E13: 2026-2029 | J13: Summer Season | L13: 7 | M13: months
B14: ='Incremental Rev Req'!A81 -> Billing Modernization (Transmission) | D14: N | E14: 2026-2029 | J14: Winter Season Off-peak | L14: 3 | M14: months
B15: ='Incremental Rev Req'!A82 -> Stanpac Application | D15: N | E15: 2027-2029 | J15: Winter Season On-peak | L15: 2 | M15: months
B16: ='Incremental Rev Req'!A83 -> Hydrogen Demonstration Project (2027) | D16: N | E16: 2027-2029 | J16: Typical Non-CARE Residential Customer usage | L16: 31 | M16: therms per month
B17: ='Incremental Rev Req'!A84 -> 2024 Wildfire Mitigation and Catastrophic Events (distribution) | D17: Y | E17: 2026-2029 | J17: Typical CARE Residential Customer usage | L17: 26 | M17: therms per month
B18: ='Incremental Rev Req'!A85 -> 2024 Wildfire Mitigation and Catastrophic Events (transmission) | D18: Y | E18: 2026-2029 | J18: Residential CARE Customers as Percent of Total Residential Customers | N18: 0.2253453186
B19: ='Incremental Rev Req'!A86 -> 2023 Wildfire Mitigation and Catastrophic Events (distribution) | D19: N | E19: 2026 | J19: Historic California Climate Credit | L19: 67.03190755
B20: ='Incremental Rev Req'!A87 -> 2023 Wildfire Mitigation and Catastrophic Events (transmission) | D20: N | E20: 2026 | J20: Present California Climate Credit | L20: 46.25933774
B21: ='Incremental Rev Req'!A88 -> Wildfire Gas and Safety Costs (Distribution) Non-IRR | D21: N | E21: 2026
B22: ='Incremental Rev Req'!A89 -> Wildfire Gas and Safety Costs (Transmission) - Non IRR | D22: N | E22: 2026-2027
B23: ='Incremental Rev Req'!A90 -> Kincaid-Dixie (Distribution) | D23: N | E23: 2027
B24: ='Incremental Rev Req'!A91 -> Kincaid-Dixie (Generation) | D24: N | E24: 2027
B25: ='Incremental Rev Req'!A95 -> 2027 GRC - Gas Distribution | D25: N | E25: 2027-2029
B26: ='Incremental Rev Req'!A96 -> 2027 GRC - Core Local Transmission | D26: N | E26: 2027-2029
B27: ='Incremental Rev Req'!A97 -> 2027 GRC - Core Procurement (Intrastate Volumetric and Capacity) | D27: N | E27: 2027-2029
B28: ='Incremental Rev Req'!A98 -> 2027 GRC - Core Procurement (Storage) | D28: N | E28: 2027-2029
B29: ='Incremental Rev Req'!A99 -> 2027 GRC - Noncore Local Transmission | D29: N | E29: 2027-2029
B30: ='Incremental Rev Req'!A100 -> 2027 GRC - Customer Access Charge | D30: N | E30: 2027-2029
B31: ='Incremental Rev Req'!A101 -> 2027 GRC - Noncore Unbundled | D31: N | E31: 2027-2029
B32: ='Incremental Rev Req'!A102 -> 2027 GRC - Inventory Management | D32: N | E32: 2027-2029
B33: ='Incremental Rev Req'!A103 -> CFCA - NGSS Enduser Dist. Sub Acct Recovery | D33: N | E33: 2027-2029
B34: ='Incremental Rev Req'!A104 -> CFCA/NCA - NGSS Enduser Sub Acct Recovery | D34: N | E34: 2027-2029
B35: ='Incremental Rev Req'!A105 -> NCA - NGSS Enduser Sub Acct Recovery | D35: N | E35: 2027-2029
B43: Outputs:
D44: (A) | E44: (B) | F44: (C) | G44: (D) | H44: (D)/(A) | I44: (D)/(B) | J44: (D)/(C) | N44: (A) | O44: (B) | P44: (C) | Q44: (D) | R44: (D)/(A) | S44: (D)/(B) | T44: (D)/(C)
B45: Illustrative Bundled Average Rates - $ / therm | L45: Total System (Bundled + Unbundled) Illustrative Average Rates - $ / therm
B46: Customer Group | D46: 2025-01-01 | E46: =$L$3 -> 2026-01-01 | F46: =$D$3&" Illustrative Authorized" -> 2026 Illustrative Authorized | G46: =$D$3&" Illustrative w/Pending" -> 2026 Illustrative w/Pending | H46: ="% Change over "&TEXT($D$46,"mm/d/yyyy") -> % Change over 01/1/2025 | I46: ="% Change over "&TEXT($L$3,"mm/d/yyyy") -> % Change over 01/1/2026 | J46: % Change over Illustrative Authorized | L46: Customer Group | N46: =D46 -> 2025-01-01 | O46: =E46 -> 2026-01-01 | P46: 2026 Illustrative Authorized | Q46: 2026 Illustrative w/Pending | R46: % Change over 01/1/2025 | S46: % Change over 01/1/2026 | T46: % Change over Illustrative Authorized
B47: Residential | D47: 2.740615636 | E47: ='SAR and RAR'!H38 -> 2.653286461 | F47: ='SAR and RAR'!I38 -> 2.653286461 | G47: ='SAR and RAR'!J38 -> 2.684308153 | H47: =$G47/D47-1 -> -0.0205455602 | I47: 0.01169179904 | J47: =$G47/F47-1 -> 0.01169179904 | L47: Residential (RAR) | N47: 2.497906086 | O47: ='SAR and RAR'!P38 -> 2.484190261 | P47: ='SAR and RAR'!Q38 -> 2.484190261 | Q47: ='SAR and RAR'!R38 -> 2.515212345 | R47: =$Q47/N47-1 -> 0.006928306522 | S47: 0.01248780517 | T47: 0.01248780517
B48: System | D48: 2.539231894 | E48: ='SAR and RAR'!H39 -> 2.369718323 | F48: ='SAR and RAR'!I39 -> 2.369718323 | G48: ='SAR and RAR'!J39 -> 2.397300712 | H48: -0.05589532138 | I48: 0.01163952199 | J48: 0.01163952199 | L48: System (SAR) | N48: 1.138563504 | O48: ='SAR and RAR'!P39 -> 1.056513451 | P48: ='SAR and RAR'!Q39 -> 1.056513451 | Q48: ='SAR and RAR'!R39 -> 1.068304136 | R48: -0.06170878283 | S48: 0.01115999521 | T48: 0.01115999521
L50: Illustrative system rate does not include illustrative procurement for transport only customers.
B51: =CONCATENATE("Illustrative Bundled Residential Monthly Average Bills - Baseline Territory ",$D$4," (Includes Climate Credit)") -> Illustrative Bundled Residential Monthly Average Bills - Baseline Territory X (Includes Climate Credit)
D52: =$D$46 -> 2025-01-01 | E52: =$E$46 -> 2026-01-01 | F52: =$F$46 -> 2026 Illustrative Authorized | G52: =$G$46 -> 2026 Illustrative w/Pending | H52: =$H$46 -> % Change over 01/1/2025 | I52: =$I$46 -> % Change over 01/1/2026 | J52: =$J$46 -> % Change over Illustrative Authorized
B53: Non-CARE | D53: =((D59*$L$13)+(D65*$L$14)+(D71*$L$15))/12-L19/12 -> 81.57548763 | E53: =((E59*$L$13)+(E65*$L$14)+(E71*$L$15))/12-L20/12 -> 80.22477122 | F53: =((F59*$L$13)+(F65*$L$14)+(F71*$L$15))/12-L20/12 -> 80.2247819 | G53: =((G59*$L$13)+(G65*$L$14)+(G71*$L$15))/12-L20/12 -> 81.19928537 | H53: =$G53/D53-1 -> -0.004611707183 | I53: =$G53/E53-1 -> 0.01214729729 | J53: =$G53/F53-1 -> 0.0121471626
B54: CARE | D54: =((D60*$L$13)+(D66*$L$14)+(D72*$L$15))/12-L19/12 -> 49.92360054 | E54: =((E60*$L$13)+(E66*$L$14)+(E72*$L$15))/12-L20/12 -> 49.96577443 | F54: =((F60*$L$13)+(F66*$L$14)+(F72*$L$15))/12-L20/12 -> 49.96578183 | G54: =((G60*$L$13)+(G66*$L$14)+(G72*$L$15))/12-L20/12 -> 50.58331202 | H54: =$G54/D54-1 -> 0.01321442107 | I54: 0.0123592117 | J54: 0.01235906171
B55: Total | D55: =((D61*$L$13)+(D67*$L$14)+(D73*$L$15))/12-L19/12 -> 74.44288305 | E55: =((E61*$L$13)+(E67*$L$14)+(E73*$L$15))/12-L20/12 -> 73.40604795 | F55: =((F61*$L$13)+(F67*$L$14)+(F73*$L$15))/12-L20/12 -> 73.40605789 | G55: =((G61*$L$13)+(G67*$L$14)+(G73*$L$15))/12-L20/12 -> 74.3001191 | H55: -0.001917764928 | I55: 0.01217980226 | J55: 0.01217966522
B57: =CONCATENATE("Illustrative Bundled Residential Monthly Average Bills - Summer - Baseline Territory ",$D$4) -> Illustrative Bundled Residential Monthly Average Bills - Summer - Baseline Territory X
D58: =$D$46 -> 2025-01-01 | E58: =$E$46 -> 2026-01-01 | F58: =$F$46 -> 2026 Illustrative Authorized | G58: =$G$46 -> 2026 Illustrative w/Pending | H58: =$H$46 -> % Change over 01/1/2025 | I58: =$I$46 -> % Change over 01/1/2026 | J58: =$J$46 -> % Change over Illustrative Authorized
B59: Non-CARE | D59: =VLOOKUP($D$4,'Res Bill Impact'!$B$37:$N$46,2,FALSE) -> 50.74348698 | E59: =VLOOKUP($D$4,'Res Bill Impact'!$B$37:$N$46,5,FALSE) -> 48.9548032 | F59: =VLOOKUP($D$4,'Res Bill Impact'!$B$37:$N$46,8,FALSE) -> 48.95480407 | G59: =VLOOKUP($D$4,'Res Bill Impact'!$B$37:$N$46,11,FALSE) -> 49.52535418 | H59: =$G59/D59-1 -> -0.02400569743 | I59: =$G59/E59-1 -> 0.01165464767 | J59: =$G59/F59-1 -> 0.01165462957
B60: CARE | D60: =VLOOKUP($D$4,'Res Bill Impact'!$B$52:$N$616,2,FALSE) -> 37.41662289 | E60: =VLOOKUP($D$4,'Res Bill Impact'!$B$52:$N$616,5,FALSE) -> 36.27831747 | F60: =VLOOKUP($D$4,'Res Bill Impact'!$B$52:$N$616,8,FALSE) -> 36.2783198 | G60: =VLOOKUP($D$4,'Res Bill Impact'!$B$52:$N$616,11,FALSE) -> 36.69619746 | H60: =$G60/D60-1 -> -0.01925415415 | I60: 0.01151872595 | J60: 0.01151866094
B61: Total | D61: =D59*(1-$N$18)+(Summary!D60*$N$18) -> 47.74034054 | E61: =E59*(1-$N$18)+(Summary!E60*$N$18) -> 46.09821648 | F61: =F59*(1-$N$18)+(Summary!F60*$N$18) -> 46.09821769 | G61: =G59*(1-$N$18)+(Summary!G60*$N$18) -> 46.63436377 | H61: -0.02316650356 | I61: 0.01163054304 | J61: 0.01163051663
B63: =CONCATENATE("Illustrative Bundled Residential Monthly Average Bills - Winter Off-Peak - Baseline Territory ",$D$4) -> Illustrative Bundled Residential Monthly Average Bills - Winter Off-Peak - Baseline Territory X
D64: =$D$46 -> 2025-01-01 | E64: =$E$46 -> 2026-01-01 | F64: =$F$46 -> 2026 Illustrative Authorized | G64: =$G$46 -> 2026 Illustrative w/Pending | H64: =$H$46 -> % Change over 01/1/2025 | I64: =$I$46 -> % Change over 01/1/2026 | J64: =$J$46 -> % Change over Illustrative Authorized
B65: Non-CARE | D65: =VLOOKUP($D$4,'Res Bill Impact'!$B$37:$N$46,3,FALSE) -> 122.8577105 | E65: =VLOOKUP($D$4,'Res Bill Impact'!$B$37:$N$46,6,FALSE) -> 118.50705 | F65: =VLOOKUP($D$4,'Res Bill Impact'!$B$37:$N$46,9,FALSE) -> 118.5070717 | G65: =VLOOKUP($D$4,'Res Bill Impact'!$B$37:$N$46,12,FALSE) -> 119.8766709 | H65: =$G65/D65-1 -> -0.02426416415 | I65: =$G65/E65-1 -> 0.01155729441 | J65: =$G65/F65-1 -> 0.01155710921
B66: CARE | D66: =VLOOKUP($D$4,'Res Bill Impact'!$B$52:$N$616,3,FALSE) -> 73.09977462 | E66: =VLOOKUP($D$4,'Res Bill Impact'!$B$52:$N$616,6,FALSE) -> 70.87560582 | F66: =VLOOKUP($D$4,'Res Bill Impact'!$B$52:$N$616,9,FALSE) -> 70.87561893 | G66: =VLOOKUP($D$4,'Res Bill Impact'!$B$52:$N$616,12,FALSE) -> 71.68677547 | H66: =$G66/D66-1 -> -0.01932973324 | I66: 0.01144497666 | J66: 0.01144478951
B67: Total | D67: =D65*(1-$N$18)+(Summary!D66*$N$18) -> 111.6449926 | E67: =E65*(1-$N$18)+(Summary!E66*$N$18) -> 107.773527 | F67: =F65*(1-$N$18)+(Summary!F66*$N$18) -> 107.7735468 | G67: =G65*(1-$N$18)+(Summary!G66*$N$18) -> 109.0173035 | H67: -0.02353611214 | I67: 0.01154064949 | J67: 0.01154046401
B69: =CONCATENATE("Illustrative Bundled Residential Monthly Average Bills - Winter On-Peak - Baseline Territory ",$D$4) -> Illustrative Bundled Residential Monthly Average Bills - Winter On-Peak - Baseline Territory X
D70: =$D$46 -> 2025-01-01 | E70: =$E$46 -> 2026-01-01 | F70: =$F$46 -> 2026 Illustrative Authorized | G70: =$G$46 -> 2026 Illustrative w/Pending | H70: =$H$46 -> % Change over 01/1/2025 | I70: =$I$46 -> % Change over 01/1/2026 | J70: =$J$46 -> % Change over Illustrative Authorized
B71: Non-CARE | D71: =VLOOKUP($D$4,'Res Bill Impact'!$B$37:$N$46,4,FALSE) -> 161.0801093 | E71: =VLOOKUP($D$4,'Res Bill Impact'!$B$37:$N$46,7,FALSE) -> 155.37591 | F71: =VLOOKUP($D$4,'Res Bill Impact'!$B$37:$N$46,10,FALSE) -> 155.3759384 | G71: =VLOOKUP($D$4,'Res Bill Impact'!$B$37:$N$46,13,FALSE) -> 157.1716351 | H71: =$G71/D71-1 -> -0.02426416415 | I71: =$G71/E71-1 -> 0.01155729441 | J71: =$G71/F71-1 -> 0.01155710921
B72: CARE | D72: =VLOOKUP($D$4,'Res Bill Impact'!$B$52:$N$616,4,FALSE) -> 92.44971496 | E72: =VLOOKUP($D$4,'Res Bill Impact'!$B$52:$N$616,7,FALSE) -> 89.63679559 | F72: =VLOOKUP($D$4,'Res Bill Impact'!$B$52:$N$616,10,FALSE) -> 89.63681218 | G72: =VLOOKUP($D$4,'Res Bill Impact'!$B$52:$N$616,13,FALSE) -> 90.66268663 | H72: =$G72/D72-1 -> -0.01932973324 | I72: 0.01144497666 | J72: 0.01144478951
B73: Total | D73: =D71*(1-$N$18)+(Summary!D72*$N$18) -> 145.6145713 | E73: =E71*(1-$N$18)+(Summary!E72*$N$18) -> 140.5619083 | F73: =F71*(1-$N$18)+(Summary!F72*$N$18) -> 140.5619341 | G73: =G71*(1-$N$18)+(Summary!G72*$N$18) -> 142.1841549 | H73: -0.02355819397 | I73: 0.01154115396 | J73: 0.01154096848
B76: =CONCATENATE("Essential Use Illustrative Bundled Residential Monthly Average Bills - Baseline Territory ",$D$4," (Includes Climate Credit)") -> Essential Use Illustrative Bundled Residential Monthly Average Bills - Baseline Territory X (Includes Climate Credit)
D77: =$D$46 -> 2025-01-01 | E77: =$E$46 -> 2026-01-01 | F77: =$F$46 -> 2026 Illustrative Authorized | G77: =$G$46 -> 2026 Illustrative w/Pending | H77: =$H$46 -> % Change over 01/1/2025 | I77: =$I$46 -> % Change over 01/1/2026 | J77: =$J$46 -> % Change over Illustrative Authorized
B78: Essential Use Non-CARE | D78: =((D84*$L$13)+(D90*$L$14)+(D96*$L$15))/12-L19/12 -> 76.55799027 | E78: =((E84*$L$13)+(E90*$L$14)+(E96*$L$15))/12-L20/12 -> 75.38013948 | F78: =((F84*$L$13)+(F90*$L$14)+(F96*$L$15))/12-L20/12 -> 75.38015398 | G78: =((G84*$L$13)+(G90*$L$14)+(G96*$L$15))/12-L20/12 -> 76.29588267 | H78: =$G78/D78-1 -> -0.003423647767 | I78: =$G78/E78-1 -> 0.01214833513 | J78: =$G78/F78-1 -> 0.01214814035
B79: Essential Use CARE | D79: =((D85*$L$13)+(D91*$L$14)+(D97*$L$15))/12-L19/12 -> 59.10189563 | E79: =((E85*$L$13)+(E91*$L$14)+(E97*$L$15))/12-L20/12 -> 58.86471842 | F79: =((F85*$L$13)+(F91*$L$14)+(F97*$L$15))/12-L20/12 -> 58.86473002 | G79: =((G85*$L$13)+(G91*$L$14)+(G97*$L$15))/12-L20/12 -> 59.5825435 | H79: =$G79/D79-1 -> 0.008132528772 | I79: 0.01219448765 | J79: =$G79/F79-1 -> 0.0121942881
B80: Total | D80: =((D86*$L$13)+(D92*$L$14)+(D98*$L$15))/12-L19/12 -> 72.62434106 | E80: =((E86*$L$13)+(E92*$L$14)+(E98*$L$15))/12-L20/12 -> 71.65846666 | F80: =((F86*$L$13)+(F92*$L$14)+(F98*$L$15))/12-L20/12 -> 71.65848051 | G80: =((G86*$L$13)+(G92*$L$14)+(G98*$L$15))/12-L20/12 -> 72.52960993 | H80: -0.001304399124 | I80: 0.01215687854 | J80: 0.01215668288
B82: =CONCATENATE("Essential Use Illustrative Bundled Residential Monthly Average Bills - Summer - Baseline Territory ",$D$4) -> Essential Use Illustrative Bundled Residential Monthly Average Bills - Summer - Baseline Territory X
D83: =$D$46 -> 2025-01-01 | E83: =$E$46 -> 2026-01-01 | F83: =$F$46 -> 2026 Illustrative Authorized | G83: =$G$46 -> 2026 Illustrative w/Pending | H83: =$H$46 -> % Change over 01/1/2025 | I83: =$I$46 -> % Change over 01/1/2026 | J83: =$J$46 -> % Change over Illustrative Authorized
B84: Essential Use Non-CARE | D84: =VLOOKUP($D$4,'Res Bill Impact'!$B$67:$N$76,2,FALSE) -> 40.69137468 | E84: =VLOOKUP($D$4,'Res Bill Impact'!$B$67:$N$76,5,FALSE) -> 39.25040401 | F84: =VLOOKUP($D$4,'Res Bill Impact'!$B$67:$N$76,8,FALSE) -> 39.2504112 | G84: =VLOOKUP($D$4,'Res Bill Impact'!$B$67:$N$76,11,FALSE) -> 39.70403249 | H84: =$G84/D84-1 -> -0.02426416415 | I84: =$G84/E84-1 -> 0.01155729441 | J84: =$G84/F84-1 -> 0.01155710921
B85: Essential Use CARE | D85: =VLOOKUP($D$4,'Res Bill Impact'!$B$82:$N$91,2,FALSE) -> 32.0442107 | E85: =VLOOKUP($D$4,'Res Bill Impact'!$B$82:$N$91,5,FALSE) -> 31.06921818 | F85: =VLOOKUP($D$4,'Res Bill Impact'!$B$82:$N$91,8,FALSE) -> 31.06922393 | G85: =VLOOKUP($D$4,'Res Bill Impact'!$B$82:$N$91,11,FALSE) -> 31.42480466 | H85: =$G85/D85-1 -> -0.01932973324 | I85: 0.01144497666 | J85: 0.01144478951
B86: Total | D86: =D84*(1-$N$18)+(Summary!D85*$N$18) -> 38.74277676 | E86: =E84*(1-$N$18)+(Summary!E85*$N$18) -> 37.40681208 | F86: =F84*(1-$N$18)+(Summary!F85*$N$18) -> 37.40681895 | G86: =G84*(1-$N$18)+(Summary!G85*$N$18) -> 37.83834725 | H86: -0.02334446783 | I86: 0.01153627228 | J86: 0.01153608672
B88: =CONCATENATE("Essential Use Illustrative Bundled Residential Monthly Average Bills - Winter Off-Peak - Baseline Territory ",$D$4) -> Essential Use Illustrative Bundled Residential Monthly Average Bills - Winter Off-Peak - Baseline Territory X
D89: =$D$46 -> 2025-01-01 | E89: =$E$46 -> 2026-01-01 | F89: =$F$46 -> 2026 Illustrative Authorized | G89: =$G$46 -> 2026 Illustrative w/Pending | H89: =$H$46 -> % Change over 01/1/2025 | I89: =$I$46 -> % Change over 01/1/2026 | J89: =$J$46 -> % Change over Illustrative Authorized
B90: Essential Use Non-CARE | D90: =VLOOKUP($D$4,'Res Bill Impact'!$B$67:$N$76,3,FALSE) -> 122.9045603 | E90: =VLOOKUP($D$4,'Res Bill Impact'!$B$67:$N$76,6,FALSE) -> 118.5522407 | F90: =VLOOKUP($D$4,'Res Bill Impact'!$B$67:$N$76,9,FALSE) -> 118.5522624 | G90: =VLOOKUP($D$4,'Res Bill Impact'!$B$67:$N$76,12,FALSE) -> 119.9223838 | H90: =$G90/D90-1 -> -0.02426416415 | I90: =$G90/E90-1 -> 0.01155729441 | J90: =$G90/F90-1 -> 0.01155710921
B91: Essential Use CARE | D91: =VLOOKUP($D$4,'Res Bill Impact'!$B$82:$N$91,3,FALSE) -> 96.78659558 | E91: =VLOOKUP($D$4,'Res Bill Impact'!$B$82:$N$91,6,FALSE) -> 93.84172021 | F91: =VLOOKUP($D$4,'Res Bill Impact'!$B$82:$N$91,9,FALSE) -> 93.84173758 | G91: =VLOOKUP($D$4,'Res Bill Impact'!$B$82:$N$91,12,FALSE) -> 94.91573651 | H91: =$G91/D91-1 -> -0.01932973324 | I91: 0.01144497666 | J91: 0.01144478951
B92: Total | D92: =D90*(1-$N$18)+(Summary!D91*$N$18) -> 117.0189992 | E92: =E90*(1-$N$18)+(Summary!E91*$N$18) -> 112.9838406 | F92: =F90*(1-$N$18)+(Summary!F91*$N$18) -> 112.9838613 | G92: =G90*(1-$N$18)+(Summary!G91*$N$18) -> 114.2872529 | H92: -0.02334446783 | I92: 0.01153627228 | J92: 0.01153608672
B94: =CONCATENATE("Essential Use Illustrative Bundled Residential Monthly Average Bills - Winter On-Peak - Baseline Territory ",$D$4) -> Essential Use Illustrative Bundled Residential Monthly Average Bills - Winter On-Peak - Baseline Territory X
D95: =$D$46 -> 2025-01-01 | E95: =$E$46 -> 2026-01-01 | F95: =$F$46 -> 2026 Illustrative Authorized | G95: =$G$46 -> 2026 Illustrative w/Pending | H95: =$H$46 -> % Change over 01/1/2025 | I95: =$I$46 -> % Change over 01/1/2026 | J95: =$J$46 -> % Change over Illustrative Authorized
B96: Essential Use Non-CARE | D96: =VLOOKUP($D$4,'Res Bill Impact'!$B$67:$N$76,4,FALSE) -> 166.0872436 | E96: =VLOOKUP($D$4,'Res Bill Impact'!$B$67:$N$76,7,FALSE) -> 160.2057307 | F96: =VLOOKUP($D$4,'Res Bill Impact'!$B$67:$N$76,10,FALSE) -> 160.20576 | G96: =VLOOKUP($D$4,'Res Bill Impact'!$B$67:$N$76,13,FALSE) -> 162.0572755 | H96: =$G96/D96-1 -> -0.02426416415 | I96: =$G96/E96-1 -> 0.01155729441 | J96: =$G96/F96-1 -> 0.01155710921
B97: Essential Use CARE | D97: =VLOOKUP($D$4,'Res Bill Impact'!$B$82:$N$91,4,FALSE) -> 130.7926967 | E97: =VLOOKUP($D$4,'Res Bill Impact'!$B$82:$N$91,7,FALSE) -> 126.8131354 | F97: =VLOOKUP($D$4,'Res Bill Impact'!$B$82:$N$91,10,FALSE) -> 126.8131589 | G97: =VLOOKUP($D$4,'Res Bill Impact'!$B$82:$N$91,13,FALSE) -> 128.2645088 | H97: =$G97/D97-1 -> -0.01932973324 | I97: 0.01144497666 | J97: 0.01144478951
B98: Total | D98: =D96*(1-$N$18)+(Summary!D97*$N$18) -> 158.1337827 | E98: =E96*(1-$N$18)+(Summary!E97*$N$18) -> 152.6808656 | F98: =F96*(1-$N$18)+(Summary!F97*$N$18) -> 152.6808937 | G98: =G96*(1-$N$18)+(Summary!G97*$N$18) -> 154.4422337 | H98: -0.02334446783 | I98: 0.01153627228 | J98: 0.01153608672
B101: =CONCATENATE("Typical Customer Illustrative Bundled Residential Monthly Average Bills - Baseline Territory ",$D$4," (Includes Climate Credit)") -> Typical Customer Illustrative Bundled Residential Monthly Average Bills - Baseline Territory X (Includes Climate Credit)
D102: =$D$46 -> 2025-01-01 | E102: =$E$46 -> 2026-01-01 | F102: =$F$46 -> 2026 Illustrative Authorized | G102: =$G$46 -> 2026 Illustrative w/Pending | H102: =$H$46 -> % Change over 01/1/2025 | I102: =$I$46 -> % Change over 01/1/2026 | J102: =$J$46 -> % Change over Illustrative Authorized
B103: =CONCATENATE($L$16," Therms Monthly Usage - Non-CARE") -> 31 Therms Monthly Usage - Non-CARE | D103: =((D109*$L$13)+(D115*$L$14)+(D121*$L$15))/12-L19/12 -> 83.90332741 | E103: =((E109*$L$13)+(E115*$L$14)+(E121*$L$15))/12-L20/12 -> 82.49039705 | F103: =((F109*$L$13)+(F115*$L$14)+(F121*$L$15))/12-L20/12 -> 82.49038833 | G103: =((G109*$L$13)+(G115*$L$14)+(G121*$L$15))/12-L20/12 -> 83.50277055 | H103: =$G103/D103-1 -> -0.0047740282 | I103: =$G103/E103-1 -> 0.01227262247 | J103: =$G103/F103-1 -> 0.01227272947
B104: =CONCATENATE($L$17," Therms Monthly Usage - CARE") -> 26 Therms Monthly Usage - CARE | D104: =((D110*$L$13)+(D116*$L$14)+(D122*$L$15))/12-L19/12 -> 52.99074711 | E104: =((E110*$L$13)+(E116*$L$14)+(E122*$L$15))/12-L20/12 -> 52.93997603 | F104: =((F110*$L$13)+(F116*$L$14)+(F122*$L$15))/12-L20/12 -> 52.93997301 | G104: =((G110*$L$13)+(G116*$L$14)+(G122*$L$15))/12-L20/12 -> 53.59825585 | H104: =$G104/D104-1 -> 0.01146443067 | I104: 0.01243445637 | J104: 0.01243451417
B105: Total | D105: =((D111*$L$13)+(D117*$L$14)+(D123*$L$15))/12-L19/12 -> 76.93732215 | E105: =((E111*$L$13)+(E117*$L$14)+(E123*$L$15))/12-L20/12 -> 75.83134801 | F105: =((F111*$L$13)+(F117*$L$14)+(F123*$L$15))/12-L20/12 -> 75.83134058 | G105: =((G111*$L$13)+(G117*$L$14)+(G123*$L$15))/12-L20/12 -> 76.76392816 | H105: -0.002253704483 | I105: 0.01229808216 | J105: 0.01229818142
B107: =CONCATENATE("Typical Customer Illustrative Bundled Residential Monthly Average Bills - Summer - Baseline Territory ",$D$4) -> Typical Customer Illustrative Bundled Residential Monthly Average Bills - Summer - Baseline Territory X
D108: =$D$46 -> 2025-01-01 | E108: =$E$46 -> 2026-01-01 | F108: =$F$46 -> 2026 Illustrative Authorized | G108: =$G$46 -> 2026 Illustrative w/Pending | H108: =$H$46 -> % Change over 01/1/2025 | I108: =$I$46 -> % Change over 01/1/2026 | J108: =$J$46 -> % Change over Illustrative Authorized
B109: =CONCATENATE($L$16," Therms Monthly Usage - Non-CARE") -> 31 Therms Monthly Usage - Non-CARE | D109: =VLOOKUP($D$4,'Res Bill Impact'!$B$97:$N$106,2,FALSE) -> 92.95646828 | E109: =VLOOKUP($D$4,'Res Bill Impact'!$B$97:$N$106,5,FALSE) -> 89.7075932 | F109: =VLOOKUP($D$4,'Res Bill Impact'!$B$97:$N$106,8,FALSE) -> 89.70756757 | G109: =VLOOKUP($D$4,'Res Bill Impact'!$B$97:$N$106,11,FALSE) -> 90.7691502 | H109: =$G109/D109-1 -> -0.02353056348 | I109: =$G109/E109-1 -> 0.01183352452 | J109: =$G109/F109-1 -> 0.01183381353
B110: =CONCATENATE($L$17," Therms Monthly Usage - CARE") -> 26 Therms Monthly Usage - CARE | D110: =VLOOKUP($D$4,'Res Bill Impact'!$B$112:$N$121,2,FALSE) -> 60.48881923 | E110: =VLOOKUP($D$4,'Res Bill Impact'!$B$112:$N$121,5,FALSE) -> 58.64915524 | F110: =VLOOKUP($D$4,'Res Bill Impact'!$B$112:$N$121,8,FALSE) -> 58.6491429 | G110: =VLOOKUP($D$4,'Res Bill Impact'!$B$112:$N$121,11,FALSE) -> 59.33455908 | H110: =$G110/D110-1 -> -0.01908220671 | I110: 0.01168650819 | J110: 0.01168672114
B111: Total | D111: =D109*(1-$N$18)+(Summary!D110*$N$18) -> 85.64003556 | E111: =E109*(1-$N$18)+(Summary!E110*$N$18) -> 82.7087196 | F111: =F109*(1-$N$18)+(Summary!F110*$N$18) -> 82.70869697 | G111: =G109*(1-$N$18)+(Summary!G110*$N$18) -> 83.68551225 | H111: -0.02282254202 | I111: 0.01181003227 | J111: 0.01181030913
B113: =CONCATENATE("Typical Customer Illustrative Bundled Residential Monthly Average Bills - Winter Off-Peak - Baseline Territory ",$D$4) -> Typical Customer Illustrative Bundled Residential Monthly Average Bills - Winter Off-Peak - Baseline Territory X
D114: =$D$46 -> 2025-01-01 | E114: =$E$46 -> 2026-01-01 | F114: =$F$46 -> 2026 Illustrative Authorized | G114: =$G$46 -> 2026 Illustrative w/Pending | H114: =$H$46 -> % Change over 01/1/2025 | I114: =$I$46 -> % Change over 01/1/2026 | J114: =$J$46 -> % Change over Illustrative Authorized
B115: =CONCATENATE($L$16," Therms Monthly Usage - Non-CARE") -> 31 Therms Monthly Usage - Non-CARE | D115: =VLOOKUP($D$4,'Res Bill Impact'!$B$97:$N$106,3,FALSE) -> 84.63531169 | E115: =VLOOKUP($D$4,'Res Bill Impact'!$B$97:$N$106,6,FALSE) -> 81.63819 | F115: =VLOOKUP($D$4,'Res Bill Impact'!$B$97:$N$106,9,FALSE) -> 81.63820495 | G115: =VLOOKUP($D$4,'Res Bill Impact'!$B$97:$N$106,12,FALSE) -> 82.5817066 | H115: =$G115/D115-1 -> -0.02426416415 | I115: =$G115/E115-1 -> 0.01155729441 | J115: =$G115/F115-1 -> 0.01155710921
B116: =CONCATENATE($L$17," Therms Monthly Usage - CARE") -> 26 Therms Monthly Usage - CARE | D116: =VLOOKUP($D$4,'Res Bill Impact'!$B$112:$N$121,3,FALSE) -> 55.89982765 | E116: =VLOOKUP($D$4,'Res Bill Impact'!$B$112:$N$121,6,FALSE) -> 54.19899269 | F116: =VLOOKUP($D$4,'Res Bill Impact'!$B$112:$N$121,9,FALSE) -> 54.19900271 | G116: =VLOOKUP($D$4,'Res Bill Impact'!$B$112:$N$121,12,FALSE) -> 54.81929889 | H116: =$G116/D116-1 -> -0.01932973324 | I116: 0.01144497666 | J116: 0.01144478951
B117: Total | D117: =D115*(1-$N$18)+(Summary!D116*$N$18) -> 78.15990489 | E117: =E115*(1-$N$18)+(Summary!E116*$N$18) -> 75.45489534 | F117: =F115*(1-$N$18)+(Summary!F116*$N$18) -> 75.45490918 | G117: =G115*(1-$N$18)+(Summary!G116*$N$18) -> 76.32557799 | H117: -0.0234688988 | I117: 0.01153911412 | J117: 0.01153892861
B119: =CONCATENATE("Typical Customer Illustrative Bundled Residential Monthly Average Bills - Winter On-Peak - Baseline Territory ",$D$4) -> Typical Customer Illustrative Bundled Residential Monthly Average Bills - Winter On-Peak - Baseline Territory X
D120: =$D$46 -> 2025-01-01 | E120: =$E$46 -> 2026-01-01 | F120: =$F$46 -> 2026 Illustrative Authorized | G120: =$G$46 -> 2026 Illustrative w/Pending | H120: =$H$46 -> % Change over 01/1/2025 | I120: =$I$46 -> % Change over 01/1/2026 | J120: =$J$46 -> % Change over Illustrative Authorized
B121: =CONCATENATE($L$16," Therms Monthly Usage - Non-CARE") -> 31 Therms Monthly Usage - Non-CARE | D121: =VLOOKUP($D$4,'Res Bill Impact'!$B$97:$N$106,4,FALSE) -> 84.63531169 | E121: =VLOOKUP($D$4,'Res Bill Impact'!$B$97:$N$106,7,FALSE) -> 81.63819 | F121: =VLOOKUP($D$4,'Res Bill Impact'!$B$97:$N$106,10,FALSE) -> 81.63820495 | G121: =VLOOKUP($D$4,'Res Bill Impact'!$B$97:$N$106,13,FALSE) -> 82.5817066 | H121: =$G121/D121-1 -> -0.02426416415 | I121: =$G121/E121-1 -> 0.01155729441 | J121: =$G121/F121-1 -> 0.01155710921
B122: =CONCATENATE($L$17," Therms Monthly Usage - CARE") -> 26 Therms Monthly Usage - CARE | D122: =VLOOKUP($D$4,'Res Bill Impact'!$B$112:$N$121,4,FALSE) -> 55.89982765 | E122: =VLOOKUP($D$4,'Res Bill Impact'!$B$112:$N$121,7,FALSE) -> 54.19899269 | F122: =VLOOKUP($D$4,'Res Bill Impact'!$B$112:$N$121,10,FALSE) -> 54.19900271 | G122: =VLOOKUP($D$4,'Res Bill Impact'!$B$112:$N$121,13,FALSE) -> 54.81929889 | H122: =$G122/D122-1 -> -0.01932973324 | I122: 0.01144497666 | J122: 0.01144478951
B123: Total | D123: =D121*(1-$N$18)+(Summary!D122*$N$18) -> 78.15990489 | E123: =E121*(1-$N$18)+(Summary!E122*$N$18) -> 75.45489534 | F123: =F121*(1-$N$18)+(Summary!F122*$N$18) -> 75.45490918 | G123: =G121*(1-$N$18)+(Summary!G122*$N$18) -> 76.32557799 | H123: -0.0234688988 | I123: 0.01153911412 | J123: 0.01153892861

Sheet Res Bill Impact
A1: *NOTE: This model produces illustrative rates based on a single average throughput forecast. Actual ratemaking uses multiple throughput forecasts depending on revenue requirement type. Therefore, differences in illustrative v. actual rates will exist.
E3: Schedule G-1 | P3: Schedule GL-1
E4: =Summary!L4 -> 2023 CARD | F4: =Summary!L3 -> 2026-01-01 | G4: =Summary!L3 -> 2026-01-01 | H4: Illustrative Proposed | I4: Illustrative Proposed | J4: Illustrative Proposed | K4: Illustrative Proposed | P4: =E4 -> 2023 CARD | Q4: =Summary!L3 -> 2026-01-01 | R4: =Summary!L3 -> 2026-01-01 | S4: Illustrative Proposed | T4: Illustrative Proposed | U4: Illustrative Proposed | V4: Illustrative Proposed
E5: Throughput Forecast | F5: Rates (w/illustrative procrement) | G5: Revenue | H5: Authorized Rates (w/illustrative procrement) | I5: Authorized Revenue | J5: w/Pending Rates (w/illustrative procrement) | K5: w/Pending Revenue | P5: Throughput Forecast | Q5: Rates (w/illustrative procrement) | R5: Revenue | S5: Authorized Rates (w/illustrative procrement) | T5: Authorized Revenue | U5: w/Pending Rates (w/illustrative procrement) | V5: w/Pending Revenue
D7: Baseline - Summer | E7: 248852.0342 | F7: 2.63349 | G7: =F7*E7 -> 655349.3436 | H7: =Res_RD!L49 -> 2.633490482 | I7: =E7*H7 -> 655349.4636 | J7: =Res_RD!AC49 -> 2.663926019 | K7: =E7*J7 -> 662923.4089 | O7: Baseline - Summer | P7: 70140.404 | Q7: 2.084576642 | R7: =Q7*P7 -> 146213.0478 | S7: =Res_RD!H61 -> 2.084577027 | T7: =P7*S7 -> 146213.0749 | U7: =Res_RD!Y61 -> 2.108434573 | V7: =P7*U7 -> 147886.4527
D8: - Winter | E8: 574813.2918 | F8: =F7 -> 2.63349 | G8: =F8*E8 -> 1513765.056 | H8: =H7 -> 2.633490482 | I8: =E8*H8 -> 1513765.333 | J8: =J7 -> 2.663926019 | K8: =E8*J8 -> 1531260.084 | O8: - Winter | P8: 170272.5746 | Q8: =Q7 -> 2.084576642 | R8: =Q8*P8 -> 354946.2317 | S8: =S7 -> 2.084577027 | T8: =P8*S8 -> 354946.2973 | U8: =U7 -> 2.108434573 | V8: =P8*U8 -> 359008.583
D9: Over Baseline - Summer | E9: 106674.2451 | F9: 3.13483 | G9: =F9*E9 -> 334405.6237 | H9: =Res_RD!L50 -> 3.134827962 | I9: =E9*H9 -> 334405.4063 | J9: =Res_RD!AC50 -> 3.172599694 | K9: =E9*J9 -> 338434.6773 | O9: Over Baseline - Summer | P9: 30618.99766 | Q9: 2.485648642 | R9: =Q9*P9 -> 76108.06993 | S9: =Res_RD!H62 -> 2.485647011 | T9: =P9*S9 -> 76108.02 | U9: =Res_RD!Y62 -> 2.515373512 | V9: =P9*U9 -> 77018.21568
D10: - Winter | E10: 234628.5976 | F10: =F9 -> 3.13483 | G10: =F10*E10 -> 735520.7666 | H10: =H9 -> 3.134827962 | I10: =E10*H10 -> 735520.2883 | J10: =J9 -> 3.172599694 | K10: =E10*J10 -> 744382.6169 | O10: - Winter | P10: 59181.49733 | Q10: =Q9 -> 2.485648642 | R10: =Q10*P10 -> 147104.4085 | S10: =S9 -> 2.485647011 | T10: =P10*S10 -> 147104.3119 | U10: =U9 -> 2.515373512 | V10: =P10*U10 -> 148863.5708
F12: =SUM(G7:G10)/SUM($E$7:$E$10) -> 2.780368491 | H12: =SUM(I7:I10)/SUM($E$7:$E$10) -> 2.780368235 | J12: =SUM(K7:K10)/SUM($E$7:$E$10) -> 2.812953071 | Q12: =SUM(R7:R10)/SUM($P$7:$P$10) -> 2.193646886 | S12: =SUM(T7:T10)/SUM($P$7:$P$10) -> 2.193646723 | U12: =SUM(V7:V10)/SUM($P$7:$P$10) -> 2.219100312
P19: 2025 Recorded Data - Average Monthly Usage - Therms
B20: SCHEDULE G-1 RATES ($/therm) | E20: Illustrative Proposed | F20: Illustrative Proposed | H20: MONTHLY BASELINE QUANTITIES -BASIC (Therms) | P20: Climate Zone | Q20: Summer | R20: Winter Off-Peak | S20: Winter On-Peak | T20: Summer | U20: Winter Off-Peak | V20: Winter On-Peak | W20: Sample Population Weight
B21: Rates | C21: 2025-01-01 | D21: =Summary!L3 -> 2026-01-01 | E21: Authorized | F21: w/Pending | H21: Climate Zone | I21: Summer 2022 | J21: Winter 2022 Off-Peak | K21: Winter 2022 On-Peak | Q21: Non-CARE | T21: CARE | W21: Non-CARE | X21: CARE
B22: Tier 1 | C22: 2.730171345 | D22: =F7 -> 2.63349 | E22: =H7 -> 2.633490482 | F22: =J7 -> 2.663926019 | H22: P | I22: 11.86263 | J22: 57.18396 | K22: 66.61323 | P22: P | Q22: 17 | R22: 52 | S22: 60 | T22: 14 | U22: 42 | V22: 47 | W22: 0.003359285292 | X22: 0.004745612892
B23: Tier 2 | C23: 3.247152408 | D23: =F9 -> 3.13483 | E23: =H9 -> 3.134827962 | F23: =J9 -> 3.172599694 | H23: Q | I23: 17.03352 | J23: 45.01716 | K23: 60.834 | P23: Q | Q23: INCLUDED WITH TERRITORY X
H24: R | I24: 10.95012 | J24: 37.71708 | K24: 55.05477 | P24: R | Q24: 14 | R24: 39 | S24: 58 | T24: 16 | U24: 36 | V24: 52 | W24: 0.07403913666 | X24: 0.1839724802
H25: S | I25: 11.86263 | J25: 41.97546 | K25: 59.00898 | P25: S | Q25: 15 | R25: 43 | S25: 62 | T25: 16 | U25: 40 | V25: 56 | W25: 0.3198561 | X25: 0.3410821569
B26: SCHEDULE GL-1 RATES ($/therm) | E26: Illustrative Proposed | F26: Illustrative Proposed | H26: T | I26: 17.03352 | J26: 39.84627 | K26: 51.10056 | P26: T | Q26: 19 | R26: 36 | S26: 44 | T26: 20 | U26: 31 | V26: 36 | W26: 0.1961009689 | X26: 0.147043258
B27: Rates | C27: =C21 -> 2025-01-01 | D27: =D21 -> 2026-01-01 | E27: Authorized | F27: w/Pending | H27: V | I27: 17.94603 | J27: 45.92967 | K27: 52.01307 | P27: V | Q27: 20 | R27: 43 | S27: 49 | T27: 21 | U27: 42 | V27: 46 | W27: 0.0085976199 | X27: 0.01273174353
B28: Tier 1 | C28: 2.149993371 | D28: =Q7 -> 2.084576642 | E28: =S7 -> 2.084577027 | F28: =U7 -> 2.108434573 | H28: W | I28: 11.86263 | J28: 34.67538 | K28: 51.10056 | P28: W | Q28: 14 | R28: 34 | S28: 54 | T28: 17 | U28: 35 | V28: 52 | W28: 0.01745428935 | X28: 0.07037425164
B29: Tier 2 | C29: 2.563577371 | D29: =Q9 -> 2.485648642 | E29: =S9 -> 2.485647011 | F29: =U9 -> 2.515373512 | H29: X | I29: 14.90433 | J29: 45.01716 | K29: 60.834 | P29: X | Q29: 18 | R29: 45 | S29: 59 | T29: 17 | U29: 34 | V29: 43 | W29: 0.3799733049 | X29: 0.2390702913
H30: Y | I30: 21.90024 | J30: 67.52574 | K30: 78.47586 | P30: Y | Q30: 22 | R30: 64 | S30: 71 | T30: 21 | U30: 57 | V30: 65 | W30: 0.0006192951012 | X30: 0.0009802055212
N33: Daily to Monthly Conversion Factor | O33: 30.417
C34: NON-CARE
C35: =C27 -> 2025-01-01 | F35: =D27 -> 2026-01-01 | I35: =CONCATENATE(E20," ",E21) -> Illustrative Proposed Authorized | L35: =CONCATENATE(F20," ",F21) -> Illustrative Proposed w/Pending
C36: Summer | D36: Winter Off-Peak | E36: Winter On-Peak | F36: Summer | G36: Winter Off-Peak | H36: Winter On-Peak | I36: Summer | J36: Winter Off-Peak | K36: Winter On-Peak | L36: Summer | M36: Winter Off-Peak | N36: Winter On-Peak
B37: P | C37: =IF(Q22>I22,C$22*I22+C$23*(Q22-I22),Q22*C$22) -> 49.06883587 | D37: =IF(R22>J22,C$22*J22+C$23*(R22-J22),R22*C$22) -> 141.9689099 | E37: =IF(S22>K22,C$22*K22+C$23*(S22-K22),S22*C$22) -> 163.8102807 | F37: =IF(Q22>I22,D$22*I22+D$23*(Q22-I22),Q22*D$22) -> 47.34489908 | G37: =IF(R22>J22,D$22*J22+D$23*(R22-J22),R22*D$22) -> 136.94148 | H37: =IF(S22>K22,D$22*K22+D$23*(S22-K22),S22*D$22) -> 158.0094 | I37: =IF(Q22>I22,E$22*I22+E$23*(Q22-I22),Q22*E$22) -> 47.34489432 | J37: =IF(R22>J22,E$22*J22+E$23*(R22-J22),R22*E$22) -> 136.9415051 | K37: =IF(S22>K22,E$22*K22+E$23*(S22-K22),S22*E$22) -> 158.0094289 | L37: =IF(Q22>I22,F$22*I22+F$23*(Q22-I22),Q22*F$22) -> 47.8999872 | M37: =IF(R22>J22,F$22*J22+F$23*(R22-J22),R22*F$22) -> 138.524153 | N37: =IF(S22>K22,F$22*K22+F$23*(S22-K22),S22*F$22) -> 159.8355612
B38: Q
B39: R | C39: =IF(Q24>I24,C$22*I24+C$23*(Q24-I24),Q24*C$22) -> 39.79912903 | D39: =IF(R24>J24,C$22*J24+C$23*(R24-J24),R24*C$22) -> 107.1399278 | E39: =IF(S24>K24,C$22*K24+C$23*(S24-K24),S24*C$22) -> 159.8725661 | F39: =IF(Q24>I24,D$22*I24+D$23*(Q24-I24),Q24*D$22) -> 38.39788684 | G39: =IF(R24>J24,D$22*J24+D$23*(R24-J24),R24*D$22) -> 103.3492891 | H39: =IF(S24>K24,D$22*K24+D$23*(S24-K24),S24*D$22) -> 154.2189816 | I39: =IF(Q24>I24,E$22*I24+E$23*(Q24-I24),Q24*E$22) -> 38.3978859 | J39: =IF(R24>J24,E$22*J24+E$23*(R24-J24),R24*E$22) -> 103.3493047 | K39: =IF(S24>K24,E$22*K24+E$23*(S24-K24),S24*E$22) -> 154.2190021 | L39: =IF(Q24>I24,F$22*I24+F$23*(Q24-I24),Q24*F$22) -> 38.84635794 | M39: =IF(R24>J24,F$22*J24+F$23*(R24-J24),R24*F$22) -> 104.5457024 | N39: =IF(S24>K24,F$22*K24+F$23*(S24-K24),S24*F$22) -> 156.0058701
B40: S | C40: 42.57453105 | D40: 117.9270356 | E40: 170.8169241 | F40: 41.07523908 | G40: 113.7537129 | H40: 164.775898 | I40: 41.0752384 | J40: 113.753731 | K40: 164.7759203 | L40: =IF(Q25>I25,F$22*I25+F$23*(Q25-I25),Q25*F$22) -> 41.55478782 | M40: 115.0699754 | N40: 166.6848663
B41: T | C41: 52.88988847 | D41: 98.28616842 | E41: 120.1275392 | F41: 51.02218508 | G41: 94.80564 | H41: 115.87356 | I41: 51.02218929 | J41: 94.80565736 | K41: 115.8735812 | L41: 51.61489097 | M41: =IF(R26>J26,F$22*J26+F$23*(R26-J26),R26*F$22) -> 95.90133669 | N41: 117.2127448
B42: V | C42: 55.66529049 | D42: 117.3973678 | E42: 133.7783959 | F42: 53.69953732 | G42: 113.24007 | H42: 129.04101 | I42: 53.69954179 | J42: 113.2400907 | K42: 129.0410336 | L42: 54.32332085 | M42: 114.5488188 | N42: 130.5323749
B43: W | C43: 39.32737864 | D43: 92.82582573 | E43: 148.9282082 | F43: 37.94040908 | G43: 89.53866 | H43: 143.6620652 | I43: 37.94041044 | J43: 89.53867639 | K43: 143.662084 | L43: 38.38218812 | M43: 90.57348465 | N43: 145.3268738
B44: X | C44: =IF(Q29>I29,C$22*I29+C$23*(Q29-I29),Q29*C$22) -> 50.74348698 | D44: 122.8577105 | E44: 161.0801093 | F44: 48.9548032 | G44: 118.50705 | H44: 155.37591 | I44: 48.95480407 | J44: 118.5070717 | K44: 155.3759384 | L44: 49.52535418 | M44: 119.8766709 | N44: 157.1716351
B45: Y | C45: 60.11534362 | D45: 174.7309661 | E45: 193.8421655 | F45: 57.98679368 | G45: 168.54336 | H45: 186.97779 | I45: 57.98680403 | J45: 168.5433909 | K45: 186.9778242 | L45: 58.65711771 | M45: 170.4912652 | N45: 189.1387474
B46: ALL CLIMATE ZONES | C46: =SUMPRODUCT(C37:C45,$W$22:$W$30) -> 47.58443124 | D46: 114.8235635 | E46: 155.656873 | F46: 45.9069975 | G46: 110.7585367 | H46: 150.1479896 | I46: 45.90699843 | J46: 110.7585559 | K46: 150.1480139 | L46: 46.44196667 | M46: 112.0392565 | N46: 151.8851807
C49: CARE
C50: =C27 -> 2025-01-01 | F50: =D27 -> 2026-01-01 | I50: =I35 -> Illustrative Proposed Authorized | L50: =L35 -> Illustrative Proposed w/Pending
C51: Summer | D51: Winter Off-Peak | E51: Winter On-Peak | F51: Summer | G51: Winter Off-Peak | H51: Winter On-Peak | I51: Summer | J51: Winter Off-Peak | K51: Winter On-Peak | L51: Summer | M51: Winter Off-Peak | N51: Winter On-Peak
B52: P | C52: =IF(T22>I22,C$28*I22+C$29*(T22-I22),T22*C$28) -> 30.98388923 | D52: =IF(U22>J22,C$28*J22+C$29*(U22-J22),U22*C$28) -> 90.29972159 | E52: =IF(V22>K22,C$28*K22+C$29*(V22-K22),V22*C$28) -> 101.0496884 | F52: =IF(T22>I22,D$28*I22+D$29*(T22-I22),T22*D$28) -> 30.04131225 | G52: =IF(U22>J22,D$28*J22+D$29*(U22-J22),U22*D$28) -> 87.55221895 | H52: =IF(V22>K22,D$28*K22+D$29*(V22-K22),V22*D$28) -> 97.97510216 | I52: =IF(T22>I22,E$28*I22+E$29*(T22-I22),T22*E$28) -> 30.04131334 | J52: =IF(U22>J22,E$28*J22+E$29*(U22-J22),U22*E$28) -> 87.55223515 | K52: =IF(V22>K22,E$28*K22+E$29*(V22-K22),V22*E$28) -> 97.97512029 | L52: =IF(T22>I22,F$28*I22+F$29*(T22-I22),T22*F$28) -> 30.3878631 | M52: =IF(U22>J22,F$28*J22+F$29*(U22-J22),U22*F$28) -> 88.55425206 | N52: =IF(V22>K22,F$28*K22+F$29*(V22-K22),V22*F$28) -> 99.09642492
B53: Q
B54: R | C54: =IF(T24>I24,C$28*I24+C$29*(T24-I24),T24*C$28) -> 36.48844351 | D54: =IF(U24>J24,C$28*J24+C$29*(U24-J24),U24*C$28) -> 77.39976136 | E54: =IF(V24>K24,C$28*K24+C$29*(V24-K24),V24*C$28) -> 111.7996553 | F54: =IF(T24>I24,D$28*I24+D$29*(T24-I24),T24*D$28) -> 35.37859174 | G54: =IF(U24>J24,D$28*J24+D$29*(U24-J24),U24*D$28) -> 75.0447591 | H54: =IF(V24>K24,D$28*K24+D$29*(V24-K24),V24*D$28) -> 108.3979854 | I54: =IF(T24>I24,E$28*I24+E$29*(T24-I24),T24*E$28) -> 35.37858773 | J54: =IF(U24>J24,E$28*J24+E$29*(U24-J24),U24*E$28) -> 75.04477299 | K54: =IF(V24>K24,E$28*K24+E$29*(V24-K24),V24*E$28) -> 108.3980054 | L54: =IF(T24>I24,F$28*I24+F$29*(T24-I24),T24*F$28) -> 35.78994598 | M54: =IF(U24>J24,F$28*J24+F$29*(U24-J24),U24*F$28) -> 75.90364462 | N54: =IF(V24>K24,F$28*K24+F$29*(V24-K24),V24*F$28) -> 109.6385978
B55: S | C55: 36.11104397 | D55: 85.99973484 | E55: 120.3996288 | F55: 35.01260953 | G55: 83.38306567 | H55: 116.7362919 | I55: 35.01260736 | J55: 83.3830811 | K55: 116.7363135 | L55: 35.41861013 | M55: 84.33738291 | N55: 118.0723361
B56: T | C56: 44.22675609 | D56: 66.6497945 | E56: 77.39976136 | F56: 42.8813049 | G56: 64.62187589 | H56: 75.0447591 | I56: 42.88130663 | J56: 64.62188785 | K56: 75.04477299 | L56: 43.37586768 | M56: 65.36147176 | N56: 75.90364462
B57: V | C57: 46.41293392 | D57: 90.29972159 | E57: 98.89969507 | F57: 45.00097133 | G57: 87.55221895 | H57: 95.89052552 | I57: 45.00097327 | J57: 87.55223515 | K57: 95.89054326 | L57: 45.51990534 | M57: 88.55425206 | N57: 96.98799035
B58: W | C58: 38.67462134 | D58: 75.38402563 | E58: 112.1716493 | F58: 37.49825817 | G58: 73.09037845 | H58: 108.7587256 | I58: 37.49825437 | J58: 73.0903913 | K58: 108.7587438 | L58: 37.93398364 | M58: 73.92731056 | N58: 110.0046149
B59: X | C59: 37.41662289 | D59: 73.09977462 | E59: 92.44971496 | F59: 36.27831747 | G59: 70.87560582 | H59: 89.63679559 | I59: 36.2783198 | J59: 70.87561893 | K59: 89.63681218 | L59: 36.69619746 | M59: 71.68677547 | N59: 90.66268663
B60: Y | C60: 45.14986079 | D60: 122.5496222 | E60: 139.7495691 | F60: 43.77610948 | G60: 118.8208686 | H60: 135.4974817 | I60: 43.77611758 | J60: 118.8208906 | K60: 135.4975068 | L60: 44.27712603 | M60: 120.1807706 | N60: 137.0482472
B61: ALL CLIMATE ZONES | C61: =SUMPRODUCT(C52:C60,$X$22:$X$30) -> 37.98206025 | D61: =SUMPRODUCT(D52:D60,$X$22:$X$30) -> 77.85220708 | E61: 104.8870057 | F61: 36.82666506 | G61: 75.48344014 | H61: =SUMPRODUCT(H52:H60,$X$22:$X$30) -> 101.695668 | I61: 36.82666416 | J61: 75.48345406 | K61: =SUMPRODUCT(K52:K60,$X$22:$X$30) -> 101.6956866 | L61: 37.25285377 | M61: 76.34737551 | N61: =SUMPRODUCT(N52:N60,$X$22:$X$30) -> 102.8596533
C64: ESSENTIAL USAGE NON-CARE
C65: =C27 -> 2025-01-01 | F65: =D27 -> 2026-01-01 | I65: =I50 -> Illustrative Proposed Authorized | L65: =L50 -> Illustrative Proposed w/Pending
C66: Summer | D66: Winter Off-Peak | E66: Winter On-Peak | F66: Summer | G66: Winter Off-Peak | H66: Winter On-Peak | I66: Summer | J66: Winter Off-Peak | K66: Winter On-Peak | L66: Summer | M66: Winter Off-Peak | N66: Winter On-Peak
B67: P | C67: =C$22*I22 -> 32.3870125 | D67: =C$22*J22 -> 156.122009 | E67: =C$22*K22 -> 181.8655317 | F67: =D$22*I22 -> 31.24011748 | G67: =D$22*J22 -> 150.5933868 | H67: =D$22*K22 -> 175.4252751 | I67: =E$22*I22 -> 31.2401232 | J67: =E$22*J22 -> 150.5934144 | K67: =E$22*K22 -> 175.4253072 | L67: =F$22*I22 -> 31.60116871 | M67: =F$22*J22 -> 152.3338389 | N67: =F$22*K22 -> 177.4527166
B68: Q
B69: R | C69: =C$22*I24 -> 29.89570385 | D69: =C$22*J24 -> 102.974091 | E69: =C$22*K24 -> 150.3089555 | F69: =D$22*I24 -> 28.83703152 | G69: =D$22*J24 -> 99.32755301 | H69: =D$22*K24 -> 144.9861862 | I69: =E$22*I24 -> 28.8370368 | J69: =E$22*J24 -> 99.32757119 | K69: =E$22*K24 -> 144.9862128 | L69: =F$22*I24 -> 29.17030958 | M69: =F$22*J24 -> 100.4755108 | N69: =F$22*K24 -> 146.6618343
B70: S | C70: 32.3870125 | D70: 114.6001981 | E70: 161.1046263 | F70: 31.24011748 | G70: 110.5419542 | H70: 155.3995587 | I70: 31.2401232 | J70: 110.5419744 | K70: 155.3995872 | L70: 31.60116871 | M70: 111.8195201 | N70: 157.1955572
B71: T | C71: 46.50442821 | D71: 108.7871446 | E71: 139.5132846 | F71: 44.85760458 | G71: 104.9347536 | H71: 134.5728138 | I71: 44.8576128 | J71: 104.9347728 | K71: 134.5728384 | L71: 45.37603713 | M71: 106.1475154 | N71: 136.1281114
B72: V | C72: 48.99573686 | D72: 125.3958689 | E72: 142.0045933 | F72: 47.26069054 | G72: 120.9553266 | H72: 136.9758997 | I72: 47.2606992 | J72: 120.9553488 | K72: 136.9759248 | L72: 47.80689626 | M72: 122.353243 | N72: 138.5589705
B73: W | C73: 32.3870125 | D73: 94.66972885 | E73: 139.5132846 | F73: 31.24011748 | G73: 91.31726648 | H73: 134.5728138 | I73: 31.2401232 | J73: 91.31728319 | K73: 134.5728384 | L73: 31.60116871 | M73: 92.37264701 | N73: 136.1281114
B74: X | C74: 40.69137468 | D74: 122.9045603 | E74: 166.0872436 | F74: 39.25040401 | G74: 118.5522407 | H74: 160.2057307 | I74: 39.2504112 | J74: 118.5522624 | K74: 160.20576 | L74: 39.70403249 | M74: 119.9223838 | N74: 162.0572755
B75: Y | C75: 59.79140769 | D75: 184.3568404 | E75: 214.2525442 | F75: 57.67406304 | G75: 177.828361 | H75: 206.6653926 | I75: 57.6740736 | J75: 177.8283936 | K75: 206.6654304 | L75: 58.34061916 | M75: 179.8835758 | N75: 209.0538853
B76: ALL CLIMATE ZONES | C76: =SUMPRODUCT(C67:C75,$W$22:$W$30) -> 38.28619991 | D76: =SUMPRODUCT(D67:D75,$W$22:$W$30) -> 115.6825301 | E76: 157.5260824 | F76: 36.93040174 | G76: 111.5859584 | H76: 151.9477389 | I76: 36.9304085 | J76: 111.5859789 | K76: 151.9477667 | L76: 37.35721727 | M76: 112.8755902 | N76: 153.7038437
C79: ESSENTIAL USAGE CARE
C80: =C27 -> 2025-01-01 | F80: =D27 -> 2026-01-01 | I80: =I65 -> Illustrative Proposed Authorized | L80: =L65 -> Illustrative Proposed w/Pending
C81: Summer | D81: Winter Off-Peak | E81: Winter On-Peak | F81: Summer | G81: Winter Off-Peak | H81: Winter On-Peak | I81: Summer | J81: Winter Off-Peak | K81: Winter On-Peak | L81: Summer | M81: Winter Off-Peak | N81: Winter On-Peak
B82: P | C82: =C$28*I22 -> 25.50457586 | D82: =C$28*J22 -> 122.9451349 | E82: =C$28*K22 -> 143.2180029 | F82: =D$28*I22 -> 24.72856141 | G82: =D$28*J22 -> 119.2043473 | H82: =D$28*K22 -> 138.8603833 | I82: =E$28*I22 -> 24.72856598 | J82: =E$28*J22 -> 119.2043694 | K82: =E$28*K22 -> 138.860409 | L82: =F$28*I22 -> 25.01157922 | M82: =F$28*J22 -> 120.5686383 | N82: =F$28*K22 -> 140.4496371
B83: Q
B84: R | C84: =C$28*I24 -> 23.54268541 | D84: =C$28*J24 -> 81.09147198 | E84: =C$28*K24 -> 118.3673905 | F84: =D$28*I24 -> 22.82636438 | G84: =D$28*J24 -> 78.62414396 | H84: =D$28*K24 -> 114.7658876 | I84: =E$28*I24 -> 22.8263686 | J84: =E$28*J24 -> 78.62415851 | K84: =E$28*K24 -> 114.7659088 | L84: =F$28*I24 -> 23.08761158 | M84: =F$28*J24 -> 79.52399546 | N84: =F$28*K24 -> 116.0793805
B85: S | C85: 25.50457586 | D85: 90.24696075 | E85: 126.8689158 | F85: 24.72856141 | G85: 87.50106344 | H85: 123.0087414 | I85: 24.72856598 | J85: 87.50107963 | K85: 123.0087641 | L85: 25.01157922 | M85: 88.50251107 | N85: 124.4165735
B86: T | C86: 36.62195509 | D86: 85.66921636 | E86: 109.8658653 | F86: 35.50767792 | G86: 83.0626037 | H86: 106.5230338 | I86: 35.50768449 | J86: 83.06261907 | K86: 106.5230535 | L86: 35.91406246 | M86: 84.01325326 | N86: 107.7421874
B87: V | C87: 38.58384554 | D87: 98.74848604 | E87: 111.8277557 | F87: 37.40987495 | G87: 95.74391724 | H87: 108.4252308 | I87: 37.40988187 | J87: 95.74393496 | K87: 108.4252508 | L87: 37.8380301 | M87: 96.83970414 | N87: 109.666155
B88: W | C88: 25.50457586 | D88: 74.55183714 | E88: 109.8658653 | F88: 24.72856141 | G88: 72.28348719 | H88: 106.5230338 | I88: 24.72856598 | J88: 72.28350057 | K88: 106.5230535 | L88: 25.01157922 | M88: 73.11077002 | N88: 107.7421874
B89: X | C89: 32.0442107 | D89: 96.78659558 | E89: 130.7926967 | F89: 31.06921818 | G89: 93.84172021 | H89: 126.8131354 | I89: 31.06922393 | J89: 93.84173758 | K89: 126.8131589 | L89: 31.42480466 | M89: 94.91573651 | N89: 128.2645088
B90: Y | C90: 47.08537082 | D90: 145.1798934 | E90: 168.7225788 | F90: 45.65272875 | G90: 140.7625803 | H90: 163.5889447 | I90: 45.6527372 | J90: 140.7626064 | K90: 163.588975 | L90: 46.17522317 | M90: 142.3736048 | N90: 165.4612164
B91: ALL CLIMATE ZONES | C91: =SUMPRODUCT(C82:C90,$X$22:$X$30) -> 28.5294856 | D91: 88.66563383 | E91: 122.4732791 | F91: 27.66143379 | G91: 85.96785074 | H91: 118.7468484 | I91: 27.66143891 | J91: 85.96786664 | K91: 118.7468704 | L91: 27.97801825 | M91: 86.95175078 | N91: 120.1059033
C94: TYPICAL NON-CARE
C95: =C27 -> 2025-01-01 | F95: =D27 -> 2026-01-01 | I95: =I80 -> Illustrative Proposed Authorized | L95: =L80 -> Illustrative Proposed w/Pending
C96: Summer | D96: Winter Off-Peak | E96: Winter On-Peak | F96: Summer | G96: Winter Off-Peak | H96: Winter On-Peak | I96: Summer | J96: Winter Off-Peak | K96: Winter On-Peak | L96: Summer | M96: Winter Off-Peak | N96: Winter On-Peak
B97: P | C97: =IF(Summary!$L$16>I22,C$22*I22+C$23*(Summary!$L$16-I22),Summary!$L$16*C$22) -> 94.52896958 | D97: =IF(Summary!$L$16>J22,C$22*J22+C$23*(Summary!$L$16-J22),Summary!$L$16*C$22) -> 84.63531169 | E97: =IF(Summary!$L$16>K22,C$22*K22+C$23*(Summary!$L$16-K22),Summary!$L$16*C$22) -> 84.63531169 | F97: =IF(Summary!$L$16>I22,D$22*I22+D$23*(Summary!$L$16-I22),Summary!$L$16*D$22) -> 91.23251908 | G97: =IF(Summary!$L$16>J22,D$22*J22+D$23*(Summary!$L$16-J22),Summary!$L$16*D$22) -> 81.63819 | H97: =IF(Summary!$L$16>K22,D$22*K22+D$23*(Summary!$L$16-K22),Summary!$L$16*D$22) -> 81.63819 | I97: =IF(Summary!$L$16>I22,E$22*I22+E$23*(Summary!$L$16-I22),Summary!$L$16*E$22) -> 91.23248579 | J97: =IF(Summary!$L$16>J22,E$22*J22+E$23*(Summary!$L$16-J22),Summary!$L$16*E$22) -> 81.63820495 | K97: =IF(Summary!$L$16>K22,E$22*K22+E$23*(Summary!$L$16-K22),Summary!$L$16*E$22) -> 81.63820495 | L97: =IF(Summary!$L$16>I22,F$22*I22+F$23*(Summary!$L$16-I22),Summary!$L$16*F$22) -> 92.31638292 | M97: =IF(Summary!$L$16>J22,F$22*J22+F$23*(Summary!$L$16-J22),Summary!$L$16*F$22) -> 82.5817066 | N97: =IF(Summary!$L$16>K22,F$22*K22+F$23*(Summary!$L$16-K22),Summary!$L$16*F$22) -> 82.5817066
B98: Q
B99: R | C99: =IF(Summary!$L$16>I24,C$22*I24+C$23*(Summary!$L$16-I24),Summary!$L$16*C$22) -> 95.00071997 | D99: =IF(Summary!$L$16>J24,C$22*J24+C$23*(Summary!$L$16-J24),Summary!$L$16*C$22) -> 84.63531169 | E99: =IF(Summary!$L$16>K24,C$22*K24+C$23*(Summary!$L$16-K24),Summary!$L$16*C$22) -> 84.63531169 | F99: =IF(Summary!$L$16>I24,D$22*I24+D$23*(Summary!$L$16-I24),Summary!$L$16*D$22) -> 91.68999684 | G99: =IF(Summary!$L$16>J24,D$22*J24+D$23*(Summary!$L$16-J24),Summary!$L$16*D$22) -> 81.63819 | H99: =IF(Summary!$L$16>K24,D$22*K24+D$23*(Summary!$L$16-K24),Summary!$L$16*D$22) -> 81.63819 | I99: =IF(Summary!$L$16>I24,E$22*I24+E$23*(Summary!$L$16-I24),Summary!$L$16*E$22) -> 91.68996125 | J99: =IF(Summary!$L$16>J24,E$22*J24+E$23*(Summary!$L$16-J24),Summary!$L$16*E$22) -> 81.63820495 | K99: =IF(Summary!$L$16>K24,E$22*K24+E$23*(Summary!$L$16-K24),Summary!$L$16*E$22) -> 81.63820495 | L99: =IF(Summary!$L$16>I24,F$22*I24+F$23*(Summary!$L$16-I24),Summary!$L$16*F$22) -> 92.78055273 | M99: =IF(Summary!$L$16>J24,F$22*J24+F$23*(Summary!$L$16-J24),Summary!$L$16*F$22) -> 82.5817066 | N99: =IF(Summary!$L$16>K24,F$22*K24+F$23*(Summary!$L$16-K24),Summary!$L$16*F$22) -> 82.5817066
B100: S | C100: =IF(Summary!$L$16>I25,C$22*I25+C$23*(Summary!$L$16-I25),Summary!$L$16*C$22) -> 94.52896958 | D100: =IF(Summary!$L$16>J25,C$22*J25+C$23*(Summary!$L$16-J25),Summary!$L$16*C$22) -> 84.63531169 | E100: =IF(Summary!$L$16>K25,C$22*K25+C$23*(Summary!$L$16-K25),Summary!$L$16*C$22) -> 84.63531169 | F100: =IF(Summary!$L$16>I25,D$22*I25+D$23*(Summary!$L$16-I25),Summary!$L$16*D$22) -> 91.23251908 | G100: =IF(Summary!$L$16>J25,D$22*J25+D$23*(Summary!$L$16-J25),Summary!$L$16*D$22) -> 81.63819 | H100: =IF(Summary!$L$16>K25,D$22*K25+D$23*(Summary!$L$16-K25),Summary!$L$16*D$22) -> 81.63819 | I100: =IF(Summary!$L$16>I25,E$22*I25+E$23*(Summary!$L$16-I25),Summary!$L$16*E$22) -> 91.23248579 | J100: =IF(Summary!$L$16>J25,E$22*J25+E$23*(Summary!$L$16-J25),Summary!$L$16*E$22) -> 81.63820495 | K100: =IF(Summary!$L$16>K25,E$22*K25+E$23*(Summary!$L$16-K25),Summary!$L$16*E$22) -> 81.63820495 | L100: =IF(Summary!$L$16>I25,F$22*I25+F$23*(Summary!$L$16-I25),Summary!$L$16*F$22) -> 92.31638292 | M100: =IF(Summary!$L$16>J25,F$22*J25+F$23*(Summary!$L$16-J25),Summary!$L$16*F$22) -> 82.5817066 | N100: =IF(Summary!$L$16>K25,F$22*K25+F$23*(Summary!$L$16-K25),Summary!$L$16*F$22) -> 82.5817066
B101: T | C101: =IF(Summary!$L$16>I26,C$22*I26+C$23*(Summary!$L$16-I26),Summary!$L$16*C$22) -> 91.85571737 | D101: =IF(Summary!$L$16>J26,C$22*J26+C$23*(Summary!$L$16-J26),Summary!$L$16*C$22) -> 84.63531169 | E101: =IF(Summary!$L$16>K26,C$22*K26+C$23*(Summary!$L$16-K26),Summary!$L$16*C$22) -> 84.63531169 | F101: =IF(Summary!$L$16>I26,D$22*I26+D$23*(Summary!$L$16-I26),Summary!$L$16*D$22) -> 88.64014508 | G101: =IF(Summary!$L$16>J26,D$22*J26+D$23*(Summary!$L$16-J26),Summary!$L$16*D$22) -> 81.63819 | H101: =IF(Summary!$L$16>K26,D$22*K26+D$23*(Summary!$L$16-K26),Summary!$L$16*D$22) -> 81.63819 | I101: =IF(Summary!$L$16>I26,E$22*I26+E$23*(Summary!$L$16-I26),Summary!$L$16*E$22) -> 88.64012483 | J101: =IF(Summary!$L$16>J26,E$22*J26+E$23*(Summary!$L$16-J26),Summary!$L$16*E$22) -> 81.63820495 | K101: =IF(Summary!$L$16>K26,E$22*K26+E$23*(Summary!$L$16-K26),Summary!$L$16*E$22) -> 81.63820495 | L101: =IF(Summary!$L$16>I26,F$22*I26+F$23*(Summary!$L$16-I26),Summary!$L$16*F$22) -> 89.6860873 | M101: =IF(Summary!$L$16>J26,F$22*J26+F$23*(Summary!$L$16-J26),Summary!$L$16*F$22) -> 82.5817066 | N101: =IF(Summary!$L$16>K26,F$22*K26+F$23*(Summary!$L$16-K26),Summary!$L$16*F$22) -> 82.5817066
B102: V | C102: =IF(Summary!$L$16>I27,C$22*I27+C$23*(Summary!$L$16-I27),Summary!$L$16*C$22) -> 91.38396698 | D102: =IF(Summary!$L$16>J27,C$22*J27+C$23*(Summary!$L$16-J27),Summary!$L$16*C$22) -> 84.63531169 | E102: =IF(Summary!$L$16>K27,C$22*K27+C$23*(Summary!$L$16-K27),Summary!$L$16*C$22) -> 84.63531169 | F102: =IF(Summary!$L$16>I27,D$22*I27+D$23*(Summary!$L$16-I27),Summary!$L$16*D$22) -> 88.18266732 | G102: =IF(Summary!$L$16>J27,D$22*J27+D$23*(Summary!$L$16-J27),Summary!$L$16*D$22) -> 81.63819 | H102: =IF(Summary!$L$16>K27,D$22*K27+D$23*(Summary!$L$16-K27),Summary!$L$16*D$22) -> 81.63819 | I102: =IF(Summary!$L$16>I27,E$22*I27+E$23*(Summary!$L$16-I27),Summary!$L$16*E$22) -> 88.18264936 | J102: =IF(Summary!$L$16>J27,E$22*J27+E$23*(Summary!$L$16-J27),Summary!$L$16*E$22) -> 81.63820495 | K102: =IF(Summary!$L$16>K27,E$22*K27+E$23*(Summary!$L$16-K27),Summary!$L$16*E$22) -> 81.63820495 | L102: =IF(Summary!$L$16>I27,F$22*I27+F$23*(Summary!$L$16-I27),Summary!$L$16*F$22) -> 89.22191749 | M102: =IF(Summary!$L$16>J27,F$22*J27+F$23*(Summary!$L$16-J27),Summary!$L$16*F$22) -> 82.5817066 | N102: =IF(Summary!$L$16>K27,F$22*K27+F$23*(Summary!$L$16-K27),Summary!$L$16*F$22) -> 82.5817066
B103: W | C103: =IF(Summary!$L$16>I28,C$22*I28+C$23*(Summary!$L$16-I28),Summary!$L$16*C$22) -> 94.52896958 | D103: =IF(Summary!$L$16>J28,C$22*J28+C$23*(Summary!$L$16-J28),Summary!$L$16*C$22) -> 84.63531169 | E103: =IF(Summary!$L$16>K28,C$22*K28+C$23*(Summary!$L$16-K28),Summary!$L$16*C$22) -> 84.63531169 | F103: =IF(Summary!$L$16>I28,D$22*I28+D$23*(Summary!$L$16-I28),Summary!$L$16*D$22) -> 91.23251908 | G103: =IF(Summary!$L$16>J28,D$22*J28+D$23*(Summary!$L$16-J28),Summary!$L$16*D$22) -> 81.63819 | H103: =IF(Summary!$L$16>K28,D$22*K28+D$23*(Summary!$L$16-K28),Summary!$L$16*D$22) -> 81.63819 | I103: =IF(Summary!$L$16>I28,E$22*I28+E$23*(Summary!$L$16-I28),Summary!$L$16*E$22) -> 91.23248579 | J103: =IF(Summary!$L$16>J28,E$22*J28+E$23*(Summary!$L$16-J28),Summary!$L$16*E$22) -> 81.63820495 | K103: =IF(Summary!$L$16>K28,E$22*K28+E$23*(Summary!$L$16-K28),Summary!$L$16*E$22) -> 81.63820495 | L103: =IF(Summary!$L$16>I28,F$22*I28+F$23*(Summary!$L$16-I28),Summary!$L$16*F$22) -> 92.31638292 | M103: =IF(Summary!$L$16>J28,F$22*J28+F$23*(Summary!$L$16-J28),Summary!$L$16*F$22) -> 82.5817066 | N103: =IF(Summary!$L$16>K28,F$22*K28+F$23*(Summary!$L$16-K28),Summary!$L$16*F$22) -> 82.5817066
B104: X | C104: =IF(Summary!$L$16>I29,C$22*I29+C$23*(Summary!$L$16-I29),Summary!$L$16*C$22) -> 92.95646828 | D104: =IF(Summary!$L$16>J29,C$22*J29+C$23*(Summary!$L$16-J29),Summary!$L$16*C$22) -> 84.63531169 | E104: =IF(Summary!$L$16>K29,C$22*K29+C$23*(Summary!$L$16-K29),Summary!$L$16*C$22) -> 84.63531169 | F104: =IF(Summary!$L$16>I29,D$22*I29+D$23*(Summary!$L$16-I29),Summary!$L$16*D$22) -> 89.7075932 | G104: =IF(Summary!$L$16>J29,D$22*J29+D$23*(Summary!$L$16-J29),Summary!$L$16*D$22) -> 81.63819 | H104: =IF(Summary!$L$16>K29,D$22*K29+D$23*(Summary!$L$16-K29),Summary!$L$16*D$22) -> 81.63819 | I104: =IF(Summary!$L$16>I29,E$22*I29+E$23*(Summary!$L$16-I29),Summary!$L$16*E$22) -> 89.70756757 | J104: =IF(Summary!$L$16>J29,E$22*J29+E$23*(Summary!$L$16-J29),Summary!$L$16*E$22) -> 81.63820495 | K104: =IF(Summary!$L$16>K29,E$22*K29+E$23*(Summary!$L$16-K29),Summary!$L$16*E$22) -> 81.63820495 | L104: =IF(Summary!$L$16>I29,F$22*I29+F$23*(Summary!$L$16-I29),Summary!$L$16*F$22) -> 90.7691502 | M104: =IF(Summary!$L$16>J29,F$22*J29+F$23*(Summary!$L$16-J29),Summary!$L$16*F$22) -> 82.5817066 | N104: =IF(Summary!$L$16>K29,F$22*K29+F$23*(Summary!$L$16-K29),Summary!$L$16*F$22) -> 82.5817066
B105: Y | C105: =IF(Summary!$L$16>I30,C$22*I30+C$23*(Summary!$L$16-I30),Summary!$L$16*C$22) -> 89.33971529 | D105: =IF(Summary!$L$16>J30,C$22*J30+C$23*(Summary!$L$16-J30),Summary!$L$16*C$22) -> 84.63531169 | E105: =IF(Summary!$L$16>K30,C$22*K30+C$23*(Summary!$L$16-K30),Summary!$L$16*C$22) -> 84.63531169 | F105: =IF(Summary!$L$16>I30,D$22*I30+D$23*(Summary!$L$16-I30),Summary!$L$16*D$22) -> 86.20026368 | G105: =IF(Summary!$L$16>J30,D$22*J30+D$23*(Summary!$L$16-J30),Summary!$L$16*D$22) -> 81.63819 | H105: =IF(Summary!$L$16>K30,D$22*K30+D$23*(Summary!$L$16-K30),Summary!$L$16*D$22) -> 81.63819 | I105: =IF(Summary!$L$16>I30,E$22*I30+E$23*(Summary!$L$16-I30),Summary!$L$16*E$22) -> 86.20025569 | J105: =IF(Summary!$L$16>J30,E$22*J30+E$23*(Summary!$L$16-J30),Summary!$L$16*E$22) -> 81.63820495 | K105: =IF(Summary!$L$16>K30,E$22*K30+E$23*(Summary!$L$16-K30),Summary!$L$16*E$22) -> 81.63820495 | L105: =IF(Summary!$L$16>I30,F$22*I30+F$23*(Summary!$L$16-I30),Summary!$L$16*F$22) -> 87.21051495 | M105: =IF(Summary!$L$16>J30,F$22*J30+F$23*(Summary!$L$16-J30),Summary!$L$16*F$22) -> 82.5817066 | N105: =IF(Summary!$L$16>K30,F$22*K30+F$23*(Summary!$L$16-K30),Summary!$L$16*F$22) -> 82.5817066
B106: ALL CLIMATE ZONES | C106: =SUMPRODUCT(C97:C105,$W$22:$W$30) -> 93.41190849 | D106: 84.63531169 | E106: 84.63531169 | F106: 90.14925424 | G106: 81.63819 | H106: 81.63819 | I106: 90.1492264 | J106: 81.63820495 | K106: 81.63820495 | L106: 91.21727193 | M106: 82.5817066 | N106: 82.5817066
C109: TYPICAL CARE
C110: =C27 -> 2025-01-01 | F110: =D27 -> 2026-01-01 | I110: =I95 -> Illustrative Proposed Authorized | L110: =L95 -> Illustrative Proposed w/Pending
C111: Summer | D111: Winter Off-Peak | E111: Winter On-Peak | F111: Summer | G111: Winter Off-Peak | H111: Winter On-Peak | I111: Summer | J111: Winter Off-Peak | K111: Winter On-Peak | L111: Summer | M111: Winter Off-Peak | N111: Winter On-Peak
B112: P | C112: =IF(Summary!$L$17>I22,C$28*I22+C$29*(Summary!$L$17-I22),Summary!$L$17*C$28) -> 61.74681768 | D112: =IF(Summary!$L$17>J22,C$28*J22+C$29*(Summary!$L$17-J22),Summary!$L$17*C$28) -> 55.89982765 | E112: =IF(Summary!$L$17>K22,C$28*K22+C$29*(Summary!$L$17-K22),Summary!$L$17*C$28) -> 55.89982765 | F112: =IF(Summary!$L$17>I22,D$28*I22+D$29*(Summary!$L$17-I22),Summary!$L$17*D$28) -> 59.86909595 | G112: =IF(Summary!$L$17>J22,D$28*J22+D$29*(Summary!$L$17-J22),Summary!$L$17*D$28) -> 54.19899269 | H112: =IF(Summary!$L$17>K22,D$28*K22+D$29*(Summary!$L$17-K22),Summary!$L$17*D$28) -> 54.19899269 | I112: =IF(Summary!$L$17>I22,E$28*I22+E$29*(Summary!$L$17-I22),Summary!$L$17*E$28) -> 59.86907747 | J112: =IF(Summary!$L$17>J22,E$28*J22+E$29*(Summary!$L$17-J22),Summary!$L$17*E$28) -> 54.19900271 | K112: =IF(Summary!$L$17>K22,E$28*K22+E$29*(Summary!$L$17-K22),Summary!$L$17*E$28) -> 54.19900271 | L112: =IF(Summary!$L$17>I22,F$28*I22+F$29*(Summary!$L$17-I22),Summary!$L$17*F$28) -> 60.57234525 | M112: =IF(Summary!$L$17>J22,F$28*J22+F$29*(Summary!$L$17-J22),Summary!$L$17*F$28) -> 54.81929889 | N112: =IF(Summary!$L$17>K22,F$28*K22+F$29*(Summary!$L$17-K22),Summary!$L$17*F$28) -> 54.81929889
B113: Q
B114: R | C114: =IF(Summary!$L$17>I24,C$28*I24+C$29*(Summary!$L$17-I24),Summary!$L$17*C$28) -> 62.12421722 | D114: =IF(Summary!$L$17>J24,C$28*J24+C$29*(Summary!$L$17-J24),Summary!$L$17*C$28) -> 55.89982765 | E114: =IF(Summary!$L$17>K24,C$28*K24+C$29*(Summary!$L$17-K24),Summary!$L$17*C$28) -> 55.89982765 | F114: =IF(Summary!$L$17>I24,D$28*I24+D$29*(Summary!$L$17-I24),Summary!$L$17*D$28) -> 60.23507816 | G114: =IF(Summary!$L$17>J24,D$28*J24+D$29*(Summary!$L$17-J24),Summary!$L$17*D$28) -> 54.19899269 | H114: =IF(Summary!$L$17>K24,D$28*K24+D$29*(Summary!$L$17-K24),Summary!$L$17*D$28) -> 54.19899269 | I114: =IF(Summary!$L$17>I24,E$28*I24+E$29*(Summary!$L$17-I24),Summary!$L$17*E$28) -> 60.23505784 | J114: =IF(Summary!$L$17>J24,E$28*J24+E$29*(Summary!$L$17-J24),Summary!$L$17*E$28) -> 54.19900271 | K114: =IF(Summary!$L$17>K24,E$28*K24+E$29*(Summary!$L$17-K24),Summary!$L$17*E$28) -> 54.19900271 | L114: =IF(Summary!$L$17>I24,F$28*I24+F$29*(Summary!$L$17-I24),Summary!$L$17*F$28) -> 60.9436811 | M114: =IF(Summary!$L$17>J24,F$28*J24+F$29*(Summary!$L$17-J24),Summary!$L$17*F$28) -> 54.81929889 | N114: =IF(Summary!$L$17>K24,F$28*K24+F$29*(Summary!$L$17-K24),Summary!$L$17*F$28) -> 54.81929889
B115: S | C115: =IF(Summary!$L$17>I25,C$28*I25+C$29*(Summary!$L$17-I25),Summary!$L$17*C$28) -> 61.74681768 | D115: =IF(Summary!$L$17>J25,C$28*J25+C$29*(Summary!$L$17-J25),Summary!$L$17*C$28) -> 55.89982765 | E115: =IF(Summary!$L$17>K25,C$28*K25+C$29*(Summary!$L$17-K25),Summary!$L$17*C$28) -> 55.89982765 | F115: =IF(Summary!$L$17>I25,D$28*I25+D$29*(Summary!$L$17-I25),Summary!$L$17*D$28) -> 59.86909595 | G115: =IF(Summary!$L$17>J25,D$28*J25+D$29*(Summary!$L$17-J25),Summary!$L$17*D$28) -> 54.19899269 | H115: =IF(Summary!$L$17>K25,D$28*K25+D$29*(Summary!$L$17-K25),Summary!$L$17*D$28) -> 54.19899269 | I115: =IF(Summary!$L$17>I25,E$28*I25+E$29*(Summary!$L$17-I25),Summary!$L$17*E$28) -> 59.86907747 | J115: =IF(Summary!$L$17>J25,E$28*J25+E$29*(Summary!$L$17-J25),Summary!$L$17*E$28) -> 54.19900271 | K115: =IF(Summary!$L$17>K25,E$28*K25+E$29*(Summary!$L$17-K25),Summary!$L$17*E$28) -> 54.19900271 | L115: =IF(Summary!$L$17>I25,F$28*I25+F$29*(Summary!$L$17-I25),Summary!$L$17*F$28) -> 60.57234525 | M115: =IF(Summary!$L$17>J25,F$28*J25+F$29*(Summary!$L$17-J25),Summary!$L$17*F$28) -> 54.81929889 | N115: =IF(Summary!$L$17>K25,F$28*K25+F$29*(Summary!$L$17-K25),Summary!$L$17*F$28) -> 54.81929889
B116: T | C116: =IF(Summary!$L$17>I26,C$28*I26+C$29*(Summary!$L$17-I26),Summary!$L$17*C$28) -> 59.60822031 | D116: =IF(Summary!$L$17>J26,C$28*J26+C$29*(Summary!$L$17-J26),Summary!$L$17*C$28) -> 55.89982765 | E116: =IF(Summary!$L$17>K26,C$28*K26+C$29*(Summary!$L$17-K26),Summary!$L$17*C$28) -> 55.89982765 | F116: =IF(Summary!$L$17>I26,D$28*I26+D$29*(Summary!$L$17-I26),Summary!$L$17*D$28) -> 57.79519675 | G116: =IF(Summary!$L$17>J26,D$28*J26+D$29*(Summary!$L$17-J26),Summary!$L$17*D$28) -> 54.19899269 | H116: =IF(Summary!$L$17>K26,D$28*K26+D$29*(Summary!$L$17-K26),Summary!$L$17*D$28) -> 54.19899269 | I116: =IF(Summary!$L$17>I26,E$28*I26+E$29*(Summary!$L$17-I26),Summary!$L$17*E$28) -> 57.7951887 | J116: =IF(Summary!$L$17>J26,E$28*J26+E$29*(Summary!$L$17-J26),Summary!$L$17*E$28) -> 54.19900271 | K116: =IF(Summary!$L$17>K26,E$28*K26+E$29*(Summary!$L$17-K26),Summary!$L$17*E$28) -> 54.19900271 | L116: =IF(Summary!$L$17>I26,F$28*I26+F$29*(Summary!$L$17-I26),Summary!$L$17*F$28) -> 58.46810876 | M116: =IF(Summary!$L$17>J26,F$28*J26+F$29*(Summary!$L$17-J26),Summary!$L$17*F$28) -> 54.81929889 | N116: =IF(Summary!$L$17>K26,F$28*K26+F$29*(Summary!$L$17-K26),Summary!$L$17*F$28) -> 54.81929889
B117: V | C117: =IF(Summary!$L$17>I27,C$28*I27+C$29*(Summary!$L$17-I27),Summary!$L$17*C$28) -> 59.23082078 | D117: =IF(Summary!$L$17>J27,C$28*J27+C$29*(Summary!$L$17-J27),Summary!$L$17*C$28) -> 55.89982765 | E117: =IF(Summary!$L$17>K27,C$28*K27+C$29*(Summary!$L$17-K27),Summary!$L$17*C$28) -> 55.89982765 | F117: =IF(Summary!$L$17>I27,D$28*I27+D$29*(Summary!$L$17-I27),Summary!$L$17*D$28) -> 57.42921454 | G117: =IF(Summary!$L$17>J27,D$28*J27+D$29*(Summary!$L$17-J27),Summary!$L$17*D$28) -> 54.19899269 | H117: =IF(Summary!$L$17>K27,D$28*K27+D$29*(Summary!$L$17-K27),Summary!$L$17*D$28) -> 54.19899269 | I117: =IF(Summary!$L$17>I27,E$28*I27+E$29*(Summary!$L$17-I27),Summary!$L$17*E$28) -> 57.42920833 | J117: =IF(Summary!$L$17>J27,E$28*J27+E$29*(Summary!$L$17-J27),Summary!$L$17*E$28) -> 54.19900271 | K117: =IF(Summary!$L$17>K27,E$28*K27+E$29*(Summary!$L$17-K27),Summary!$L$17*E$28) -> 54.19900271 | L117: =IF(Summary!$L$17>I27,F$28*I27+F$29*(Summary!$L$17-I27),Summary!$L$17*F$28) -> 58.0967729 | M117: =IF(Summary!$L$17>J27,F$28*J27+F$29*(Summary!$L$17-J27),Summary!$L$17*F$28) -> 54.81929889 | N117: =IF(Summary!$L$17>K27,F$28*K27+F$29*(Summary!$L$17-K27),Summary!$L$17*F$28) -> 54.81929889
B118: W | C118: =IF(Summary!$L$17>I28,C$28*I28+C$29*(Summary!$L$17-I28),Summary!$L$17*C$28) -> 61.74681768 | D118: =IF(Summary!$L$17>J28,C$28*J28+C$29*(Summary!$L$17-J28),Summary!$L$17*C$28) -> 55.89982765 | E118: =IF(Summary!$L$17>K28,C$28*K28+C$29*(Summary!$L$17-K28),Summary!$L$17*C$28) -> 55.89982765 | F118: =IF(Summary!$L$17>I28,D$28*I28+D$29*(Summary!$L$17-I28),Summary!$L$17*D$28) -> 59.86909595 | G118: =IF(Summary!$L$17>J28,D$28*J28+D$29*(Summary!$L$17-J28),Summary!$L$17*D$28) -> 54.19899269 | H118: =IF(Summary!$L$17>K28,D$28*K28+D$29*(Summary!$L$17-K28),Summary!$L$17*D$28) -> 54.19899269 | I118: =IF(Summary!$L$17>I28,E$28*I28+E$29*(Summary!$L$17-I28),Summary!$L$17*E$28) -> 59.86907747 | J118: =IF(Summary!$L$17>J28,E$28*J28+E$29*(Summary!$L$17-J28),Summary!$L$17*E$28) -> 54.19900271 | K118: =IF(Summary!$L$17>K28,E$28*K28+E$29*(Summary!$L$17-K28),Summary!$L$17*E$28) -> 54.19900271 | L118: =IF(Summary!$L$17>I28,F$28*I28+F$29*(Summary!$L$17-I28),Summary!$L$17*F$28) -> 60.57234525 | M118: =IF(Summary!$L$17>J28,F$28*J28+F$29*(Summary!$L$17-J28),Summary!$L$17*F$28) -> 54.81929889 | N118: =IF(Summary!$L$17>K28,F$28*K28+F$29*(Summary!$L$17-K28),Summary!$L$17*F$28) -> 54.81929889
B119: X | C119: =IF(Summary!$L$17>I29,C$28*I29+C$29*(Summary!$L$17-I29),Summary!$L$17*C$28) -> 60.48881923 | D119: =IF(Summary!$L$17>J29,C$28*J29+C$29*(Summary!$L$17-J29),Summary!$L$17*C$28) -> 55.89982765 | E119: =IF(Summary!$L$17>K29,C$28*K29+C$29*(Summary!$L$17-K29),Summary!$L$17*C$28) -> 55.89982765 | F119: =IF(Summary!$L$17>I29,D$28*I29+D$29*(Summary!$L$17-I29),Summary!$L$17*D$28) -> 58.64915524 | G119: =IF(Summary!$L$17>J29,D$28*J29+D$29*(Summary!$L$17-J29),Summary!$L$17*D$28) -> 54.19899269 | H119: =IF(Summary!$L$17>K29,D$28*K29+D$29*(Summary!$L$17-K29),Summary!$L$17*D$28) -> 54.19899269 | I119: =IF(Summary!$L$17>I29,E$28*I29+E$29*(Summary!$L$17-I29),Summary!$L$17*E$28) -> 58.6491429 | J119: =IF(Summary!$L$17>J29,E$28*J29+E$29*(Summary!$L$17-J29),Summary!$L$17*E$28) -> 54.19900271 | K119: =IF(Summary!$L$17>K29,E$28*K29+E$29*(Summary!$L$17-K29),Summary!$L$17*E$28) -> 54.19900271 | L119: =IF(Summary!$L$17>I29,F$28*I29+F$29*(Summary!$L$17-I29),Summary!$L$17*F$28) -> 59.33455908 | M119: =IF(Summary!$L$17>J29,F$28*J29+F$29*(Summary!$L$17-J29),Summary!$L$17*F$28) -> 54.81929889 | N119: =IF(Summary!$L$17>K29,F$28*K29+F$29*(Summary!$L$17-K29),Summary!$L$17*F$28) -> 54.81929889
B120: Y | C120: =IF(Summary!$L$17>I30,C$28*I30+C$29*(Summary!$L$17-I30),Summary!$L$17*C$28) -> 57.59542279 | D120: =IF(Summary!$L$17>J30,C$28*J30+C$29*(Summary!$L$17-J30),Summary!$L$17*C$28) -> 55.89982765 | E120: =IF(Summary!$L$17>K30,C$28*K30+C$29*(Summary!$L$17-K30),Summary!$L$17*C$28) -> 55.89982765 | F120: =IF(Summary!$L$17>I30,D$28*I30+D$29*(Summary!$L$17-I30),Summary!$L$17*D$28) -> 55.84329163 | G120: =IF(Summary!$L$17>J30,D$28*J30+D$29*(Summary!$L$17-J30),Summary!$L$17*D$28) -> 54.19899269 | H120: =IF(Summary!$L$17>K30,D$28*K30+D$29*(Summary!$L$17-K30),Summary!$L$17*D$28) -> 54.19899269 | I120: =IF(Summary!$L$17>I30,E$28*I30+E$29*(Summary!$L$17-I30),Summary!$L$17*E$28) -> 55.84329339 | J120: =IF(Summary!$L$17>J30,E$28*J30+E$29*(Summary!$L$17-J30),Summary!$L$17*E$28) -> 54.19900271 | K120: =IF(Summary!$L$17>K30,E$28*K30+E$29*(Summary!$L$17-K30),Summary!$L$17*E$28) -> 54.19900271 | L120: =IF(Summary!$L$17>I30,F$28*I30+F$29*(Summary!$L$17-I30),Summary!$L$17*F$28) -> 56.48765088 | M120: =IF(Summary!$L$17>J30,F$28*J30+F$29*(Summary!$L$17-J30),Summary!$L$17*F$28) -> 54.81929889 | N120: =IF(Summary!$L$17>K30,F$28*K30+F$29*(Summary!$L$17-K30),Summary!$L$17*F$28) -> 54.81929889
B121: ALL CLIMATE ZONES | C121: =SUMPRODUCT(C112:C120,$X$22:$X$30) -> 61.16493018 | D121: 55.89982765 | E121: 55.89982765 | F121: 59.30481207 | G121: 54.19899269 | H121: 54.19899269 | I121: 59.30479643 | J121: 54.19900271 | K121: 54.19900271 | L121: 59.99980694 | M121: 54.81929889 | N121: 54.81929889

Sheet Authorized Rev Req
A2: Annual Period 2026
A3: Reporting Date: Q1 2026
C5: September 1, 2023 | D5: January 1, 2024 | E5: February 1, 2024 | F5: April 1, 2024 | G5: September 1, 2024 | H5: January 1, 2025 | I5: August 1, 2025 | J5: September 1, 2025 | K5: January 1, 2026
C6: 4792-G | D6: 4845-G - AGT | E6: 4859-G - COC | F6: AL 4884-G WGSC | G6: AL 4966-G CARD | H6: AL 5014-G AGT | I6: AL 5090-G 2020 WMCE | J6: AL 5099-G 2021 WMCE | K6: AL 5160-G Final AGT
A7: Filing Description | B7: Authority for Revenue Requirement | C7: Authorized Revenue Requirement ($000) | D7: Authorized Revenue Requirement ($000) | E7: Authorized Revenue Requirement ($000) | F7: Authorized Revenue Requirement ($000) | G7: Authorized Revenue Requirement ($000) | H7: Authorized Revenue Requirement ($000) | I7: Authorized Revenue Requirement ($000) | J7: Authorized Revenue Requirement ($000) | K7: Authorized Revenue Requirement ($000) | L7: Revenue Recovery Mechanism/Allocation | M7: Balancing Account
A8: Safety Affordability Reliability Proceedings
A9: General Rate Case | B9: D. 23-11-069 | C9: 2221384.837 | D9: 2695191.955 | E9: 2695191.955 | F9: 2695191.955 | G9: 2695191.955 | H9: 2837661.424 | I9: 2837661.424 | J9: 2837661.424 | K9: 3015379.975 | L9: Distribution | M9: =IF(RIGHT(A9,1)="*","Y","N") -> N
A10: General Rate Case - Gas Distribution Late Implementation | B10: D. 23-11-069 | D10: 200589.2578 | E10: 200589.2578 | F10: 200589.2578 | G10: 200589.2578 | H10: 200589.2578 | I10: 200589.2578 | J10: 200589.2578 | K10: 0 | L10: Distribution | M10: N
A11: Pension Contribution - Distribution | B11: D.09-09-020 | C11: 31709.7412 | D11: 34877.61496 | E11: 34877.61496 | F11: 34877.61496 | G11: 37805.84365 | H11: 37805.84365 | I11: 42969.37257 | J11: 42969.37257 | K11: 42969.37257 | L11: Distribution | M11: N
A12: Pension Contribution - GT&S Core | B12: D.09-09-020 | C12: 9019.568428 | D12: 10150.45606 | E12: 10150.45606 | F12: 10150.45606 | G12: 11024.33372 | H12: 11024.33372 | I12: 12330.78009 | J12: 12330.78009 | K12: 12330.78009 | L12: Core - ECPT | M12: N
A13: Pension Contribution - GT&S NonCore (LT) | B13: D.09-09-020 | C13: 2947.820859 | D13: 4042.644918 | E13: 4042.644918 | F13: 4042.644918 | G13: 3986.072364 | H13: 3986.072364 | I13: 4921.782241 | J13: 4921.782241 | K13: 4921.782241 | L13: Noncore (No-BB/EG-BB)-ECPT | M13: N
A14: Pension Contribution - GT&S Noncore (BB& Storage) | B14: D.09-09-020 | C14: 3462.535613 | D14: 2430.008673 | E14: 2430.008673 | F14: 2430.008673 | G14: 3008.334161 | H14: 3008.334161 | I14: 3227.180703 | J14: 3227.180703 | K14: 3227.180703 | L14: Noncore - ECPT | M14: =IF(RIGHT(A26,1)="*","Y","N") -> N
A15: Cost of Capital | B15: D.22-12-031/D.23-01-002/ AL 4813-G/D.24-10-008/AL 4996-G | C15: -41770.07122 | D15: 0 | E15: 71193.52069 | F15: 71193.52069 | G15: 71193.52069 | H15: 50569.41165 | I15: 50569.41165 | J15: 50569.41165 | K15: 42019.41356 | L15: Distribution | M15: =IF(RIGHT(A15,1)="*","Y","N") -> N
A16: GT&S (excluding costs recovered through Core Procurement)
A17: Late Implementation (Transmission Undercollection, Capital Audit, GRC Track II, WGSC) | B17: D.22-07-007/ D.23-11-069/ WGSC IRR D.24-03-006 | C17: 61082.72649 | D17: 289979.733 | E17: 289979.733 | F17: 377623.574 | G17: 377623.574 | H17: 311890.6932 | I17: 311890.6932 | J17: 311890.6932 | K17: 61082.72649 | L17: ECPT | M17: N
A18: Local Transmission | B18: D. 24-03-002 | C18: 952787.6325 | D18: 1360671.608 | E18: 1360671.608 | F18: 1360671.608 | G18: 1360671.608 | H18: 1428467.573 | I18: 1428467.573 | J18: 1428467.573 | K18: 1499197.889 | L18: ECPT (No BB) | M18: N
A19: Customer Access Charge | B19: D. 24-03-002 | C19: 2331.344958 | D19: 3740.039321 | E19: 3740.039321 | F19: 3740.039321 | G19: 3740.039321 | H19: 4616.173305 | I19: 4616.173305 | J19: 4616.173305 | K19: 5465.240945 | L19: CAC Allocation | M19: N
A20: Unbundled Backbone/Inventory Management | B20: D. 24-03-002 | C20: 342450.1766 | D20: 319583.6122 | E20: 319583.6122 | F20: 319583.6122 | G20: 375103.0568 | H20: 389964.4952 | I20: 389964.4952 | J20: 389964.4952 | K20: 406912.0475 | L20: ECPT-All | M20: N
A21: GT&S Balancing Accounts - LT (excludes BB) | B21: D.23-11-069 | C21: 39937.26103 | D21: 32271.77647 | E21: 32271.77647 | F21: 32271.77647 | G21: 32271.77647 | H21: 4730.745 | I21: 4730.745 | J21: 4730.745 | K21: 0 | L21: ECPT (No BB) | M21: Y
A22: GT&S Balancing Accounts - Non-LT (all customers pay) | B22: D.23-11-069 | C22: -137094.5871 | D22: -132483.2783 | E22: -132483.2783 | F22: -132483.2783 | G22: -132483.2783 | H22: 187.974 | I22: 187.974 | J22: 187.974 | K22: 0 | L22: ECPT-All | M22: Y
A23: CFCA - Distribution Cost Subaccount | B23: Preliminary Statement F | C23: 31181.11324 | D23: -105772.6405 | E23: -105772.6405 | F23: -105772.6405 | G23: -105772.6405 | H23: 126074.2372 | I23: 126074.2372 | J23: 126074.2372 | K23: 30985.65313 | L23: Distribution | M23: Y
A24: CFCA - Core Cost Subaccount | B24: Preliminary Statement F | C24: 32015.13448 | D24: -26622.23875 | E24: -26876.21342 | F24: -26876.21342 | G24: -26876.21342 | H24: 52966.97098 | I24: 52966.97098 | J24: 52966.97098 | K24: 6381.057784 | L24: ECPT | M24: Y
A25: CFCA - AB32 ARB COI | B25: Preliminary Statement F | C25: 12436.62143 | D25: 13746.46288 | E25: 13746.46288 | F25: 13746.46288 | G25: 13746.46288 | H25: 14221.84697 | I25: 14221.84697 | J25: 14221.84697 | K25: 15767.29272 | L25: ECPT (Certain Covered Entities) | M25: Y
A26: NCA - Noncore Subaccount | B26: Preliminary Statement J | C26: -10301.49341 | D26: 4451.98524 | E26: 4082.959912 | F26: 4082.959912 | G26: 4082.959912 | H26: -28484.12163 | I26: -28484.12163 | J26: -28484.12163 | K26: -29441.08689 | L26: ECPT | M26: Y
A27: NCA - Distribution Sub | B27: Preliminary Statement J | C27: 3864.00226 | D27: -2320.088795 | E27: -2320.088795 | F27: -2320.088795 | G27: -2320.088795 | H27: 8614.191621 | I27: 8614.191621 | J27: 8614.191621 | K27: -25638.15454 | L27: Distribution | M27: Y
A28: NCA - AB32 ARB COI | B28: Preliminary Statement J | C28: -1573.254906 | D28: -496.3779861 | E28: -496.3779861 | F28: -496.3779861 | G28: -496.3779861 | H28: -1803.843786 | I28: -1803.843786 | J28: -1803.843786 | K28: -2474.423973 | L28: ECPT (Certain Covered Entities) | M28: Y
A29: NCA - Local Transmission Subaccount | B29: Preliminary Statement J | C29: 285.7931864 | D29: 2857.747031 | E29: 2857.747031 | F29: 2857.747031 | G29: 2857.747031 | H29: -9843.60886 | I29: -9843.60886 | J29: -9843.60886 | K29: -13298.16165 | L29: ECPT (Noncore) | M29: Y
A30: GT&S Audit - Noncore Storage | B30: Preliminary Statement J | C30: 1558.563059 | D30: 1557.895255 | E30: 1557.895255 | F30: 1557.895255 | G30: 1557.895255 | H30: 1555.933202 | I30: 1555.933202 | J30: 1555.933202 | K30: 1554.269756 | L30: ECPT (Noncore) | M30: Y
A31: Core Brokerage Fee Balancing Account | B31: Preliminary Statement U | C31: -219.6859685 | D31: -579.0487785 | E31: -579.0487785 | F31: -579.0487785 | G31: -579.0487785 | H31: -27.45384348 | I31: -27.45384348 | J31: -27.45384348 | K31: -235.7004218 | L31: Core - ECPT | M31: Y
A32: Hazardous Substance Materials (HSM) * | B32: Preliminary Statement AN | C32: 77815.51837 | D32: 106048.5766 | E32: 106048.5766 | F32: 106048.5766 | G32: 106048.5766 | H32: 95401.74617 | I32: 95401.74617 | J32: 95401.74617 | K32: 102173.6489 | L32: ECPT | M32: Y
A33: Balancing Charge Account | B33: Preliminary Statement L | C33: -1660.97807 | D33: -12535.13101 | E33: -12535.13101 | F33: -12535.13101 | G33: -12535.13101 | H33: -4337.35272 | I33: -4337.35272 | J33: -4337.35272 | K33: -1728.92836 | L33: ECPT | M33: Y
A34: CFCA - NGSS Enduser Dist. Sub Acct Recovery | B34: Preliminary Statement F | C34: 25177.24247 | D34: -38434.84297 | E34: -38434.84297 | F34: -38434.84297 | G34: -41605.2506 | H34: -41605.2506 | I34: -41605.2506 | J34: -41605.2506 | K34: 2051.460825 | L34: Core - Distribution | M34: Y
A35: CFCA/NCA - NGSS Enduser Sub Acct Recovery | B35: Preliminary Statement J/F | C35: 5986.942788 | D35: -9139.491991 | E35: -9139.491991 | F35: -9139.491991 | G35: -9893.389052 | H35: -9893.389052 | I35: -9893.389052 | J35: -9893.389052 | K35: 487.8206422 | L35: ECPT | M35: Y
A36: NCA - NGSS Enduser Sub Acct Recovery | B36: Preliminary Statement J | C36: 6148.885016 | D36: -9386.708266 | E36: -9386.708266 | F36: -9386.708266 | G36: -10160.99767 | H36: -10160.99767 | I36: -10160.99767 | J36: -10160.99767 | K36: 501.0158178 | L36: Noncore - ECPT | M36: Y
A37: Adjust. Mechanism Costs Determined Other Proceedings | B37: Preliminary Statement CO | C37: 150922.3271 | D37: 18794.28532 | E37: 73091.27662 | F37: 73091.27662 | G37: 73091.27662 | H37: 42660.83061 | I37: 42660.83061 | J37: 42660.83061 | K37: 29323.21022 | L37: 50 Core/50 Noncore - ECPT | M37: Y
A38: Percentage of Income Payment Plan Bal Acct | B38: Preliminary Statement FU | C38: 0 | D38: 337.043393 | E38: 337.043393 | F38: 337.043393 | G38: 337.043393 | H38: 1500.878473 | I38: 1500.878473 | J38: 1500.878473 | K38: 1719.056849 | L38: ECPT | M38: Y
A39: GT&S Revenue Sharing Mechanism | B39: Preliminary Statement CP | C39: -59150.36774 | D39: -123356.7191 | E39: -123356.7191 | F39: -123356.7191 | G39: -123356.7191 | H39: -65585.16756 | I39: -65585.16756 | J39: -65585.16756 | K39: -70222.31544 | L39: 50 Core/50 Noncore - ECPT | M39: Y
A40: CA Solar Thermal Program Memo Account | B40: Preliminary Statement CA | C40: 5592.108634 | D40: 5964.99871 | E40: 5964.99871 | F40: 5964.99871 | G40: 5964.99871 | H40: 5260.703469 | I40: 5260.703469 | J40: 5260.703469 | K40: 1066.079071 | L40: ECPT (excludes CARE/FERA, EG, Whsl customers) | M40: Y
A41: Non-Tariffed Products and Services | B41: Preliminary Statement BT | C41: -340.1630825 | D41: -393.6296115 | E41: -393.6296115 | F41: -393.6296115 | G41: -393.6296115 | H41: -178.6079279 | I41: -178.6079279 | J41: -178.6079279 | K41: 0 | L41: Core Distribution | M41: Y
A42: Risk Transfer Balancing Account (RTBA) | B42: Preliminary Statement FK | C42: 202848.1012 | D42: 25316.8679 | E42: 25316.8679 | F42: 25316.8679 | G42: 25316.8679 | H42: 0 | I42: 0 | J42: 0 | K42: 0 | L42: Distribution | M42: Y
A43: Wildfire Mitigation Balancing Account (WMBA)/Biomethane | B43: D.20-12-005/Preliminary Statement FL | C43: 1835 | D43: 0 | E43: 0 | F43: 0 | G43: 0 | H43: 1965.586047 | I43: 1965.586047 | J43: 1965.586047 | K43: 1025.700482 | L43: Distribution | M43: Y
A44: New Environmental Regulations Balancing Account(Distribution) | B44: Preliminary Statement DZ | C44: 2860.786652 | D44: -1745.890543 | E44: -1745.890543 | F44: -1745.890543 | G44: -1745.890543 | H44: -839.770747 | I44: -839.770747 | J44: -839.770747 | K44: -2376.142949 | L44: Distribution | M44: Y
A45: 2020 -2021 Wildfire Mitigation and Catastrophic Events/WGSC (Distribution) | B45: D.23-02-017 / D.23-08-027/A.22-12-009 | C45: 34151.60546 | D45: 34151.60546 | E45: 34151.60546 | F45: 47759.4379 | G45: 47759.4379 | H45: 37553.56357 | I45: 28718.95532 | J45: 3401.958109 | K45: 0 | L45: Distribution | M45: N
A46: Oakland General Office Purchase (Distribution) | B46: D.24-08-009/AL 4972-G | H46: 74682.81908 | I46: 74682.81908 | J46: 74682.81908 | K46: 25543.30358 | L46: Distribution | M46: N
A47: 2020 -2021 Wildfire Mitigation and Catastrophic Events (Transmission) | B47: D.23-02-017 / D.23-08-027 | C47: 3251.404638 | D47: 3251.404638 | E47: 3251.404638 | F47: 3251.404638 | G47: 3251.404638 | H47: 3251.404638 | I47: 2995.099899 | J47: 0 | K47: 0 | L47: ECPT | M47: N
A48: 2022 WMCE | B48: D.25-09-008 | H48: 0 | I48: 0 | J48: 0 | K48: 13823.72411 | L48: Distribution | M48: N
A49: Oakland General Office Purchase (Transmission) | B49: D.24-08-009/AL 4972-G | H49: 35685.00229 | I49: 35685.00229 | J49: 35685.00229 | K49: 12175.53727 | L49: ECPT | M49: N
A50: Gas Advanced Metering Infrastructure (AMI) (distribution) | B50: D.25-12-029 | K50: 40564.01418 | L50: Distribution | M50: N
A51: Concurrent Application System Program and Balancing Account | B51: D. 23-05-006 | K51: 473.76 | L51: ECPT | M51: N
A52: TRRRMA (Distribution) | B52: D.25-12-026 | K52: 104322.8472 | L52: Distribution | M52: N
A53: TRRRMA (Transmission) | B53: D.25-12-026 | K53: 47122.58432 | L53: ECPT | M53: N
A54: Residential Uncollectibles Balancing Account | B54: D.20-12-005 | C54: 2770.652637 | D54: 124915.5552 | E54: 124915.5552 | F54: 124915.5552 | G54: 124915.5552 | H54: 31775.58215 | I54: 31775.58215 | J54: 31775.58215 | K54: 60975.51633 | L54: ECPT | M54: Y
A55: Property Sales | B55: D.21-08-027/AL 4538-G-A | C55: -48263.40497 | D55: -8084.989543 | E55: -8084.989543 | F55: -8084.989543 | G55: -8084.989543 | H55: -32047.71945 | I55: -32047.71945 | J55: -32047.71945 | K55: -28378.06678 | L55: ECPT | M55: N
A56: Santa Nella Balancing Account | B56: Preliminary Statement FY | D56: 0 | E56: 0 | F56: 0 | G56: 0 | H56: 46.05792918 | I56: 46.05792918 | J56: 46.05792918 | K56: 133.1498953 | L56: Distribution | M56: Y
A57: RF&U | C57: 10552.52007 | D57: 8380.043016 | E57: 9117.94491 | F57: 9305.265118 | G57: 9297.998973 | H57: 12900.50548 | I57: 12763.7507 | J57: 12337.90874 | K57: 10057.02436 | L57: ECPT | M57: N
A58: Subtotal Safety Affordability Reliability | C58: =SUM(C9:C57) -> 3977993.961 | D58: 4831952.101 | E58: 4957557.515 | F58: 5058996.509 | G58: 5114133.952 | H58: 5625812.907 | I58: 5624209.771 | J58: 5595471.832 | K58: 5427941.154
A60: Public Policy Proceedings
A61: AB 32: Cap & Trade/GHG | B61: D.15-10-032/D.18-03-017/SB 1477 | C61: -270504.8876 | D61: -440353.5963 | E61: -440353.5963 | F61: -440353.5963 | G61: -440353.5963 | H61: -345869.7457 | I61: -345869.7457 | J61: -345869.7457 | K61: -239888.9521 | L61: 100% Residential | M61: =IF(RIGHT(A61,1)="*","Y","N") -> N
A62: GHG Operational Costs | B62: D.15-10-032/D.18-03-017 | C62: 11012.44881 | D62: 34508.68999 | E62: 34508.68999 | F62: 34508.68999 | G62: 34508.68999 | H62: -9916.695581 | I62: -9916.695581 | J62: -9916.695581 | K62: -280.8201427 | L62: ECPT | M62: N
A63: GHG Compliance Costs | B63: D.15-10-032/D.18-03-017 | C63: 382062.785 | D63: 577963.2932 | E63: 577963.2932 | F63: 577963.2932 | G63: 577963.2932 | H63: 437585.4379 | I63: 437585.4379 | J63: 437585.4379 | K63: 259520.1694 | L63: ECPT (excludes Covered Entities 3 yr avg vol) | M63: N
A64: CPUC Fee | B64: Preliminary Statement O | C64: 15129.80656 | D64: 5043.250421 | E64: 5043.250421 | F64: 5043.250421 | G64: 4531.708352 | H64: 11329.34033 | I64: 11329.34033 | J64: 11329.34033 | K64: 15861.02532 | L64: ECPT (reduced EG volumes; excludes WHSL) | M64: N
A65: SGIP | B65: SB 700/D.17-04-017 | C65: 12990.138 | D65: 12990.138 | E65: 12990.138 | F65: 12990.138 | G65: 12990.138 | H65: 0 | I65: 0 | J65: 0 | K65: 0 | L65: Direct Benefits - 3 year average | M65: N
A66: Mobilehome Park Balancing Account | B66: Preliminary Statement DB | C66: 25482.28364 | D66: 19247.35697 | E66: 19247.35697 | F66: 19247.35697 | G66: 19247.35697 | H66: 23664.28455 | I66: 23664.28455 | J66: 23664.28455 | K66: 27197.14673 | L66: Distribtion | M66: N
A67: CEE Incentive Recovery Account - Gas | B67: Preliminary Statement Y | C67: 217.05794 | D67: -175.84147 | E67: -175.84147 | F67: -175.84147 | G67: -175.84147 | H67: -17.90958 | I67: -17.90958 | J67: -17.90958 | K67: -4.2324 | L67: Direct Allocation Method | M67: N
A68: Energy Efficiency | B68: D.23-06-055 | C68: 83628.68044 | D68: 102550.5389 | E68: 102550.5389 | F68: 102550.5389 | G68: 102550.5389 | H68: 122474.8554 | I68: 122474.8554 | J68: 122474.8554 | K68: 127629.8097 | L68: Direct Allocation Method | M68: N
A69: Energy Savings Assistance Program (ESA) | B69: D.21-06-015/D.20-12-005 | C69: 80948.73967 | D69: 80725.879 | E69: 80725.879 | F69: 80725.879 | G69: 80725.879 | H69: 75426.796 | I69: 75426.796 | J69: 75426.796 | K69: 75530.121 | L69: Direct Allocation Method 100% Residential | M69: N
A70: Research Development and Demonstration | B70: AL 4822-G | C70: 10386.02 | D70: 10494.407 | E70: 10494.407 | F70: 10494.407 | G70: 10494.407 | H70: 10469.05738 | I70: 10469.05738 | J70: 10469.05738 | K70: 10233.68784 | L70: ECPT | M70: N
A71: CARE Administrative Expense | B71: D.21-06-015/D.20-12-005 | C71: 2792.32 | D71: 2814.12 | E71: 2814.12 | F71: 2814.12 | G71: 2814.12 | H71: 2888.84 | I71: 2888.84 | J71: 2888.84 | K71: 2957.54 | L71: ECPT (non-CARE) | M71: N
A72: CARE Shortfall in Rates | B72: AL 4822-G | L72: ECPT (excludes CARE) | M72: N
A73: BOE/CPUC Gas Surcharge Administration Costs | B73: AL 4822-G | C73: 449.628 | D73: 417.152 | E73: 417.152 | F73: 417.152 | G73: 417.152 | H73: 429.23135 | I73: 429.23135 | J73: 429.23135 | K73: 414.03795 | L73: ECPT | M73: N
A74: Marketing, Education & Outreach (ME&O) | B74: D.19-01-005 | C74: 0 | D74: 0 | E74: 0 | F74: 0 | G74: 0 | H74: 0 | I74: 0 | J74: 0 | K74: 0 | L74: ECPT | M74: N
A75: PPP-Energy Efficiency BA | B75: Preliminary Statement Y | C75: 976.0245597 | D75: 2097.329095 | E75: 2097.329095 | F75: 2097.329095 | G75: 2097.329095 | H75: 25054.17121 | I75: 25054.17121 | J75: 25054.17121 | K75: 1966.444052 | L75: Direct Allocation Method | M75: Y
A76: PPP-Energy Savings Assistance Program BA | B76: Preliminary Statement Y/D.17-12-009 | C76: 2982.724032 | D76: -10057.28753 | E76: -10057.28753 | F76: -10057.28753 | G76: -10057.28753 | H76: 10204.45436 | I76: 10204.45436 | J76: 10204.45436 | K76: 1696.711132 | L76: =L69 -> Direct Allocation Method 100% Residential | M76: Y
A77: PPP-RD&D BA | B77: Preliminary Statement BI | C77: 1011.92473 | D77: 164.2624856 | E77: 164.2624856 | F77: 164.2624856 | G77: 164.2624856 | H77: 939.5338946 | I77: 939.5338946 | J77: 939.5338946 | K77: -185.3392549 | L77: ECPT | M77: Y
A78: CARE BA | B78: Preliminary Statement V | C78: 22718.75154 | D78: 30973.07546 | E78: 30973.07546 | F78: 30973.07546 | G78: 30973.07546 | H78: 12590.9108 | I78: 12590.9108 | J78: 12590.9108 | K78: -29885.50465 | L78: ECPT (excludes CARE) | M78: Y
A79: Core Capacity | B79: D. 24-03-002/Other | C79: 271723.2113 | D79: 273072.8998 | E79: 273072.8998 | F79: 273072.8998 | G79: 220217.6893 | H79: 244356.4094 | I79: 244356.4094 | J79: 244356.4094 | K79: 242390.1203 | L79: Unadjusted Average Year January | M79: =IF(RIGHT(A79,1)="*","Y","N") -> N
A80: Core Procurement | B80: D. 97-10-065 | C80: 1046694.091 | D80: 643838.6482 | E80: 643838.6482 | F80: 643838.6482 | G80: 611969.6695 | H80: 583625.3534 | I80: 583625.3534 | J80: 583625.3534 | K80: 667968.1699 | L80: Core - ECPT | M80: =IF(RIGHT(A80,1)="*","Y","N") -> N
A81: Core Storage | B81: D. 19-09-025 | C81: 74376.87073 | D81: 82215.45352 | E81: 82215.45352 | F81: 82215.45352 | G81: 86889.9849 | H81: 134502.8939 | I81: 134502.8939 | J81: 134502.8939 | K81: 135685.9394 | L81: Unadjusted Cold Year Winter Season | M81: =IF(RIGHT(A81,1)="*","Y","N") -> N
A82: Core Brokerage Fee | B82: GCAP D.19-10-036 | C82: 5332.411598 | D82: 5332.411598 | E82: 5332.411598 | F82: 5332.411598 | G82: 5066.880005 | H82: 5066.942012 | I82: 5066.942012 | J82: 5066.942012 | K82: 5066.909395 | L82: ECPT (Core only) | M82: =IF(RIGHT(A82,1)="*","Y","N") -> N
A83: Core Brokerage Fee Credit | B83: =B82 -> GCAP D.19-10-036 | C83: -5332.411598 | D83: =-D82 -> -5332.411598 | E83: -5332.411598 | F83: -5332.411598 | G83: -5066.880005 | H83: -5066.942012 | I83: -5066.942012 | J83: -5066.942012 | K83: =-K82 -> -5066.909395 | L83: ECPT (Core only) | M83: =IF(RIGHT(A83,1)="*","Y","N") -> N
A85: Subtotal Public Policy | C85: =SUM(C61:C84) -> 1775078.618 | D85: 1428529.769 | E85: 1428529.769 | F85: 1428529.769 | G85: 1347968.569 | H85: 1339737.219 | I85: 1339737.219 | J85: 1339737.219 | K85: =SUM(K61:K84) -> 1298806.074
A88: Total Authorized Revenue | C88: =C58+C85 -> 5753072.579 | D88: 6260481.87 | E88: 6386087.284 | F88: 6487526.278 | G88: 6462102.521 | H88: 6965550.126 | I88: 6963946.99 | J88: 6935209.051 | K88: =K58+K85 -> 6726747.229
A91: PPP as approved in AL 4822-G for 2024

Sheet Incremental Rev Req
A2: ='Authorized Rev Req'!A2 -> Annual Period 2026
A3: ='Authorized Rev Req'!A3 -> Reporting Date: Q1 2026
A5: Current Revenue Requirement ($000): | B5: ='Authorized Rev Req'!K88 -> 6726747.229
A6: Current Revenue Requirement Effective: | B6: ='Authorized Rev Req'!K5 -> January 1, 2026
A7: Approved Application(s), Implemented Since Jan 1 or To Be Implemented
A8: Filing Description | B8: Proceeding | C8: Authority for Revenue Requirement | D8: Authorized Revenue Requirement ($000) | E8: Revenue Recovery Mechanism | F8: Allocation Methodology (Select from Drop-down menu) | G8: Authorized Revenue Requirement ($000) - Breakout by Year | L8: Existing or New Item (if existing, use delta from prior for illustrative rate impact) | T8: Summary Incremental Authorized
A9: Safety Affordability Reliability Proceedings | G9: 2025 | H9: 2026 | I9: 2027 | J9: 2028 | K9: 2029 | U9: 2025 | V9: 2026 | W9: 2027 | X9: 2028 | Y9: 2029
A10: ='Authorized Rev Req'!A9 -> General Rate Case | C10: ='Authorized Rev Req'!B9 -> D. 23-11-069 | D10: ='Authorized Rev Req'!K9 -> 3015379.975 | E10: ='Authorized Rev Req'!L9 -> Distribution | F10: Distribution | G10: ='Authorized Rev Req'!J9 -> 2837661.424 | H10: ='Authorized Rev Req'!K9 -> 3015379.975 | I10: =H10 -> 3015379.975 | J10: =I10 -> 3015379.975 | K10: =J10 -> 3015379.975 | L10: Existing | T10: ='RRQ Allocations'!B5 -> 100% Residential | U10: =SUMIF($F$10:$F$72,$T10,G$10:G$72)-SUMIF($F$10:$F$72,$T10,$D$10:$D$72) -> -105980.7937 | V10: =SUMIF($F$10:$F$72,$T10,H$10:H$72)-SUMIF($F$10:$F$72,$T10,$D$10:$D$72) -> 0 | W10: =SUMIF($F$10:$F$72,$T10,I$10:I$72)-SUMIF($F$10:$F$72,$T10,$D$10:$D$72) -> 0 | X10: =SUMIF($F$10:$F$72,$T10,J$10:J$72)-SUMIF($F$10:$F$72,$T10,$D$10:$D$72) -> 0 | Y10: =SUMIF($F$10:$F$72,$T10,K$10:K$72)-SUMIF($F$10:$F$72,$T10,$D$10:$D$72) -> 0
A11: General Rate Case - Undercollection | C11: ='Authorized Rev Req'!B9 -> D. 23-11-069 | D11: ='Authorized Rev Req'!K10 -> 0 | E11: Distribution | F11: Distribution | G11: ='Authorized Rev Req'!J10 -> 200589.2578 | H11: ='Authorized Rev Req'!K10 -> 0 | L11: Existing | T11: ='RRQ Allocations'!B6 -> Core - Distribution | U11: =SUMIF($F$10:$F$72,$T11,G$10:G$72)-SUMIF($F$10:$F$72,$T11,$D$10:$D$72) -> -43656.74404 | V11: 0 | W11: =SUMIF($F$10:$F$72,$T11,I$10:I$72)-SUMIF($F$10:$F$72,$T11,$D$10:$D$72) -> -2051.460825 | X11: =SUMIF($F$10:$F$72,$T11,J$10:J$72)-SUMIF($F$10:$F$72,$T11,$D$10:$D$72) -> -2051.460825 | Y11: =SUMIF($F$10:$F$72,$T11,K$10:K$72)-SUMIF($F$10:$F$72,$T11,$D$10:$D$72) -> -2051.460825
A12: ='Authorized Rev Req'!A11 -> Pension Contribution - Distribution | C12: ='Authorized Rev Req'!B11 -> D.09-09-020 | D12: ='Authorized Rev Req'!K11 -> 42969.37257 | E12: ='Authorized Rev Req'!L11 -> Distribution | F12: Distribution | G12: ='Authorized Rev Req'!J11 -> 42969.37257 | H12: ='Authorized Rev Req'!K11 -> 42969.37257 | I12: =H12 -> 42969.37257 | J12: 42969.37257 | K12: 42969.37257 | L12: Existing | T12: ='RRQ Allocations'!B7 -> Distribution | U12: =SUMIF($F$10:$F$72,$T12,G$10:G$72)-SUMIF($F$10:$F$72,$T12,$D$10:$D$72) -> 49600.56665 | V12: 0 | W12: =SUMIF($F$10:$F$72,$T12,I$10:I$72)-SUMIF($F$10:$F$72,$T12,$D$10:$D$72) -> -237562.3296 | X12: -209184.2628 | Y12: -209184.2628
A13: ='Authorized Rev Req'!A12 -> Pension Contribution - GT&S Core | C13: ='Authorized Rev Req'!B12 -> D.09-09-020 | D13: ='Authorized Rev Req'!K12 -> 12330.78009 | E13: ='Authorized Rev Req'!L12 -> Core - ECPT | F13: ECPT - Core only | G13: ='Authorized Rev Req'!J12 -> 12330.78009 | H13: ='Authorized Rev Req'!K12 -> 12330.78009 | I13: 12330.78009 | J13: 12330.78009 | K13: 12330.78009 | L13: Existing | T13: ='RRQ Allocations'!B8 -> ECPT - ALL | U13: 235443.6856 | V13: 0 | W13: -121155.8387 | X13: -121342.4287 | Y13: -121342.4287
A14: ='Authorized Rev Req'!A13 -> Pension Contribution - GT&S NonCore (LT) | C14: ='Authorized Rev Req'!B13 -> D.09-09-020 | D14: ='Authorized Rev Req'!K13 -> 4921.782241 | E14: ='Authorized Rev Req'!L13 -> Noncore (No-BB/EG-BB)-ECPT | F14: ECPT - Noncore only | G14: ='Authorized Rev Req'!J13 -> 4921.782241 | H14: ='Authorized Rev Req'!K13 -> 4921.782241 | I14: 4921.782241 | J14: 4921.782241 | K14: 4921.782241 | L14: Existing | T14: ='RRQ Allocations'!B9 -> ECPT - Core only | U14: -46330.58138 | V14: =SUMIF($F$10:$F$72,$T14,H$10:H$72)-SUMIF($F$10:$F$72,$T14,$D$10:$D$72) -> 0 | W14: 0 | X14: 0 | Y14: 0
A15: ='Authorized Rev Req'!A14 -> Pension Contribution - GT&S Noncore (BB& Storage) | C15: ='Authorized Rev Req'!B14 -> D.09-09-020 | D15: ='Authorized Rev Req'!K14 -> 3227.180703 | E15: ='Authorized Rev Req'!L14 -> Noncore - ECPT | F15: ECPT - Noncore only | G15: ='Authorized Rev Req'!J14 -> 3227.180703 | H15: ='Authorized Rev Req'!K14 -> 3227.180703 | I15: 3227.180703 | J15: 3227.180703 | K15: 3227.180703 | L15: Existing | T15: ='RRQ Allocations'!B10 -> ECPT - Noncore only | U15: -35061.7486 | V15: 0 | W15: -501.0158178 | X15: -501.0158178 | Y15: -501.0158178
A16: ='Authorized Rev Req'!A15 -> Cost of Capital | C16: ='Authorized Rev Req'!B15 -> D.22-12-031/D.23-01-002/ AL 4813-G/D.24-10-008/AL 4996-G | D16: ='Authorized Rev Req'!K15 -> 42019.41356 | E16: ='Authorized Rev Req'!L15 -> Distribution | F16: Distribution | G16: ='Authorized Rev Req'!J15 -> 50569.41165 | H16: ='Authorized Rev Req'!K15 -> 42019.41356 | I16: -11289.02697 | J16: -11289.02697 | K16: -11289.02697 | L16: Existing | T16: ='RRQ Allocations'!B11 -> ECPT - 50% Core / 50% Noncore | U16: 0 | V16: 0 | W16: 0 | X16: 0 | Y16: 0
A17: ='Authorized Rev Req'!A16 -> GT&S (excluding costs recovered through Core Procurement) | T17: ='RRQ Allocations'!B12 -> ECPT (excludes Covered Entities 3 yr avg vol) | U17: 178065.2685 | V17: 0 | W17: 0 | X17: 0 | Y17: 0
A18: ='Authorized Rev Req'!A17 -> Late Implementation (Transmission Undercollection, Capital Audit, GRC Track II, WGSC) | C18: D.22-07-007 | D18: ='Authorized Rev Req'!K17 -> 61082.72649 | E18: ='Authorized Rev Req'!L17 -> ECPT | F18: ECPT - ALL | G18: ='Authorized Rev Req'!J17 -> 311890.6932 | H18: ='Authorized Rev Req'!K17 -> 61082.72649 | I18: 0 | J18: 0 | K18: 0 | L18: Existing | T18: ='RRQ Allocations'!B13 -> EE | U18: -5154.954318 | V18: 0 | W18: 2020.17599 | X18: 2020.17599 | Y18: 2020.17599
A19: ='Authorized Rev Req'!$A$18&" Core" -> Local Transmission Core | C19: ='Authorized Rev Req'!B18 -> D. 24-03-002 | D19: ='Authorized Rev Req'!K18-D20 -> 983371.3849 | E19: ='Authorized Rev Req'!L18 -> ECPT (No BB) | F19: ECPT - Core only | G19: 937040.8036 | H19: 983371.3849 | I19: =H19 -> 983371.3849 | J19: 983371.3849 | K19: 983371.3849 | L19: Existing | T19: ='RRQ Allocations'!B14 -> ESA | U19: -103.325 | V19: 0 | W19: 0 | X19: 0 | Y19: 0
A20: ='Authorized Rev Req'!$A$18&" Noncore" -> Local Transmission Noncore | C20: ='Authorized Rev Req'!B19 -> D. 24-03-002 | D20: 515826.5045 | E20: ='Authorized Rev Req'!L18 -> ECPT (No BB) | F20: ECPT - Noncore only | G20: 491426.7693 | H20: 515826.5045 | I20: 515826.5045 | J20: 515826.5045 | K20: 515826.5045 | L20: Existing | T20: ='RRQ Allocations'!B15 -> PPP ECPT | U20: 75364.94475 | V20: 0 | W20: 182.46 | X20: 182.46 | Y20: 182.46
A21: ='Authorized Rev Req'!A19 -> Customer Access Charge | C21: ='Authorized Rev Req'!B19 -> D. 24-03-002 | D21: ='Authorized Rev Req'!K19 -> 5465.240945 | E21: ='Authorized Rev Req'!L19 -> CAC Allocation | F21: CAC Allocation | G21: 4616.173305 | H21: 5465.240945 | I21: 5465.240945 | J21: 5465.240945 | K21: 5465.240945 | L21: Existing | T21: ='RRQ Allocations'!B16 -> SGIP allocation | U21: 0 | V21: 0 | W21: 0 | X21: 0 | Y21: 0
A22: ='Authorized Rev Req'!A20 -> Unbundled Backbone/Inventory Management | C22: ='Authorized Rev Req'!B20 -> D. 24-03-002 | D22: ='Authorized Rev Req'!K20-D23 -> 263208.0005 | E22: ='Authorized Rev Req'!L20 -> ECPT-All | F22: ECPT - ALL | G22: 251044.6517 | H22: 263208.0005 | I22: 263208.0005 | J22: 263208.0005 | K22: 263208.0005 | L22: Existing | T22: ='RRQ Allocations'!B17 -> CPUC Fee Allocation | U22: -4531.684987 | V22: 0 | W22: 0 | X22: 0 | Y22: 0
A23: Inventory management | C23: =C22 -> D. 24-03-002 | D23: =I23 -> 143704.047 | F23: 2023 GTS - Inventory Management | G23: 138919.8435 | H23: 143704.047 | I23: =H23 -> 143704.047 | J23: 143704.047 | K23: 143704.047 | T23: ='RRQ Allocations'!B18 -> CAC Allocation | U23: -849.0676397 | V23: 0 | W23: 0 | X23: 0 | Y23: 0
A24: SF General Office Sale | C24: ='Authorized Rev Req'!B55 -> D.21-08-027/AL 4538-G-A | D24: ='Authorized Rev Req'!K55 -> -28378.06678 | F24: Distribution | G24: ='Authorized Rev Req'!J55 -> -32047.71945 | H24: ='Authorized Rev Req'!K55 -> -28378.06678 | I24: -28378.06678 | J24: 0 | K24: 0 | L24: Existing | T24: ='RRQ Allocations'!B19 -> Storage Allocation (Procurement) | U24: -1183.045547 | V24: 0 | W24: 0 | X24: 0 | Y24: 0
T25: ='RRQ Allocations'!B20 -> Capacity Allocation (Procurement) | U25: -11955.88079 | V25: 0 | W25: 0 | X25: 0 | Y25: 0
A26: Wildfire Gas & Safety Costs (Distribution) | C26: WGSC IRR D.24-03-006 | D26: ='Authorized Rev Req'!K45 -> 0 | E26: Distribution | F26: Distribution | G26: ='Authorized Rev Req'!J45 -> 3401.958109 | H26: ='Authorized Rev Req'!K45 -> 0 | I26: 0 | J26: 0 | K26: 0 | L26: Existing | T26: ='RRQ Allocations'!B21 -> ECPT - Core only (Procurement) | U26: -70420.61399 | V26: 0 | W26: 0 | X26: 0 | Y26: 0
A27: 2020 and 2021 Wildfire Mitigation and Catastrophic Event Memorandum Account (WMCE) (Transmission) | C27: D.23-02-017 / D.23-08-027 | D27: ='Authorized Rev Req'!K47 -> 0 | E27: ECPT - ALL | F27: ECPT - ALL | G27: ='Authorized Rev Req'!J47 -> 0 | H27: ='Authorized Rev Req'!K47 -> 0 | I27: 0 | J27: 0 | K27: 0 | L27: Existing | T27: ='RRQ Allocations'!B22 -> 2023 GTS - Inventory Management | U27: -4784.20353 | V27: 0 | W27: 0 | X27: 0 | Y27: 0
A28: Oakland General Office Purchase (Distribution) | C28: ='Authorized Rev Req'!B46 -> D.24-08-009/AL 4972-G | D28: ='Authorized Rev Req'!K46 -> 25543.30358 | E28: Distribution | F28: Distribution | G28: ='Authorized Rev Req'!J46 -> 74682.81908 | H28: ='Authorized Rev Req'!K46 -> 25543.30358 | L28: New | T28: ='RRQ Allocations'!B23 -> User Defined 1 | U28: 0 | V28: 0 | W28: 0 | X28: 0 | Y28: 0
A29: Oakland General Office Purchase (Transmission) | C29: ='Authorized Rev Req'!B49 -> D.24-08-009/AL 4972-G | D29: ='Authorized Rev Req'!K49 -> 12175.53727 | E29: ECPT - ALL | F29: ECPT - ALL | G29: ='Authorized Rev Req'!J49 -> 35685.00229 | H29: ='Authorized Rev Req'!K49 -> 12175.53727 | L29: New | T29: ='RRQ Allocations'!B24 -> User Defined 2 | U29: 0 | V29: 0 | W29: 0 | X29: 0 | Y29: 0
A30: Gas Advanced Metering Infrastructure (AMI) (distribution) | C30: ='Authorized Rev Req'!B50 -> D.25-12-029 | D30: ='Authorized Rev Req'!K50 -> 40564.01418 | E30: Distribution | F30: Distribution | H30: ='Authorized Rev Req'!K50 -> 40564.01418 | L30: New | T30: ='RRQ Allocations'!B25 -> User Defined 3 | U30: 0 | V30: 0 | W30: 0 | X30: 0 | Y30: 0
A31: Concurrent Application System Program and Balancing Account | C31: ='Authorized Rev Req'!B51 -> D. 23-05-006 | D31: ='Authorized Rev Req'!K51 -> 473.76 | E31: ECPT - ALL | F31: ECPT - ALL | H31: ='Authorized Rev Req'!K51 -> 473.76 | I31: 186.59 | J31: 0 | K31: 0 | L31: New | T31: Total | U31: =SUM(U10:U30) -> 208461.8221 | V31: =SUM(V10:V30) -> 0 | W31: =SUM(W10:W30) -> -359068.0089 | X31: =SUM(X10:X30) -> -330876.5322 | Y31: =SUM(Y10:Y30) -> -330876.5322
A32: 2022 Wildfire Mitigation and Catastrophic Events | C32: ='Authorized Rev Req'!B48 -> D.25-09-008 | D32: ='Authorized Rev Req'!K48 -> 13823.72411 | E32: Distribution | F32: Distribution | H32: ='Authorized Rev Req'!K48 -> 13823.72411 | L32: New | T32: check | U32: =ABS(U31-(G73-$D73))<0.5 -> TRUE | V32: =ABS(V31-(H73-$D73))<0.5 -> TRUE | W32: =ABS(W31-(I73-$D73))<0.5 -> TRUE | X32: =ABS(X31-(J73-$D73))<0.5 -> TRUE | Y32: =ABS(Y31-(K73-$D73))<0.5 -> TRUE
A33: TRRRMA (Distribution) | C33: ='Authorized Rev Req'!B52 -> D.25-12-026 | D33: ='Authorized Rev Req'!K52 -> 104322.8472 | E33: Distribution | F33: Distribution | H33: ='Authorized Rev Req'!K52 -> 104322.8472 | L33: New
A34: TRRRMA (Transmission) | C34: ='Authorized Rev Req'!B53 -> D.25-12-026 | D34: ='Authorized Rev Req'!K53 -> 47122.58432 | E34: ECPT - ALL | F34: ECPT - ALL | H34: ='Authorized Rev Req'!K53 -> 47122.58432 | L34: New
A37: Public Policy Proceedings
A38: ='Authorized Rev Req'!A61 -> AB 32: Cap & Trade/GHG | C38: ='Authorized Rev Req'!B61 -> D.15-10-032/D.18-03-017/SB 1477 | D38: ='Authorized Rev Req'!K61 -> -239888.9521 | E38: ='Authorized Rev Req'!L61 -> 100% Residential | F38: 100% Residential | G38: ='Authorized Rev Req'!J61 -> -345869.7457 | H38: ='Authorized Rev Req'!K61 -> -239888.9521 | I38: =H38 -> -239888.9521 | J38: -239888.9521 | K38: -239888.9521 | L38: Existing
A39: ='Authorized Rev Req'!A62 -> GHG Operational Costs | C39: ='Authorized Rev Req'!B62 -> D.15-10-032/D.18-03-017 | D39: ='Authorized Rev Req'!K62 -> -280.8201427 | E39: ='Authorized Rev Req'!L62 -> ECPT | F39: ECPT - ALL | G39: ='Authorized Rev Req'!J62 -> -9916.695581 | H39: ='Authorized Rev Req'!K62 -> -280.8201427 | I39: -280.8201427 | J39: -280.8201427 | K39: -280.8201427 | L39: Existing
A40: ='Authorized Rev Req'!A63 -> GHG Compliance Costs | C40: ='Authorized Rev Req'!B63 -> D.15-10-032/D.18-03-017 | D40: ='Authorized Rev Req'!K63 -> 259520.1694 | E40: ='Authorized Rev Req'!L63 -> ECPT (excludes Covered Entities 3 yr avg vol) | F40: ECPT (excludes Covered Entities 3 yr avg vol) | G40: ='Authorized Rev Req'!J63 -> 437585.4379 | H40: ='Authorized Rev Req'!K63 -> 259520.1694 | I40: 259520.1694 | J40: 259520.1694 | K40: 259520.1694 | L40: Existing
A41: ='Authorized Rev Req'!A64 -> CPUC Fee | C41: ='Authorized Rev Req'!B64 -> Preliminary Statement O | D41: ='Authorized Rev Req'!K64 -> 15861.02532 | E41: ='Authorized Rev Req'!L64 -> ECPT (reduced EG volumes; excludes WHSL) | F41: CPUC Fee Allocation | G41: ='Authorized Rev Req'!J64 -> 11329.34033 | H41: ='Authorized Rev Req'!K64 -> 15861.02532 | I41: 15861.02532 | J41: 15861.02532 | K41: 15861.02532 | L41: Existing
A42: ='Authorized Rev Req'!A65 -> SGIP | C42: ='Authorized Rev Req'!B65 -> SB 700/D.17-04-017 | D42: ='Authorized Rev Req'!K65 -> 0 | E42: ='Authorized Rev Req'!L65 -> Direct Benefits - 3 year average | F42: SGIP allocation | G42: ='Authorized Rev Req'!J65 -> 0 | H42: ='Authorized Rev Req'!K65 -> 0 | I42: 0 | J42: 0 | K42: 0 | L42: Existing
A43: ='Authorized Rev Req'!A68 -> Energy Efficiency | C43: ='Authorized Rev Req'!B68 -> D.23-06-055 | D43: ='Authorized Rev Req'!K68 -> 127629.8097 | E43: ='Authorized Rev Req'!L68 -> Direct Allocation Method | F43: EE | G43: ='Authorized Rev Req'!J68 -> 122474.8554 | H43: ='Authorized Rev Req'!K68 -> 127629.8097 | I43: 129649.9857 | J43: =I43 -> 129649.9857 | K43: 129649.9857 | L43: Existing
A44: ='Authorized Rev Req'!A69 -> Energy Savings Assistance Program (ESA) | C44: ='Authorized Rev Req'!B69 -> D.21-06-015/D.20-12-005 | D44: ='Authorized Rev Req'!K69 -> 75530.121 | E44: ='Authorized Rev Req'!L69 -> Direct Allocation Method 100% Residential | F44: ESA | G44: ='Authorized Rev Req'!J69 -> 75426.796 | H44: ='Authorized Rev Req'!K69 -> 75530.121 | I44: =H44 -> 75530.121 | J44: =I44 -> 75530.121 | K44: 75530.121 | L44: Existing
A45: ='Authorized Rev Req'!A70 -> Research Development and Demonstration | C45: ='Authorized Rev Req'!B70 -> AL 4822-G | D45: ='Authorized Rev Req'!K70 -> 10233.68784 | E45: ='Authorized Rev Req'!L70 -> ECPT | F45: PPP ECPT | G45: ='Authorized Rev Req'!J70 -> 10469.05738 | H45: ='Authorized Rev Req'!K70 -> 10233.68784 | I45: =H45 -> 10233.68784 | J45: =I45 -> 10233.68784 | K45: =J45 -> 10233.68784 | L45: Existing
A46: ='Authorized Rev Req'!A71 -> CARE Administrative Expense | C46: ='Authorized Rev Req'!B71 -> D.21-06-015/D.20-12-005 | D46: ='Authorized Rev Req'!K71 -> 2957.54 | E46: ='Authorized Rev Req'!L71 -> ECPT (non-CARE) | F46: PPP ECPT | G46: ='Authorized Rev Req'!J71 -> 2888.84 | H46: ='Authorized Rev Req'!K71 -> 2957.54 | I46: 3140 | J46: 3140 | K46: 3140 | L46: Existing
A47: ='Authorized Rev Req'!A72 -> CARE Shortfall in Rates | C47: ='Authorized Rev Req'!B72 -> AL 4822-G | D47: ='Authorized Rev Req'!K72 -> 0 | E47: ='Authorized Rev Req'!L72 -> ECPT (excludes CARE) | F47: PPP ECPT | G47: ='Authorized Rev Req'!J72 -> 0 | H47: ='Authorized Rev Req'!K72 -> 0 | I47: =H47 -> 0 | J47: 0 | K47: 0 | L47: Existing
A48: ='Authorized Rev Req'!A73 -> BOE/CPUC Gas Surcharge Administration Costs | C48: ='Authorized Rev Req'!B73 -> AL 4822-G | D48: ='Authorized Rev Req'!K73 -> 414.03795 | E48: ='Authorized Rev Req'!L73 -> ECPT | F48: PPP ECPT | G48: ='Authorized Rev Req'!J73 -> 429.23135 | H48: ='Authorized Rev Req'!K73 -> 414.03795 | I48: 414.03795 | J48: 414.03795 | K48: 414.03795 | L48: Existing
A49: ='Authorized Rev Req'!A74 -> Marketing, Education & Outreach (ME&O) | C49: ='Authorized Rev Req'!B74 -> D.19-01-005 | D49: ='Authorized Rev Req'!K74 -> 0 | E49: ='Authorized Rev Req'!L74 -> ECPT | F49: PPP ECPT | G49: ='Authorized Rev Req'!J74 -> 0 | H49: ='Authorized Rev Req'!K74 -> 0 | I49: 0 | J49: 0 | K49: 0 | L49: Existing
A51: Core Procurement (Intrastate Volumetric and Capacity) | C51: ='Authorized Rev Req'!B79 -> D. 24-03-002/Other | D51: 196211.9165 | E51: ='Authorized Rev Req'!L79 -> Unadjusted Average Year January | F51: Capacity Allocation (Procurement) | G51: 184256.0357 | H51: 196211.9165 | I51: =H51 -> 196211.9165 | J51: 196211.9165 | K51: 196211.9165 | L51: Existing
A52: Core Procurement (Other) | C52: ='Authorized Rev Req'!B80 -> D. 97-10-065 | D52: ='Authorized Rev Req'!K79+'Authorized Rev Req'!K80-D51 -> 714146.3737 | E52: ='Authorized Rev Req'!L80 -> Core - ECPT | F52: ECPT - Core only (Procurement) | G52: ='Authorized Rev Req'!J80+'Authorized Rev Req'!J79-G51 -> 643725.7271 | H52: ='Authorized Rev Req'!K80+'Authorized Rev Req'!K79-H51 -> 714146.3737 | I52: 714146.3737 | J52: 714146.3737 | K52: 714146.3737 | L52: Existing
A53: ='Authorized Rev Req'!A81 -> Core Storage | C53: ='Authorized Rev Req'!B81 -> D. 19-09-025 | D53: ='Authorized Rev Req'!K81 -> 135685.9394 | E53: ='Authorized Rev Req'!L81 -> Unadjusted Cold Year Winter Season | F53: Storage Allocation (Procurement) | G53: ='Authorized Rev Req'!J81 -> 134502.8939 | H53: ='Authorized Rev Req'!K81 -> 135685.9394 | I53: 135685.9394 | J53: 135685.9394 | K53: 135685.9394 | L53: Existing
A54: ='Authorized Rev Req'!A82 -> Core Brokerage Fee | C54: ='Authorized Rev Req'!B82 -> GCAP D.19-10-036 | D54: ='Authorized Rev Req'!K82 -> 5066.909395 | E54: ='Authorized Rev Req'!L82 -> ECPT (Core only) | F54: ECPT - Core only (Procurement) | G54: ='Authorized Rev Req'!J82 -> 5066.942012 | H54: ='Authorized Rev Req'!K82 -> 5066.909395 | I54: 5066.909395 | J54: 5066.909395 | K54: 5066.909395 | L54: Existing
A55: ='Authorized Rev Req'!A83 -> Core Brokerage Fee Credit | C55: ='Authorized Rev Req'!B83 -> GCAP D.19-10-036 | D55: ='Authorized Rev Req'!K83 -> -5066.909395 | E55: ='Authorized Rev Req'!L83 -> ECPT (Core only) | F55: Core - Distribution | G55: ='Authorized Rev Req'!J83 -> -5066.942012 | H55: ='Authorized Rev Req'!K83 -> -5066.909395 | I55: -5066.909395 | J55: -5066.909395 | K55: -5066.909395 | L55: Existing
C56: The Core Brokerage Fee is part of the distribution revenue requirement. In transportation the RRQ is reduced and then it is recovered via the customers that pay PG&E procurement rates.
A60: Balancing Account Balances frozen at current 2026 values
A61: Distribution | D61: ='Authorized Rev Req'!K23+'Authorized Rev Req'!K27+'Authorized Rev Req'!K41+'Authorized Rev Req'!K42+'Authorized Rev Req'!K43+'Authorized Rev Req'!K44+'Authorized Rev Req'!K66+'Authorized Rev Req'!K56 -> 31327.35275 | F61: Distribution | G61: ='Authorized Rev Req'!J23+'Authorized Rev Req'!J27+'Authorized Rev Req'!J41+'Authorized Rev Req'!J42+'Authorized Rev Req'!J43+'Authorized Rev Req'!J44+'Authorized Rev Req'!J66+'Authorized Rev Req'!J56 -> 159345.9787 | H61: ='Authorized Rev Req'!K23+'Authorized Rev Req'!K27+'Authorized Rev Req'!K41+'Authorized Rev Req'!K42+'Authorized Rev Req'!K43+'Authorized Rev Req'!K44+'Authorized Rev Req'!K66+'Authorized Rev Req'!K56 -> 31327.35275 | I61: =H61 -> 31327.35275 | J61: 31327.35275 | K61: 31327.35275 | L61: Existing
A62: ECPT | D62: ='Authorized Rev Req'!K21+'Authorized Rev Req'!K22+'Authorized Rev Req'!K24+'Authorized Rev Req'!K25+'Authorized Rev Req'!K26+'Authorized Rev Req'!K28+'Authorized Rev Req'!K29+'Authorized Rev Req'!K30+'Authorized Rev Req'!K31+'Authorized Rev Req'!K32+'Authorized Rev Req'!K33+'Authorized Rev Req'!K37+'Authorized Rev Req'!K38+'Authorized Rev Req'!K39+'Authorized Rev Req'!K40+'Authorized Rev Req'!K54+'Authorized Rev Req'!K57 -> 111616.5392 | F62: ECPT - ALL | G62: ='Authorized Rev Req'!J21+'Authorized Rev Req'!J22+'Authorized Rev Req'!J24+'Authorized Rev Req'!J25+'Authorized Rev Req'!J26+'Authorized Rev Req'!J28+'Authorized Rev Req'!J29+'Authorized Rev Req'!J30+'Authorized Rev Req'!J31+'Authorized Rev Req'!J32+'Authorized Rev Req'!J33+'Authorized Rev Req'!J37+'Authorized Rev Req'!J38+'Authorized Rev Req'!J39+'Authorized Rev Req'!J40+'Authorized Rev Req'!J54+'Authorized Rev Req'!J57 -> 152519.5714 | H62: ='Authorized Rev Req'!K21+'Authorized Rev Req'!K22+'Authorized Rev Req'!K24+'Authorized Rev Req'!K25+'Authorized Rev Req'!K26+'Authorized Rev Req'!K28+'Authorized Rev Req'!K29+'Authorized Rev Req'!K30+'Authorized Rev Req'!K31+'Authorized Rev Req'!K32+'Authorized Rev Req'!K33+'Authorized Rev Req'!K37+'Authorized Rev Req'!K38+'Authorized Rev Req'!K39+'Authorized Rev Req'!K40+'Authorized Rev Req'!K54+'Authorized Rev Req'!K57 -> 111616.5392 | I62: 111616.5392 | J62: 111616.5392 | K62: 111616.5392 | L62: Existing
A63: Public Purpose Program | D63: ='Authorized Rev Req'!K75+'Authorized Rev Req'!K76+'Authorized Rev Req'!K77+'Authorized Rev Req'!K78+'Authorized Rev Req'!K67 -> -26411.92112 | F63: PPP ECPT | G63: ='Authorized Rev Req'!J75+'Authorized Rev Req'!J76+'Authorized Rev Req'!J77+'Authorized Rev Req'!J78+'Authorized Rev Req'!J67 -> 48771.1607 | H63: ='Authorized Rev Req'!K75+'Authorized Rev Req'!K76+'Authorized Rev Req'!K77+'Authorized Rev Req'!K78+'Authorized Rev Req'!K67 -> -26411.92112 | I63: -26411.92112 | J63: -26411.92112 | K63: -26411.92112 | L63: Existing
A64: CFCA - NGSS Enduser Dist. Sub Acct Recovery | D64: ='Authorized Rev Req'!K34 -> 2051.460825 | F64: Core - Distribution | G64: ='Authorized Rev Req'!J34 -> -41605.2506 | H64: ='Authorized Rev Req'!K34 -> 2051.460825 | I64: 0 | J64: =I64 -> 0 | K64: =J64 -> 0 | L64: Existing
A65: CFCA/NCA - NGSS Enduser Sub Acct Recovery | D65: ='Authorized Rev Req'!K35 -> 487.8206422 | F65: ECPT - ALL | G65: ='Authorized Rev Req'!J35 -> -9893.389052 | H65: ='Authorized Rev Req'!K35 -> 487.8206422 | I65: 0 | J65: =I65 -> 0 | K65: 0 | L65: Existing
A66: NCA - NGSS Enduser Sub Acct Recovery | D66: ='Authorized Rev Req'!K36 -> 501.0158178 | F66: ECPT - Noncore only | G66: ='Authorized Rev Req'!J36 -> -10160.99767 | H66: ='Authorized Rev Req'!K36 -> 501.0158178 | I66: 0 | J66: 0 | K66: 0 | L66: Existing
A73: Total Approved, Implemented Since Jan 1 or To Be Implemented | D73: =SUM(D10:D71) -> 6726747.229 | G73: =SUM(G10:G71) -> 6935209.051 | H73: =SUM(H10:H71) -> 6726747.229 | I73: =SUM(I10:I71) -> 6367679.22 | J73: =SUM(J10:J71) -> 6395870.696 | K73: =SUM(K10:K71) -> 6395870.696
A76: Pending Application(s), Not Yet Approved | T76: Summary Incremental Authorized + Pending
A77: Filing Description | B77: Proceeding | C77: Basis of Revenue Requirement Forecast: Application Amended Application, Ammended Testimony, Proposed Settlement Agreement, Proposed Decision | D77: Proposed Revenue Requirement ($000) | E77: Proposed Revenue Recovery Mechanism | F77: Allocation Methodology | G77: Projected Authorized Revenue Requirement ($000) - Breakout by Year | L77: Existing or New Item (if existing, use delta from prior for illustrative rate impact) | M77: Change in Projected Authorized Revenue Requirement ($000) for Illustrative Rate Impact - Breakout by Year (if cell is shaded grey, rate impact is not presently determinable) | R77: Include in Impact | U77: =U9 -> 2025 | V77: =V9 -> 2026 | W77: =W9 -> 2027 | X77: =X9 -> 2028 | Y77: =Y9 -> 2029
A78: Safety Affordability Reliability Proceedings | G78: =G$9 -> 2025 | H78: =H$9 -> 2026 | I78: =I$9 -> 2027 | J78: =J$9 -> 2028 | K78: =K$9 -> 2029 | M78: =G$9 -> 2025 | N78: =H$9 -> 2026 | O78: =I$9 -> 2027 | P78: =J$9 -> 2028 | Q78: =K$9 -> 2029 | T78: =T10 -> 100% Residential | U78: =SUMIFS(M$79:M$115,$F$79:$F$115,$T78,$R$79:$R$115,"Y")+U10 -> -105980.7937 | V78: =SUMIFS(N$79:N$115,$F$79:$F$115,$T78,$R$79:$R$115,"Y")+V10 -> 0 | W78: =SUMIFS(O$79:O$115,$F$79:$F$115,$T78,$R$79:$R$115,"Y")+W10 -> 0 | X78: =SUMIFS(P$79:P$115,$F$79:$F$115,$T78,$R$79:$R$115,"Y")+X10 -> 0 | Y78: =SUMIFS(Q$79:Q$115,$F$79:$F$115,$T78,$R$79:$R$115,"Y")+Y10 -> 0
T79: Core - Distribution | U79: -43656.74404 | V79: 0 | W79: -2051.460825 | X79: -2051.460825 | Y79: -2051.460825
A80: Billing Modernization (Distribution) | B80: A. 24-10-004 | C80: Application | D80: =H80 -> 18712.17383 | E80: Distribution | F80: Distribution | H80: 18712.17383 | I80: 17751.34183 | J80: 16583.85336 | K80: 14215.2408 | L80: New | N80: =H80 -> 18712.17383 | O80: =I80 -> 17751.34183 | P80: 16583.85336 | Q80: 14215.2408 | R80: =VLOOKUP(A80,Summary!$B$8:$E$41,3,FALSE) -> N | T80: Distribution | U80: 49600.56665 | V80: 65537.65441 | W80: -218742.8645 | X80: -191006.0001 | Y80: -191471.9872
A81: Billing Modernization (Transmission) | B81: A. 24-10-004 | C81: Application | D81: =H81 -> 8918.457231 | E81: ECPT | F81: ECPT - ALL | H81: 8918.457231 | I81: 8460.512628 | J81: 7904.072949 | K81: 6775.162433 | L81: New | N81: 8918.457231 | O81: 8460.512628 | P81: 7904.072949 | Q81: 6775.162433 | R81: =VLOOKUP(A81,Summary!$B$8:$E$41,3,FALSE) -> N | T81: =T13 -> ECPT - ALL | U81: 235443.6856 | V81: 6579.378757 | W81: =SUMIFS(O$79:O$115,$F$79:$F$115,$T81,$R$79:$R$115,"Y")+W13 -> -120863.9991 | X81: -121103.0098 | Y81: -121117.3945
A82: Stanpac Application | B82: A.25-12-014 | C82: Application | D82: =I82 -> 893.4158148 | E82: ECPT | F82: ECPT - ALL | I82: 893.4158148 | J82: 857.0302256 | K82: 827.4630552 | L82: New | O82: =I82 -> 893.4158148 | P82: =J82 -> 857.0302256 | Q82: =K82 -> 827.4630552 | R82: =VLOOKUP(A82,Summary!$B$8:$E$41,3,FALSE) -> N | T82: ECPT - Core only | U82: -46330.58138 | V82: 0 | W82: 0 | X82: 0 | Y82: 0
A83: Hydrogen Demonstration Project (2027) | B83: A.22-09-006 | C83: Application | D83: =I83 -> 3022.022937 | E83: ECPT | F83: ECPT - ALL | I83: 3022.022937 | J83: 10324.82853 | K83: 10534.09292 | L83: New | M83: =G83 -> 0 | N83: =H83 -> 0 | O83: =I83 -> 3022.022937 | P83: 10324.82853 | Q83: 10534.09292 | R83: =VLOOKUP(A83,Summary!$B$8:$E$41,3,FALSE) -> N | T83: ECPT - Noncore only | U83: -35061.7486 | V83: 0 | W83: -501.0158178 | X83: -501.0158178 | Y83: -501.0158178
A84: 2024 Wildfire Mitigation and Catastrophic Events (distribution) | B84: A.24-11-009 | C84: Application | D84: =H84 -> 65537.65441 | E84: Distribution | F84: Distribution | H84: 65537.65441 | I84: 18819.46508 | J84: 18178.26264 | K84: 17712.2756 | L84: New | M84: 0 | N84: =H84 -> 65537.65441 | O84: 18819.46508 | P84: 18178.26264 | Q84: 17712.2756 | R84: =VLOOKUP(A84,Summary!$B$8:$E$41,3,FALSE) -> Y | T84: ECPT - 50% Core / 50% Noncore | U84: 0 | V84: 0 | W84: 0 | X84: 0 | Y84: 0
A85: 2024 Wildfire Mitigation and Catastrophic Events (transmission) | B85: A.24-11-009 | C85: Application | D85: 6579.378757 | E85: ECPT | F85: ECPT - ALL | H85: 6579.378757 | I85: 291.8396392 | J85: 239.4188966 | K85: 225.0342646 | L85: New | M85: 0 | N85: =H85 -> 6579.378757 | O85: 291.8396392 | P85: 239.4188966 | Q85: 225.0342646 | R85: =VLOOKUP(A85,Summary!$B$8:$E$41,3,FALSE) -> Y | T85: ECPT (excludes Covered Entities 3 yr avg vol) | U85: 178065.2685 | V85: 0 | W85: 0 | X85: 0 | Y85: 0
A86: 2023 Wildfire Mitigation and Catastrophic Events (distribution) | B86: A.23-12-001 | C86: Application | D86: =H86 -> 13644.27962 | E86: Distribution | F86: Distribution | H86: 13644.27962 | L86: New | M86: =G86 -> 0 | N86: =H86 -> 13644.27962 | O86: =I86 -> 0 | P86: 0 | Q86: 0 | R86: =VLOOKUP(A86,Summary!$B$8:$E$41,3,FALSE) -> N | T86: EE | U86: -5154.954318 | V86: 0 | W86: 2020.17599 | X86: 2020.17599 | Y86: 2020.17599
A87: 2023 Wildfire Mitigation and Catastrophic Events (transmission) | B87: A.23-12-001 | C87: Application | D87: =H87 -> 5913.522951 | E87: ECPT | F87: ECPT - ALL | H87: 5913.522951 | L87: New | M87: =G87 -> 0 | N87: 5913.522951 | O87: 0 | P87: 0 | Q87: 0 | R87: =VLOOKUP(A87,Summary!$B$8:$E$41,3,FALSE) -> N | T87: ESA | U87: -103.325 | V87: 0 | W87: 0 | X87: 0 | Y87: 0
A88: Wildfire Gas and Safety Costs (Distribution) Non-IRR | B88: A.23-06-008 | C88: Application | D88: =H88 -> 6776.716441 | E88: Distribution | F88: Distribution | H88: 6776.716441 | L88: New | M88: =G88 -> 0 | N88: 6776.716441 | O88: 0 | P88: 0 | Q88: 0 | R88: =VLOOKUP(A88,Summary!$B$8:$E$41,3,FALSE) -> N | T88: PPP ECPT | U88: 75364.94475 | V88: 0 | W88: 182.46 | X88: 182.46 | Y88: 182.46
A89: Wildfire Gas and Safety Costs (Transmission) - Non IRR | B89: A.23-06-008 | C89: Application | D89: =H89 -> 44029.8428 | E89: ECPT | F89: ECPT - ALL | H89: 44029.8428 | I89: 412.700166 | L89: New | M89: =G89 -> 0 | N89: 44029.8428 | O89: 412.700166 | P89: 0 | Q89: 0 | R89: =VLOOKUP(A89,Summary!$B$8:$E$41,3,FALSE) -> N | T89: SGIP allocation | U89: 0 | V89: 0 | W89: 0 | X89: 0 | Y89: 0
A90: Kincaid-Dixie (Distribution) | B90: A.25-11-001 | C90: Application | D90: =I90 -> 71886.55064 | E90: Distribution | F90: Distribution | I90: 71886.55064 | L90: New | O90: =I90 -> 71886.55064 | R90: =VLOOKUP(A90,Summary!$B$8:$E$41,3,FALSE) -> N | T90: CPUC Fee Allocation | U90: -4531.684987 | V90: 0 | W90: 0 | X90: 0 | Y90: 0
A91: Kincaid-Dixie (Generation) | B91: A.25-11-001 | C91: Application | D91: =I91 -> 23780.14007 | E91: ECPT | F91: ECPT - ALL | I91: 23780.14007 | L91: New | O91: =I91 -> 23780.14007 | R91: =VLOOKUP(A91,Summary!$B$8:$E$41,3,FALSE) -> N | T91: CAC Allocation | U91: -849.0676397 | V91: 0 | W91: 0 | X91: 0 | Y91: 0
D92: 0 | G92: =M92 -> 0 | H92: =N92 -> 0 | T92: Storage Allocation (Procurement) | U92: -1183.045547 | V92: 0 | W92: 0 | X92: 0 | Y92: 0
D93: 0 | G93: =M93 -> 0 | H93: 0 | T93: Capacity Allocation (Procurement) | U93: -11955.88079 | V93: 0 | W93: 0 | X93: 0 | Y93: 0
D94: 0 | T94: ECPT - Core only (Procurement) | U94: -70420.61399 | V94: 0 | W94: 0 | X94: 0 | Y94: 0
A95: 2027 GRC - Gas Distribution | B95: A.25-05-009 | C95: Application | D95: =I95 -> 3061244.211 | E95: Distribution | F95: Distribution | I95: 3061244.211 | J95: 3220789.415 | K95: 3389414.767 | L95: Existing | O95: =I95-I10 -> 45864.23671 | P95: =J95-J10 -> 205409.4401 | Q95: =K95-K10 -> 374034.7925 | R95: =VLOOKUP(A95,Summary!$B$8:$E$41,3,FALSE) -> N | T95: 2023 GTS - Inventory Management | U95: -4784.20353 | V95: 0 | W95: 0 | X95: 0 | Y95: 0
A96: 2027 GRC - Core Local Transmission | B96: A.25-05-009 | C96: Application | D96: =I96 -> 1102352.183 | E96: ECPT | F96: ECPT - Core only | I96: 1102352.183 | J96: 1135354.816 | K96: 1173368.345 | L96: Existing | O96: =I96-I19 -> 118980.798 | P96: =J96-J19 -> 151983.4313 | Q96: =K96-K19 -> 189996.9603 | R96: =VLOOKUP(A96,Summary!$B$8:$E$41,3,FALSE) -> N | T96: =T28 -> User Defined 1 | U96: 0 | V96: 0 | W96: 0 | X96: 0 | Y96: 0
A97: 2027 GRC - Core Procurement (Intrastate Volumetric and Capacity) | B97: A.25-05-009 | C97: Application | D97: 144492.9212 | E97: ECPT (No BB) | F97: ECPT - Core only (Procurement) | I97: 144492.9212 | J97: 153719.4621 | K97: 162779.9119 | L97: Existing | O97: =I97-I51 -> -51718.99537 | P97: =J97-J51 -> -42492.45442 | Q97: =K97-K51 -> -33432.00467 | R97: =VLOOKUP(A97,Summary!$B$8:$E$41,3,FALSE) -> N | T97: =T29 -> User Defined 2 | U97: 0 | V97: 0 | W97: 0 | X97: 0 | Y97: 0
A98: 2027 GRC - Core Procurement (Storage) | B98: A.25-05-009 | C98: Application | D98: 34475.58511 | E98: Unadjusted Cold Year Winter Season | F98: Storage Allocation (Procurement) | I98: 34475.58511 | J98: 37259.1958 | K98: 39767.86767 | L98: Existing | O98: =I98-I53+100000 -> -1210.3543 | P98: =J98-J53+100000 -> 1573.256393 | Q98: =K98-K53+100000 -> 4081.928258 | R98: =VLOOKUP(A98,Summary!$B$8:$E$41,3,FALSE) -> N | T98: =T30 -> User Defined 3 | U98: 0 | V98: 0 | W98: 0 | X98: 0 | Y98: 0
A99: 2027 GRC - Noncore Local Transmission | B99: A.25-05-009 | C99: Application | D99: 578500.182 | E99: ECPT (No BB) | F99: ECPT - Noncore only | I99: 578500.182 | J99: 595883.4141 | K99: 615905.9866 | L99: Existing | O99: =I99-I20 -> 62673.67756 | P99: =J99-J20 -> 80056.90966 | Q99: 100079.4821 | R99: =VLOOKUP(A99,Summary!$B$8:$E$41,3,FALSE) -> N | T99: =T31 -> Total | U99: =SUM(U78:U98) -> 208461.8221 | V99: =SUM(V78:V98) -> 72117.03317 | W99: =SUM(W78:W98) -> -339956.7042 | X99: =SUM(X78:X98) -> -312458.8506 | Y99: =SUM(Y78:Y98) -> -312939.2223
A100: 2027 GRC - Customer Access Charge | B100: A.25-05-009 | C100: Application | D100: 3108.803628 | E100: CAC Allocation | F100: CAC Allocation | I100: 3108.803628 | J100: 3870.218973 | K100: 4634.982782 | L100: Existing | O100: -2356.437317 | P100: -1595.021972 | Q100: -830.2581629 | R100: =VLOOKUP(A100,Summary!$B$8:$E$41,3,FALSE) -> N | T100: check | U100: =U31+SUMIF($R$79:$R$115,"Y",M79:M115)=U99 -> TRUE | V100: =ABS(V31+SUMIF($R$79:$R$115,"Y",N79:N115)-V99)<0.0000005 -> TRUE | W100: =ABS(W31+SUMIF($R$79:$R$115,"Y",O79:O115)-W99)<0.0000005 -> TRUE | X100: =ABS(X31+SUMIF($R$79:$R$115,"Y",P79:P115)-X99)<0.0000005 -> TRUE | Y100: =ABS(Y31+SUMIF($R$79:$R$115,"Y",Q79:Q115)-Y99)<0.0000005 -> TRUE
A101: 2027 GRC - Noncore Unbundled | B101: A.25-05-009 | C101: Application | D101: 197609.3823 | E101: ECPT-All | F101: ECPT - ALL | I101: 197609.3823 | J101: 206605.913 | K101: 213949.2198 | L101: Existing | O101: -65598.61827 | P101: -56602.08753 | Q101: -49258.78074 | R101: =VLOOKUP(A101,Summary!$B$8:$E$41,3,FALSE) -> N
A102: 2027 GRC - Inventory Management | B102: A.25-05-009 | C102: Application | D102: =I102 -> 139662.6234 | E102: 2023 GTS - Inventory Management | F102: 2023 GTS - Inventory Management | I102: 139662.6234 | J102: 150919.4682 | K102: 161064.4679 | L102: Existing | O102: -4041.423614 | P102: 7215.421172 | Q102: 17360.42093 | R102: =VLOOKUP(A102,Summary!$B$8:$E$41,3,FALSE) -> N
A103: CFCA - NGSS Enduser Dist. Sub Acct Recovery | B103: A.25-05-009 | C103: Application | D103: 0 | E103: Core - Distribution | F103: Core - Distribution | I103: 0 | J103: 0 | K103: 0 | L103: Existing | O103: =-H64 -> -2051.460825 | P103: =O103 -> -2051.460825 | Q103: -2051.460825 | R103: =VLOOKUP(A103,Summary!$B$8:$E$41,3,FALSE) -> N
A104: CFCA/NCA - NGSS Enduser Sub Acct Recovery | B104: A.25-05-009 | C104: Application | D104: 0 | E104: ECPT - ALL | F104: ECPT - ALL | I104: 0 | J104: 0 | K104: 0 | L104: Existing | O104: =-H65 -> -487.8206422 | P104: -487.8206422 | Q104: -487.8206422 | R104: =VLOOKUP(A104,Summary!$B$8:$E$41,3,FALSE) -> N
A105: NCA - NGSS Enduser Sub Acct Recovery | B105: A.25-05-009 | C105: Application | D105: 0 | E105: ECPT - Noncore only | F105: ECPT - Noncore only | I105: 0 | J105: 0 | K105: 0 | L105: Existing | O105: =-H66 -> -501.0158178 | P105: -501.0158178 | Q105: -501.0158178 | R105: =VLOOKUP(A105,Summary!$B$8:$E$41,3,FALSE) -> N
D106: 0
A109: Public Policy Proceedings
A110: 2027 Energy Savings Assistance Bridge Funding | B110: A.25-06-024 | C110: Application | D110: =I110 -> 55567.26105 | E110: PPP | F110: ESA | I110: 55567.26105 | L110: Existing | O110: =I110-I44 -> -19962.85995 | R110: =VLOOKUP(A110,Summary!$B$8:$E$41,3,FALSE) -> N
A111: 2027 CARE Administrative Bridge Funding | B111: A.25-06-024 | C111: Application | D111: =I111 -> 2059.02 | E111: PPP | F111: PPP ECPT | I111: 2059.02 | L111: Existing | O111: =I111-I46 -> -1080.98 | R111: =VLOOKUP(A111,Summary!$B$8:$E$41,3,FALSE) -> N
A112: Income Qualified Program (ESA) PY 2028-2033 | B112: A.26-01-003 | C112: Application | D112: =J112 -> 64939.148 | E112: PPP | F112: ESA | J112: 64939.148 | K112: 72336.854 | L112: Existing | P112: =J112-J44 -> -10590.973 | Q112: =K112-K44 -> -3193.267 | R112: =VLOOKUP(A112,Summary!$B$8:$E$41,3,FALSE) -> N
A113: Income Qualified Program (CARE) PY 2028-2033 | B113: A.26-01-003 | C113: Application | D113: =J113 -> 1619.91 | E113: PPP | F113: PPP ECPT | J113: 1619.91 | K113: 1700.19 | L113: Existing | P113: =J113-J46 -> -1520.09 | Q113: =K113-K46 -> -1439.81 | R113: =VLOOKUP(A113,Summary!$B$8:$E$41,3,FALSE) -> N
A116: Total Pending, Filed but not Approved | D116: =SUM(D79:D115) -> 5655325.386 | G116: =SUM(G79:G115) -> 0 | H116: =SUM(H79:H115) -> 170112.026 | I116: =SUM(I79:I115) -> 5464390.162 | J116: =SUM(J79:J115) -> 5625048.428 | K116: =SUM(K79:K115) -> 5885211.862 | M116: =SUM(M79:M115) -> 0 | N116: =SUM(N79:N115) -> 170112.026 | O116: =SUM(O79:O115) -> 223826.735 | P116: =SUM(P79:P115) -> 384485.001 | Q116: =SUM(Q79:Q115) -> 644648.4353
A123: ** Recurring programs funding assumed to be flat at current levels

Sheet SAR and RAR
F3: Public Purpose Program Switch | G3: =IF(VLOOKUP(G$8,'RRQ Allocations'!$B$5:$L$25,3,FALSE)="PPP",1,0) -> 0 | H3: =IF(VLOOKUP(H$8,'RRQ Allocations'!$B$5:$L$25,3,FALSE)="PPP",1,0) -> 0 | I3: =IF(VLOOKUP(I$8,'RRQ Allocations'!$B$5:$L$25,3,FALSE)="PPP",1,0) -> 0 | J3: =IF(VLOOKUP(J$8,'RRQ Allocations'!$B$5:$L$25,3,FALSE)="PPP",1,0) -> 0 | K3: =IF(VLOOKUP(K$8,'RRQ Allocations'!$B$5:$L$25,3,FALSE)="PPP",1,0) -> 0 | L3: =IF(VLOOKUP(L$8,'RRQ Allocations'!$B$5:$L$25,3,FALSE)="PPP",1,0) -> 0 | M3: =IF(VLOOKUP(M$8,'RRQ Allocations'!$B$5:$L$25,3,FALSE)="PPP",1,0) -> 0 | N3: =IF(VLOOKUP(N$8,'RRQ Allocations'!$B$5:$L$25,3,FALSE)="PPP",1,0) -> 0 | O3: =IF(VLOOKUP(O$8,'RRQ Allocations'!$B$5:$L$25,3,FALSE)="PPP",1,0) -> 1 | P3: =IF(VLOOKUP(P$8,'RRQ Allocations'!$B$5:$L$25,3,FALSE)="PPP",1,0) -> 1 | Q3: =IF(VLOOKUP(Q$8,'RRQ Allocations'!$B$5:$L$25,3,FALSE)="PPP",1,0) -> 1 | R3: =IF(VLOOKUP(R$8,'RRQ Allocations'!$B$5:$L$25,3,FALSE)="PPP",1,0) -> 0 | S3: =IF(VLOOKUP(S$8,'RRQ Allocations'!$B$5:$L$25,3,FALSE)="PPP",1,0) -> 0 | T3: =IF(VLOOKUP(T$8,'RRQ Allocations'!$B$5:$L$25,3,FALSE)="PPP",1,0) -> 0 | U3: =IF(VLOOKUP(U$8,'RRQ Allocations'!$B$5:$L$25,3,FALSE)="PPP",1,0) -> 0 | V3: =IF(VLOOKUP(V$8,'RRQ Allocations'!$B$5:$L$25,3,FALSE)="PPP",1,0) -> 0 | W3: =IF(VLOOKUP(W$8,'RRQ Allocations'!$B$5:$L$25,3,FALSE)="PPP",1,0) -> 0 | X3: =IF(VLOOKUP(X$8,'RRQ Allocations'!$B$5:$L$25,3,FALSE)="PPP",1,0) -> 0 | Y3: =IF(VLOOKUP(Y$8,'RRQ Allocations'!$B$5:$L$25,3,FALSE)="PPP",1,0) -> 0 | Z3: =IF(VLOOKUP(Z$8,'RRQ Allocations'!$B$5:$L$25,3,FALSE)="PPP",1,0) -> 0 | AA3: =IF(VLOOKUP(AA$8,'RRQ Allocations'!$B$5:$L$25,3,FALSE)="PPP",1,0) -> 0
F4: Transporation Switch | G4: =IF(VLOOKUP(G$8,'RRQ Allocations'!$B$5:$L$25,3,FALSE)="T",1,0) -> 1 | H4: =IF(VLOOKUP(H$8,'RRQ Allocations'!$B$5:$L$25,3,FALSE)="T",1,0) -> 1 | I4: =IF(VLOOKUP(I$8,'RRQ Allocations'!$B$5:$L$25,3,FALSE)="T",1,0) -> 1 | J4: =IF(VLOOKUP(J$8,'RRQ Allocations'!$B$5:$L$25,3,FALSE)="T",1,0) -> 1 | K4: =IF(VLOOKUP(K$8,'RRQ Allocations'!$B$5:$L$25,3,FALSE)="T",1,0) -> 1 | L4: =IF(VLOOKUP(L$8,'RRQ Allocations'!$B$5:$L$25,3,FALSE)="T",1,0) -> 1 | M4: =IF(VLOOKUP(M$8,'RRQ Allocations'!$B$5:$L$25,3,FALSE)="T",1,0) -> 1 | N4: =IF(VLOOKUP(N$8,'RRQ Allocations'!$B$5:$L$25,3,FALSE)="T",1,0) -> 1 | O4: =IF(VLOOKUP(O$8,'RRQ Allocations'!$B$5:$L$25,3,FALSE)="T",1,0) -> 0 | P4: =IF(VLOOKUP(P$8,'RRQ Allocations'!$B$5:$L$25,3,FALSE)="T",1,0) -> 0 | Q4: =IF(VLOOKUP(Q$8,'RRQ Allocations'!$B$5:$L$25,3,FALSE)="T",1,0) -> 0 | R4: =IF(VLOOKUP(R$8,'RRQ Allocations'!$B$5:$L$25,3,FALSE)="T",1,0) -> 1 | S4: =IF(VLOOKUP(S$8,'RRQ Allocations'!$B$5:$L$25,3,FALSE)="T",1,0) -> 1 | T4: =IF(VLOOKUP(T$8,'RRQ Allocations'!$B$5:$L$25,3,FALSE)="T",1,0) -> 1 | U4: =IF(VLOOKUP(U$8,'RRQ Allocations'!$B$5:$L$25,3,FALSE)="T",1,0) -> 0 | V4: =IF(VLOOKUP(V$8,'RRQ Allocations'!$B$5:$L$25,3,FALSE)="T",1,0) -> 0 | W4: =IF(VLOOKUP(W$8,'RRQ Allocations'!$B$5:$L$25,3,FALSE)="T",1,0) -> 0 | X4: =IF(VLOOKUP(X$8,'RRQ Allocations'!$B$5:$L$25,3,FALSE)="T",1,0) -> 1 | Y4: =IF(VLOOKUP(Y$8,'RRQ Allocations'!$B$5:$L$25,3,FALSE)="T",1,0) -> 1 | Z4: =IF(VLOOKUP(Z$8,'RRQ Allocations'!$B$5:$L$25,3,FALSE)="T",1,0) -> 1 | AA4: =IF(VLOOKUP(AA$8,'RRQ Allocations'!$B$5:$L$25,3,FALSE)="T",1,0) -> 1
F5: Procurement Switch | G5: =IF(VLOOKUP(G$8,'RRQ Allocations'!$B$5:$L$25,3,FALSE)="P",1,0) -> 0 | H5: =IF(VLOOKUP(H$8,'RRQ Allocations'!$B$5:$L$25,3,FALSE)="P",1,0) -> 0 | I5: =IF(VLOOKUP(I$8,'RRQ Allocations'!$B$5:$L$25,3,FALSE)="P",1,0) -> 0 | J5: =IF(VLOOKUP(J$8,'RRQ Allocations'!$B$5:$L$25,3,FALSE)="P",1,0) -> 0 | K5: =IF(VLOOKUP(K$8,'RRQ Allocations'!$B$5:$L$25,3,FALSE)="P",1,0) -> 0 | L5: =IF(VLOOKUP(L$8,'RRQ Allocations'!$B$5:$L$25,3,FALSE)="P",1,0) -> 0 | M5: =IF(VLOOKUP(M$8,'RRQ Allocations'!$B$5:$L$25,3,FALSE)="P",1,0) -> 0 | N5: =IF(VLOOKUP(N$8,'RRQ Allocations'!$B$5:$L$25,3,FALSE)="P",1,0) -> 0 | O5: =IF(VLOOKUP(O$8,'RRQ Allocations'!$B$5:$L$25,3,FALSE)="P",1,0) -> 0 | P5: =IF(VLOOKUP(P$8,'RRQ Allocations'!$B$5:$L$25,3,FALSE)="P",1,0) -> 0 | Q5: =IF(VLOOKUP(Q$8,'RRQ Allocations'!$B$5:$L$25,3,FALSE)="P",1,0) -> 0 | R5: =IF(VLOOKUP(R$8,'RRQ Allocations'!$B$5:$L$25,3,FALSE)="P",1,0) -> 0 | S5: =IF(VLOOKUP(S$8,'RRQ Allocations'!$B$5:$L$25,3,FALSE)="P",1,0) -> 0 | T5: =IF(VLOOKUP(T$8,'RRQ Allocations'!$B$5:$L$25,3,FALSE)="P",1,0) -> 0 | U5: =IF(VLOOKUP(U$8,'RRQ Allocations'!$B$5:$L$25,3,FALSE)="P",1,0) -> 1 | V5: =IF(VLOOKUP(V$8,'RRQ Allocations'!$B$5:$L$25,3,FALSE)="P",1,0) -> 1 | W5: =IF(VLOOKUP(W$8,'RRQ Allocations'!$B$5:$L$25,3,FALSE)="P",1,0) -> 1 | X5: =IF(VLOOKUP(X$8,'RRQ Allocations'!$B$5:$L$25,3,FALSE)="P",1,0) -> 0 | Y5: =IF(VLOOKUP(Y$8,'RRQ Allocations'!$B$5:$L$25,3,FALSE)="P",1,0) -> 0 | Z5: =IF(VLOOKUP(Z$8,'RRQ Allocations'!$B$5:$L$25,3,FALSE)="P",1,0) -> 0 | AA5: =IF(VLOOKUP(AA$8,'RRQ Allocations'!$B$5:$L$25,3,FALSE)="P",1,0) -> 0
C7: =CONCATENATE(Summary!D3," Revenue Change ($000)") -> 2026 Revenue Change ($000) | G7: Allocation
C8: Authorized | D8: + Pending | G8: =TRANSPOSE('RRQ Allocations'!B5:B25) -> 100% Residential | H8: Core - Distribution | I8: Distribution | J8: ECPT - ALL | K8: ECPT - Core only | L8: ECPT - Noncore only | M8: ECPT - 50% Core / 50% Noncore | N8: ECPT (excludes Covered Entities 3 yr avg vol) | O8: EE | P8: ESA | Q8: PPP ECPT | R8: SGIP allocation | S8: CPUC Fee Allocation | T8: CAC Allocation | U8: Storage Allocation (Procurement) | V8: Capacity Allocation (Procurement) | W8: ECPT - Core only (Procurement) | X8: 2023 GTS - Inventory Management | Y8: User Defined 1 | Z8: User Defined 2 | AA8: User Defined 3 | AC8: CARE Allocation
B9: ='Incremental Rev Req'!T10 -> 100% Residential | C9: =INDEX('Incremental Rev Req'!$T$9:$Y$30,MATCH($B9,'Incremental Rev Req'!$T$9:$T$30,0),MATCH(Summary!$D$3,'Incremental Rev Req'!$T$9:$Y$9,0)) -> 0 | D9: =INDEX('Incremental Rev Req'!$T$77:$Y$98,MATCH($B9,'Incremental Rev Req'!$T$77:$T$98,0),MATCH(Summary!$D$3,'Incremental Rev Req'!$T$77:$Y$77,0)) -> 0 | F9: Residential | G9: =TRANSPOSE('RRQ Allocations'!$H$5:$H$25) -> 1 | H9: 0.8087646787 | I9: 0.784859179 | J9: 0.2722742932 | K9: 0.6645587839 | L9: 0 | M9: 0.3322793919 | N9: 0.3579364261 | O9: 0.3384 | P9: 1 | Q9: 0.3964019068 | R9: 0.9155803564 | S9: 0.3675669459 | T9: 0 | U9: 0.7912905715 | V9: 0.7933288665 | W9: 0.7339650877 | X9: 0.3591976846 | Y9: 0 | Z9: 0 | AA9: 0 | AC9: 0.3384530811
B10: ='Incremental Rev Req'!T11 -> Core - Distribution | C10: =INDEX('Incremental Rev Req'!$T$9:$Y$30,MATCH($B10,'Incremental Rev Req'!$T$9:$T$30,0),MATCH(Summary!$D$3,'Incremental Rev Req'!$T$9:$Y$9,0)) -> 0 | D10: =INDEX('Incremental Rev Req'!$T$77:$Y$98,MATCH($B10,'Incremental Rev Req'!$T$77:$T$98,0),MATCH(Summary!$D$3,'Incremental Rev Req'!$T$77:$Y$77,0)) -> 0
B11: ='Incremental Rev Req'!T12 -> Distribution | C11: =INDEX('Incremental Rev Req'!$T$9:$Y$30,MATCH($B11,'Incremental Rev Req'!$T$9:$T$30,0),MATCH(Summary!$D$3,'Incremental Rev Req'!$T$9:$Y$9,0)) -> 0 | D11: =INDEX('Incremental Rev Req'!$T$77:$Y$98,MATCH($B11,'Incremental Rev Req'!$T$77:$T$98,0),MATCH(Summary!$D$3,'Incremental Rev Req'!$T$77:$Y$77,0)) -> 65537.65441 | G11: Revenue Change ($000) - System
B12: ='Incremental Rev Req'!T13 -> ECPT - ALL | C12: =INDEX('Incremental Rev Req'!$T$9:$Y$30,MATCH($B12,'Incremental Rev Req'!$T$9:$T$30,0),MATCH(Summary!$D$3,'Incremental Rev Req'!$T$9:$Y$9,0)) -> 0 | D12: =INDEX('Incremental Rev Req'!$T$77:$Y$98,MATCH($B12,'Incremental Rev Req'!$T$77:$T$98,0),MATCH(Summary!$D$3,'Incremental Rev Req'!$T$77:$Y$77,0)) -> 6579.378757 | F12: Authorized | G12: =G$8 -> 100% Residential | H12: =H$8 -> Core - Distribution | I12: Distribution | J12: ECPT - ALL | K12: ECPT - Core only | L12: ECPT - Noncore only | M12: ECPT - 50% Core / 50% Noncore | N12: ECPT (excludes Covered Entities 3 yr avg vol) | O12: EE | P12: ESA | Q12: PPP ECPT | R12: SGIP allocation | S12: CPUC Fee Allocation | T12: CAC Allocation | U12: Storage Allocation (Procurement) | V12: Capacity Allocation (Procurement) | W12: ECPT - Core only (Procurement) | X12: 2023 GTS - Inventory Management | Y12: User Defined 1 | Z12: User Defined 2 | AA12: User Defined 3 | AB12: Total | AC12: CARE Discount
B13: ='Incremental Rev Req'!T14 -> ECPT - Core only | C13: =INDEX('Incremental Rev Req'!$T$9:$Y$30,MATCH($B13,'Incremental Rev Req'!$T$9:$T$30,0),MATCH(Summary!$D$3,'Incremental Rev Req'!$T$9:$Y$9,0)) -> 0 | D13: =INDEX('Incremental Rev Req'!$T$77:$Y$98,MATCH($B13,'Incremental Rev Req'!$T$77:$T$98,0),MATCH(Summary!$D$3,'Incremental Rev Req'!$T$77:$Y$77,0)) -> 0 | F13: Residential | G13: =G9*G14 -> 0 | H13: 0 | I13: 0 | J13: 0 | K13: =K9*K14 -> 0 | L13: 0 | M13: 0 | N13: 0 | O13: 0 | P13: 0 | Q13: 0 | R13: 0 | S13: 0 | T13: 0 | U13: 0 | V13: 0 | W13: 0 | X13: =X9*X14 -> 0 | Y13: 0 | Z13: 0 | AA13: 0 | AB13: =SUM(G13:AA13) -> 0 | AC13: =AC9*AC14 -> 0
B14: ='Incremental Rev Req'!T15 -> ECPT - Noncore only | C14: =INDEX('Incremental Rev Req'!$T$9:$Y$30,MATCH($B14,'Incremental Rev Req'!$T$9:$T$30,0),MATCH(Summary!$D$3,'Incremental Rev Req'!$T$9:$Y$9,0)) -> 0 | D14: =INDEX('Incremental Rev Req'!$T$77:$Y$98,MATCH($B14,'Incremental Rev Req'!$T$77:$T$98,0),MATCH(Summary!$D$3,'Incremental Rev Req'!$T$77:$Y$77,0)) -> 0 | F14: Total System | G14: =VLOOKUP(G$12,$B$9:$D$29,2,FALSE) -> 0 | H14: =VLOOKUP(H$12,$B$9:$D$29,2,FALSE) -> 0 | I14: 0 | J14: 0 | K14: =VLOOKUP(K$12,$B$9:$D$29,2,FALSE) -> 0 | L14: 0 | M14: 0 | N14: 0 | O14: 0 | P14: 0 | Q14: 0 | R14: 0 | S14: 0 | T14: 0 | U14: 0 | V14: 0 | W14: 0 | X14: =VLOOKUP(X$12,$B$9:$D$29,2,FALSE) -> 0 | Y14: 0 | Z14: 0 | AA14: 0 | AB14: =SUM(G14:AA14) -> 0 | AC14: =Res_RD!M33 -> 0
B15: ='Incremental Rev Req'!T16 -> ECPT - 50% Core / 50% Noncore | C15: =INDEX('Incremental Rev Req'!$T$9:$Y$30,MATCH($B15,'Incremental Rev Req'!$T$9:$T$30,0),MATCH(Summary!$D$3,'Incremental Rev Req'!$T$9:$Y$9,0)) -> 0 | D15: =INDEX('Incremental Rev Req'!$T$77:$Y$98,MATCH($B15,'Incremental Rev Req'!$T$77:$T$98,0),MATCH(Summary!$D$3,'Incremental Rev Req'!$T$77:$Y$77,0)) -> 0 | F15: w/Pending
B16: ='Incremental Rev Req'!T17 -> ECPT (excludes Covered Entities 3 yr avg vol) | C16: =INDEX('Incremental Rev Req'!$T$9:$Y$30,MATCH($B16,'Incremental Rev Req'!$T$9:$T$30,0),MATCH(Summary!$D$3,'Incremental Rev Req'!$T$9:$Y$9,0)) -> 0 | D16: =INDEX('Incremental Rev Req'!$T$77:$Y$98,MATCH($B16,'Incremental Rev Req'!$T$77:$T$98,0),MATCH(Summary!$D$3,'Incremental Rev Req'!$T$77:$Y$77,0)) -> 0 | F16: Residential | G16: =G9*G17 -> 0 | H16: 0 | I16: 51437.82964 | J16: 1791.395701 | K16: =K9*K17 -> 0 | L16: 0 | M16: 0 | N16: 0 | O16: 0 | P16: 0 | Q16: 0 | R16: 0 | S16: 0 | T16: 0 | U16: 0 | V16: 0 | W16: =W9*W17 -> 0 | X16: 0 | Y16: 0 | Z16: 0 | AA16: 0 | AB16: =SUM(G16:AA16) -> 53229.22534 | AC16: =AC9*AC17 -> 795.7547626
B17: ='Incremental Rev Req'!T18 -> EE | C17: =INDEX('Incremental Rev Req'!$T$9:$Y$30,MATCH($B17,'Incremental Rev Req'!$T$9:$T$30,0),MATCH(Summary!$D$3,'Incremental Rev Req'!$T$9:$Y$9,0)) -> 0 | D17: =INDEX('Incremental Rev Req'!$T$77:$Y$98,MATCH($B17,'Incremental Rev Req'!$T$77:$T$98,0),MATCH(Summary!$D$3,'Incremental Rev Req'!$T$77:$Y$77,0)) -> 0 | F17: Total System | G17: =VLOOKUP(G$12,$B$9:$D$29,3,FALSE) -> 0 | H17: 0 | I17: 65537.65441 | J17: 6579.378757 | K17: 0 | L17: 0 | M17: 0 | N17: 0 | O17: 0 | P17: 0 | Q17: 0 | R17: 0 | S17: 0 | T17: 0 | U17: 0 | V17: 0 | W17: 0 | X17: 0 | Y17: 0 | Z17: 0 | AA17: 0 | AB17: =SUM(G17:AA17) -> 72117.03317 | AC17: =(Res_RD!AD33) -> 2351.152367
B18: ='Incremental Rev Req'!T19 -> ESA | C18: =INDEX('Incremental Rev Req'!$T$9:$Y$30,MATCH($B18,'Incremental Rev Req'!$T$9:$T$30,0),MATCH(Summary!$D$3,'Incremental Rev Req'!$T$9:$Y$9,0)) -> 0 | D18: =INDEX('Incremental Rev Req'!$T$77:$Y$98,MATCH($B18,'Incremental Rev Req'!$T$77:$T$98,0),MATCH(Summary!$D$3,'Incremental Rev Req'!$T$77:$Y$77,0)) -> 0
B19: ='Incremental Rev Req'!T20 -> PPP ECPT | C19: =INDEX('Incremental Rev Req'!$T$9:$Y$30,MATCH($B19,'Incremental Rev Req'!$T$9:$T$30,0),MATCH(Summary!$D$3,'Incremental Rev Req'!$T$9:$Y$9,0)) -> 0 | D19: =INDEX('Incremental Rev Req'!$T$77:$Y$98,MATCH($B19,'Incremental Rev Req'!$T$77:$T$98,0),MATCH(Summary!$D$3,'Incremental Rev Req'!$T$77:$Y$77,0)) -> 0
B20: ='Incremental Rev Req'!T21 -> SGIP allocation | C20: =INDEX('Incremental Rev Req'!$T$9:$Y$30,MATCH($B20,'Incremental Rev Req'!$T$9:$T$30,0),MATCH(Summary!$D$3,'Incremental Rev Req'!$T$9:$Y$9,0)) -> 0 | D20: =INDEX('Incremental Rev Req'!$T$77:$Y$98,MATCH($B20,'Incremental Rev Req'!$T$77:$T$98,0),MATCH(Summary!$D$3,'Incremental Rev Req'!$T$77:$Y$77,0)) -> 0
B21: ='Incremental Rev Req'!T22 -> CPUC Fee Allocation | C21: =INDEX('Incremental Rev Req'!$T$9:$Y$30,MATCH($B21,'Incremental Rev Req'!$T$9:$T$30,0),MATCH(Summary!$D$3,'Incremental Rev Req'!$T$9:$Y$9,0)) -> 0 | D21: =INDEX('Incremental Rev Req'!$T$77:$Y$98,MATCH($B21,'Incremental Rev Req'!$T$77:$T$98,0),MATCH(Summary!$D$3,'Incremental Rev Req'!$T$77:$Y$77,0)) -> 0
B22: ='Incremental Rev Req'!T23 -> CAC Allocation | C22: =INDEX('Incremental Rev Req'!$T$9:$Y$30,MATCH($B22,'Incremental Rev Req'!$T$9:$T$30,0),MATCH(Summary!$D$3,'Incremental Rev Req'!$T$9:$Y$9,0)) -> 0 | D22: =INDEX('Incremental Rev Req'!$T$77:$Y$98,MATCH($B22,'Incremental Rev Req'!$T$77:$T$98,0),MATCH(Summary!$D$3,'Incremental Rev Req'!$T$77:$Y$77,0)) -> 0
B23: ='Incremental Rev Req'!T24 -> Storage Allocation (Procurement) | C23: =INDEX('Incremental Rev Req'!$T$9:$Y$30,MATCH($B23,'Incremental Rev Req'!$T$9:$T$30,0),MATCH(Summary!$D$3,'Incremental Rev Req'!$T$9:$Y$9,0)) -> 0 | D23: =INDEX('Incremental Rev Req'!$T$77:$Y$98,MATCH($B23,'Incremental Rev Req'!$T$77:$T$98,0),MATCH(Summary!$D$3,'Incremental Rev Req'!$T$77:$Y$77,0)) -> 0
B24: ='Incremental Rev Req'!T25 -> Capacity Allocation (Procurement) | C24: =INDEX('Incremental Rev Req'!$T$9:$Y$30,MATCH($B24,'Incremental Rev Req'!$T$9:$T$30,0),MATCH(Summary!$D$3,'Incremental Rev Req'!$T$9:$Y$9,0)) -> 0 | D24: =INDEX('Incremental Rev Req'!$T$77:$Y$98,MATCH($B24,'Incremental Rev Req'!$T$77:$T$98,0),MATCH(Summary!$D$3,'Incremental Rev Req'!$T$77:$Y$77,0)) -> 0
B25: ='Incremental Rev Req'!T26 -> ECPT - Core only (Procurement) | C25: =INDEX('Incremental Rev Req'!$T$9:$Y$30,MATCH($B25,'Incremental Rev Req'!$T$9:$T$30,0),MATCH(Summary!$D$3,'Incremental Rev Req'!$T$9:$Y$9,0)) -> 0 | D25: =INDEX('Incremental Rev Req'!$T$77:$Y$98,MATCH($B25,'Incremental Rev Req'!$T$77:$T$98,0),MATCH(Summary!$D$3,'Incremental Rev Req'!$T$77:$Y$77,0)) -> 0
B26: ='Incremental Rev Req'!T27 -> 2023 GTS - Inventory Management | C26: =INDEX('Incremental Rev Req'!$T$9:$Y$30,MATCH($B26,'Incremental Rev Req'!$T$9:$T$30,0),MATCH(Summary!$D$3,'Incremental Rev Req'!$T$9:$Y$9,0)) -> 0 | D26: =INDEX('Incremental Rev Req'!$T$77:$Y$98,MATCH($B26,'Incremental Rev Req'!$T$77:$T$98,0),MATCH(Summary!$D$3,'Incremental Rev Req'!$T$77:$Y$77,0)) -> 0 | AD26: Authorized | AF26: Authorized | AG26: w/Pending
B27: ='Incremental Rev Req'!T28 -> User Defined 1 | C27: =INDEX('Incremental Rev Req'!$T$9:$Y$30,MATCH($B27,'Incremental Rev Req'!$T$9:$T$30,0),MATCH(Summary!$D$3,'Incremental Rev Req'!$T$9:$Y$9,0)) -> 0 | D27: =INDEX('Incremental Rev Req'!$T$77:$Y$98,MATCH($B27,'Incremental Rev Req'!$T$77:$T$98,0),MATCH(Summary!$D$3,'Incremental Rev Req'!$T$77:$Y$77,0)) -> 0 | G27: Revenue Split - Bundled | AD27: Bundled Revenue Change | AF27: Bundled Revenue Change
B28: ='Incremental Rev Req'!T29 -> User Defined 2 | C28: =INDEX('Incremental Rev Req'!$T$9:$Y$30,MATCH($B28,'Incremental Rev Req'!$T$9:$T$30,0),MATCH(Summary!$D$3,'Incremental Rev Req'!$T$9:$Y$9,0)) -> 0 | D28: =INDEX('Incremental Rev Req'!$T$77:$Y$98,MATCH($B28,'Incremental Rev Req'!$T$77:$T$98,0),MATCH(Summary!$D$3,'Incremental Rev Req'!$T$77:$Y$77,0)) -> 0 | G28: =G$8 -> 100% Residential | H28: =H$8 -> Core - Distribution | I28: Distribution | J28: ECPT - ALL | K28: ECPT - Core only | L28: ECPT - Noncore only | M28: ECPT - 50% Core / 50% Noncore | N28: ECPT (excludes Covered Entities 3 yr avg vol) | O28: EE | P28: ESA | Q28: PPP ECPT | R28: SGIP allocation | S28: CPUC Fee Allocation | T28: CAC Allocation | U28: Storage Allocation (Procurement) | V28: Capacity Allocation (Procurement) | W28: ECPT - Core only (Procurement) | X28: 2023 GTS - Inventory Management | Y28: User Defined 1 | Z28: User Defined 2 | AA28: User Defined 3 | AD28: Total | AE28: CARE Adj | AF28: Total | AG28: CARE Adj
B29: ='Incremental Rev Req'!T30 -> User Defined 3 | C29: =INDEX('Incremental Rev Req'!$T$9:$Y$30,MATCH($B29,'Incremental Rev Req'!$T$9:$T$30,0),MATCH(Summary!$D$3,'Incremental Rev Req'!$T$9:$Y$9,0)) -> 0 | D29: =INDEX('Incremental Rev Req'!$T$77:$Y$98,MATCH($B29,'Incremental Rev Req'!$T$77:$T$98,0),MATCH(Summary!$D$3,'Incremental Rev Req'!$T$77:$Y$77,0)) -> 0 | F29: Residential | G29: =TRANSPOSE('RRQ Allocations'!$J$5:$J$25) -> 0.8975890644 | H29: 0.8975890644 | I29: 0.8975890644 | J29: 0.8975890644 | K29: 0.8975890644 | L29: 0 | M29: 0.8975890644 | N29: 0.8975890644 | O29: 0.8975890644 | P29: 0.8975890644 | Q29: 0.8975890644 | R29: 0.8975890644 | S29: 0.8975890644 | T29: 0 | U29: 1 | V29: 1 | W29: 1 | X29: 0.8975890644 | Y29: 0 | Z29: 0 | AA29: 0 | AC29: 0.8976129238 | AD29: =SUMPRODUCT(G13:AA13,G29:AA29) -> 0 | AE29: =AD29-($AC$14*AC29)+($AC$13*$AC$29) -> 0 | AF29: =SUMPRODUCT(G16:AA16,G29:AA29) -> 47777.97057 | AG29: =AF29-($AC$17*AC29)+($AC$16*$AC$29) -> 46381.82558
B30: Total | C30: =SUM(C9:C26) -> 0 | D30: =SUM(D9:D26) -> 72117.03317 | F30: Total System | G30: =TRANSPOSE('RRQ Allocations'!$L$5:$L$25) -> 0.8975890644 | H30: 0.812992294 | I30: 0.8241155045 | J30: 0.3330589455 | K30: 0.8129201077 | L30: 0 | M30: 0.4064066796 | N30: 0.4375217629 | O30: 0.5263600131 | P30: 0.8975890644 | Q30: 0.4832992734 | R30: 0.875994189 | S30: 0.4477831178 | T30: 0 | U30: 1 | V30: 1 | W30: 1 | X30: 0.4303735271 | Y30: 0 | Z30: 0 | AA30: 0 | AC30: 0.4435331891 | AD30: =SUMPRODUCT(G14:AA14,G30:AA30) -> 0 | AE30: =AD30 -> 0 | AF30: =SUMPRODUCT(G17:X17,G30:X30) -> 56201.91808 | AG30: =AF30 -> 56201.91808
C31: =C30=HLOOKUP(Summary!$D$3,'Incremental Rev Req'!$U$9:$Y$31,23,FALSE) -> TRUE | D31: =D30=HLOOKUP(Summary!$D$3,'Incremental Rev Req'!U77:Y99,23,FALSE) -> TRUE
F32: ="Notes: Allocation and bundled/unbundled split based on "&Summary!L4&" throughput forecast" -> Notes: Allocation and bundled/unbundled split based on 2023 CARD throughput forecast
G36: Bundled | O36: System (Bundled and Transportation)
G37: =Summary!$L$4&" Throughput" -> 2023 CARD Throughput | H37: =TEXT(Summary!L3,"m/d/yyy")&" Avg Rates ($ / therm)" -> 1/1/2026 Avg Rates ($ / therm) | I37: Illustrative Proposed Avg Rates (Authorized) | J37: Illustrative Proposed Avg Rates (w/Pending) | K37: % Change (Illustrative Authorized) | L37: % Change (w/Illustrative Pending) | O37: =Summary!$L$4&" Throughput" -> 2023 CARD Throughput | P37: =H37 -> 1/1/2026 Avg Rates ($ / therm) | Q37: Illustrative Proposed Avg Rates (Authorized) | R37: Illustrative Proposed Avg Rates (w/Pending) | S37: % Change (Illustrative Authorized) | T37: % Change (w/Illustrative Pending)
F38: Residential | G38: 1495141.703 | H38: 2.653286461 | I38: =AE29/G38+H38 -> 2.653286461 | J38: =AG29/G38+H38 -> 2.684308153 | K38: =I38/H38-1 -> 0 | L38: =J38/H38-1 -> 0.01169179904 | N38: Residential | O38: 1665711.039 | P38: 2.484190261 | Q38: =((SUM(G13:AA13)-AC14+AC13)/O38)+P38 -> 2.484190261 | R38: =((SUM(G16:AA16)-AC17+AC16)/O38)+P38 -> 2.515212345 | S38: =Q38/P38-1 -> 0 | T38: =R38/P38-1 -> 0.01248780517
F39: Total System | G39: 2037601.566 | H39: 2.369718323 | I39: =AE30/G39+H39 -> 2.369718323 | J39: =AG30/G39+H39 -> 2.397300712 | K39: =I39/H39-1 -> 0 | L39: =J39/H39-1 -> 0.01163952199 | N39: Total System | O39: 6116441.313 | P39: ='Authorized Rev Req'!G88/'SAR and RAR'!O39 -> 1.056513451 | Q39: =(SUM(G14:AA14)/O39)+P39 -> 1.056513451 | R39: =(SUM(G17:AA17)/O39)+P39 -> 1.068304136 | S39: =Q39/P39-1 -> 0 | T39: =R39/P39-1 -> 0.01115999521
O41: Illustrative System Rate does not include illustrative procurement for transport only customers.

Sheet Res_RD
A8: CALCULATION OF ILLUSTRATIVE RESIDENTIAL RATES WITH AUTHORIZED INCREMENTAL RRQs | R8: CALCULATION OF ILLUSTRATIVE RESIDENTIAL RATES WITH AUTHORIZED AND PENDING INCREMENTAL RRQs
B13: Authorized Pre-CARE costs allocated to residential class | C13: 3589770.205 | S13: Authorized Pre-CARE costs allocated to residential class | T13: =C13 -> 3589770.205
B14: + Authorized Incremental RRQ | C14: =SUMPRODUCT('SAR and RAR'!$G$4:$AA$4,'SAR and RAR'!$G$13:$AA$13) -> 0 | S14: + Authorized + Pending Incremental RRQ | T14: =SUMPRODUCT('SAR and RAR'!$G$4:$AA$4,'SAR and RAR'!$G$16:$AA$16) -> 53229.22534
B15: Total Pre-CARE costs allocated to residential class | C15: =SUM(C13:C14) -> 3589770.205 | S15: Total Pre-CARE costs allocated to residential class | T15: =SUM(T13:T14) -> 3642999.43
B16: Residential Tier I volumes (includes CARE) | C16: 1212728.376 | S16: Residential Tier I volumes (includes CARE) | T16: =C16 -> 1212728.376
B17: + Residential Tier II volumes (includes CARE) | C17: 453002.3718 | S17: + Residential Tier II volumes (includes CARE) | T17: =C17 -> 453002.3718
B18: = Total Residential Volumes (includes CARE) | C18: =C16+C17 -> 1665730.748 | S18: = Total G-10 adjusted Residential Volumes (includes CARE) | T18: =T16+T17 -> 1665730.748
B20: GCAP Decision Ratio of Tier II/Tier I Residential Rates | C20: 1.246 | S20: GCAP Decision Ratio of Tier II/Tier I Residential Rates | T20: 1.246
F22: ADD Illustrative Procurement Rate | I22: CARE Discount | W22: ADD Illustrative Procurement Rate | Z22: CARE Discount
C23: Pre-CARE Illustrative Res. Transportation Rates | F23: Current Rate | G23: Illustrative Authorized Incremental | H23: CSI - Thermal Exemption | I23: 0.2 | J23: Interim Illustrative CARE Transportation Rates | K23: CARE Transportation Volumes (mth) | L23: Illustrative CARE Transportation Discount | T23: Pre-CARE Illustrative Res. Transportation Rates | W23: Current Rate | X23: Illustrative Authorized + Illustrative Pending Incremental | Y23: CSI - Thermal Exemption | Z23: =I23 -> 0.2 | AA23: Interim Illustrative CARE Transportation Rates | AB23: CARE Transportation Volumes (mth) | AC23: Illustrative CARE Transportation Discount
B24: Illustrative Residential Tier I rates | C24: =C15/(C16+C17*C20) -> 2.019937066 | F24: 0.50786 | G24: =SUMPRODUCT('SAR and RAR'!$G$5:$AA$5,'SAR and RAR'!$G$13:$AA$13)/'SAR and RAR'!G38 -> 0 | H24: -0.000764197823 | I24: =SUM(C24:H24)*I23 -> 0.5054065736 | J24: =ROUND(C24+H24-I24,7) -> 1.5137663 | K24: 27420.07488 | L24: =Res_RD!I24*Res_RD!K24 -> 13858.2861 | S24: Illustrative Residential Tier I rates | T24: =T15/(T16+T17*T20) -> 2.049888756 | W24: =F24 -> 0.50786 | X24: =SUMPRODUCT('SAR and RAR'!$G$5:$AA$5,'SAR and RAR'!$G$16:$AA$16)/'SAR and RAR'!G38 -> 0 | Y24: =H24 -> -0.000764197823 | Z24: =SUM(T24:Y24)*Z23 -> 0.5113969117 | AA24: =ROUND(T24+Y24-Z24,7) -> 1.5377276 | AB24: =K24 -> 27420.07488 | AC24: =Res_RD!Z24*Res_RD!AB24 -> 14022.54161
B25: Illustrative Residential Tier II rates | C25: =C24*C20 -> 2.516841584 | F25: =F24 -> 0.50786 | G25: =G24 -> 0 | H25: =H24 -> -0.000764197823 | I25: =SUM(C25:H25)*I23 -> 0.6047874773 | J25: =ROUND(C25+H25-I25,7) -> 1.9112899 | K25: 10245.82278 | L25: =Res_RD!I25*Res_RD!K25 -> 6196.545313 | S25: Illustrative Residential Tier II rates | T25: =T24*T20 -> 2.55416139 | W25: =F25 -> 0.50786 | X25: =X24 -> 0 | Y25: =H25 -> -0.000764197823 | Z25: =SUM(T25:Y25)*Z23 -> 0.6122514385 | AA25: =ROUND(T25+Y25-Z25,7) -> 1.9411458 | AB25: =K25 -> 10245.82278 | AC25: =Res_RD!Z25*Res_RD!AB25 -> 6273.019737
B26: Average | C26: =SUMPRODUCT($C$16:$C$17,C$24:C$25)/$C$18 -> 2.155072306 | F26: =SUMPRODUCT($C$16:$C$17,F$24:F$25)/$C$18 -> 0.50786 | G26: =SUMPRODUCT($C$16:$C$17,G$24:G$25)/$C$18 -> 0 | H26: =H24 -> -0.000764197823 | I26: =SUMPRODUCT($C$16:$C$17,I$24:I$25)/$C$18 -> 0.5324336217 | J26: =SUMPRODUCT($C$16:$C$17,J$24:J$25)/$C$18 -> 1.621874488 | K26: =Res_RD!K24+Res_RD!K25 -> 37665.89767 | L26: =Res_RD!L24+Res_RD!L25 -> 20054.83141 | S26: Average | T26: =SUMPRODUCT($T$16:$T$17,$T$24:$T$25)/$T$18 -> 2.187027786 | W26: =SUMPRODUCT($T$16:$T$17,$W$24:$W$25)/$T$18 -> 0.50786 | X26: =SUMPRODUCT($T$16:$T$17,$X$24:$X$25)/$T$18 -> 0 | Y26: =Y24 -> -0.000764197823 | Z26: =SUMPRODUCT($T$16:$T$17,$Z$24:$Z$25)/$T$18 -> 0.5388247177 | AA26: =SUMPRODUCT($T$16:$T$17,$AA$24:$AA$25)/$T$18 -> 1.647438849 | AB26: =Res_RD!AB24+Res_RD!AB25 -> 37665.89767 | AC26: =Res_RD!AC24+Res_RD!AC25 -> 20295.56135
C27: =C26=C15/C18 -> TRUE
B29: CALCULATION OF ILLUSTRATIVE CARE SUBSIDY | C29: Pre-CARE Illustrative Residential Transportation | F29: Illustrative Interim Bundled CARE Rates | G29: CARE | H29: CARE Bundled | I29: Illustrative CARE Bundled | J29: Illustrative CARE Transportation | K29: Total Illustrative CARE | L29: Current CARE | M29: Illustrative Incremental CARE | N29: Total Throughput Eligible for Recovery of CARE Discount | O29: Incremental Illustrative PPP Rates due to Change in CARE Discount | S29: CALCULATION OF ILLUSTRATIVE CARE SUBSIDY | T29: Pre-CARE Illustrative Residential Transportation | W29: Illustrative Interim Bundled CARE Rates | X29: CARE | Y29: CARE Bundled | Z29: Illustrative CARE Bundled | AA29: Illustrative CARE Transportation | AB29: Total Illustrative CARE | AC29: Current CARE | AD29: Illustrative Incremental CARE | AE29: Total Throughput Eligible for Recovery of CARE Discount | AF29: Illustrative Incremental PPP Rates due to Change in CARE Discount
C30: Rates | F30: ="(w/"&I23*100&"% discount)" -> (w/20% discount) | G30: ="Discount ("&I23*100&"%)" -> Discount (20%) | H30: Volumes (mth) | I30: Discount | J30: Discount | K30: Discount | L30: Discount | M30: Discount | T30: Rates | W30: ="(w/"&Z23*100&"% discount)" -> (w/20% discount) | X30: ="Discount ("&Z23*100&"%)" -> Discount (20%) | Y30: Volumes (mth) | Z30: Discount | AA30: Discount | AB30: Discount | AC30: Discount | AD30: Discount
C31: =Res_RD!C24 -> 2.019937066 | F31: =ROUND((Res_RD!C24+H24+F24+G24)*(1-$I$23),20) -> 2.021626294 | G31: =SUM(C24:H24)-F31 -> 0.5054065736 | H31: 240412.9786 | I31: =Res_RD!H31*Res_RD!G31 -> 121506.2997 | J31: =Res_RD!L24 -> 13858.2861 | K31: =SUM(I31:J31) -> 135364.5858 | O31: =O33 -> 0 | T31: =Res_RD!T24 -> 2.049888756 | W31: =ROUND((Res_RD!T24+Y24+W24+X24)*(1-$Z$23),20) -> 2.045587647 | X31: =SUM(T24:Y24)-W31 -> 0.5113969117 | Y31: =H31 -> 240412.9786 | Z31: =Res_RD!Y31*Res_RD!X31 -> 122946.4548 | AA31: =Res_RD!AC24 -> 14022.54161 | AB31: =SUM(Z31:AA31) -> 136968.9964 | AF31: =AF33 -> 0.0006136054875
C32: =Res_RD!C25 -> 2.516841584 | F32: =ROUND((Res_RD!C25+H25+F25+G25)*(1-$I$23),20) -> 2.419149909 | G32: =SUM(C25:H25)-F32 -> 0.6047874773 | H32: 89800.49498 | I32: =Res_RD!H32*Res_RD!G32 -> 54310.21482 | J32: =Res_RD!L25 -> 6196.545313 | K32: =SUM(I32:J32) -> 60506.76013 | O32: =O33 -> 0 | T32: =Res_RD!T25 -> 2.55416139 | W32: =ROUND((Res_RD!T25+Y25+W25+X25)*(1-$Z$23),20) -> 2.449005754 | X32: =SUM(T25:Y25)-W32 -> 0.6122514385 | Y32: =H32 -> 89800.49498 | Z32: =Res_RD!Y32*Res_RD!X32 -> 54980.48223 | AA32: =Res_RD!AC25 -> 6273.019737 | AB32: =SUM(Z32:AA32) -> 61253.50197 | AF32: =AF33 -> 0.0006136054875
B33: Total | H33: =Res_RD!H31+Res_RD!H32 -> 330213.4735 | I33: =Res_RD!I31+Res_RD!I32 -> 175816.5146 | J33: =Res_RD!J31+Res_RD!J32 -> 20054.83141 | K33: =Res_RD!K31+Res_RD!K32 -> 195871.346 | L33: 195871.346 | M33: =K33-L33 -> 0 | N33: 3831700.358 | O33: =M33/N33 -> 0 | S33: Total | Y33: =Res_RD!Y31+Res_RD!Y32 -> 330213.4735 | Z33: =Res_RD!Z31+Res_RD!Z32 -> 177926.937 | AA33: =Res_RD!AA31+Res_RD!AA32 -> 20295.56135 | AB33: =Res_RD!AB31+Res_RD!AB32 -> 198222.4983 | AC33: =L33 -> 195871.346 | AD33: =AB33-AC33 -> 2351.152367 | AE33: 3831700.358 | AF33: =AD33/AE33 -> 0.0006136054875
B35: CALCULATION OF FINAL ILLUSTRATIVE RESIDENTIAL NON-CARE RATES | R35: CALCULATION OF FINAL ILLUSTRATIVE RESIDENTIAL NON-CARE RATES
B37: Post-CARE costs allocated to residential class | C37: =C13*C$42/C$18 -> 2796963.559 | S37: Post-CARE costs allocated to residential class | T37: =T13*T$42/T$18 -> 2796963.559
B38: + Authorized Incremental RRQ | C38: =C14*C$42/C$18 -> 0 | S38: + Authorized Incremental RRQ | T38: =T14*T$42/T$18 -> 41473.46351
B39: = Total Post-CARE costs allocated to residential class | C39: =SUM(C37:C38) -> 2796963.559 | S39: = Total Post-CARE costs allocated to residential class | T39: =SUM(T37:T38) -> 2838437.023
B40: Residential Tier I volumes (non-CARE) | C40: 920403.8806 | S40: Residential Tier I volumes (non-CARE) | T40: =C40 -> 920403.8806
B41: + Residential Tier II volumes (non-CARE) | C41: 377447.496 | S41: + Residential Tier II volumes (non-CARE) | T41: =C41 -> 377447.496
B42: Total Residential Volumes (Non-CARE) | C42: =SUM(C40:C41) -> 1297851.377 | S42: Total Residential Volumes (Non-CARE) | T42: =SUM(T40:T41) -> 1297851.377
B44: GCAP Decision Ratio of Tier II/Tier I Residential Transportation Rates | C44: =C20 -> 1.246 | S44: GCAP Decision Ratio of Tier II/Tier I Residential Transportation Rates | T44: =T20 -> 1.246
D46: Current Minimum | U46: Current Minimum
C47: Non-CARE | D47: Monthly Transporation | E47: Post-MMTC | F47: Residential Procurement Rate | H47: Non-CARE | J47: Authorized | K47: Recovery of | T47: Non-CARE | U47: Monthly Transporation | V47: Post-MMTC | W47: Residential Procurement Rate | Y47: Non-CARE | AA47: Illustrative Authorized + | AB47: Recovery of
C48: Illustrative Residential Transportation | D48: Charge (MMTC) adjustment | E48: Illustrative Non-CARE Res Transporation | F48: Current Rate | G48: Authorized Illustrative Incremental Rate | H48: Illustrative Bundled Rate | I48: Current PPP Rate | J48: Illustrative Incremental PPP Rate | K48: Illustrative Incremental CARE Discount | L48: Total Illustrative Non-CARE Bundled Rate | T48: Illustrative Residential Transportation | U48: Charge (MMTC) adjustment | V48: Illustrative Non-CARE Res Transporation | W48: Current Rate | X48: Illustrative Authorized + Illustrative Pending Incremental | Y48: Illustrative Bundled Rate | Z48: Current PPP Rate | AA48: Pending Illustrative Incremental PPP Rate | AB48: Illustrative Incremental CARE Discount | AC48: Total Illustrative Non-CARE Bundled Rate
B49: Illustrative Residential Tier I rates | C49: =C39/(C40+C41*C44) -> 2.011186165 | D49: 0.006585682882 | E49: =C49-D49 -> 2.004600482 | F49: =F24 -> 0.50786 | G49: =G24 -> 0 | H49: =E49+SUM(F49:G49) -> 2.512460482 | I49: 0.12103 | J49: =SUMPRODUCT('SAR and RAR'!$G$3:$AA$3,'SAR and RAR'!$G$13:$AA$13)/C18 -> 0 | K49: =O33 -> 0 | L49: =SUM(H49:K49) -> 2.633490482 | S49: Illustrative Residential Tier I rates | T49: =T39/(T40+T41*T44) -> 2.041008097 | U49: =D49 -> 0.006585682882 | V49: =T49-U49 -> 2.034422414 | W49: =W24 -> 0.50786 | X49: =X24 -> 0 | Y49: =V49+SUM(W49:X49) -> 2.542282414 | Z49: =I49 -> 0.12103 | AA49: =SUMPRODUCT('SAR and RAR'!$G$3:$AA$3,'SAR and RAR'!$G$16:$AA$16)/T18 -> 0 | AB49: =AF31 -> 0.0006136054875 | AC49: =SUM(Y49:AB49) -> 2.663926019
B50: Illustrative Residential Tier II rates | C50: =C49*C44 -> 2.505937962 | D50: 0 | E50: =C50-D50 -> 2.505937962 | F50: =F25 -> 0.50786 | G50: =G25 -> 0 | H50: =E50+SUM(F50:G50) -> 3.013797962 | I50: =I49 -> 0.12103 | J50: =J49 -> 0 | K50: =O33 -> 0 | L50: =SUM(H50:K50) -> 3.134827962 | S50: Illustrative Residential Tier II rates | T50: =T49*T44 -> 2.543096088 | U50: =D50 -> 0 | V50: =T50-U50 -> 2.543096088 | W50: =W25 -> 0.50786 | X50: =X25 -> 0 | Y50: =V50+SUM(W50:X50) -> 3.050956088 | Z50: =I50 -> 0.12103 | AA50: =AA49 -> 0 | AB50: =AF32 -> 0.0006136054875 | AC50: =SUM(Y50:AB50) -> 3.172599694
B51: Avg. Illustrative Non-CARE Residential Rate (Bundled & Transportation-only) | C51: =(($C$40*C49)+($C$41*C50))/$C$42 -> 2.155072306 | D51: =(($C$40*D49)+($C$41*D50))/$C$42 -> 0.00467040232 | E51: =(($C$40*E49)+($C$41*E50))/$C$42 -> 2.150401904 | F51: =SUMPRODUCT($C$40:$C$41,F$49:F$50)/$C$42 -> 0.50786 | G51: =SUMPRODUCT($C$40:$C$41,$G$49:$G$50)/$C$42 -> 0 | H51: =SUMPRODUCT($C$40:$C$41,$H$49:$H$50)/$C$42 -> 2.658261904 | I51: =SUMPRODUCT($C$40:$C$41,$I$49:$I$50)/$C$42 -> 0.12103 | J51: =J49 -> 0 | K51: =SUMPRODUCT($C$40:$C$41,$K$49:$K$50)/$C$42 -> 0 | L51: =SUM(H51:K51) -> 2.779291904 | S51: Avg. Illustrative Non-CARE Residential Rate (Bundled & Transportation-only) | T51: =(($T$40*T49)+($T$41*T50))/$T$42 -> 2.187027786 | U51: =(($T$40*U49)+($T$41*U50))/$T$42 -> 0.00467040232 | V51: =(($T$40*V49)+($T$41*V50))/$T$42 -> 2.182357384 | W51: =SUMPRODUCT($T$40:$T$41,$W$49:$W$50)/$T$42 -> 0.50786 | X51: =SUMPRODUCT($T$40:$T$41,$X$49:$X$50)/$T$42 -> 0 | Y51: =(($T$40*Y49)+($T$41*Y50))/$T$42 -> 2.690217384 | Z51: =I51 -> 0.12103 | AA51: =AA49 -> 0 | AB51: =AF33 -> 0.0006136054875 | AC51: =SUM(Y51:AB51) -> 2.811860989
H52: =H50/H49 -> 1.199540444 | I52: <=Macro sets this cell equal to | J52: 1.2 | Y52: =Y50/Y49 -> 1.200085432 | Z52: <=Macro sets this cell equal to | AA52: =IF(Summary!$D$3=2024,1.249,1.2) -> 1.2
I53: by changing the value in cell C20 | Z53: by changing the value in cell T20
B56: CALCULATION OF FINAL ILLUSTRATIVE RESIDENTIAL CARE RATES | R56: CALCULATION OF FINAL ILLUSTRATIVE RESIDENTIAL CARE RATES
C58: Non-CARE | D58: CSI - Thermal | E58: CARE | G58: Illustrative Authorized | T58: Non-CARE | U58: CSI - Thermal | V58: CARE | X58: Illustrative Authorized+Illustrative Pending
C59: Illustrative Bundled | D59: Exemption | E59: Illustrative Bundled | F59: Current CARE PPP | G59: Incremental PPP | H59: Total Illustrative CARE | T59: Illustrative Bundled | U59: Exemption | V59: Illustrative Bundled | W59: Current CARE PPP | X59: Incremental PPP | Y59: Total Illustrative CARE
C60: Rate | E60: Rate | F60: Rate | G60: Rate | H60: Bundled Rate | T60: Rate | V60: Rate | W60: Rate | X60: Rate | Y60: Bundled Rate
B61: Illustrative Residential Tier I rates | C61: =H49 -> 2.512460482 | D61: =H24 -> -0.000764197823 | E61: =SUM(C61:D61)*(1-$I$23) -> 2.009357027 | F61: 0.07522 | G61: =J49 -> 0 | H61: =E61+F61+G61 -> 2.084577027 | S61: Illustrative Residential Tier I rates | T61: =Y49 -> 2.542282414 | U61: =Y24 -> -0.000764197823 | V61: =SUM(T61:U61)*(1-$Z$23) -> 2.033214573 | W61: =F61 -> 0.07522 | X61: =AA49 -> 0 | Y61: =V61+W61+X61 -> 2.108434573
B62: Illustrative Residential Tier II rates | C62: =H50 -> 3.013797962 | D62: =H25 -> -0.000764197823 | E62: =SUM(C62:D62)*(1-$I$23) -> 2.410427011 | F62: =F61 -> 0.07522 | G62: =G61 -> 0 | H62: =E62+F62+G62 -> 2.485647011 | S62: Illustrative Residential Tier II rates | T62: =Y50 -> 3.050956088 | U62: =Y25 -> -0.000764197823 | V62: =SUM(T62:U62)*(1-$Z$23) -> 2.440153512 | W62: =W61 -> 0.07522 | X62: =X61 -> 0 | Y62: =V62+W62+X62 -> 2.515373512
B63: Avg. Illustrative CARE Residential Rate | C63: =H51 -> 2.658261904 | D63: =H26 -> -0.000764197823 | E63: =SUMPRODUCT($H$31:$H$32,E$61:E$62)/$H$33 -> 2.118426723 | F63: =F62 -> 0.07522 | G63: =G61 -> 0 | H63: =SUMPRODUCT($H$31:$H$32,H$61:H$62)/$H$33 -> 2.193646723 | S63: Avg. Illustrative CARE Residential Rate | T63: =Y51 -> 2.690217384 | U63: =Y26 -> -0.000764197823 | V63: =SUMPRODUCT($Y$31:$Y$32,V$61:V$62)/$Y$33 -> 2.143880312 | W63: =W62 -> 0.07522 | X63: =X61 -> 0 | Y63: =SUMPRODUCT($Y$31:$Y$32,Y$61:Y$62)/$Y$33 -> 2.219100312

Sheet Instructions-Hypothetical
A1: INSTRUCTIONS TO RUN "HYPOTHETICAL" MODEL
A2: CLICK HERE FOR INSTRUCTIONS ON VALIDATING AGAINST BILL INSERT
B5: The "hypothetical" portion of this model produces illustrative rates and illustrative residential bill calculations based on selected user inputs.
B6: PLEASE DO NOT INSERT ROWS OR COLUMNS INTO THE SUMMARY
B7: To run the "hypothetical" portion of the model:
B9: 1. | C9: User drop down selections are highlighted in green.
B10: 2. | C10: User value input cells are highlighted in yellow.
B11: 3. | C11: In cell D4 of the "Hypothetical Summary" tab, select, from the dropdown choices, the baseline territory for which illustrative bill impacts are desired.
B12: 4. | C12: Select the "Residential Tier Ratio" in the green highlighted cells G7 of the "Hypothetical Summary" tab.
C13: Authorized tier ratios (D.19-10-036, Ordering Paragraph 4) are listed by year in the table below OR the user may enter their own desired tier ratio.
D14: For 2026 revenues | E14: . | F14: . | G14: =Instructions!G16 -> 1.20 (Note that the initial tiering factor for 2026 has been set at 1.246 therefore the factor for 2026 will remain at the already established value)
D15: For 2027 + revenues | E15: . | F15: . | G15: 1.2
B16: 5. | C16: Enter the "hypothetical" revenues, by program, in the yellow highlighted cells in column F of the "Hypothetical Summary" tab.
B17: 6. | C17: In column I of the "Hypothetical Summary" tab, select from the dropdown choices, the desired allocation methodology.
C18: Note that PG&E's proposed allocation methdology is listed in column H of the "Hypothetical Summary" tab.
C19: Also note that there are three opportunities for the user to enter their own Allocation Methodology on the "RRQ Allocations" tab (ILLUSTRATION 2)
C20: and as described under the "RRQ ALLOCATION OPTIONS" section on the "Instruction" tab.
B21: 7. | C21: Create hypothetical illustrative tiered residential rates by executing the "Run Hypothetical Residential Rate Tiering" macro (ILLUSTRATION 1).
C24: ILLUSTRATION 1: | P24: 7.
H25: 3. | K25: 5. | M25: 4. | Q25: 6.
B44: RRQ ALLOCATION OPTIONS:
B45: 1. | C45: On the "RRQ Allocations" tab there are 4 spaces for the user to enter their own allocation methodology (ILLUSTRATION 2).
C46: NOTE that this tab has not been fully populated by PG&E.
C48: ILLUSTRATION 2
A90: VALIDATING THE RESULTS OF THE ILLUSTRATIVE "TYPICAL CUSTOMER" BILL AGAINST A BILL INSERT
B92: 1. | C92: The model is set up to accept separate "typical" therms for Non-CARE and CARE customers. (See screenshot below, yellow highlights.)
B93: 2. | C93: Ensure that the therms entered in the model match the therms used in the bill insert.
B94: 3. | C94: Ensure that only the revenue requirement being evaluated is included in the impact. (See step 5 above.)
B95: 4. | C95: Run the model as described in the instructions above.

Sheet Hypothetical Summary
B1: PLEASE DO NOT INSERT ROWS OR COLUMNS
B2: User Inputs: | C2: Yellow highlighted cells - enter value
C3: Green highlighted cells - select from drop-down menu
F6: Year (informational only) | G6: =IF(Hypothetical_Tier_Ratio=1.246,2026, "2027 or later") -> 2026 | K6: Assumptions:
F7: Residential Tier Ratio | K7: Current Effective Rates | M7: =Summary!L3 -> 2026-01-01
C8: Baseline Region - (Residential bill) | D8: ALL CLIMATE ZONES | F8: (See Instructions-Hypothetical) | G8: 1.246 | K8: Throughput Forecast | M8: =Summary!L4 -> 2023 CARD
K9: Illustrative Residential bill calculated using | M9: =Summary!L5 -> Schedule G-1, Basic, Single Family | N9: =Summary!M5 -> 0 | O9: =Summary!N5 -> 0
D10: Current | E10: PG&E Requested | G10: Incremental | H10: Adopted or Proposed Allocation | I10: Hypothetical Allocation | K10: Illustrative Non-CARE bill impact calculated with average summer usage of | O10: =VLOOKUP('Hypothetical Summary'!$D$8,'Hypothetical Res Bill Impact'!$P$22:$V$31,2,FALSE) -> 16.8868721 | P10: therms per month
D11: Authorized | E11: Revenue * | F11: Hypothetical | G11: Hypothetical | H11: Methodology | I11: Methodology | K11: Illustrative Non-CARE bill impact calculated with average winter off-peak usage of | O11: =VLOOKUP('Hypothetical Summary'!$D$8,'Hypothetical Res Bill Impact'!$P$22:$V$31,3,FALSE) -> 41.97723344 | P11: therms per month
B12: Pending Proceedings | D12: Revenue | E12: (Informational Only) | F12: Revenue | G12: Revenue | H12: (Informational Only) | I12: (Select from drop down menu) | K12: Illustrative Non-CARE bill impact calculated with average winter on-peak usage of | O12: =VLOOKUP('Hypothetical Summary'!$D$8,'Hypothetical Res Bill Impact'!$P$22:$V$31,4,FALSE) -> 56.78155781 | P12: therms per month
B13: =Summary!B9 -> 2027 Energy Savings Assistance Bridge Funding | D13: ='Incremental Rev Req'!$D$44 -> 75530.121 | E13: =MAX('Incremental Rev Req'!G110:K110) -> 55567.26105 | F13: 55567.26105 | G13: =F13-D13 -> -19962.85995 | H13: =IF('Incremental Rev Req'!E110=0," ",'Incremental Rev Req'!E110) -> PPP | I13: ESA | K13: Illustrative CARE bill impact calculated with average summer usage of | O13: =VLOOKUP('Hypothetical Summary'!$D$8,'Hypothetical Res Bill Impact'!$P$22:$V$31,5,FALSE) -> 16.95668609 | P13: therms per month
B14: =Summary!B10 -> 2027 CARE Administrative Bridge Funding | D14: ='Incremental Rev Req'!$D$46 -> 2957.54 | E14: =MAX('Incremental Rev Req'!G111:K111) -> 2059.02 | F14: 2059.02 | G14: =F14-D14 -> -898.52 | H14: =IF('Incremental Rev Req'!E111=0," ",'Incremental Rev Req'!E111) -> PPP | I14: PPP ECPT | K14: Illustrative CARE bill impact calculated with average winter off-peak usage of | O14: =VLOOKUP('Hypothetical Summary'!$D$8,'Hypothetical Res Bill Impact'!$P$22:$V$31,6,FALSE) -> 36.20604596 | P14: therms per month
B15: =Summary!B11 -> Income Qualified Program (ESA) PY 2028-2033 | D15: ='Incremental Rev Req'!$D$44 -> 75530.121 | E15: =MAX('Incremental Rev Req'!G112:K112) -> 72336.854 | F15: 72336.854 | G15: =F15-D15 -> -3193.267 | H15: ='Incremental Rev Req'!E112 -> PPP | I15: ESA | K15: Illustrative CARE bill impact calculated with average winter on-peak usage of | O15: =VLOOKUP('Hypothetical Summary'!$D$8,'Hypothetical Res Bill Impact'!$P$22:$V$31,7,FALSE) -> 48.77262802 | P15: therms per month
B16: =Summary!B12 -> Income Qualified Program (CARE) PY 2028-2033 | D16: ='Incremental Rev Req'!$D$46 -> 2957.54 | E16: =MAX('Incremental Rev Req'!G113:K113) -> 1700.19 | F16: 1700.19 | G16: -1257.35 | H16: ='Incremental Rev Req'!E113 -> PPP | I16: PPP ECPT | K16: Average monthly usage is for all customers (Non-CARE and CARE) based on seasonal usage in | Q16: =Summary!P12 -> 2025
B17: =Summary!B13 -> Billing Modernization (Distribution) | D17: 0 | E17: =MAX('Incremental Rev Req'!G80:K80) -> 18712.17383 | F17: 18712.17383 | G17: 18712.17383 | H17: ='Incremental Rev Req'!E80 -> Distribution | I17: Distribution | K17: Summer Season | M17: =Summary!L13 -> 7 | N17: months
B18: =Summary!B14 -> Billing Modernization (Transmission) | D18: 0 | E18: =MAX('Incremental Rev Req'!G81:K81) -> 8918.457231 | F18: 8918.457231 | G18: 8918.457231 | H18: ='Incremental Rev Req'!E81 -> ECPT | I18: ECPT - ALL | K18: Winter Season Off-peak | M18: =Summary!L14 -> 3 | N18: months
B19: =Summary!B15 -> Stanpac Application | D19: 0 | E19: =MAX('Incremental Rev Req'!G82:K82) -> 893.4158148 | F19: 893.4158148 | G19: 893.4158148 | H19: ='Incremental Rev Req'!E82 -> ECPT | I19: ECPT - ALL | K19: Winter Season On-peak | M19: =Summary!L15 -> 2 | N19: months
B20: =Summary!B16 -> Hydrogen Demonstration Project (2027) | D20: 0 | E20: =MAX('Incremental Rev Req'!G83:K83) -> 10534.09292 | F20: 10534.09292 | G20: 10534.09292 | H20: ='Incremental Rev Req'!E83 -> ECPT | I20: ECPT - ALL | K20: Typical Non-CARE Residential Customer usage | M20: 33 | N20: therms per month
B21: =Summary!B17 -> 2024 Wildfire Mitigation and Catastrophic Events (distribution) | D21: 0 | E21: =MAX('Incremental Rev Req'!G84:K84) -> 65537.65441 | F21: 65537.65441 | G21: 65537.65441 | H21: ='Incremental Rev Req'!E84 -> Distribution | I21: Distribution | K21: Typical CARE Residential Customer usage | M21: 29 | N21: therms per month
B22: =Summary!B18 -> 2024 Wildfire Mitigation and Catastrophic Events (transmission) | D22: 0 | E22: =MAX('Incremental Rev Req'!G85:K85) -> 6579.378757 | F22: 6579.378757 | G22: 6579.378757 | H22: ='Incremental Rev Req'!E85 -> ECPT | I22: ECPT - ALL | K22: Residential CARE Customers as Percent of Total Residential Customers | O22: 0.2253453186
B23: =Summary!B19 -> 2023 Wildfire Mitigation and Catastrophic Events (distribution) | D23: 0 | E23: =MAX('Incremental Rev Req'!G86:K86) -> 13644.27962 | F23: 13644.27962 | G23: 13644.27962 | H23: ='Incremental Rev Req'!E86 -> Distribution | I23: Distribution | K23: Historic California Climate Credit | M23: 67.03190755
B24: =Summary!B20 -> 2023 Wildfire Mitigation and Catastrophic Events (transmission) | D24: 0 | E24: =MAX('Incremental Rev Req'!G87:K87) -> 5913.522951 | F24: 5913.522951 | G24: 5913.522951 | H24: ='Incremental Rev Req'!E87 -> ECPT | I24: ECPT - ALL | K24: Present California Climate Credit | M24: 46.25933774
B25: =Summary!B21 -> Wildfire Gas and Safety Costs (Distribution) Non-IRR | D25: 0 | E25: =MAX('Incremental Rev Req'!G88:K88) -> 6776.716441 | F25: 6776.716441 | G25: 6776.716441 | H25: ='Incremental Rev Req'!E88 -> Distribution | I25: Distribution
B26: =Summary!B22 -> Wildfire Gas and Safety Costs (Transmission) - Non IRR | D26: 0 | E26: =MAX('Incremental Rev Req'!G89:K89) -> 44029.8428 | F26: 44029.8428 | G26: 44029.8428 | H26: ='Incremental Rev Req'!E89 -> ECPT | I26: ECPT - ALL
B27: =Summary!B23 -> Kincaid-Dixie (Distribution) | D27: 0 | E27: =MAX('Incremental Rev Req'!G90:K90) -> 71886.55064 | F27: 71886.55064 | G27: 71886.55064 | H27: ='Incremental Rev Req'!E90 -> Distribution | I27: Distribution
B28: =Summary!B24 -> Kincaid-Dixie (Generation) | D28: 0 | E28: =MAX('Incremental Rev Req'!G91:K91) -> 23780.14007 | F28: 23780.14007 | G28: 23780.14007 | H28: ='Incremental Rev Req'!E91 -> ECPT | I28: ECPT - ALL
B29: =Summary!B25 -> 2027 GRC - Gas Distribution | D29: ='Incremental Rev Req'!$D$10 -> 3015379.975 | E29: =MAX('Incremental Rev Req'!$G$95:$K$95) -> 3389414.767 | F29: 3389414.767 | G29: 374034.7925 | H29: ='Incremental Rev Req'!E95 -> Distribution | I29: Distribution
B30: =Summary!B26 -> 2027 GRC - Core Local Transmission | D30: ='Incremental Rev Req'!$D$19 -> 983371.3849 | E30: =MAX('Incremental Rev Req'!$G$96:$K$96) -> 1173368.345 | F30: 1173368.345 | G30: 189996.9603 | H30: ='Incremental Rev Req'!E96 -> ECPT | I30: ECPT - Core only
B31: =Summary!B27 -> 2027 GRC - Core Procurement (Intrastate Volumetric and Capacity) | D31: ='Incremental Rev Req'!$D$51 -> 196211.9165 | E31: =MAX('Incremental Rev Req'!$G$97:$K$97) -> 162779.9119 | F31: 162779.9119 | G31: -33432.00467 | H31: ='Incremental Rev Req'!E97 -> ECPT (No BB) | I31: ECPT - Core only (Procurement)
B32: =Summary!B28 -> 2027 GRC - Core Procurement (Storage) | D32: ='Incremental Rev Req'!$D$53 -> 135685.9394 | E32: =MAX('Incremental Rev Req'!$G$98:$K$98) -> 39767.86767 | F32: 39767.86767 | G32: -95918.07174 | H32: ='Incremental Rev Req'!E98 -> Unadjusted Cold Year Winter Season | I32: Storage Allocation (Procurement)
B33: =Summary!B29 -> 2027 GRC - Noncore Local Transmission | D33: ='Incremental Rev Req'!$D$20 -> 515826.5045 | E33: =MAX('Incremental Rev Req'!$G$99:$K$99) -> 615905.9866 | F33: 615905.9866 | G33: 100079.4821 | H33: ='Incremental Rev Req'!E99 -> ECPT (No BB) | I33: ECPT - Noncore only
B34: =Summary!B30 -> 2027 GRC - Customer Access Charge | D34: ='Incremental Rev Req'!$D$21 -> 5465.240945 | E34: =MAX('Incremental Rev Req'!$G$100:$K$100) -> 4634.982782 | F34: 4634.982782 | G34: -830.2581629 | H34: ='Incremental Rev Req'!E100 -> CAC Allocation | I34: CAC Allocation
B35: =Summary!B31 -> 2027 GRC - Noncore Unbundled | D35: ='Incremental Rev Req'!$D$22 -> 263208.0005 | E35: =MAX('Incremental Rev Req'!$G$101:$K$101) -> 213949.2198 | F35: 213949.2198 | G35: -49258.78074 | H35: ='Incremental Rev Req'!E101 -> ECPT-All | I35: ECPT - ALL
B36: =Summary!B32 -> 2027 GRC - Inventory Management | D36: ='Incremental Rev Req'!$D$23 -> 143704.047 | E36: =MAX('Incremental Rev Req'!G102:K102) -> 161064.4679 | F36: 161064.4679 | G36: 17360.42093 | H36: ='Incremental Rev Req'!E102 -> 2023 GTS - Inventory Management | I36: 2023 GTS - Inventory Management
B37: =Summary!B33 -> CFCA - NGSS Enduser Dist. Sub Acct Recovery | D37: ='Incremental Rev Req'!$D$64 -> 2051.460825 | E37: =MAX('Incremental Rev Req'!G103:K103) -> 0 | F37: 0 | G37: -2051.460825 | H37: ='Incremental Rev Req'!E103 -> Core - Distribution | I37: Core - Distribution
B38: =Summary!B34 -> CFCA/NCA - NGSS Enduser Sub Acct Recovery | D38: ='Incremental Rev Req'!$D$65 -> 487.8206422 | E38: =MAX('Incremental Rev Req'!G104:K104) -> 0 | F38: 0 | G38: -487.8206422 | H38: ='Incremental Rev Req'!E104 -> ECPT - ALL | I38: ECPT - ALL
B39: =Summary!B35 -> NCA - NGSS Enduser Sub Acct Recovery | D39: ='Incremental Rev Req'!$D$66 -> 501.0158178 | E39: =MAX('Incremental Rev Req'!G105:K105) -> 0 | F39: 0 | G39: -501.0158178 | H39: ='Incremental Rev Req'!E105 -> ECPT - Noncore only | I39: ECPT - Noncore only
B46: * For applications with revenues in multiple years, the highest year revenue is reflected here.
B48: Outputs:
D49: (A) | E49: (B) | F49: (C) | G49: (C)/(A) | H49: (C)/(B) | N49: (A) | O49: (B) | P49: (C) | Q49: (C)/(A) | R49: (C)/(B)
B50: Illustrative Bundled Average Rates - $ / therm | L50: Illustrative Total System (Bundled + Unbundled) Average Rates - $ / therm
B51: Customer Group | D51: =Summary!D46 -> 2025-01-01 | E51: =$M$7 -> 2026-01-01 | F51: Illustrative Proposed | G51: ="% Change over "&TEXT($D$51,"mm/d/yyyy") -> % Change over 01/1/2025 | H51: ="% Change over "&TEXT($M$7,"mm/d/yyyy") -> % Change over 01/1/2026 | L51: Customer Group | N51: =D51 -> 2025-01-01 | O51: =E51 -> 2026-01-01 | P51: =F51 -> Illustrative Proposed | Q51: =G51 -> % Change over 01/1/2025 | R51: =H51 -> % Change over 01/1/2026
B52: Residential | D52: =Summary!D47 -> 2.740615636 | E52: =Summary!E47 -> 2.653286461 | F52: ='Hypothetical SAR and RAR'!I38 -> 2.909836989 | G52: =$F52/D52-1 -> 0.06174574439 | H52: =$F52/E52-1 -> 0.09669160567 | L52: Residential (RAR) | N52: =Summary!N47 -> 2.497906086 | O52: =Summary!O47 -> 2.484190261 | P52: ='Hypothetical SAR and RAR'!O38 -> 2.747623635 | Q52: =$P52/N52-1 -> 0.0999707519 | R52: =$P52/O52-1 -> 0.1060439608
B53: System | D53: =Summary!D48 -> 2.539231894 | E53: =Summary!E48 -> 2.369718323 | F53: ='Hypothetical SAR and RAR'!I39 -> 2.605183538 | G53: =$F53/D53-1 -> 0.02597306848 | H53: =$F53/E53-1 -> 0.09936422103 | L53: System (SAR) | N53: =Summary!N48 -> 1.138563504 | O53: =Summary!O48 -> 1.056513451 | P53: ='Hypothetical SAR and RAR'!O39 -> 1.179278705 | Q53: =$P53/N53-1 -> 0.03576014936 | R53: =$P53/O53-1 -> 0.1161984771
L55: Illustrative System Rate does not include illustrative procurement for transport only customers.
B56: =CONCATENATE("Illustrative Bundled Residential Monthly Average Bills - Baseline Territory ",$D$8," (Includes Climate Credit)") -> Illustrative Bundled Residential Monthly Average Bills - Baseline Territory ALL CLIMATE ZONES (Includes Climate Credit)
D57: =$D$51 -> 2025-01-01 | E57: =$E$51 -> 2026-01-01 | F57: =$F$51 -> Illustrative Proposed | G57: =$G$51 -> % Change over 01/1/2025 | H57: =$H$51 -> % Change over 01/1/2026
B58: Non-CARE | D58: =((D64*$M$17)+(D70*$M$18)+(D76*$M$19))/12-M23/12 -> 76.82029564 | E58: =((E64*$M$17)+(E70*$M$18)+(E76*$M$19))/12-M24/12 -> 75.63843619 | F58: =((F64*$M$17)+(F70*$M$18)+(F76*$M$19))/12-M24/12 -> 83.15697648 | G58: =$F58/D58-1 -> 0.08248706659 | H58: 0.09940105412
B59: CARE | D59: =((D65*$M$17)+(D71*$M$18)+(D77*$M$19))/12-M23/12 -> 53.51442891 | E59: =((E65*$M$17)+(E71*$M$18)+(E77*$M$19))/12-M24/12 -> 53.4474145 | F59: =((F65*$M$17)+(F71*$M$18)+(F77*$M$19))/12-M24/12 -> 58.73934672 | G59: 0.09763568292 | H59: 0.09901194051
B60: Total | D60: =((D66*$M$17)+(D72*$M$18)+(D78*$M$19))/12-M23/12 -> 71.56842767 | E60: =((E66*$M$17)+(E72*$M$18)+(E78*$M$19))/12-M24/12 -> 70.63779334 | F60: =((F66*$M$17)+(F72*$M$18)+(F78*$M$19))/12-M24/12 -> 77.65457792 | G60: 0.085039597 | H60: 0.09933470815
B62: =CONCATENATE("Illustrative Bundled Residential Monthly Average Bills - Summer - Baseline Territory ",$D$8) -> Illustrative Bundled Residential Monthly Average Bills - Summer - Baseline Territory ALL CLIMATE ZONES
D63: =$D$51 -> 2025-01-01 | E63: =$E$51 -> 2026-01-01 | F63: =$F$51 -> Illustrative Proposed | G63: =$G$51 -> % Change over 01/1/2025 | H63: =$H$51 -> % Change over 01/1/2026
B64: Non-CARE | D64: =VLOOKUP($D$8,'Hypothetical Res Bill Impact'!$B$37:$K$46,2,FALSE) -> 47.58443124 | E64: =VLOOKUP($D$8,'Hypothetical Res Bill Impact'!$B$37:$K$46,5,FALSE) -> 45.9069975 | F64: =VLOOKUP($D$8,'Hypothetical Res Bill Impact'!$B$37:$K$46,8,FALSE) -> 50.30478909 | G64: =$F64/D64-1 -> 0.05716907338 | H64: 0.09579784828
B65: CARE | D65: =VLOOKUP($D$8,'Hypothetical Res Bill Impact'!$B$52:$K$61,2,FALSE) -> 37.98206025 | E65: =VLOOKUP($D$8,'Hypothetical Res Bill Impact'!$B$52:$K$61,5,FALSE) -> 36.82666506 | F65: =VLOOKUP($D$8,'Hypothetical Res Bill Impact'!$B$52:$K$61,8,FALSE) -> 40.28953757 | G65: 0.06075176817 | H65: 0.09403166176
B66: Total | D66: =D64*(1-$O$22)+('Hypothetical Summary'!D65*$O$22) -> 45.42058189 | E66: =E64*(1-$O$22)+('Hypothetical Summary'!E65*$O$22) -> 43.8607871 | F66: =F64*(1-$O$22)+('Hypothetical Summary'!F65*$O$22) -> 48.04789904 | G66: 0.05784419836 | H66: 0.09546367549
B68: =CONCATENATE("Illustrative Bundled Residential Monthly Average Bills - Winter Off-Peak - Baseline Territory ",$D$8) -> Illustrative Bundled Residential Monthly Average Bills - Winter Off-Peak - Baseline Territory ALL CLIMATE ZONES
D69: =$D$51 -> 2025-01-01 | E69: =$E$51 -> 2026-01-01 | F69: =$F$51 -> Illustrative Proposed | G69: =$G$51 -> % Change over 01/1/2025 | H69: =$H$51 -> % Change over 01/1/2026
B70: Non-CARE | D70: =VLOOKUP($D$8,'Hypothetical Res Bill Impact'!$B$37:$K$46,3,FALSE) -> 114.8235635 | E70: =VLOOKUP($D$8,'Hypothetical Res Bill Impact'!$B$37:$K$46,6,FALSE) -> 110.7585367 | F70: =VLOOKUP($D$8,'Hypothetical Res Bill Impact'!$B$37:$K$46,9,FALSE) -> 121.1582527 | G70: =$F70/D70-1 -> 0.05516889619 | H70: 0.09389538984
B71: CARE | D71: =VLOOKUP($D$8,'Hypothetical Res Bill Impact'!$B$52:$K$61,3,FALSE) -> 77.85220708 | E71: =VLOOKUP($D$8,'Hypothetical Res Bill Impact'!$B$52:$K$61,6,FALSE) -> 75.48344014 | F71: =VLOOKUP($D$8,'Hypothetical Res Bill Impact'!$B$52:$K$61,9,FALSE) -> 82.37802525 | G71: 0.05813345996 | H71: 0.09133904197
B72: Total | D72: =D70*(1-$O$22)+('Hypothetical Summary'!D71*$O$22) -> 106.4922414 | E72: =E70*(1-$O$22)+('Hypothetical Summary'!E71*$O$22) -> 102.8094589 | F72: =F70*(1-$O$22)+('Hypothetical Summary'!F71*$O$22) -> 112.41931 | G72: 0.05565728117 | H72: 0.09347244171
B74: =CONCATENATE("Illustrative Bundled Residential Monthly Average Bills - Winter On-Peak - Baseline Territory ",$D$8) -> Illustrative Bundled Residential Monthly Average Bills - Winter On-Peak - Baseline Territory ALL CLIMATE ZONES
D75: =$D$51 -> 2025-01-01 | E75: =$E$51 -> 2026-01-01 | F75: =$F$51 -> Illustrative Proposed | G75: =$G$51 -> % Change over 01/1/2025 | H75: =$H$51 -> % Change over 01/1/2026
B76: Non-CARE | D76: =VLOOKUP($D$8,'Hypothetical Res Bill Impact'!$B$37:$K$46,4,FALSE) -> 155.656873 | E76: =VLOOKUP($D$8,'Hypothetical Res Bill Impact'!$B$37:$K$46,7,FALSE) -> 150.1479896 | F76: =VLOOKUP($D$8,'Hypothetical Res Bill Impact'!$B$37:$K$46,10,FALSE) -> 164.2673869 | G76: =$F76/D76-1 -> 0.05531727351 | H76: 0.09403653858
B77: CARE | D77: =VLOOKUP($D$8,'Hypothetical Res Bill Impact'!$B$52:$K$61,4,FALSE) -> 104.8870057 | E77: =VLOOKUP($D$8,'Hypothetical Res Bill Impact'!$B$52:$K$61,7,FALSE) -> 101.695668 | F77: =VLOOKUP($D$8,'Hypothetical Res Bill Impact'!$B$52:$K$61,10,FALSE) -> 110.9853298 | G77: 0.05814184576 | H77: 0.09134766583
B78: Total | D78: =D76*(1-$O$22)+('Hypothetical Summary'!D77*$O$22) -> 144.2161211 | E78: =E76*(1-$O$22)+('Hypothetical Summary'!E77*$O$22) -> 139.2294858 | F78: =F76*(1-$O$22)+('Hypothetical Summary'!F77*$O$22) -> 152.2605248 | G78: 0.05578019688 | H78: 0.09359396038
B81: =CONCATENATE("Illustrative Essential Use Bundled Residential Monthly Average Bills - Baseline Territory ",$D$8," (Includes Climate Credit)") -> Illustrative Essential Use Bundled Residential Monthly Average Bills - Baseline Territory ALL CLIMATE ZONES (Includes Climate Credit)
D82: =$D$51 -> 2025-01-01 | E82: =$E$51 -> 2026-01-01 | F82: =$F$51 -> Illustrative Proposed | G82: =$G$51 -> % Change over 01/1/2025 | H82: =$H$51 -> % Change over 01/1/2026
B83: Essential Use Non-CARE | D83: =((D89*$M$17)+(D95*$M$18)+(D101*$M$19))/12-M23/12 -> 71.92260391 | E83: =((E89*$M$17)+(E95*$M$18)+(E101*$M$19))/12-M24/12 -> 70.9089023 | F83: =((F89*$M$17)+(F95*$M$18)+(F101*$M$19))/12-M24/12 -> 77.91961343 | G83: =$F83/D83-1 -> 0.08338142946 | H83: 0.09886926614
B84: Essential Use CARE | D84: =((D90*$M$17)+(D96*$M$18)+(D102*$M$19))/12-M23/12 -> 53.63482928 | E84: =((E90*$M$17)+(E96*$M$18)+(E102*$M$19))/12-M24/12 -> 53.56399565 | F84: =((F90*$M$17)+(F96*$M$18)+(F102*$M$19))/12-M24/12 -> 58.808118 | G84: 0.09645390494 | H84: 0.09790386796
B85: Total | D85: =((D91*$M$17)+(D97*$M$18)+(D103*$M$19))/12-M23/12 -> 67.80153951 | E85: =((E91*$M$17)+(E97*$M$18)+(E103*$M$19))/12-M24/12 -> 67.00030879 | F85: =((F91*$M$17)+(F97*$M$18)+(F103*$M$19))/12-M24/12 -> 73.61292741 | G85: 0.08571173959 | H85: 0.09869534548
B87: =CONCATENATE("Illustrative Essential Use Bundled Residential Monthly Average Bills - Summer - Baseline Territory ",$D$8) -> Illustrative Essential Use Bundled Residential Monthly Average Bills - Summer - Baseline Territory ALL CLIMATE ZONES
D88: =$D$51 -> 2025-01-01 | E88: =$E$51 -> 2026-01-01 | F88: =$F$51 -> Illustrative Proposed | G88: =$G$51 -> % Change over 01/1/2025 | H88: =$H$51 -> % Change over 01/1/2026
B89: Essential Use Non-CARE | D89: =VLOOKUP($D$8,'Hypothetical Res Bill Impact'!$B$69:$K$78,2,FALSE) -> 38.28619991 | E89: =VLOOKUP($D$8,'Hypothetical Res Bill Impact'!$B$69:$K$78,5,FALSE) -> 36.93040174 | F89: =VLOOKUP($D$8,'Hypothetical Res Bill Impact'!$B$69:$K$78,8,FALSE) -> 40.39341747 | G89: =$F89/D89-1 -> 0.05503856668 | H89: 0.09377140696
B90: Essential Use CARE | D90: =VLOOKUP($D$8,'Hypothetical Res Bill Impact'!$B$84:$K$93,2,FALSE) -> 28.5294856 | E90: =VLOOKUP($D$8,'Hypothetical Res Bill Impact'!$B$84:$K$93,5,FALSE) -> 27.66143379 | F90: =VLOOKUP($D$8,'Hypothetical Res Bill Impact'!$B$84:$K$93,8,FALSE) -> 30.18777688 | G90: 0.05812552324 | H90: 0.09133087994
B91: Total | D91: =D89*(1-$O$22)+('Hypothetical Summary'!D90*$O$22) -> 36.08757001 | E91: =E89*(1-$O$22)+('Hypothetical Summary'!E90*$O$22) -> 34.84168321 | F91: =F89*(1-$O$22)+('Hypothetical Summary'!F90*$O$22) -> 38.09362414 | G91: 0.05558850674 | H91: 0.09333478284
B93: =CONCATENATE("Illustrative Essential Use Bundled Residential Monthly Average Bills - Winter Off-Peak - Baseline Territory ",$D$8) -> Illustrative Essential Use Bundled Residential Monthly Average Bills - Winter Off-Peak - Baseline Territory ALL CLIMATE ZONES
D94: =$D$51 -> 2025-01-01 | E94: =$E$51 -> 2026-01-01 | F94: =$F$51 -> Illustrative Proposed | G94: =$G$51 -> % Change over 01/1/2025 | H94: =$H$51 -> % Change over 01/1/2026
B95: Essential Use Non-CARE | D95: =VLOOKUP($D$8,'Hypothetical Res Bill Impact'!$B$69:$K$78,3,FALSE) -> 115.6825301 | E95: =VLOOKUP($D$8,'Hypothetical Res Bill Impact'!$B$69:$K$78,6,FALSE) -> 111.5859584 | F95: =VLOOKUP($D$8,'Hypothetical Res Bill Impact'!$B$69:$K$78,9,FALSE) -> 122.0495308 | G95: =$F95/D95-1 -> 0.05503856668 | H95: 0.09377140696
B96: Essential Use CARE | D96: =VLOOKUP($D$8,'Hypothetical Res Bill Impact'!$B$84:$K$93,3,FALSE) -> 88.66563383 | E96: =VLOOKUP($D$8,'Hypothetical Res Bill Impact'!$B$84:$K$93,6,FALSE) -> 85.96785074 | F96: =VLOOKUP($D$8,'Hypothetical Res Bill Impact'!$B$84:$K$93,9,FALSE) -> 93.81937019 | G96: 0.05812552324 | H96: 0.09133087994
B97: Total | D97: =D95*(1-$O$22)+('Hypothetical Summary'!D96*$O$22) -> 109.594399 | E97: =E95*(1-$O$22)+('Hypothetical Summary'!E96*$O$22) -> 105.8130378 | F97: =F95*(1-$O$22)+('Hypothetical Summary'!F96*$O$22) -> 115.6879962 | G97: 0.05560135622 | H97: 0.09332459062
B99: =CONCATENATE("Illustrative Essential Use Bundled Residential Monthly Average Bills - Winter On-Peak - Baseline Territory ",$D$4) -> Illustrative Essential Use Bundled Residential Monthly Average Bills - Winter On-Peak - Baseline Territory
D100: =$D$51 -> 2025-01-01 | E100: =$E$51 -> 2026-01-01 | F100: =$F$51 -> Illustrative Proposed | G100: =$G$51 -> % Change over 01/1/2025 | H100: =$H$51 -> % Change over 01/1/2026
B101: Essential Use Non-CARE | D101: =VLOOKUP($D$8,'Hypothetical Res Bill Impact'!$B$69:$K$78,4,FALSE) -> 157.5260824 | E101: =VLOOKUP($D$8,'Hypothetical Res Bill Impact'!$B$69:$K$78,7,FALSE) -> 151.9477389 | F101: =VLOOKUP($D$8,'Hypothetical Res Bill Impact'!$B$69:$K$78,10,FALSE) -> 166.1960922 | G101: =$F101/D101-1 -> 0.05503856668 | H101: 0.09377140696
B102: Essential Use CARE | D102: =VLOOKUP($D$8,'Hypothetical Res Bill Impact'!$B$84:$K$93,4,FALSE) -> 122.4732791 | E102: =VLOOKUP($D$8,'Hypothetical Res Bill Impact'!$B$84:$K$93,7,FALSE) -> 118.7468484 | F102: =VLOOKUP($D$8,'Hypothetical Res Bill Impact'!$B$84:$K$93,10,FALSE) -> 129.5921025 | G102: 0.05812552324 | H102: 0.09133087994
B103: Total | D103: =D101*(1-$O$22)+('Hypothetical Summary'!D102*$O$22) -> 149.6270973 | E103: =E101*(1-$O$22)+('Hypothetical Summary'!E102*$O$22) -> 144.4660737 | F103: =F101*(1-$O$22)+('Hypothetical Summary'!F102*$O$22) -> 157.9475545 | G103: 0.0556079571 | H103: 0.09331935497
B106: =CONCATENATE("Illustrative Typical Customer Bundled Residential Monthly Average Bills - Baseline Territory ",$D$8," (Includes Climate Credit)") -> Illustrative Typical Customer Bundled Residential Monthly Average Bills - Baseline Territory ALL CLIMATE ZONES (Includes Climate Credit)
D107: =$D$51 -> 2025-01-01 | E107: =$E$51 -> 2026-01-01 | F107: =$F$51 -> Illustrative Proposed | G107: =$G$51 -> % Change over 01/1/2025 | H107: =$H$51 -> % Change over 01/1/2026
B108: =CONCATENATE($M$20," Therms Monthly Usage - Non-CARE") -> 33 Therms Monthly Usage - Non-CARE | D108: =((D114*$M$17)+(D120*$M$18)+(D126*$M$19))/12-M23/12 -> 90.23248812 | E108: =((E114*$M$17)+(E120*$M$18)+(E126*$M$19))/12-M24/12 -> 88.59990933 | F108: =((F114*$M$17)+(F120*$M$18)+(F126*$M$19))/12-M24/12 -> 97.62915714 | G108: =$F108/D108-1 -> 0.08197345735 | H108: 0.1019103505
B109: =CONCATENATE($M$21," Therms Monthly Usage - CARE") -> 29 Therms Monthly Usage - CARE | D109: =((D115*$M$17)+(D121*$M$18)+(D127*$M$19))/12-M23/12 -> 60.55889728 | E109: =((E115*$M$17)+(E121*$M$18)+(E127*$M$19))/12-M24/12 -> 60.27804844 | F109: =((F115*$M$17)+(F121*$M$18)+(F127*$M$19))/12-M24/12 -> 66.38283881 | G109: 0.09616987424 | H109: 0.1012771736
B110: Total | D110: =((D116*$M$17)+(D122*$M$18)+(D128*$M$19))/12-M23/12 -> 83.54568334 | E110: =((E116*$M$17)+(E122*$M$18)+(E128*$M$19))/12-M24/12 -> 82.21771056 | F110: =((F116*$M$17)+(F122*$M$18)+(F128*$M$19))/12-M24/12 -> 90.58794558 | G110: 0.08429235312 | H110: 0.1018057419
B112: =CONCATENATE("Illustrative Typical Customer Bundled Residential Monthly Average Bills - Summer - Baseline Territory ",$D$8) -> Illustrative Typical Customer Bundled Residential Monthly Average Bills - Summer - Baseline Territory ALL CLIMATE ZONES
D113: =$D$51 -> 2025-01-01 | E113: =$E$51 -> 2026-01-01 | F113: =$F$51 -> Illustrative Proposed | G113: =$G$51 -> % Change over 01/1/2025 | H113: =$H$51 -> % Change over 01/1/2026
B114: =CONCATENATE($M$20," Therms Monthly Usage - Non-CARE") -> 33 Therms Monthly Usage - Non-CARE | D114: =VLOOKUP($D$8,'Hypothetical Res Bill Impact'!$B$99:$K$108,2,FALSE) -> 99.90621331 | E114: =VLOOKUP($D$8,'Hypothetical Res Bill Impact'!$B$99:$K$108,5,FALSE) -> 96.41891424 | F114: =VLOOKUP($D$8,'Hypothetical Res Bill Impact'!$B$99:$K$108,8,FALSE) -> 106.0767533 | G114: =$F114/D114-1 -> 0.06176332577 | H114: 0.1001653995
B115: =CONCATENATE($M$21," Therms Monthly Usage - CARE") -> 29 Therms Monthly Usage - CARE | D115: =VLOOKUP($D$8,'Hypothetical Res Bill Impact'!$B$114:$K$123,2,FALSE) -> 68.85566229 | E115: =VLOOKUP($D$8,'Hypothetical Res Bill Impact'!$B$114:$K$123,5,FALSE) -> 66.76175799 | F115: =VLOOKUP($D$8,'Hypothetical Res Bill Impact'!$B$114:$K$123,8,FALSE) -> 73.28339838 | G115: 0.06430460386 | H115: 0.09768527052
B116: Total | D116: =D114*(1-$O$22)+('Hypothetical Summary'!D115*$O$22) -> 92.909117 | E116: =E114*(1-$O$22)+('Hypothetical Summary'!E115*$O$22) -> 89.73581292 | F116: =F114*(1-$O$22)+('Hypothetical Summary'!F115*$O$22) -> 98.68692429 | G116: 0.0621877323 | H116: 0.09974959923
B118: =CONCATENATE("Illustrative Typical Customer Bundled Residential Monthly Average Bills - Winter Off-Peak - Baseline Territory ",$D$8) -> Illustrative Typical Customer Bundled Residential Monthly Average Bills - Winter Off-Peak - Baseline Territory ALL CLIMATE ZONES
D119: =$D$51 -> 2025-01-01 | E119: =$E$51 -> 2026-01-01 | F119: =$F$51 -> Illustrative Proposed | G119: =$G$51 -> % Change over 01/1/2025 | H119: =$H$51 -> % Change over 01/1/2026
B120: =CONCATENATE($M$20," Therms Monthly Usage - Non-CARE") -> 33 Therms Monthly Usage - Non-CARE | D120: =VLOOKUP($D$8,'Hypothetical Res Bill Impact'!$B$99:$K$108,3,FALSE) -> 90.09565438 | E120: =VLOOKUP($D$8,'Hypothetical Res Bill Impact'!$B$99:$K$108,6,FALSE) -> 86.90517 | F120: =VLOOKUP($D$8,'Hypothetical Res Bill Impact'!$B$99:$K$108,9,FALSE) -> 95.05439006 | G120: =$F120/D120-1 -> 0.05503856668 | H120: 0.09377140696
B121: =CONCATENATE($M$21," Therms Monthly Usage - CARE") -> 29 Therms Monthly Usage - CARE | D121: =VLOOKUP($D$8,'Hypothetical Res Bill Impact'!$B$114:$K$123,3,FALSE) -> 62.34980776 | E121: =VLOOKUP($D$8,'Hypothetical Res Bill Impact'!$B$114:$K$123,6,FALSE) -> 60.45272261 | F121: =VLOOKUP($D$8,'Hypothetical Res Bill Impact'!$B$114:$K$123,9,FALSE) -> 65.97392296 | G121: 0.05812552324 | H121: 0.09133087994
B122: Total | D122: =D120*(1-$O$22)+('Hypothetical Summary'!D121*$O$22) -> 83.84325774 | E122: =E120*(1-$O$22)+('Hypothetical Summary'!E121*$O$22) -> 80.94423482 | F122: =F120*(1-$O$22)+('Hypothetical Summary'!F121*$O$22) -> 88.50124294 | G122: 0.05555587091 | H122: 0.09336067159
B124: =CONCATENATE("Illustrative Typical Customer Bundled Residential Monthly Average Bills - Winter On-Peak - Baseline Territory ",$D$8) -> Illustrative Typical Customer Bundled Residential Monthly Average Bills - Winter On-Peak - Baseline Territory ALL CLIMATE ZONES
D125: =$D$51 -> 2025-01-01 | E125: =$E$51 -> 2026-01-01 | F125: =$F$51 -> Illustrative Proposed | G125: =$G$51 -> % Change over 01/1/2025 | H125: =$H$51 -> % Change over 01/1/2026
B126: =CONCATENATE($M$20," Therms Monthly Usage - Non-CARE") -> 33 Therms Monthly Usage - Non-CARE | D126: =VLOOKUP($D$8,'Hypothetical Res Bill Impact'!$B$99:$K$108,4,FALSE) -> 90.09565438 | E126: =VLOOKUP($D$8,'Hypothetical Res Bill Impact'!$B$99:$K$108,7,FALSE) -> 86.90517 | F126: =VLOOKUP($D$8,'Hypothetical Res Bill Impact'!$B$99:$K$108,10,FALSE) -> 95.05439006 | G126: =$F126/D126-1 -> 0.05503856668 | H126: 0.09377140696
B127: =CONCATENATE($M$21," Therms Monthly Usage - CARE") -> 29 Therms Monthly Usage - CARE | D127: =VLOOKUP($D$8,'Hypothetical Res Bill Impact'!$B$114:$K$123,4,FALSE) -> 62.34980776 | E127: =VLOOKUP($D$8,'Hypothetical Res Bill Impact'!$B$114:$K$123,7,FALSE) -> 60.45272261 | F127: =VLOOKUP($D$8,'Hypothetical Res Bill Impact'!$B$114:$K$123,10,FALSE) -> 65.97392296 | G127: 0.05812552324 | H127: 0.09133087994
B128: Total | D128: =D126*(1-$O$22)+('Hypothetical Summary'!D127*$O$22) -> 83.84325774 | E128: =E126*(1-$O$22)+('Hypothetical Summary'!E127*$O$22) -> 80.94423482 | F128: =F126*(1-$O$22)+('Hypothetical Summary'!F127*$O$22) -> 88.50124294 | G128: 0.05555587091 | H128: 0.09336067159

Sheet Instructions-Rate Trajectory
A1: INSTRUCTIONS TO RUN "ILLUSTRATIVE RATE TRAJECTORY" MODEL
B5: The "illustrative rate trajectory" portion of this model produces illustrative rates and illustrative residential bill calculations based on selected user inputs for a range of periods.
B6: PLEASE DO NOT INSERT ROWS OR COLUMNS INTO THE DASHBOARD
B7: To run the "illustrative rate trajectory" portion of the model:
B9: 1. | C9: User drop down selections are highlighted in green.
B10: 2. | C10: User value input cells are highlighted in yellow.
B11: 3. | C11: In cell D4 of the "Rate Trajectory Dashboard" tab, select, from the dropdown choices, the baseline territory for which bill impacts are desired (ILLUSTRATION 1).
B12: 4. | C12: In cell D5 of the "Rate Trajectory Dashboard" tab, select, from the dropdown choices, the desired start date for the Rate Trajectory Report (ILLUSTRATION 1).
C13: The Rate Trajectory Report will provide RRQ Information, Illustrative Average Bundled and Illustrative System Rates and Annual Average
C14: Illustrative Bills (CARE and Non-CARE) by selected baseline territory for a 24 month period beginning with the selection in cell D5
B15: 5. | C15: Enter the "Hypothetical Annual RRQs" revenues, for each year of the selected program, in the yellow highlighted cells in column G of the "Rate Trajectory Dashboard" tab (ILLUSTRATION 1).
C16: Note that PG&E's proposed Annual RRQs are listed in column E of the "Rate Trajectory Dashboard" tab.
B17: 6. | C17: In column I of the "Rate Trajectory Dashboard" tab, select from the dropdown choices, the desired allocation methodology (ILLUSTRATION 1).
C18: Note that PG&E's proposed allocation methdology is listed in column F of the "Rate Trajectory Dashboard" tab.
C19: Also note that there are opportunities for the user to enter their own Allocation Methodology on the "RRQ Allocations" tab (ILLUSTRATION 3)
C20: and as described under the "RRQ ALLOCATION OPTIONS" section on the "Instruction" tab.
B21: 7. | C21: In column J of the "Rate Trajectory Dashboard" tab, select from the dropdown choices, the start date for each year of each program listed in column B (ILLUSTRATION 1).
B22: 8. | C22: In column K of the "Rate Trajectory Dashboard" tab, enter the amortization period (in months) for each year of each program listed in column B (ILLUSTRATION 1).
C23: Note that the maximum months per line is 12 and if no amortization period is specified (i.e. cell is left blank), the RRQ amount remains in rates.
B24: 9. | C24: Residential Tier Ratios can be changed in out years on the "Hypothetical Res_RD" tab in cell K59 (ILLUSTRATION 2).
C25: Note that residential tier ratios are only changed in January of each year. Mid-year rate changes maintain the tier ratio set in January of each year.
C26: The tiering factor for 2026 has been established at 1.246.
B27: 10. | C27: Create the illustrative rate trajectory report by executing the "Run Rate Trajectory" macro (ILLUSTRATION 1).
J30: 10.
C31: ILLUSTRATION 1: | G31: 3.
H32: 4. | K32: 5. | N32: 6. | O32: 7. | P32: 8.
C43: ILLUSTRATION 2:
O44: 9.
B65: RRQ ALLOCATION OPTIONS:
B66: 1. | C66: On the "RRQ Allocations" tab there are spaces for the user to enter their own allocation methodology (ILLUSTRATION 3).
C67: NOTE that this tab has not been fully populated by PG&E.
C69: ILLUSTRATION 3

Sheet Rate Trajectory Dashboard
B1: PLEASE DO NOT ADD OR INSERT ROWS OR COLUMNS
B2: User Inputs: | C2: Yellow highlighted cells - enter number
C3: Green highlighted cells - select from drop-down menu
C5: Baseline Region - (Residential bill) | D5: ALL CLIMATE ZONES
C6: Start Date for Report | D6: 2026-01-01 | K6: Amortization
K7: Period in Months
D8: Current | H8: Hypothetical | J8: Yearly | K8: (Maximum 12
D9: Authorized | E9: PG&E Requested | F9: Adopted or PG&E Requested | G9: Hypothetical | H9: Incremental | I9: Hypothetical | J9: Start Date | K9: Months per
D10: Annual | E10: Annual RRQ | F10: Allocation Methodology | G10: Annual | H10: Annual | I10: Allocation Methodology | J10: (Select from | K10: Line OR
B11: Pending Proceedings | D11: Revenue | E11: (Informational Only) | F11: (Informational Only) | G11: RRQ | H11: RRQ | I11: (Select from Drop-down) | J11: Drop-down) | K11: Leave Blank) | L11: <<==If no amortization period is specified, RRQ amounts remain in rates.
B12: ='Incremental Rev Req'!A110 -> 2027 Energy Savings Assistance Bridge Funding | D12: ='Incremental Rev Req'!$H$44 -> 75530.121 | E12: 55567.26105 | F12: PPP | G12: 55567.26105 | H12: =G12-D12 -> -19962.85995 | I12: ESA | J12: 2027-01-01 | K12: 12
B13: ='Incremental Rev Req'!A111 -> 2027 CARE Administrative Bridge Funding | D13: ='Incremental Rev Req'!$H$46 -> 2957.54 | E13: 2059.02 | F13: PPP | G13: 2059.02 | H13: -898.52 | I13: PPP ECPT | J13: 2027-01-01 | K13: 12
B14: Income Qualified Program (ESA) PY 2028-2033 - Year 2028 | D14: ='Incremental Rev Req'!$H$44 -> 75530.121 | E14: 64939.148 | F14: PPP | G14: 64939.148 | H14: -10590.973 | I14: ESA | J14: 2028-01-01 | K14: 12
B15: Income Qualified Program (ESA) PY 2028-2033 - Year 2029 | D15: ='Incremental Rev Req'!$H$44 -> 75530.121 | E15: 72336.854 | F15: PPP | G15: 72336.854 | H15: -3193.267 | I15: ESA | J15: 2029-01-01
B16: Income Qualified Program (CARE) PY 2028-2033 - Year 2028 | D16: ='Incremental Rev Req'!$H$46 -> 2957.54 | E16: 1619.91 | F16: PPP | G16: 1619.91 | H16: -1337.63 | I16: PPP ECPT | J16: 2028-01-01 | K16: 12
B17: Income Qualified Program (CARE) PY 2028-2033 - Year 2029 | D17: ='Incremental Rev Req'!$H$46 -> 2957.54 | E17: 1700.19 | F17: PPP | G17: 1700.19 | H17: -1257.35 | I17: PPP ECPT | J17: 2029-01-01
B18: Billing Modernization (Distribution) - Year 2026 | D18: 0 | E18: 18712.17383 | F18: Distribution | G18: 18712.17383 | H18: =G18-D18 -> 18712.17383 | I18: Distribution | J18: 2026-09-01 | K18: 12
B19: Billing Modernization (Distribution) - Year 2027 | D19: 0 | E19: 17751.34183 | F19: Distribution | G19: 17751.34183 | H19: 17751.34183 | I19: Distribution | J19: 2027-09-01 | K19: 12
B20: Billing Modernization (Distribution) - Year 2028 | D20: 0 | E20: 16583.85336 | F20: Distribution | G20: 16583.85336 | H20: 16583.85336 | I20: Distribution | J20: 2028-09-01 | K20: 12
B21: Billing Modernization (Distribution) - Year 2029 | D21: 0 | E21: 14215.2408 | F21: Distribution | G21: 14215.2408 | H21: 14215.2408 | I21: Distribution | J21: 2029-09-01 | K21: 15
B22: Billing Modernization (Transmission) - Year 2026 | D22: 0 | E22: 8918.457231 | F22: ECPT | G22: 8918.457231 | H22: 8918.457231 | I22: ECPT - ALL | J22: 2026-09-01 | K22: 12
B23: Billing Modernization (Transmission) - Year 2027 | D23: 0 | E23: 8460.512628 | F23: ECPT | G23: 8460.512628 | H23: 8460.512628 | I23: ECPT - ALL | J23: 2027-09-01 | K23: 12
B24: Billing Modernization (Transmission) - Year 2028 | D24: 0 | E24: 7904.072949 | F24: ECPT | G24: 7904.072949 | H24: 7904.072949 | I24: ECPT - ALL | J24: 2028-09-01 | K24: 12
B25: Billing Modernization (Transmission) - Year 2029 | D25: 0 | E25: 6775.162433 | F25: ECPT | G25: 6775.162433 | H25: 6775.162433 | I25: ECPT - ALL | J25: 2029-09-01 | K25: 15
B26: Stanpac Application - Year 2027 | D26: 0 | E26: 893.4158148 | F26: ECPT | G26: 893.4158148 | H26: 893.4158148 | I26: ECPT - ALL | J26: 2027-01-01 | K26: 12
B27: Stanpac Application - Year 2028 | D27: 0 | E27: 857.0302256 | F27: ECPT | G27: 857.0302256 | H27: 857.0302256 | I27: ECPT - ALL | J27: 2028-01-01 | K27: 12
B28: Stanpac Application - Year 2029 | D28: 0 | E28: 827.4630552 | F28: ECPT | G28: 827.4630552 | H28: 827.4630552 | I28: ECPT - ALL | J28: 2029-01-01 | K28: 24
B29: Hydrogen Demonstration Project (2027) - Year 2027 | D29: 0 | E29: 3022.022937 | F29: ECPT | G29: 3022.022937 | H29: 3022.022937 | I29: ECPT - ALL | J29: 2027-01-01 | K29: 12
B30: Hydrogen Demonstration Project (2027) - Year 2028 | D30: 0 | E30: 10324.82853 | F30: ECPT | G30: 10324.82853 | H30: 10324.82853 | I30: ECPT - ALL | J30: 2028-01-01 | K30: 12
B31: Hydrogen Demonstration Project (2027) - Year 2029 | D31: 0 | E31: 10534.09292 | F31: ECPT | G31: 10534.09292 | H31: 10534.09292 | I31: ECPT - ALL | J31: 2029-01-01
B32: 2024 Wildfire Mitigation and Catastrophic Events (distribution) - Year 2026 | D32: 0 | E32: 65537.65441 | F32: Distribution | G32: 65537.65441 | H32: 65537.65441 | I32: Distribution | J32: 2026-09-01 | K32: 12
B33: 2024 Wildfire Mitigation and Catastrophic Events (distribution) - Year 2027 | D33: 0 | E33: 18819.46508 | F33: Distribution | G33: 18819.46508 | H33: 18819.46508 | I33: Distribution | J33: 2027-09-01 | K33: 12
B34: 2024 Wildfire Mitigation and Catastrophic Events (distribution) - Year 2028 | D34: 0 | E34: 18178.26264 | F34: Distribution | G34: 18178.26264 | H34: 18178.26264 | I34: Distribution | J34: 2028-09-01 | K34: 12
B35: 2024 Wildfire Mitigation and Catastrophic Events (distribution) - Year 2029 | D35: 0 | E35: 17712.2756 | F35: Distribution | G35: 17712.2756 | H35: 17712.2756 | I35: Distribution | J35: 2029-09-01 | K35: 15
B36: 2024 Wildfire Mitigation and Catastrophic Events (transmission) - Year 2026 | D36: 0 | E36: 6579.378757 | F36: ECPT | G36: 6579.378757 | H36: 6579.378757 | I36: ECPT - ALL | J36: 2026-09-01 | K36: 12
B37: 2024 Wildfire Mitigation and Catastrophic Events (transmission) - Year 2027 | D37: 0 | E37: 291.8396392 | F37: ECPT | G37: 291.8396392 | H37: 291.8396392 | I37: ECPT - ALL | J37: 2027-09-01 | K37: 12
B38: 2024 Wildfire Mitigation and Catastrophic Events (transmission) - Year 2028 | D38: 0 | E38: 239.4188966 | F38: ECPT | G38: 239.4188966 | H38: 239.4188966 | I38: ECPT - ALL | J38: 2028-09-01 | K38: 12
B39: 2024 Wildfire Mitigation and Catastrophic Events (transmission) - Year 2029 | D39: 0 | E39: 225.0342646 | F39: ECPT | G39: 225.0342646 | H39: 225.0342646 | I39: ECPT - ALL | J39: 2029-09-01 | K39: 15
B40: 2023 Wildfire Mitigation and Catastrophic Events (distribution) | D40: 0 | E40: 13644.27962 | F40: Distribution | G40: 13644.27962 | H40: 13644.27962 | I40: Distribution | J40: 2026-03-01 | K40: 12
B41: 2023 Wildfire Mitigation and Catastrophic Events (transmission) | D41: 0 | E41: 5913.522951 | F41: ECPT | G41: 5913.522951 | H41: 5913.522951 | I41: ECPT - ALL | J41: 2026-03-01 | K41: 12
B42: Wildfire Gas and Safety Costs (Distribution) Non-IRR | D42: 0 | E42: 6776.716441 | F42: Distribution | G42: 6776.716441 | H42: 6776.716441 | I42: Distribution | J42: 2026-03-01 | K42: 12
B43: Wildfire Gas and Safety Costs (Transmission) - Non IRR - Year 2026 | D43: 0 | E43: 44029.8428 | F43: ECPT | G43: 44029.8428 | H43: 44029.8428 | I43: ECPT - ALL | J43: 2026-03-01 | K43: 12
B44: Wildfire Gas and Safety Costs (Transmission) - Non IRR - Year 2027 | D44: 0 | E44: 412.700166 | F44: ECPT | G44: 412.700166 | H44: 412.700166 | I44: ECPT - ALL | J44: 2027-03-01 | K44: 12
B45: Kincaid-Dixie (Distribution) | D45: 0 | E45: 71886.55064 | F45: Distribution | G45: 71886.55064 | H45: 71886.55064 | I45: Distribution | J45: 2027-01-01 | K45: 12
B46: Kincaid-Dixie (Generation) | D46: 0 | E46: 23780.14007 | F46: ECPT | G46: 23780.14007 | H46: 23780.14007 | I46: ECPT - ALL | J46: 2027-01-01 | K46: 12
B47: 2027 GRC - Gas Distribution - Year 2027 | D47: ='Incremental Rev Req'!$H$10 -> 3015379.975 | E47: 3061244.211 | F47: Distribution | G47: 3061244.211 | H47: 45864.23671 | I47: Distribution | J47: 2027-01-01 | K47: 12
B48: 2027 GRC - Gas Distribution - Year 2028 | D48: ='Incremental Rev Req'!$H$10 -> 3015379.975 | E48: 3220789.415 | F48: Distribution | G48: 3220789.415 | H48: 205409.4401 | I48: Distribution | J48: 2028-01-01 | K48: 12
B49: 2027 GRC - Gas Distribution - Year 2029 | D49: ='Incremental Rev Req'!$H$10 -> 3015379.975 | E49: 3389414.767 | F49: Distribution | G49: 3389414.767 | H49: 374034.7925 | I49: Distribution | J49: 2029-01-01
B50: 2027 GRC - Core Local Transmission - Year 2027 | D50: ='Incremental Rev Req'!$H$19 -> 983371.3849 | E50: 1102352.183 | F50: ECPT | G50: 1102352.183 | H50: 118980.798 | I50: ECPT - Core only | J50: 2027-01-01 | K50: 12
B51: 2027 GRC - Core Local Transmission - Year 2028 | D51: ='Incremental Rev Req'!$H$19 -> 983371.3849 | E51: 1135354.816 | F51: ECPT | G51: 1135354.816 | H51: 151983.4313 | I51: ECPT - Core only | J51: 2028-01-01 | K51: 12
B52: 2027 GRC - Core Local Transmission - Year 2029 | D52: ='Incremental Rev Req'!$H$19 -> 983371.3849 | E52: 1173368.345 | F52: ECPT | G52: 1173368.345 | H52: 189996.9603 | I52: ECPT - Core only | J52: 2029-01-01
B53: 2027 GRC - Core Procurement (Intrastate Volumetric and Capacity) - Year 2027 | D53: ='Incremental Rev Req'!$H$51 -> 196211.9165 | E53: 144492.9212 | F53: ECPT (No BB) | G53: 144492.9212 | H53: -51718.99537 | I53: ECPT - Core only (Procurement) | J53: 2027-01-01 | K53: 12
B54: 2027 GRC - Core Procurement (Intrastate Volumetric and Capacity) - Year 2028 | D54: ='Incremental Rev Req'!$H$51 -> 196211.9165 | E54: 153719.4621 | F54: ECPT (No BB) | G54: 153719.4621 | H54: -42492.45442 | I54: ECPT - Core only (Procurement) | J54: 2028-01-01 | K54: 12
B55: 2027 GRC - Core Procurement (Intrastate Volumetric and Capacity) - Year 2029 | D55: ='Incremental Rev Req'!$H$51 -> 196211.9165 | E55: 162779.9119 | F55: ECPT (No BB) | G55: 162779.9119 | H55: -33432.00467 | I55: ECPT - Core only (Procurement) | J55: 2029-01-01
B56: 2027 GRC - Core Procurement (Storage) - Year 2027 | D56: ='Incremental Rev Req'!$H$53 -> 135685.9394 | E56: 34475.58511 | F56: Unadjusted Cold Year Winter Season | G56: 34475.58511 | H56: -101210.3543 | I56: Storage Allocation (Procurement) | J56: 2027-01-01 | K56: 12
B57: 2027 GRC - Core Procurement (Storage) - Year 2028 | D57: ='Incremental Rev Req'!$H$53 -> 135685.9394 | E57: 37259.1958 | F57: Unadjusted Cold Year Winter Season | G57: 37259.1958 | H57: -98426.74361 | I57: Storage Allocation (Procurement) | J57: 2028-01-01 | K57: 12
B58: 2027 GRC - Core Procurement (Storage) - Year 2029 | D58: ='Incremental Rev Req'!$H$53 -> 135685.9394 | E58: 39767.86767 | F58: Unadjusted Cold Year Winter Season | G58: 39767.86767 | H58: -95918.07174 | I58: Storage Allocation (Procurement) | J58: 2029-01-01
B59: 2027 GRC - Noncore Local Transmission - Year 2027 | D59: ='Incremental Rev Req'!$H$20 -> 515826.5045 | E59: 578500.182 | F59: ECPT (No BB) | G59: 578500.182 | H59: 62673.67756 | I59: ECPT - Noncore only | J59: 2027-01-01 | K59: 12
B60: 2027 GRC - Noncore Local Transmission - Year 2028 | D60: ='Incremental Rev Req'!$H$20 -> 515826.5045 | E60: 595883.4141 | F60: ECPT (No BB) | G60: 595883.4141 | H60: 80056.90966 | I60: ECPT - Noncore only | J60: 2028-01-01 | K60: 12
B61: 2027 GRC - Noncore Local Transmission - Year 2029 | D61: ='Incremental Rev Req'!$H$20 -> 515826.5045 | E61: 615905.9866 | F61: ECPT (No BB) | G61: 615905.9866 | H61: 100079.4821 | I61: ECPT - Noncore only | J61: 2029-01-01
B62: 2027 GRC - Customer Access Charge - Year 2027 | D62: ='Incremental Rev Req'!$H$21 -> 5465.240945 | E62: 3108.803628 | F62: CAC Allocation | G62: 3108.803628 | H62: -2356.437317 | I62: CAC Allocation | J62: 2027-01-01 | K62: 12
B63: 2027 GRC - Customer Access Charge - Year 2028 | D63: ='Incremental Rev Req'!$H$21 -> 5465.240945 | E63: 3870.218973 | F63: CAC Allocation | G63: 3870.218973 | H63: -1595.021972 | I63: CAC Allocation | J63: 2028-01-01 | K63: 12
B64: 2027 GRC - Customer Access Charge - Year 2029 | D64: ='Incremental Rev Req'!$H$21 -> 5465.240945 | E64: 4634.982782 | F64: CAC Allocation | G64: 4634.982782 | H64: -830.2581629 | I64: CAC Allocation | J64: 2029-01-01
B65: 2027 GRC - Noncore Unbundled - Year 2027 | D65: ='Incremental Rev Req'!$H$22 -> 263208.0005 | E65: 197609.3823 | F65: ECPT-All | G65: 197609.3823 | H65: -65598.61827 | I65: ECPT - ALL | J65: 2027-01-01 | K65: 12
B66: 2027 GRC - Noncore Unbundled - Year 2028 | D66: ='Incremental Rev Req'!$H$22 -> 263208.0005 | E66: 206605.913 | F66: ECPT-All | G66: 206605.913 | H66: -56602.08753 | I66: ECPT - ALL | J66: 2028-01-01 | K66: 12
B67: 2027 GRC - Noncore Unbundled - Year 2029 | D67: ='Incremental Rev Req'!$H$22 -> 263208.0005 | E67: 213949.2198 | F67: ECPT-All | G67: 213949.2198 | H67: -49258.78074 | I67: ECPT - ALL | J67: 2029-01-01
B68: 2027 GRC - Inventory Management - Year 2027 | D68: ='Incremental Rev Req'!$H$23 -> 143704.047 | E68: 139662.6234 | F68: 2023 GTS - Inventory Management | G68: 139662.6234 | H68: -4041.423614 | I68: 2023 GTS - Inventory Management | J68: 2027-01-01 | K68: 12
B69: 2027 GRC - Inventory Management - Year 2028 | D69: ='Incremental Rev Req'!$H$23 -> 143704.047 | E69: 150919.4682 | F69: 2023 GTS - Inventory Management | G69: 150919.4682 | H69: 7215.421172 | I69: 2023 GTS - Inventory Management | J69: 2028-01-01 | K69: 12
B70: 2027 GRC - Inventory Management - Year 2029 | D70: ='Incremental Rev Req'!$H$23 -> 143704.047 | E70: 161064.4679 | F70: 2023 GTS - Inventory Management | G70: 161064.4679 | H70: 17360.42093 | I70: 2023 GTS - Inventory Management | J70: 2029-01-01
B71: CFCA - NGSS Enduser Dist. Sub Acct Recovery | D71: ='Incremental Rev Req'!$H$64 -> 2051.460825 | E71: 0 | F71: Core - Distribution | G71: 0 | H71: -2051.460825 | I71: Core - Distribution | J71: 2027-01-01
B72: CFCA/NCA - NGSS Enduser Sub Acct Recovery | D72: ='Incremental Rev Req'!$H$65 -> 487.8206422 | E72: 0 | F72: ECPT - ALL | G72: 0 | H72: -487.8206422 | I72: ECPT - ALL | J72: 2027-01-01
B73: NCA - NGSS Enduser Sub Acct Recovery | D73: ='Incremental Rev Req'!$H$66 -> 501.0158178 | E73: 0 | F73: ECPT - Noncore only | G73: 0 | H73: -501.0158178 | I73: ECPT - Noncore only | J73: 2027-01-01
B74: Available | H74: 0
B75: Available | H75: 0
B76: Available | H76: 0
B77: Available | H77: =G77-D77 -> 0
B78: Available | H78: 0
B79: Available | H79: 0
B80: Available | H80: 0
B81: Available | H81: 0
B82: Available | H82: 0
B83: Available | H83: 0
B84: Available | H84: 0
B85: Available | H85: 0
B86: Available | H86: 0
B87: Available | H87: 0
B88: Available | H88: 0
B89: Available | H89: 0
B90: Available | H90: 0
B91: Available | H91: 0
B92: Available | H92: 0
B93: Available | H93: 0
B94: Available | H94: 0
B95: Available | H95: 0
B96: Available | H96: 0

Sheet Rate Trajectory Report
A1: Pacific Gas and Electric Company
A2: Illustrative Gas Rate Trajectory Report
A3: ="For the Period "&TEXT(D5,"mmmmmmmmmm YYYY")&" through "&TEXT(AA5,"mmmmmmmmmm YYYY") -> For the Period January 2026 through December 2027
C5: ="Present ( "&TEXT(Summary!E46,"mmm yy")&")" -> Present ( Jan 26) | D5: ='Rate Trajectory Dashboard'!D6 -> 2026-01-01 | E5: =DATE(YEAR(D5),MONTH(D5)+1,DAY(D5)) -> 2026-02-01 | F5: =DATE(YEAR(E5),MONTH(E5)+1,DAY(E5)) -> 2026-03-01 | G5: 2026-04-01 | H5: 2026-05-01 | I5: 2026-06-01 | J5: 2026-07-01 | K5: 2026-08-01 | L5: 2026-09-01 | M5: 2026-10-01 | N5: 2026-11-01 | O5: 2026-12-01 | P5: 2027-01-01 | Q5: 2027-02-01 | R5: 2027-03-01 | S5: 2027-04-01 | T5: 2027-05-01 | U5: 2027-06-01 | V5: 2027-07-01 | W5: 2027-08-01 | X5: 2027-09-01 | Y5: 2027-10-01 | Z5: 2027-11-01 | AA5: =DATE(YEAR(Z5),MONTH(Z5)+1,DAY(Z5)) -> 2027-12-01
A6: # | B6: RRQ in Current Gas Rates ($ millions) | C6: ='Authorized Rev Req'!K88/1000 -> 6726.747229
A8: 1 | B8: ='Rate Trajectory Dashboard'!B12 -> 2027 Energy Savings Assistance Bridge Funding | C8: =IFERROR(VLOOKUP(B8,'Rate Trajectory Dashboard'!$B$12:$D$96,3,FALSE)/1000,'Rate Trajectory Report'!C6) -> 75.530121 | D8: =IF(INDEX('Rate Trajectory Calc'!$A$6:$CQ$92,MATCH('Rate Trajectory Report'!$B8,'Rate Trajectory Calc'!$A$6:$A$92,0),MATCH('Rate Trajectory Report'!D$5,'Rate Trajectory Calc'!$A$6:$CQ$6,0))=0," ",INDEX('Rate Trajectory Calc'!$A$6:$CQ$92,MATCH('Rate Trajectory Report'!$B8,'Rate Trajectory Calc'!$A$6:$A$92,0),MATCH('Rate Trajectory Report'!D$5,'Rate Trajectory Calc'!$A$6:$CQ$6,0))/1000) ->  | E8: =IF(INDEX('Rate Trajectory Calc'!$A$6:$CQ$92,MATCH('Rate Trajectory Report'!$B8,'Rate Trajectory Calc'!$A$6:$A$92,0),MATCH('Rate Trajectory Report'!E$5,'Rate Trajectory Calc'!$A$6:$CQ$6,0))=0," ",INDEX('Rate Trajectory Calc'!$A$6:$CQ$92,MATCH('Rate Trajectory Report'!$B8,'Rate Trajectory Calc'!$A$6:$A$92,0),MATCH('Rate Trajectory Report'!E$5,'Rate Trajectory Calc'!$A$6:$CQ$6,0))/1000) ->  | F8: =IF(INDEX('Rate Trajectory Calc'!$A$6:$CQ$92,MATCH('Rate Trajectory Report'!$B8,'Rate Trajectory Calc'!$A$6:$A$92,0),MATCH('Rate Trajectory Report'!F$5,'Rate Trajectory Calc'!$A$6:$CQ$6,0))=0," ",INDEX('Rate Trajectory Calc'!$A$6:$CQ$92,MATCH('Rate Trajectory Report'!$B8,'Rate Trajectory Calc'!$A$6:$A$92,0),MATCH('Rate Trajectory Report'!F$5,'Rate Trajectory Calc'!$A$6:$CQ$6,0))/1000) ->  | G8: =IF(INDEX('Rate Trajectory Calc'!$A$6:$CQ$92,MATCH('Rate Trajectory Report'!$B8,'Rate Trajectory Calc'!$A$6:$A$92,0),MATCH('Rate Trajectory Report'!G$5,'Rate Trajectory Calc'!$A$6:$CQ$6,0))=0," ",INDEX('Rate Trajectory Calc'!$A$6:$CQ$92,MATCH('Rate Trajectory Report'!$B8,'Rate Trajectory Calc'!$A$6:$A$92,0),MATCH('Rate Trajectory Report'!G$5,'Rate Trajectory Calc'!$A$6:$CQ$6,0))/1000) ->  | H8: =IF(INDEX('Rate Trajectory Calc'!$A$6:$CQ$92,MATCH('Rate Trajectory Report'!$B8,'Rate Trajectory Calc'!$A$6:$A$92,0),MATCH('Rate Trajectory Report'!H$5,'Rate Trajectory Calc'!$A$6:$CQ$6,0))=0," ",INDEX('Rate Trajectory Calc'!$A$6:$CQ$92,MATCH('Rate Trajectory Report'!$B8,'Rate Trajectory Calc'!$A$6:$A$92,0),MATCH('Rate Trajectory Report'!H$5,'Rate Trajectory Calc'!$A$6:$CQ$6,0))/1000) ->  | I8: =IF(INDEX('Rate Trajectory Calc'!$A$6:$CQ$92,MATCH('Rate Trajectory Report'!$B8,'Rate Trajectory Calc'!$A$6:$A$92,0),MATCH('Rate Trajectory Report'!I$5,'Rate Trajectory Calc'!$A$6:$CQ$6,0))=0," ",INDEX('Rate Trajectory Calc'!$A$6:$CQ$92,MATCH('Rate Trajectory Report'!$B8,'Rate Trajectory Calc'!$A$6:$A$92,0),MATCH('Rate Trajectory Report'!I$5,'Rate Trajectory Calc'!$A$6:$CQ$6,0))/1000) ->  | J8: =IF(INDEX('Rate Trajectory Calc'!$A$6:$CQ$92,MATCH('Rate Trajectory Report'!$B8,'Rate Trajectory Calc'!$A$6:$A$92,0),MATCH('Rate Trajectory Report'!J$5,'Rate Trajectory Calc'!$A$6:$CQ$6,0))=0," ",INDEX('Rate Trajectory Calc'!$A$6:$CQ$92,MATCH('Rate Trajectory Report'!$B8,'Rate Trajectory Calc'!$A$6:$A$92,0),MATCH('Rate Trajectory Report'!J$5,'Rate Trajectory Calc'!$A$6:$CQ$6,0))/1000) ->  | K8: =IF(INDEX('Rate Trajectory Calc'!$A$6:$CQ$92,MATCH('Rate Trajectory Report'!$B8,'Rate Trajectory Calc'!$A$6:$A$92,0),MATCH('Rate Trajectory Report'!K$5,'Rate Trajectory Calc'!$A$6:$CQ$6,0))=0," ",INDEX('Rate Trajectory Calc'!$A$6:$CQ$92,MATCH('Rate Trajectory Report'!$B8,'Rate Trajectory Calc'!$A$6:$A$92,0),MATCH('Rate Trajectory Report'!K$5,'Rate Trajectory Calc'!$A$6:$CQ$6,0))/1000) ->  | L8: =IF(INDEX('Rate Trajectory Calc'!$A$6:$CQ$92,MATCH('Rate Trajectory Report'!$B8,'Rate Trajectory Calc'!$A$6:$A$92,0),MATCH('Rate Trajectory Report'!L$5,'Rate Trajectory Calc'!$A$6:$CQ$6,0))=0," ",INDEX('Rate Trajectory Calc'!$A$6:$CQ$92,MATCH('Rate Trajectory Report'!$B8,'Rate Trajectory Calc'!$A$6:$A$92,0),MATCH('Rate Trajectory Report'!L$5,'Rate Trajectory Calc'!$A$6:$CQ$6,0))/1000) ->  | M8: =IF(INDEX('Rate Trajectory Calc'!$A$6:$CQ$92,MATCH('Rate Trajectory Report'!$B8,'Rate Trajectory Calc'!$A$6:$A$92,0),MATCH('Rate Trajectory Report'!M$5,'Rate Trajectory Calc'!$A$6:$CQ$6,0))=0," ",INDEX('Rate Trajectory Calc'!$A$6:$CQ$92,MATCH('Rate Trajectory Report'!$B8,'Rate Trajectory Calc'!$A$6:$A$92,0),MATCH('Rate Trajectory Report'!M$5,'Rate Trajectory Calc'!$A$6:$CQ$6,0))/1000) ->  | N8: =IF(INDEX('Rate Trajectory Calc'!$A$6:$CQ$92,MATCH('Rate Trajectory Report'!$B8,'Rate Trajectory Calc'!$A$6:$A$92,0),MATCH('Rate Trajectory Report'!N$5,'Rate Trajectory Calc'!$A$6:$CQ$6,0))=0," ",INDEX('Rate Trajectory Calc'!$A$6:$CQ$92,MATCH('Rate Trajectory Report'!$B8,'Rate Trajectory Calc'!$A$6:$A$92,0),MATCH('Rate Trajectory Report'!N$5,'Rate Trajectory Calc'!$A$6:$CQ$6,0))/1000) ->  | O8: =IF(INDEX('Rate Trajectory Calc'!$A$6:$CQ$92,MATCH('Rate Trajectory Report'!$B8,'Rate Trajectory Calc'!$A$6:$A$92,0),MATCH('Rate Trajectory Report'!O$5,'Rate Trajectory Calc'!$A$6:$CQ$6,0))=0," ",INDEX('Rate Trajectory Calc'!$A$6:$CQ$92,MATCH('Rate Trajectory Report'!$B8,'Rate Trajectory Calc'!$A$6:$A$92,0),MATCH('Rate Trajectory Report'!O$5,'Rate Trajectory Calc'!$A$6:$CQ$6,0))/1000) ->  | P8: =IF(INDEX('Rate Trajectory Calc'!$A$6:$CQ$92,MATCH('Rate Trajectory Report'!$B8,'Rate Trajectory Calc'!$A$6:$A$92,0),MATCH('Rate Trajectory Report'!P$5,'Rate Trajectory Calc'!$A$6:$CQ$6,0))=0," ",INDEX('Rate Trajectory Calc'!$A$6:$CQ$92,MATCH('Rate Trajectory Report'!$B8,'Rate Trajectory Calc'!$A$6:$A$92,0),MATCH('Rate Trajectory Report'!P$5,'Rate Trajectory Calc'!$A$6:$CQ$6,0))/1000) -> -19.96285995 | Q8: =IF(INDEX('Rate Trajectory Calc'!$A$6:$CQ$92,MATCH('Rate Trajectory Report'!$B8,'Rate Trajectory Calc'!$A$6:$A$92,0),MATCH('Rate Trajectory Report'!Q$5,'Rate Trajectory Calc'!$A$6:$CQ$6,0))=0," ",INDEX('Rate Trajectory Calc'!$A$6:$CQ$92,MATCH('Rate Trajectory Report'!$B8,'Rate Trajectory Calc'!$A$6:$A$92,0),MATCH('Rate Trajectory Report'!Q$5,'Rate Trajectory Calc'!$A$6:$CQ$6,0))/1000) ->  | R8: =IF(INDEX('Rate Trajectory Calc'!$A$6:$CQ$92,MATCH('Rate Trajectory Report'!$B8,'Rate Trajectory Calc'!$A$6:$A$92,0),MATCH('Rate Trajectory Report'!R$5,'Rate Trajectory Calc'!$A$6:$CQ$6,0))=0," ",INDEX('Rate Trajectory Calc'!$A$6:$CQ$92,MATCH('Rate Trajectory Report'!$B8,'Rate Trajectory Calc'!$A$6:$A$92,0),MATCH('Rate Trajectory Report'!R$5,'Rate Trajectory Calc'!$A$6:$CQ$6,0))/1000) ->  | S8: =IF(INDEX('Rate Trajectory Calc'!$A$6:$CQ$92,MATCH('Rate Trajectory Report'!$B8,'Rate Trajectory Calc'!$A$6:$A$92,0),MATCH('Rate Trajectory Report'!S$5,'Rate Trajectory Calc'!$A$6:$CQ$6,0))=0," ",INDEX('Rate Trajectory Calc'!$A$6:$CQ$92,MATCH('Rate Trajectory Report'!$B8,'Rate Trajectory Calc'!$A$6:$A$92,0),MATCH('Rate Trajectory Report'!S$5,'Rate Trajectory Calc'!$A$6:$CQ$6,0))/1000) ->  | T8: =IF(INDEX('Rate Trajectory Calc'!$A$6:$CQ$92,MATCH('Rate Trajectory Report'!$B8,'Rate Trajectory Calc'!$A$6:$A$92,0),MATCH('Rate Trajectory Report'!T$5,'Rate Trajectory Calc'!$A$6:$CQ$6,0))=0," ",INDEX('Rate Trajectory Calc'!$A$6:$CQ$92,MATCH('Rate Trajectory Report'!$B8,'Rate Trajectory Calc'!$A$6:$A$92,0),MATCH('Rate Trajectory Report'!T$5,'Rate Trajectory Calc'!$A$6:$CQ$6,0))/1000) ->  | U8: =IF(INDEX('Rate Trajectory Calc'!$A$6:$CQ$92,MATCH('Rate Trajectory Report'!$B8,'Rate Trajectory Calc'!$A$6:$A$92,0),MATCH('Rate Trajectory Report'!U$5,'Rate Trajectory Calc'!$A$6:$CQ$6,0))=0," ",INDEX('Rate Trajectory Calc'!$A$6:$CQ$92,MATCH('Rate Trajectory Report'!$B8,'Rate Trajectory Calc'!$A$6:$A$92,0),MATCH('Rate Trajectory Report'!U$5,'Rate Trajectory Calc'!$A$6:$CQ$6,0))/1000) ->  | V8: =IF(INDEX('Rate Trajectory Calc'!$A$6:$CQ$92,MATCH('Rate Trajectory Report'!$B8,'Rate Trajectory Calc'!$A$6:$A$92,0),MATCH('Rate Trajectory Report'!V$5,'Rate Trajectory Calc'!$A$6:$CQ$6,0))=0," ",INDEX('Rate Trajectory Calc'!$A$6:$CQ$92,MATCH('Rate Trajectory Report'!$B8,'Rate Trajectory Calc'!$A$6:$A$92,0),MATCH('Rate Trajectory Report'!V$5,'Rate Trajectory Calc'!$A$6:$CQ$6,0))/1000) ->  | W8: =IF(INDEX('Rate Trajectory Calc'!$A$6:$CQ$92,MATCH('Rate Trajectory Report'!$B8,'Rate Trajectory Calc'!$A$6:$A$92,0),MATCH('Rate Trajectory Report'!W$5,'Rate Trajectory Calc'!$A$6:$CQ$6,0))=0," ",INDEX('Rate Trajectory Calc'!$A$6:$CQ$92,MATCH('Rate Trajectory Report'!$B8,'Rate Trajectory Calc'!$A$6:$A$92,0),MATCH('Rate Trajectory Report'!W$5,'Rate Trajectory Calc'!$A$6:$CQ$6,0))/1000) ->  | X8: =IF(INDEX('Rate Trajectory Calc'!$A$6:$CQ$92,MATCH('Rate Trajectory Report'!$B8,'Rate Trajectory Calc'!$A$6:$A$92,0),MATCH('Rate Trajectory Report'!X$5,'Rate Trajectory Calc'!$A$6:$CQ$6,0))=0," ",INDEX('Rate Trajectory Calc'!$A$6:$CQ$92,MATCH('Rate Trajectory Report'!$B8,'Rate Trajectory Calc'!$A$6:$A$92,0),MATCH('Rate Trajectory Report'!X$5,'Rate Trajectory Calc'!$A$6:$CQ$6,0))/1000) ->  | Y8: =IF(INDEX('Rate Trajectory Calc'!$A$6:$CQ$92,MATCH('Rate Trajectory Report'!$B8,'Rate Trajectory Calc'!$A$6:$A$92,0),MATCH('Rate Trajectory Report'!Y$5,'Rate Trajectory Calc'!$A$6:$CQ$6,0))=0," ",INDEX('Rate Trajectory Calc'!$A$6:$CQ$92,MATCH('Rate Trajectory Report'!$B8,'Rate Trajectory Calc'!$A$6:$A$92,0),MATCH('Rate Trajectory Report'!Y$5,'Rate Trajectory Calc'!$A$6:$CQ$6,0))/1000) ->  | Z8: =IF(INDEX('Rate Trajectory Calc'!$A$6:$CQ$92,MATCH('Rate Trajectory Report'!$B8,'Rate Trajectory Calc'!$A$6:$A$92,0),MATCH('Rate Trajectory Report'!Z$5,'Rate Trajectory Calc'!$A$6:$CQ$6,0))=0," ",INDEX('Rate Trajectory Calc'!$A$6:$CQ$92,MATCH('Rate Trajectory Report'!$B8,'Rate Trajectory Calc'!$A$6:$A$92,0),MATCH('Rate Trajectory Report'!Z$5,'Rate Trajectory Calc'!$A$6:$CQ$6,0))/1000) ->  | AA8: =IF(INDEX('Rate Trajectory Calc'!$A$6:$CQ$92,MATCH('Rate Trajectory Report'!$B8,'Rate Trajectory Calc'!$A$6:$A$92,0),MATCH('Rate Trajectory Report'!AA$5,'Rate Trajectory Calc'!$A$6:$CQ$6,0))=0," ",INDEX('Rate Trajectory Calc'!$A$6:$CQ$92,MATCH('Rate Trajectory Report'!$B8,'Rate Trajectory Calc'!$A$6:$A$92,0),MATCH('Rate Trajectory Report'!AA$5,'Rate Trajectory Calc'!$A$6:$CQ$6,0))/1000) -> 
A9: 2 | B9: ='Rate Trajectory Dashboard'!B13 -> 2027 CARE Administrative Bridge Funding | C9: =IFERROR(VLOOKUP(B9,'Rate Trajectory Dashboard'!$B$12:$D$96,3,FALSE)/1000,'Rate Trajectory Report'!C7) -> 2.95754 | D9: =IF(INDEX('Rate Trajectory Calc'!$A$6:$CQ$92,MATCH('Rate Trajectory Report'!$B9,'Rate Trajectory Calc'!$A$6:$A$92,0),MATCH(D$5,'Rate Trajectory Calc'!$A$6:$CQ$6,0))=0," ",INDEX('Rate Trajectory Calc'!$A$6:$CQ$92,MATCH('Rate Trajectory Report'!$B9,'Rate Trajectory Calc'!$A$6:$A$92,0),MATCH(D$5,'Rate Trajectory Calc'!$A$6:$CQ$6,0))/1000) ->  | E9: =IF(INDEX('Rate Trajectory Calc'!$A$6:$CQ$92,MATCH('Rate Trajectory Report'!$B9,'Rate Trajectory Calc'!$A$6:$A$92,0),MATCH(E$5,'Rate Trajectory Calc'!$A$6:$CQ$6,0))=0," ",INDEX('Rate Trajectory Calc'!$A$6:$CQ$92,MATCH('Rate Trajectory Report'!$B9,'Rate Trajectory Calc'!$A$6:$A$92,0),MATCH(E$5,'Rate Trajectory Calc'!$A$6:$CQ$6,0))/1000) ->  | F9: =IF(INDEX('Rate Trajectory Calc'!$A$6:$CQ$92,MATCH('Rate Trajectory Report'!$B9,'Rate Trajectory Calc'!$A$6:$A$92,0),MATCH(F$5,'Rate Trajectory Calc'!$A$6:$CQ$6,0))=0," ",INDEX('Rate Trajectory Calc'!$A$6:$CQ$92,MATCH('Rate Trajectory Report'!$B9,'Rate Trajectory Calc'!$A$6:$A$92,0),MATCH(F$5,'Rate Trajectory Calc'!$A$6:$CQ$6,0))/1000) ->  | G9: =IF(INDEX('Rate Trajectory Calc'!$A$6:$CQ$92,MATCH('Rate Trajectory Report'!$B9,'Rate Trajectory Calc'!$A$6:$A$92,0),MATCH(G$5,'Rate Trajectory Calc'!$A$6:$CQ$6,0))=0," ",INDEX('Rate Trajectory Calc'!$A$6:$CQ$92,MATCH('Rate Trajectory Report'!$B9,'Rate Trajectory Calc'!$A$6:$A$92,0),MATCH(G$5,'Rate Trajectory Calc'!$A$6:$CQ$6,0))/1000) ->  | H9: =IF(INDEX('Rate Trajectory Calc'!$A$6:$CQ$92,MATCH('Rate Trajectory Report'!$B9,'Rate Trajectory Calc'!$A$6:$A$92,0),MATCH(H$5,'Rate Trajectory Calc'!$A$6:$CQ$6,0))=0," ",INDEX('Rate Trajectory Calc'!$A$6:$CQ$92,MATCH('Rate Trajectory Report'!$B9,'Rate Trajectory Calc'!$A$6:$A$92,0),MATCH(H$5,'Rate Trajectory Calc'!$A$6:$CQ$6,0))/1000) ->  | I9: =IF(INDEX('Rate Trajectory Calc'!$A$6:$CQ$92,MATCH('Rate Trajectory Report'!$B9,'Rate Trajectory Calc'!$A$6:$A$92,0),MATCH(I$5,'Rate Trajectory Calc'!$A$6:$CQ$6,0))=0," ",INDEX('Rate Trajectory Calc'!$A$6:$CQ$92,MATCH('Rate Trajectory Report'!$B9,'Rate Trajectory Calc'!$A$6:$A$92,0),MATCH(I$5,'Rate Trajectory Calc'!$A$6:$CQ$6,0))/1000) ->  | J9: =IF(INDEX('Rate Trajectory Calc'!$A$6:$CQ$92,MATCH('Rate Trajectory Report'!$B9,'Rate Trajectory Calc'!$A$6:$A$92,0),MATCH(J$5,'Rate Trajectory Calc'!$A$6:$CQ$6,0))=0," ",INDEX('Rate Trajectory Calc'!$A$6:$CQ$92,MATCH('Rate Trajectory Report'!$B9,'Rate Trajectory Calc'!$A$6:$A$92,0),MATCH(J$5,'Rate Trajectory Calc'!$A$6:$CQ$6,0))/1000) ->  | K9: =IF(INDEX('Rate Trajectory Calc'!$A$6:$CQ$92,MATCH('Rate Trajectory Report'!$B9,'Rate Trajectory Calc'!$A$6:$A$92,0),MATCH(K$5,'Rate Trajectory Calc'!$A$6:$CQ$6,0))=0," ",INDEX('Rate Trajectory Calc'!$A$6:$CQ$92,MATCH('Rate Trajectory Report'!$B9,'Rate Trajectory Calc'!$A$6:$A$92,0),MATCH(K$5,'Rate Trajectory Calc'!$A$6:$CQ$6,0))/1000) ->  | L9: =IF(INDEX('Rate Trajectory Calc'!$A$6:$CQ$92,MATCH('Rate Trajectory Report'!$B9,'Rate Trajectory Calc'!$A$6:$A$92,0),MATCH(L$5,'Rate Trajectory Calc'!$A$6:$CQ$6,0))=0," ",INDEX('Rate Trajectory Calc'!$A$6:$CQ$92,MATCH('Rate Trajectory Report'!$B9,'Rate Trajectory Calc'!$A$6:$A$92,0),MATCH(L$5,'Rate Trajectory Calc'!$A$6:$CQ$6,0))/1000) ->  | M9: =IF(INDEX('Rate Trajectory Calc'!$A$6:$CQ$92,MATCH('Rate Trajectory Report'!$B9,'Rate Trajectory Calc'!$A$6:$A$92,0),MATCH(M$5,'Rate Trajectory Calc'!$A$6:$CQ$6,0))=0," ",INDEX('Rate Trajectory Calc'!$A$6:$CQ$92,MATCH('Rate Trajectory Report'!$B9,'Rate Trajectory Calc'!$A$6:$A$92,0),MATCH(M$5,'Rate Trajectory Calc'!$A$6:$CQ$6,0))/1000) ->  | N9: =IF(INDEX('Rate Trajectory Calc'!$A$6:$CQ$92,MATCH('Rate Trajectory Report'!$B9,'Rate Trajectory Calc'!$A$6:$A$92,0),MATCH(N$5,'Rate Trajectory Calc'!$A$6:$CQ$6,0))=0," ",INDEX('Rate Trajectory Calc'!$A$6:$CQ$92,MATCH('Rate Trajectory Report'!$B9,'Rate Trajectory Calc'!$A$6:$A$92,0),MATCH(N$5,'Rate Trajectory Calc'!$A$6:$CQ$6,0))/1000) ->  | O9: =IF(INDEX('Rate Trajectory Calc'!$A$6:$CQ$92,MATCH('Rate Trajectory Report'!$B9,'Rate Trajectory Calc'!$A$6:$A$92,0),MATCH(O$5,'Rate Trajectory Calc'!$A$6:$CQ$6,0))=0," ",INDEX('Rate Trajectory Calc'!$A$6:$CQ$92,MATCH('Rate Trajectory Report'!$B9,'Rate Trajectory Calc'!$A$6:$A$92,0),MATCH(O$5,'Rate Trajectory Calc'!$A$6:$CQ$6,0))/1000) ->  | P9: =IF(INDEX('Rate Trajectory Calc'!$A$6:$CQ$92,MATCH('Rate Trajectory Report'!$B9,'Rate Trajectory Calc'!$A$6:$A$92,0),MATCH(P$5,'Rate Trajectory Calc'!$A$6:$CQ$6,0))=0," ",INDEX('Rate Trajectory Calc'!$A$6:$CQ$92,MATCH('Rate Trajectory Report'!$B9,'Rate Trajectory Calc'!$A$6:$A$92,0),MATCH(P$5,'Rate Trajectory Calc'!$A$6:$CQ$6,0))/1000) -> -0.89852 | Q9: =IF(INDEX('Rate Trajectory Calc'!$A$6:$CQ$92,MATCH('Rate Trajectory Report'!$B9,'Rate Trajectory Calc'!$A$6:$A$92,0),MATCH(Q$5,'Rate Trajectory Calc'!$A$6:$CQ$6,0))=0," ",INDEX('Rate Trajectory Calc'!$A$6:$CQ$92,MATCH('Rate Trajectory Report'!$B9,'Rate Trajectory Calc'!$A$6:$A$92,0),MATCH(Q$5,'Rate Trajectory Calc'!$A$6:$CQ$6,0))/1000) ->  | R9: =IF(INDEX('Rate Trajectory Calc'!$A$6:$CQ$92,MATCH('Rate Trajectory Report'!$B9,'Rate Trajectory Calc'!$A$6:$A$92,0),MATCH(R$5,'Rate Trajectory Calc'!$A$6:$CQ$6,0))=0," ",INDEX('Rate Trajectory Calc'!$A$6:$CQ$92,MATCH('Rate Trajectory Report'!$B9,'Rate Trajectory Calc'!$A$6:$A$92,0),MATCH(R$5,'Rate Trajectory Calc'!$A$6:$CQ$6,0))/1000) ->  | S9: =IF(INDEX('Rate Trajectory Calc'!$A$6:$CQ$92,MATCH('Rate Trajectory Report'!$B9,'Rate Trajectory Calc'!$A$6:$A$92,0),MATCH(S$5,'Rate Trajectory Calc'!$A$6:$CQ$6,0))=0," ",INDEX('Rate Trajectory Calc'!$A$6:$CQ$92,MATCH('Rate Trajectory Report'!$B9,'Rate Trajectory Calc'!$A$6:$A$92,0),MATCH(S$5,'Rate Trajectory Calc'!$A$6:$CQ$6,0))/1000) ->  | T9: =IF(INDEX('Rate Trajectory Calc'!$A$6:$CQ$92,MATCH('Rate Trajectory Report'!$B9,'Rate Trajectory Calc'!$A$6:$A$92,0),MATCH(T$5,'Rate Trajectory Calc'!$A$6:$CQ$6,0))=0," ",INDEX('Rate Trajectory Calc'!$A$6:$CQ$92,MATCH('Rate Trajectory Report'!$B9,'Rate Trajectory Calc'!$A$6:$A$92,0),MATCH(T$5,'Rate Trajectory Calc'!$A$6:$CQ$6,0))/1000) ->  | U9: =IF(INDEX('Rate Trajectory Calc'!$A$6:$CQ$92,MATCH('Rate Trajectory Report'!$B9,'Rate Trajectory Calc'!$A$6:$A$92,0),MATCH(U$5,'Rate Trajectory Calc'!$A$6:$CQ$6,0))=0," ",INDEX('Rate Trajectory Calc'!$A$6:$CQ$92,MATCH('Rate Trajectory Report'!$B9,'Rate Trajectory Calc'!$A$6:$A$92,0),MATCH(U$5,'Rate Trajectory Calc'!$A$6:$CQ$6,0))/1000) ->  | V9: =IF(INDEX('Rate Trajectory Calc'!$A$6:$CQ$92,MATCH('Rate Trajectory Report'!$B9,'Rate Trajectory Calc'!$A$6:$A$92,0),MATCH(V$5,'Rate Trajectory Calc'!$A$6:$CQ$6,0))=0," ",INDEX('Rate Trajectory Calc'!$A$6:$CQ$92,MATCH('Rate Trajectory Report'!$B9,'Rate Trajectory Calc'!$A$6:$A$92,0),MATCH(V$5,'Rate Trajectory Calc'!$A$6:$CQ$6,0))/1000) ->  | W9: =IF(INDEX('Rate Trajectory Calc'!$A$6:$CQ$92,MATCH('Rate Trajectory Report'!$B9,'Rate Trajectory Calc'!$A$6:$A$92,0),MATCH(W$5,'Rate Trajectory Calc'!$A$6:$CQ$6,0))=0," ",INDEX('Rate Trajectory Calc'!$A$6:$CQ$92,MATCH('Rate Trajectory Report'!$B9,'Rate Trajectory Calc'!$A$6:$A$92,0),MATCH(W$5,'Rate Trajectory Calc'!$A$6:$CQ$6,0))/1000) ->  | X9: =IF(INDEX('Rate Trajectory Calc'!$A$6:$CQ$92,MATCH('Rate Trajectory Report'!$B9,'Rate Trajectory Calc'!$A$6:$A$92,0),MATCH(X$5,'Rate Trajectory Calc'!$A$6:$CQ$6,0))=0," ",INDEX('Rate Trajectory Calc'!$A$6:$CQ$92,MATCH('Rate Trajectory Report'!$B9,'Rate Trajectory Calc'!$A$6:$A$92,0),MATCH(X$5,'Rate Trajectory Calc'!$A$6:$CQ$6,0))/1000) ->  | Y9: =IF(INDEX('Rate Trajectory Calc'!$A$6:$CQ$92,MATCH('Rate Trajectory Report'!$B9,'Rate Trajectory Calc'!$A$6:$A$92,0),MATCH(Y$5,'Rate Trajectory Calc'!$A$6:$CQ$6,0))=0," ",INDEX('Rate Trajectory Calc'!$A$6:$CQ$92,MATCH('Rate Trajectory Report'!$B9,'Rate Trajectory Calc'!$A$6:$A$92,0),MATCH(Y$5,'Rate Trajectory Calc'!$A$6:$CQ$6,0))/1000) ->  | Z9: =IF(INDEX('Rate Trajectory Calc'!$A$6:$CQ$92,MATCH('Rate Trajectory Report'!$B9,'Rate Trajectory Calc'!$A$6:$A$92,0),MATCH(Z$5,'Rate Trajectory Calc'!$A$6:$CQ$6,0))=0," ",INDEX('Rate Trajectory Calc'!$A$6:$CQ$92,MATCH('Rate Trajectory Report'!$B9,'Rate Trajectory Calc'!$A$6:$A$92,0),MATCH(Z$5,'Rate Trajectory Calc'!$A$6:$CQ$6,0))/1000) ->  | AA9: =IF(INDEX('Rate Trajectory Calc'!$A$6:$CQ$92,MATCH('Rate Trajectory Report'!$B9,'Rate Trajectory Calc'!$A$6:$A$92,0),MATCH(AA$5,'Rate Trajectory Calc'!$A$6:$CQ$6,0))=0," ",INDEX('Rate Trajectory Calc'!$A$6:$CQ$92,MATCH('Rate Trajectory Report'!$B9,'Rate Trajectory Calc'!$A$6:$A$92,0),MATCH(AA$5,'Rate Trajectory Calc'!$A$6:$CQ$6,0))/1000) -> 
B10: ='Rate Trajectory Dashboard'!B14 -> Income Qualified Program (ESA) PY 2028-2033 - Year 2028 | C10: =IFERROR(VLOOKUP(B10,'Rate Trajectory Dashboard'!$B$12:$D$96,3,FALSE)/1000,'Rate Trajectory Report'!C8) -> 75.530121 | D10: =IF(INDEX('Rate Trajectory Calc'!$A$6:$CQ$92,MATCH('Rate Trajectory Report'!$B10,'Rate Trajectory Calc'!$A$6:$A$92,0),MATCH(D$5,'Rate Trajectory Calc'!$A$6:$CQ$6,0))=0," ",INDEX('Rate Trajectory Calc'!$A$6:$CQ$92,MATCH('Rate Trajectory Report'!$B10,'Rate Trajectory Calc'!$A$6:$A$92,0),MATCH('Rate Trajectory Report'!D$5,'Rate Trajectory Calc'!$A$6:$CQ$6,0))/1000) ->  | E10: =IF(INDEX('Rate Trajectory Calc'!$A$6:$CQ$92,MATCH('Rate Trajectory Report'!$B10,'Rate Trajectory Calc'!$A$6:$A$92,0),MATCH(E$5,'Rate Trajectory Calc'!$A$6:$CQ$6,0))=0," ",INDEX('Rate Trajectory Calc'!$A$6:$CQ$92,MATCH('Rate Trajectory Report'!$B10,'Rate Trajectory Calc'!$A$6:$A$92,0),MATCH('Rate Trajectory Report'!E$5,'Rate Trajectory Calc'!$A$6:$CQ$6,0))/1000) ->  | F10: =IF(INDEX('Rate Trajectory Calc'!$A$6:$CQ$92,MATCH('Rate Trajectory Report'!$B10,'Rate Trajectory Calc'!$A$6:$A$92,0),MATCH(F$5,'Rate Trajectory Calc'!$A$6:$CQ$6,0))=0," ",INDEX('Rate Trajectory Calc'!$A$6:$CQ$92,MATCH('Rate Trajectory Report'!$B10,'Rate Trajectory Calc'!$A$6:$A$92,0),MATCH('Rate Trajectory Report'!F$5,'Rate Trajectory Calc'!$A$6:$CQ$6,0))/1000) ->  | G10: =IF(INDEX('Rate Trajectory Calc'!$A$6:$CQ$92,MATCH('Rate Trajectory Report'!$B10,'Rate Trajectory Calc'!$A$6:$A$92,0),MATCH(G$5,'Rate Trajectory Calc'!$A$6:$CQ$6,0))=0," ",INDEX('Rate Trajectory Calc'!$A$6:$CQ$92,MATCH('Rate Trajectory Report'!$B10,'Rate Trajectory Calc'!$A$6:$A$92,0),MATCH('Rate Trajectory Report'!G$5,'Rate Trajectory Calc'!$A$6:$CQ$6,0))/1000) ->  | H10: =IF(INDEX('Rate Trajectory Calc'!$A$6:$CQ$92,MATCH('Rate Trajectory Report'!$B10,'Rate Trajectory Calc'!$A$6:$A$92,0),MATCH(H$5,'Rate Trajectory Calc'!$A$6:$CQ$6,0))=0," ",INDEX('Rate Trajectory Calc'!$A$6:$CQ$92,MATCH('Rate Trajectory Report'!$B10,'Rate Trajectory Calc'!$A$6:$A$92,0),MATCH('Rate Trajectory Report'!H$5,'Rate Trajectory Calc'!$A$6:$CQ$6,0))/1000) ->  | I10: =IF(INDEX('Rate Trajectory Calc'!$A$6:$CQ$92,MATCH('Rate Trajectory Report'!$B10,'Rate Trajectory Calc'!$A$6:$A$92,0),MATCH(I$5,'Rate Trajectory Calc'!$A$6:$CQ$6,0))=0," ",INDEX('Rate Trajectory Calc'!$A$6:$CQ$92,MATCH('Rate Trajectory Report'!$B10,'Rate Trajectory Calc'!$A$6:$A$92,0),MATCH('Rate Trajectory Report'!I$5,'Rate Trajectory Calc'!$A$6:$CQ$6,0))/1000) ->  | J10: =IF(INDEX('Rate Trajectory Calc'!$A$6:$CQ$92,MATCH('Rate Trajectory Report'!$B10,'Rate Trajectory Calc'!$A$6:$A$92,0),MATCH(J$5,'Rate Trajectory Calc'!$A$6:$CQ$6,0))=0," ",INDEX('Rate Trajectory Calc'!$A$6:$CQ$92,MATCH('Rate Trajectory Report'!$B10,'Rate Trajectory Calc'!$A$6:$A$92,0),MATCH('Rate Trajectory Report'!J$5,'Rate Trajectory Calc'!$A$6:$CQ$6,0))/1000) ->  | K10: =IF(INDEX('Rate Trajectory Calc'!$A$6:$CQ$92,MATCH('Rate Trajectory Report'!$B10,'Rate Trajectory Calc'!$A$6:$A$92,0),MATCH(K$5,'Rate Trajectory Calc'!$A$6:$CQ$6,0))=0," ",INDEX('Rate Trajectory Calc'!$A$6:$CQ$92,MATCH('Rate Trajectory Report'!$B10,'Rate Trajectory Calc'!$A$6:$A$92,0),MATCH('Rate Trajectory Report'!K$5,'Rate Trajectory Calc'!$A$6:$CQ$6,0))/1000) ->  | L10: =IF(INDEX('Rate Trajectory Calc'!$A$6:$CQ$92,MATCH('Rate Trajectory Report'!$B10,'Rate Trajectory Calc'!$A$6:$A$92,0),MATCH(L$5,'Rate Trajectory Calc'!$A$6:$CQ$6,0))=0," ",INDEX('Rate Trajectory Calc'!$A$6:$CQ$92,MATCH('Rate Trajectory Report'!$B10,'Rate Trajectory Calc'!$A$6:$A$92,0),MATCH('Rate Trajectory Report'!L$5,'Rate Trajectory Calc'!$A$6:$CQ$6,0))/1000) ->  | M10: =IF(INDEX('Rate Trajectory Calc'!$A$6:$CQ$92,MATCH('Rate Trajectory Report'!$B10,'Rate Trajectory Calc'!$A$6:$A$92,0),MATCH(M$5,'Rate Trajectory Calc'!$A$6:$CQ$6,0))=0," ",INDEX('Rate Trajectory Calc'!$A$6:$CQ$92,MATCH('Rate Trajectory Report'!$B10,'Rate Trajectory Calc'!$A$6:$A$92,0),MATCH('Rate Trajectory Report'!M$5,'Rate Trajectory Calc'!$A$6:$CQ$6,0))/1000) ->  | N10: =IF(INDEX('Rate Trajectory Calc'!$A$6:$CQ$92,MATCH('Rate Trajectory Report'!$B10,'Rate Trajectory Calc'!$A$6:$A$92,0),MATCH(N$5,'Rate Trajectory Calc'!$A$6:$CQ$6,0))=0," ",INDEX('Rate Trajectory Calc'!$A$6:$CQ$92,MATCH('Rate Trajectory Report'!$B10,'Rate Trajectory Calc'!$A$6:$A$92,0),MATCH('Rate Trajectory Report'!N$5,'Rate Trajectory Calc'!$A$6:$CQ$6,0))/1000) ->  | O10: =IF(INDEX('Rate Trajectory Calc'!$A$6:$CQ$92,MATCH('Rate Trajectory Report'!$B10,'Rate Trajectory Calc'!$A$6:$A$92,0),MATCH(O$5,'Rate Trajectory Calc'!$A$6:$CQ$6,0))=0," ",INDEX('Rate Trajectory Calc'!$A$6:$CQ$92,MATCH('Rate Trajectory Report'!$B10,'Rate Trajectory Calc'!$A$6:$A$92,0),MATCH('Rate Trajectory Report'!O$5,'Rate Trajectory Calc'!$A$6:$CQ$6,0))/1000) ->  | P10: =IF(INDEX('Rate Trajectory Calc'!$A$6:$CQ$92,MATCH('Rate Trajectory Report'!$B10,'Rate Trajectory Calc'!$A$6:$A$92,0),MATCH(P$5,'Rate Trajectory Calc'!$A$6:$CQ$6,0))=0," ",INDEX('Rate Trajectory Calc'!$A$6:$CQ$92,MATCH('Rate Trajectory Report'!$B10,'Rate Trajectory Calc'!$A$6:$A$92,0),MATCH('Rate Trajectory Report'!P$5,'Rate Trajectory Calc'!$A$6:$CQ$6,0))/1000) ->  | Q10: =IF(INDEX('Rate Trajectory Calc'!$A$6:$CQ$92,MATCH('Rate Trajectory Report'!$B10,'Rate Trajectory Calc'!$A$6:$A$92,0),MATCH(Q$5,'Rate Trajectory Calc'!$A$6:$CQ$6,0))=0," ",INDEX('Rate Trajectory Calc'!$A$6:$CQ$92,MATCH('Rate Trajectory Report'!$B10,'Rate Trajectory Calc'!$A$6:$A$92,0),MATCH('Rate Trajectory Report'!Q$5,'Rate Trajectory Calc'!$A$6:$CQ$6,0))/1000) ->  | R10: =IF(INDEX('Rate Trajectory Calc'!$A$6:$CQ$92,MATCH('Rate Trajectory Report'!$B10,'Rate Trajectory Calc'!$A$6:$A$92,0),MATCH(R$5,'Rate Trajectory Calc'!$A$6:$CQ$6,0))=0," ",INDEX('Rate Trajectory Calc'!$A$6:$CQ$92,MATCH('Rate Trajectory Report'!$B10,'Rate Trajectory Calc'!$A$6:$A$92,0),MATCH('Rate Trajectory Report'!R$5,'Rate Trajectory Calc'!$A$6:$CQ$6,0))/1000) ->  | S10: =IF(INDEX('Rate Trajectory Calc'!$A$6:$CQ$92,MATCH('Rate Trajectory Report'!$B10,'Rate Trajectory Calc'!$A$6:$A$92,0),MATCH(S$5,'Rate Trajectory Calc'!$A$6:$CQ$6,0))=0," ",INDEX('Rate Trajectory Calc'!$A$6:$CQ$92,MATCH('Rate Trajectory Report'!$B10,'Rate Trajectory Calc'!$A$6:$A$92,0),MATCH('Rate Trajectory Report'!S$5,'Rate Trajectory Calc'!$A$6:$CQ$6,0))/1000) ->  | T10: =IF(INDEX('Rate Trajectory Calc'!$A$6:$CQ$92,MATCH('Rate Trajectory Report'!$B10,'Rate Trajectory Calc'!$A$6:$A$92,0),MATCH(T$5,'Rate Trajectory Calc'!$A$6:$CQ$6,0))=0," ",INDEX('Rate Trajectory Calc'!$A$6:$CQ$92,MATCH('Rate Trajectory Report'!$B10,'Rate Trajectory Calc'!$A$6:$A$92,0),MATCH('Rate Trajectory Report'!T$5,'Rate Trajectory Calc'!$A$6:$CQ$6,0))/1000) ->  | U10: =IF(INDEX('Rate Trajectory Calc'!$A$6:$CQ$92,MATCH('Rate Trajectory Report'!$B10,'Rate Trajectory Calc'!$A$6:$A$92,0),MATCH(U$5,'Rate Trajectory Calc'!$A$6:$CQ$6,0))=0," ",INDEX('Rate Trajectory Calc'!$A$6:$CQ$92,MATCH('Rate Trajectory Report'!$B10,'Rate Trajectory Calc'!$A$6:$A$92,0),MATCH('Rate Trajectory Report'!U$5,'Rate Trajectory Calc'!$A$6:$CQ$6,0))/1000) ->  | V10: =IF(INDEX('Rate Trajectory Calc'!$A$6:$CQ$92,MATCH('Rate Trajectory Report'!$B10,'Rate Trajectory Calc'!$A$6:$A$92,0),MATCH(V$5,'Rate Trajectory Calc'!$A$6:$CQ$6,0))=0," ",INDEX('Rate Trajectory Calc'!$A$6:$CQ$92,MATCH('Rate Trajectory Report'!$B10,'Rate Trajectory Calc'!$A$6:$A$92,0),MATCH('Rate Trajectory Report'!V$5,'Rate Trajectory Calc'!$A$6:$CQ$6,0))/1000) ->  | W10: =IF(INDEX('Rate Trajectory Calc'!$A$6:$CQ$92,MATCH('Rate Trajectory Report'!$B10,'Rate Trajectory Calc'!$A$6:$A$92,0),MATCH(W$5,'Rate Trajectory Calc'!$A$6:$CQ$6,0))=0," ",INDEX('Rate Trajectory Calc'!$A$6:$CQ$92,MATCH('Rate Trajectory Report'!$B10,'Rate Trajectory Calc'!$A$6:$A$92,0),MATCH('Rate Trajectory Report'!W$5,'Rate Trajectory Calc'!$A$6:$CQ$6,0))/1000) ->  | X10: =IF(INDEX('Rate Trajectory Calc'!$A$6:$CQ$92,MATCH('Rate Trajectory Report'!$B10,'Rate Trajectory Calc'!$A$6:$A$92,0),MATCH(X$5,'Rate Trajectory Calc'!$A$6:$CQ$6,0))=0," ",INDEX('Rate Trajectory Calc'!$A$6:$CQ$92,MATCH('Rate Trajectory Report'!$B10,'Rate Trajectory Calc'!$A$6:$A$92,0),MATCH('Rate Trajectory Report'!X$5,'Rate Trajectory Calc'!$A$6:$CQ$6,0))/1000) ->  | Y10: =IF(INDEX('Rate Trajectory Calc'!$A$6:$CQ$92,MATCH('Rate Trajectory Report'!$B10,'Rate Trajectory Calc'!$A$6:$A$92,0),MATCH(Y$5,'Rate Trajectory Calc'!$A$6:$CQ$6,0))=0," ",INDEX('Rate Trajectory Calc'!$A$6:$CQ$92,MATCH('Rate Trajectory Report'!$B10,'Rate Trajectory Calc'!$A$6:$A$92,0),MATCH('Rate Trajectory Report'!Y$5,'Rate Trajectory Calc'!$A$6:$CQ$6,0))/1000) ->  | Z10: =IF(INDEX('Rate Trajectory Calc'!$A$6:$CQ$92,MATCH('Rate Trajectory Report'!$B10,'Rate Trajectory Calc'!$A$6:$A$92,0),MATCH(Z$5,'Rate Trajectory Calc'!$A$6:$CQ$6,0))=0," ",INDEX('Rate Trajectory Calc'!$A$6:$CQ$92,MATCH('Rate Trajectory Report'!$B10,'Rate Trajectory Calc'!$A$6:$A$92,0),MATCH('Rate Trajectory Report'!Z$5,'Rate Trajectory Calc'!$A$6:$CQ$6,0))/1000) ->  | AA10: =IF(INDEX('Rate Trajectory Calc'!$A$6:$CQ$92,MATCH('Rate Trajectory Report'!$B10,'Rate Trajectory Calc'!$A$6:$A$92,0),MATCH(AA$5,'Rate Trajectory Calc'!$A$6:$CQ$6,0))=0," ",INDEX('Rate Trajectory Calc'!$A$6:$CQ$92,MATCH('Rate Trajectory Report'!$B10,'Rate Trajectory Calc'!$A$6:$A$92,0),MATCH('Rate Trajectory Report'!AA$5,'Rate Trajectory Calc'!$A$6:$CQ$6,0))/1000) -> 
B11: ='Rate Trajectory Dashboard'!B15 -> Income Qualified Program (ESA) PY 2028-2033 - Year 2029 | C11: =IFERROR(VLOOKUP(B11,'Rate Trajectory Dashboard'!$B$12:$D$96,3,FALSE)/1000,'Rate Trajectory Report'!C9) -> 75.530121 | D11: =IF(INDEX('Rate Trajectory Calc'!$A$6:$CQ$92,MATCH('Rate Trajectory Report'!$B11,'Rate Trajectory Calc'!$A$6:$A$92,0),MATCH('Rate Trajectory Report'!D$5,'Rate Trajectory Calc'!$A$6:$CQ$6,0))=0," ",INDEX('Rate Trajectory Calc'!$A$6:$CQ$92,MATCH('Rate Trajectory Report'!$B11,'Rate Trajectory Calc'!$A$6:$A$92,0),MATCH('Rate Trajectory Report'!D$5,'Rate Trajectory Calc'!$A$6:$CQ$6,0))/1000) ->  | E11: =IF(INDEX('Rate Trajectory Calc'!$A$6:$CQ$92,MATCH('Rate Trajectory Report'!$B11,'Rate Trajectory Calc'!$A$6:$A$92,0),MATCH('Rate Trajectory Report'!E$5,'Rate Trajectory Calc'!$A$6:$CQ$6,0))=0," ",INDEX('Rate Trajectory Calc'!$A$6:$CQ$92,MATCH('Rate Trajectory Report'!$B11,'Rate Trajectory Calc'!$A$6:$A$92,0),MATCH('Rate Trajectory Report'!E$5,'Rate Trajectory Calc'!$A$6:$CQ$6,0))/1000) ->  | F11: =IF(INDEX('Rate Trajectory Calc'!$A$6:$CQ$92,MATCH('Rate Trajectory Report'!$B11,'Rate Trajectory Calc'!$A$6:$A$92,0),MATCH('Rate Trajectory Report'!F$5,'Rate Trajectory Calc'!$A$6:$CQ$6,0))=0," ",INDEX('Rate Trajectory Calc'!$A$6:$CQ$92,MATCH('Rate Trajectory Report'!$B11,'Rate Trajectory Calc'!$A$6:$A$92,0),MATCH('Rate Trajectory Report'!F$5,'Rate Trajectory Calc'!$A$6:$CQ$6,0))/1000) ->  | G11: =IF(INDEX('Rate Trajectory Calc'!$A$6:$CQ$92,MATCH('Rate Trajectory Report'!$B11,'Rate Trajectory Calc'!$A$6:$A$92,0),MATCH('Rate Trajectory Report'!G$5,'Rate Trajectory Calc'!$A$6:$CQ$6,0))=0," ",INDEX('Rate Trajectory Calc'!$A$6:$CQ$92,MATCH('Rate Trajectory Report'!$B11,'Rate Trajectory Calc'!$A$6:$A$92,0),MATCH('Rate Trajectory Report'!G$5,'Rate Trajectory Calc'!$A$6:$CQ$6,0))/1000) ->  | H11: =IF(INDEX('Rate Trajectory Calc'!$A$6:$CQ$92,MATCH('Rate Trajectory Report'!$B11,'Rate Trajectory Calc'!$A$6:$A$92,0),MATCH('Rate Trajectory Report'!H$5,'Rate Trajectory Calc'!$A$6:$CQ$6,0))=0," ",INDEX('Rate Trajectory Calc'!$A$6:$CQ$92,MATCH('Rate Trajectory Report'!$B11,'Rate Trajectory Calc'!$A$6:$A$92,0),MATCH('Rate Trajectory Report'!H$5,'Rate Trajectory Calc'!$A$6:$CQ$6,0))/1000) ->  | I11: =IF(INDEX('Rate Trajectory Calc'!$A$6:$CQ$92,MATCH('Rate Trajectory Report'!$B11,'Rate Trajectory Calc'!$A$6:$A$92,0),MATCH('Rate Trajectory Report'!I$5,'Rate Trajectory Calc'!$A$6:$CQ$6,0))=0," ",INDEX('Rate Trajectory Calc'!$A$6:$CQ$92,MATCH('Rate Trajectory Report'!$B11,'Rate Trajectory Calc'!$A$6:$A$92,0),MATCH('Rate Trajectory Report'!I$5,'Rate Trajectory Calc'!$A$6:$CQ$6,0))/1000) ->  | J11: =IF(INDEX('Rate Trajectory Calc'!$A$6:$CQ$92,MATCH('Rate Trajectory Report'!$B11,'Rate Trajectory Calc'!$A$6:$A$92,0),MATCH('Rate Trajectory Report'!J$5,'Rate Trajectory Calc'!$A$6:$CQ$6,0))=0," ",INDEX('Rate Trajectory Calc'!$A$6:$CQ$92,MATCH('Rate Trajectory Report'!$B11,'Rate Trajectory Calc'!$A$6:$A$92,0),MATCH('Rate Trajectory Report'!J$5,'Rate Trajectory Calc'!$A$6:$CQ$6,0))/1000) ->  | K11: =IF(INDEX('Rate Trajectory Calc'!$A$6:$CQ$92,MATCH('Rate Trajectory Report'!$B11,'Rate Trajectory Calc'!$A$6:$A$92,0),MATCH('Rate Trajectory Report'!K$5,'Rate Trajectory Calc'!$A$6:$CQ$6,0))=0," ",INDEX('Rate Trajectory Calc'!$A$6:$CQ$92,MATCH('Rate Trajectory Report'!$B11,'Rate Trajectory Calc'!$A$6:$A$92,0),MATCH('Rate Trajectory Report'!K$5,'Rate Trajectory Calc'!$A$6:$CQ$6,0))/1000) ->  | L11: =IF(INDEX('Rate Trajectory Calc'!$A$6:$CQ$92,MATCH('Rate Trajectory Report'!$B11,'Rate Trajectory Calc'!$A$6:$A$92,0),MATCH('Rate Trajectory Report'!L$5,'Rate Trajectory Calc'!$A$6:$CQ$6,0))=0," ",INDEX('Rate Trajectory Calc'!$A$6:$CQ$92,MATCH('Rate Trajectory Report'!$B11,'Rate Trajectory Calc'!$A$6:$A$92,0),MATCH('Rate Trajectory Report'!L$5,'Rate Trajectory Calc'!$A$6:$CQ$6,0))/1000) ->  | M11: =IF(INDEX('Rate Trajectory Calc'!$A$6:$CQ$92,MATCH('Rate Trajectory Report'!$B11,'Rate Trajectory Calc'!$A$6:$A$92,0),MATCH('Rate Trajectory Report'!M$5,'Rate Trajectory Calc'!$A$6:$CQ$6,0))=0," ",INDEX('Rate Trajectory Calc'!$A$6:$CQ$92,MATCH('Rate Trajectory Report'!$B11,'Rate Trajectory Calc'!$A$6:$A$92,0),MATCH('Rate Trajectory Report'!M$5,'Rate Trajectory Calc'!$A$6:$CQ$6,0))/1000) ->  | N11: =IF(INDEX('Rate Trajectory Calc'!$A$6:$CQ$92,MATCH('Rate Trajectory Report'!$B11,'Rate Trajectory Calc'!$A$6:$A$92,0),MATCH('Rate Trajectory Report'!N$5,'Rate Trajectory Calc'!$A$6:$CQ$6,0))=0," ",INDEX('Rate Trajectory Calc'!$A$6:$CQ$92,MATCH('Rate Trajectory Report'!$B11,'Rate Trajectory Calc'!$A$6:$A$92,0),MATCH('Rate Trajectory Report'!N$5,'Rate Trajectory Calc'!$A$6:$CQ$6,0))/1000) ->  | O11: =IF(INDEX('Rate Trajectory Calc'!$A$6:$CQ$92,MATCH('Rate Trajectory Report'!$B11,'Rate Trajectory Calc'!$A$6:$A$92,0),MATCH('Rate Trajectory Report'!O$5,'Rate Trajectory Calc'!$A$6:$CQ$6,0))=0," ",INDEX('Rate Trajectory Calc'!$A$6:$CQ$92,MATCH('Rate Trajectory Report'!$B11,'Rate Trajectory Calc'!$A$6:$A$92,0),MATCH('Rate Trajectory Report'!O$5,'Rate Trajectory Calc'!$A$6:$CQ$6,0))/1000) ->  | P11: =IF(INDEX('Rate Trajectory Calc'!$A$6:$CQ$92,MATCH('Rate Trajectory Report'!$B11,'Rate Trajectory Calc'!$A$6:$A$92,0),MATCH('Rate Trajectory Report'!P$5,'Rate Trajectory Calc'!$A$6:$CQ$6,0))=0," ",INDEX('Rate Trajectory Calc'!$A$6:$CQ$92,MATCH('Rate Trajectory Report'!$B11,'Rate Trajectory Calc'!$A$6:$A$92,0),MATCH('Rate Trajectory Report'!P$5,'Rate Trajectory Calc'!$A$6:$CQ$6,0))/1000) ->  | Q11: =IF(INDEX('Rate Trajectory Calc'!$A$6:$CQ$92,MATCH('Rate Trajectory Report'!$B11,'Rate Trajectory Calc'!$A$6:$A$92,0),MATCH('Rate Trajectory Report'!Q$5,'Rate Trajectory Calc'!$A$6:$CQ$6,0))=0," ",INDEX('Rate Trajectory Calc'!$A$6:$CQ$92,MATCH('Rate Trajectory Report'!$B11,'Rate Trajectory Calc'!$A$6:$A$92,0),MATCH('Rate Trajectory Report'!Q$5,'Rate Trajectory Calc'!$A$6:$CQ$6,0))/1000) ->  | R11: =IF(INDEX('Rate Trajectory Calc'!$A$6:$CQ$92,MATCH('Rate Trajectory Report'!$B11,'Rate Trajectory Calc'!$A$6:$A$92,0),MATCH('Rate Trajectory Report'!R$5,'Rate Trajectory Calc'!$A$6:$CQ$6,0))=0," ",INDEX('Rate Trajectory Calc'!$A$6:$CQ$92,MATCH('Rate Trajectory Report'!$B11,'Rate Trajectory Calc'!$A$6:$A$92,0),MATCH('Rate Trajectory Report'!R$5,'Rate Trajectory Calc'!$A$6:$CQ$6,0))/1000) ->  | S11: =IF(INDEX('Rate Trajectory Calc'!$A$6:$CQ$92,MATCH('Rate Trajectory Report'!$B11,'Rate Trajectory Calc'!$A$6:$A$92,0),MATCH('Rate Trajectory Report'!S$5,'Rate Trajectory Calc'!$A$6:$CQ$6,0))=0," ",INDEX('Rate Trajectory Calc'!$A$6:$CQ$92,MATCH('Rate Trajectory Report'!$B11,'Rate Trajectory Calc'!$A$6:$A$92,0),MATCH('Rate Trajectory Report'!S$5,'Rate Trajectory Calc'!$A$6:$CQ$6,0))/1000) ->  | T11: =IF(INDEX('Rate Trajectory Calc'!$A$6:$CQ$92,MATCH('Rate Trajectory Report'!$B11,'Rate Trajectory Calc'!$A$6:$A$92,0),MATCH('Rate Trajectory Report'!T$5,'Rate Trajectory Calc'!$A$6:$CQ$6,0))=0," ",INDEX('Rate Trajectory Calc'!$A$6:$CQ$92,MATCH('Rate Trajectory Report'!$B11,'Rate Trajectory Calc'!$A$6:$A$92,0),MATCH('Rate Trajectory Report'!T$5,'Rate Trajectory Calc'!$A$6:$CQ$6,0))/1000) ->  | U11: =IF(INDEX('Rate Trajectory Calc'!$A$6:$CQ$92,MATCH('Rate Trajectory Report'!$B11,'Rate Trajectory Calc'!$A$6:$A$92,0),MATCH('Rate Trajectory Report'!U$5,'Rate Trajectory Calc'!$A$6:$CQ$6,0))=0," ",INDEX('Rate Trajectory Calc'!$A$6:$CQ$92,MATCH('Rate Trajectory Report'!$B11,'Rate Trajectory Calc'!$A$6:$A$92,0),MATCH('Rate Trajectory Report'!U$5,'Rate Trajectory Calc'!$A$6:$CQ$6,0))/1000) ->  | V11: =IF(INDEX('Rate Trajectory Calc'!$A$6:$CQ$92,MATCH('Rate Trajectory Report'!$B11,'Rate Trajectory Calc'!$A$6:$A$92,0),MATCH('Rate Trajectory Report'!V$5,'Rate Trajectory Calc'!$A$6:$CQ$6,0))=0," ",INDEX('Rate Trajectory Calc'!$A$6:$CQ$92,MATCH('Rate Trajectory Report'!$B11,'Rate Trajectory Calc'!$A$6:$A$92,0),MATCH('Rate Trajectory Report'!V$5,'Rate Trajectory Calc'!$A$6:$CQ$6,0))/1000) ->  | W11: =IF(INDEX('Rate Trajectory Calc'!$A$6:$CQ$92,MATCH('Rate Trajectory Report'!$B11,'Rate Trajectory Calc'!$A$6:$A$92,0),MATCH('Rate Trajectory Report'!W$5,'Rate Trajectory Calc'!$A$6:$CQ$6,0))=0," ",INDEX('Rate Trajectory Calc'!$A$6:$CQ$92,MATCH('Rate Trajectory Report'!$B11,'Rate Trajectory Calc'!$A$6:$A$92,0),MATCH('Rate Trajectory Report'!W$5,'Rate Trajectory Calc'!$A$6:$CQ$6,0))/1000) ->  | X11: =IF(INDEX('Rate Trajectory Calc'!$A$6:$CQ$92,MATCH('Rate Trajectory Report'!$B11,'Rate Trajectory Calc'!$A$6:$A$92,0),MATCH('Rate Trajectory Report'!X$5,'Rate Trajectory Calc'!$A$6:$CQ$6,0))=0," ",INDEX('Rate Trajectory Calc'!$A$6:$CQ$92,MATCH('Rate Trajectory Report'!$B11,'Rate Trajectory Calc'!$A$6:$A$92,0),MATCH('Rate Trajectory Report'!X$5,'Rate Trajectory Calc'!$A$6:$CQ$6,0))/1000) ->  | Y11: =IF(INDEX('Rate Trajectory Calc'!$A$6:$CQ$92,MATCH('Rate Trajectory Report'!$B11,'Rate Trajectory Calc'!$A$6:$A$92,0),MATCH('Rate Trajectory Report'!Y$5,'Rate Trajectory Calc'!$A$6:$CQ$6,0))=0," ",INDEX('Rate Trajectory Calc'!$A$6:$CQ$92,MATCH('Rate Trajectory Report'!$B11,'Rate Trajectory Calc'!$A$6:$A$92,0),MATCH('Rate Trajectory Report'!Y$5,'Rate Trajectory Calc'!$A$6:$CQ$6,0))/1000) ->  | Z11: =IF(INDEX('Rate Trajectory Calc'!$A$6:$CQ$92,MATCH('Rate Trajectory Report'!$B11,'Rate Trajectory Calc'!$A$6:$A$92,0),MATCH('Rate Trajectory Report'!Z$5,'Rate Trajectory Calc'!$A$6:$CQ$6,0))=0," ",INDEX('Rate Trajectory Calc'!$A$6:$CQ$92,MATCH('Rate Trajectory Report'!$B11,'Rate Trajectory Calc'!$A$6:$A$92,0),MATCH('Rate Trajectory Report'!Z$5,'Rate Trajectory Calc'!$A$6:$CQ$6,0))/1000) ->  | AA11: =IF(INDEX('Rate Trajectory Calc'!$A$6:$CQ$92,MATCH('Rate Trajectory Report'!$B11,'Rate Trajectory Calc'!$A$6:$A$92,0),MATCH('Rate Trajectory Report'!AA$5,'Rate Trajectory Calc'!$A$6:$CQ$6,0))=0," ",INDEX('Rate Trajectory Calc'!$A$6:$CQ$92,MATCH('Rate Trajectory Report'!$B11,'Rate Trajectory Calc'!$A$6:$A$92,0),MATCH('Rate Trajectory Report'!AA$5,'Rate Trajectory Calc'!$A$6:$CQ$6,0))/1000) -> 
A12: 3a | B12: Income Qualified Program (ESA) PY 2028-2033 | C12: =IFERROR(VLOOKUP(B12,'Rate Trajectory Dashboard'!$B$12:$D$96,3,FALSE)/1000,'Rate Trajectory Report'!C10) -> 75.530121 | D12: =IF(SUM(D10:D11)=0," ",SUBTOTAL(9,D10:D11)) ->  | E12: =IF(SUM(E10:E11)=0," ",SUBTOTAL(9,E10:E11)) -> 
B13: ='Rate Trajectory Dashboard'!B16 -> Income Qualified Program (CARE) PY 2028-2033 - Year 2028 | C13: =IFERROR(VLOOKUP(B13,'Rate Trajectory Dashboard'!$B$12:$D$96,3,FALSE)/1000,'Rate Trajectory Report'!C11) -> 2.95754 | D13: =IF(INDEX('Rate Trajectory Calc'!$A$6:$CQ$92,MATCH('Rate Trajectory Report'!$B13,'Rate Trajectory Calc'!$A$6:$A$92,0),MATCH('Rate Trajectory Report'!D$5,'Rate Trajectory Calc'!$A$6:$CQ$6,0))=0," ",INDEX('Rate Trajectory Calc'!$A$6:$CQ$92,MATCH('Rate Trajectory Report'!$B13,'Rate Trajectory Calc'!$A$6:$A$92,0),MATCH('Rate Trajectory Report'!D$5,'Rate Trajectory Calc'!$A$6:$CQ$6,0))/1000) ->  | E13: =IF(INDEX('Rate Trajectory Calc'!$A$6:$CQ$92,MATCH('Rate Trajectory Report'!$B13,'Rate Trajectory Calc'!$A$6:$A$92,0),MATCH('Rate Trajectory Report'!E$5,'Rate Trajectory Calc'!$A$6:$CQ$6,0))=0," ",INDEX('Rate Trajectory Calc'!$A$6:$CQ$92,MATCH('Rate Trajectory Report'!$B13,'Rate Trajectory Calc'!$A$6:$A$92,0),MATCH('Rate Trajectory Report'!E$5,'Rate Trajectory Calc'!$A$6:$CQ$6,0))/1000) ->  | F13: =IF(INDEX('Rate Trajectory Calc'!$A$6:$CQ$92,MATCH('Rate Trajectory Report'!$B13,'Rate Trajectory Calc'!$A$6:$A$92,0),MATCH('Rate Trajectory Report'!F$5,'Rate Trajectory Calc'!$A$6:$CQ$6,0))=0," ",INDEX('Rate Trajectory Calc'!$A$6:$CQ$92,MATCH('Rate Trajectory Report'!$B13,'Rate Trajectory Calc'!$A$6:$A$92,0),MATCH('Rate Trajectory Report'!F$5,'Rate Trajectory Calc'!$A$6:$CQ$6,0))/1000) ->  | G13: =IF(INDEX('Rate Trajectory Calc'!$A$6:$CQ$92,MATCH('Rate Trajectory Report'!$B13,'Rate Trajectory Calc'!$A$6:$A$92,0),MATCH('Rate Trajectory Report'!G$5,'Rate Trajectory Calc'!$A$6:$CQ$6,0))=0," ",INDEX('Rate Trajectory Calc'!$A$6:$CQ$92,MATCH('Rate Trajectory Report'!$B13,'Rate Trajectory Calc'!$A$6:$A$92,0),MATCH('Rate Trajectory Report'!G$5,'Rate Trajectory Calc'!$A$6:$CQ$6,0))/1000) ->  | H13: =IF(INDEX('Rate Trajectory Calc'!$A$6:$CQ$92,MATCH('Rate Trajectory Report'!$B13,'Rate Trajectory Calc'!$A$6:$A$92,0),MATCH('Rate Trajectory Report'!H$5,'Rate Trajectory Calc'!$A$6:$CQ$6,0))=0," ",INDEX('Rate Trajectory Calc'!$A$6:$CQ$92,MATCH('Rate Trajectory Report'!$B13,'Rate Trajectory Calc'!$A$6:$A$92,0),MATCH('Rate Trajectory Report'!H$5,'Rate Trajectory Calc'!$A$6:$CQ$6,0))/1000) ->  | I13: =IF(INDEX('Rate Trajectory Calc'!$A$6:$CQ$92,MATCH('Rate Trajectory Report'!$B13,'Rate Trajectory Calc'!$A$6:$A$92,0),MATCH('Rate Trajectory Report'!I$5,'Rate Trajectory Calc'!$A$6:$CQ$6,0))=0," ",INDEX('Rate Trajectory Calc'!$A$6:$CQ$92,MATCH('Rate Trajectory Report'!$B13,'Rate Trajectory Calc'!$A$6:$A$92,0),MATCH('Rate Trajectory Report'!I$5,'Rate Trajectory Calc'!$A$6:$CQ$6,0))/1000) ->  | J13: =IF(INDEX('Rate Trajectory Calc'!$A$6:$CQ$92,MATCH('Rate Trajectory Report'!$B13,'Rate Trajectory Calc'!$A$6:$A$92,0),MATCH('Rate Trajectory Report'!J$5,'Rate Trajectory Calc'!$A$6:$CQ$6,0))=0," ",INDEX('Rate Trajectory Calc'!$A$6:$CQ$92,MATCH('Rate Trajectory Report'!$B13,'Rate Trajectory Calc'!$A$6:$A$92,0),MATCH('Rate Trajectory Report'!J$5,'Rate Trajectory Calc'!$A$6:$CQ$6,0))/1000) ->  | K13: =IF(INDEX('Rate Trajectory Calc'!$A$6:$CQ$92,MATCH('Rate Trajectory Report'!$B13,'Rate Trajectory Calc'!$A$6:$A$92,0),MATCH('Rate Trajectory Report'!K$5,'Rate Trajectory Calc'!$A$6:$CQ$6,0))=0," ",INDEX('Rate Trajectory Calc'!$A$6:$CQ$92,MATCH('Rate Trajectory Report'!$B13,'Rate Trajectory Calc'!$A$6:$A$92,0),MATCH('Rate Trajectory Report'!K$5,'Rate Trajectory Calc'!$A$6:$CQ$6,0))/1000) ->  | L13: =IF(INDEX('Rate Trajectory Calc'!$A$6:$CQ$92,MATCH('Rate Trajectory Report'!$B13,'Rate Trajectory Calc'!$A$6:$A$92,0),MATCH('Rate Trajectory Report'!L$5,'Rate Trajectory Calc'!$A$6:$CQ$6,0))=0," ",INDEX('Rate Trajectory Calc'!$A$6:$CQ$92,MATCH('Rate Trajectory Report'!$B13,'Rate Trajectory Calc'!$A$6:$A$92,0),MATCH('Rate Trajectory Report'!L$5,'Rate Trajectory Calc'!$A$6:$CQ$6,0))/1000) ->  | M13: =IF(INDEX('Rate Trajectory Calc'!$A$6:$CQ$92,MATCH('Rate Trajectory Report'!$B13,'Rate Trajectory Calc'!$A$6:$A$92,0),MATCH('Rate Trajectory Report'!M$5,'Rate Trajectory Calc'!$A$6:$CQ$6,0))=0," ",INDEX('Rate Trajectory Calc'!$A$6:$CQ$92,MATCH('Rate Trajectory Report'!$B13,'Rate Trajectory Calc'!$A$6:$A$92,0),MATCH('Rate Trajectory Report'!M$5,'Rate Trajectory Calc'!$A$6:$CQ$6,0))/1000) ->  | N13: =IF(INDEX('Rate Trajectory Calc'!$A$6:$CQ$92,MATCH('Rate Trajectory Report'!$B13,'Rate Trajectory Calc'!$A$6:$A$92,0),MATCH('Rate Trajectory Report'!N$5,'Rate Trajectory Calc'!$A$6:$CQ$6,0))=0," ",INDEX('Rate Trajectory Calc'!$A$6:$CQ$92,MATCH('Rate Trajectory Report'!$B13,'Rate Trajectory Calc'!$A$6:$A$92,0),MATCH('Rate Trajectory Report'!N$5,'Rate Trajectory Calc'!$A$6:$CQ$6,0))/1000) ->  | O13: =IF(INDEX('Rate Trajectory Calc'!$A$6:$CQ$92,MATCH('Rate Trajectory Report'!$B13,'Rate Trajectory Calc'!$A$6:$A$92,0),MATCH('Rate Trajectory Report'!O$5,'Rate Trajectory Calc'!$A$6:$CQ$6,0))=0," ",INDEX('Rate Trajectory Calc'!$A$6:$CQ$92,MATCH('Rate Trajectory Report'!$B13,'Rate Trajectory Calc'!$A$6:$A$92,0),MATCH('Rate Trajectory Report'!O$5,'Rate Trajectory Calc'!$A$6:$CQ$6,0))/1000) ->  | P13: =IF(INDEX('Rate Trajectory Calc'!$A$6:$CQ$92,MATCH('Rate Trajectory Report'!$B13,'Rate Trajectory Calc'!$A$6:$A$92,0),MATCH('Rate Trajectory Report'!P$5,'Rate Trajectory Calc'!$A$6:$CQ$6,0))=0," ",INDEX('Rate Trajectory Calc'!$A$6:$CQ$92,MATCH('Rate Trajectory Report'!$B13,'Rate Trajectory Calc'!$A$6:$A$92,0),MATCH('Rate Trajectory Report'!P$5,'Rate Trajectory Calc'!$A$6:$CQ$6,0))/1000) ->  | Q13: =IF(INDEX('Rate Trajectory Calc'!$A$6:$CQ$92,MATCH('Rate Trajectory Report'!$B13,'Rate Trajectory Calc'!$A$6:$A$92,0),MATCH('Rate Trajectory Report'!Q$5,'Rate Trajectory Calc'!$A$6:$CQ$6,0))=0," ",INDEX('Rate Trajectory Calc'!$A$6:$CQ$92,MATCH('Rate Trajectory Report'!$B13,'Rate Trajectory Calc'!$A$6:$A$92,0),MATCH('Rate Trajectory Report'!Q$5,'Rate Trajectory Calc'!$A$6:$CQ$6,0))/1000) ->  | R13: =IF(INDEX('Rate Trajectory Calc'!$A$6:$CQ$92,MATCH('Rate Trajectory Report'!$B13,'Rate Trajectory Calc'!$A$6:$A$92,0),MATCH('Rate Trajectory Report'!R$5,'Rate Trajectory Calc'!$A$6:$CQ$6,0))=0," ",INDEX('Rate Trajectory Calc'!$A$6:$CQ$92,MATCH('Rate Trajectory Report'!$B13,'Rate Trajectory Calc'!$A$6:$A$92,0),MATCH('Rate Trajectory Report'!R$5,'Rate Trajectory Calc'!$A$6:$CQ$6,0))/1000) ->  | S13: =IF(INDEX('Rate Trajectory Calc'!$A$6:$CQ$92,MATCH('Rate Trajectory Report'!$B13,'Rate Trajectory Calc'!$A$6:$A$92,0),MATCH('Rate Trajectory Report'!S$5,'Rate Trajectory Calc'!$A$6:$CQ$6,0))=0," ",INDEX('Rate Trajectory Calc'!$A$6:$CQ$92,MATCH('Rate Trajectory Report'!$B13,'Rate Trajectory Calc'!$A$6:$A$92,0),MATCH('Rate Trajectory Report'!S$5,'Rate Trajectory Calc'!$A$6:$CQ$6,0))/1000) ->  | T13: =IF(INDEX('Rate Trajectory Calc'!$A$6:$CQ$92,MATCH('Rate Trajectory Report'!$B13,'Rate Trajectory Calc'!$A$6:$A$92,0),MATCH('Rate Trajectory Report'!T$5,'Rate Trajectory Calc'!$A$6:$CQ$6,0))=0," ",INDEX('Rate Trajectory Calc'!$A$6:$CQ$92,MATCH('Rate Trajectory Report'!$B13,'Rate Trajectory Calc'!$A$6:$A$92,0),MATCH('Rate Trajectory Report'!T$5,'Rate Trajectory Calc'!$A$6:$CQ$6,0))/1000) ->  | U13: =IF(INDEX('Rate Trajectory Calc'!$A$6:$CQ$92,MATCH('Rate Trajectory Report'!$B13,'Rate Trajectory Calc'!$A$6:$A$92,0),MATCH('Rate Trajectory Report'!U$5,'Rate Trajectory Calc'!$A$6:$CQ$6,0))=0," ",INDEX('Rate Trajectory Calc'!$A$6:$CQ$92,MATCH('Rate Trajectory Report'!$B13,'Rate Trajectory Calc'!$A$6:$A$92,0),MATCH('Rate Trajectory Report'!U$5,'Rate Trajectory Calc'!$A$6:$CQ$6,0))/1000) ->  | V13: =IF(INDEX('Rate Trajectory Calc'!$A$6:$CQ$92,MATCH('Rate Trajectory Report'!$B13,'Rate Trajectory Calc'!$A$6:$A$92,0),MATCH('Rate Trajectory Report'!V$5,'Rate Trajectory Calc'!$A$6:$CQ$6,0))=0," ",INDEX('Rate Trajectory Calc'!$A$6:$CQ$92,MATCH('Rate Trajectory Report'!$B13,'Rate Trajectory Calc'!$A$6:$A$92,0),MATCH('Rate Trajectory Report'!V$5,'Rate Trajectory Calc'!$A$6:$CQ$6,0))/1000) ->  | W13: =IF(INDEX('Rate Trajectory Calc'!$A$6:$CQ$92,MATCH('Rate Trajectory Report'!$B13,'Rate Trajectory Calc'!$A$6:$A$92,0),MATCH('Rate Trajectory Report'!W$5,'Rate Trajectory Calc'!$A$6:$CQ$6,0))=0," ",INDEX('Rate Trajectory Calc'!$A$6:$CQ$92,MATCH('Rate Trajectory Report'!$B13,'Rate Trajectory Calc'!$A$6:$A$92,0),MATCH('Rate Trajectory Report'!W$5,'Rate Trajectory Calc'!$A$6:$CQ$6,0))/1000) ->  | X13: =IF(INDEX('Rate Trajectory Calc'!$A$6:$CQ$92,MATCH('Rate Trajectory Report'!$B13,'Rate Trajectory Calc'!$A$6:$A$92,0),MATCH('Rate Trajectory Report'!X$5,'Rate Trajectory Calc'!$A$6:$CQ$6,0))=0," ",INDEX('Rate Trajectory Calc'!$A$6:$CQ$92,MATCH('Rate Trajectory Report'!$B13,'Rate Trajectory Calc'!$A$6:$A$92,0),MATCH('Rate Trajectory Report'!X$5,'Rate Trajectory Calc'!$A$6:$CQ$6,0))/1000) ->  | Y13: =IF(INDEX('Rate Trajectory Calc'!$A$6:$CQ$92,MATCH('Rate Trajectory Report'!$B13,'Rate Trajectory Calc'!$A$6:$A$92,0),MATCH('Rate Trajectory Report'!Y$5,'Rate Trajectory Calc'!$A$6:$CQ$6,0))=0," ",INDEX('Rate Trajectory Calc'!$A$6:$CQ$92,MATCH('Rate Trajectory Report'!$B13,'Rate Trajectory Calc'!$A$6:$A$92,0),MATCH('Rate Trajectory Report'!Y$5,'Rate Trajectory Calc'!$A$6:$CQ$6,0))/1000) ->  | Z13: =IF(INDEX('Rate Trajectory Calc'!$A$6:$CQ$92,MATCH('Rate Trajectory Report'!$B13,'Rate Trajectory Calc'!$A$6:$A$92,0),MATCH('Rate Trajectory Report'!Z$5,'Rate Trajectory Calc'!$A$6:$CQ$6,0))=0," ",INDEX('Rate Trajectory Calc'!$A$6:$CQ$92,MATCH('Rate Trajectory Report'!$B13,'Rate Trajectory Calc'!$A$6:$A$92,0),MATCH('Rate Trajectory Report'!Z$5,'Rate Trajectory Calc'!$A$6:$CQ$6,0))/1000) ->  | AA13: =IF(INDEX('Rate Trajectory Calc'!$A$6:$CQ$92,MATCH('Rate Trajectory Report'!$B13,'Rate Trajectory Calc'!$A$6:$A$92,0),MATCH('Rate Trajectory Report'!AA$5,'Rate Trajectory Calc'!$A$6:$CQ$6,0))=0," ",INDEX('Rate Trajectory Calc'!$A$6:$CQ$92,MATCH('Rate Trajectory Report'!$B13,'Rate Trajectory Calc'!$A$6:$A$92,0),MATCH('Rate Trajectory Report'!AA$5,'Rate Trajectory Calc'!$A$6:$CQ$6,0))/1000) -> 
B14: ='Rate Trajectory Dashboard'!B17 -> Income Qualified Program (CARE) PY 2028-2033 - Year 2029 | C14: =IFERROR(VLOOKUP(B14,'Rate Trajectory Dashboard'!$B$12:$D$96,3,FALSE)/1000,'Rate Trajectory Report'!C12) -> 2.95754 | D14: =IF(INDEX('Rate Trajectory Calc'!$A$6:$CQ$92,MATCH('Rate Trajectory Report'!$B14,'Rate Trajectory Calc'!$A$6:$A$92,0),MATCH('Rate Trajectory Report'!D$5,'Rate Trajectory Calc'!$A$6:$CQ$6,0))=0," ",INDEX('Rate Trajectory Calc'!$A$6:$CQ$92,MATCH('Rate Trajectory Report'!$B14,'Rate Trajectory Calc'!$A$6:$A$92,0),MATCH('Rate Trajectory Report'!D$5,'Rate Trajectory Calc'!$A$6:$CQ$6,0))/1000) ->  | E14: =IF(INDEX('Rate Trajectory Calc'!$A$6:$CQ$92,MATCH('Rate Trajectory Report'!$B14,'Rate Trajectory Calc'!$A$6:$A$92,0),MATCH('Rate Trajectory Report'!E$5,'Rate Trajectory Calc'!$A$6:$CQ$6,0))=0," ",INDEX('Rate Trajectory Calc'!$A$6:$CQ$92,MATCH('Rate Trajectory Report'!$B14,'Rate Trajectory Calc'!$A$6:$A$92,0),MATCH('Rate Trajectory Report'!E$5,'Rate Trajectory Calc'!$A$6:$CQ$6,0))/1000) ->  | F14: =IF(INDEX('Rate Trajectory Calc'!$A$6:$CQ$92,MATCH('Rate Trajectory Report'!$B14,'Rate Trajectory Calc'!$A$6:$A$92,0),MATCH('Rate Trajectory Report'!F$5,'Rate Trajectory Calc'!$A$6:$CQ$6,0))=0," ",INDEX('Rate Trajectory Calc'!$A$6:$CQ$92,MATCH('Rate Trajectory Report'!$B14,'Rate Trajectory Calc'!$A$6:$A$92,0),MATCH('Rate Trajectory Report'!F$5,'Rate Trajectory Calc'!$A$6:$CQ$6,0))/1000) ->  | G14: =IF(INDEX('Rate Trajectory Calc'!$A$6:$CQ$92,MATCH('Rate Trajectory Report'!$B14,'Rate Trajectory Calc'!$A$6:$A$92,0),MATCH('Rate Trajectory Report'!G$5,'Rate Trajectory Calc'!$A$6:$CQ$6,0))=0," ",INDEX('Rate Trajectory Calc'!$A$6:$CQ$92,MATCH('Rate Trajectory Report'!$B14,'Rate Trajectory Calc'!$A$6:$A$92,0),MATCH('Rate Trajectory Report'!G$5,'Rate Trajectory Calc'!$A$6:$CQ$6,0))/1000) ->  | H14: =IF(INDEX('Rate Trajectory Calc'!$A$6:$CQ$92,MATCH('Rate Trajectory Report'!$B14,'Rate Trajectory Calc'!$A$6:$A$92,0),MATCH('Rate Trajectory Report'!H$5,'Rate Trajectory Calc'!$A$6:$CQ$6,0))=0," ",INDEX('Rate Trajectory Calc'!$A$6:$CQ$92,MATCH('Rate Trajectory Report'!$B14,'Rate Trajectory Calc'!$A$6:$A$92,0),MATCH('Rate Trajectory Report'!H$5,'Rate Trajectory Calc'!$A$6:$CQ$6,0))/1000) ->  | I14: =IF(INDEX('Rate Trajectory Calc'!$A$6:$CQ$92,MATCH('Rate Trajectory Report'!$B14,'Rate Trajectory Calc'!$A$6:$A$92,0),MATCH('Rate Trajectory Report'!I$5,'Rate Trajectory Calc'!$A$6:$CQ$6,0))=0," ",INDEX('Rate Trajectory Calc'!$A$6:$CQ$92,MATCH('Rate Trajectory Report'!$B14,'Rate Trajectory Calc'!$A$6:$A$92,0),MATCH('Rate Trajectory Report'!I$5,'Rate Trajectory Calc'!$A$6:$CQ$6,0))/1000) ->  | J14: =IF(INDEX('Rate Trajectory Calc'!$A$6:$CQ$92,MATCH('Rate Trajectory Report'!$B14,'Rate Trajectory Calc'!$A$6:$A$92,0),MATCH('Rate Trajectory Report'!J$5,'Rate Trajectory Calc'!$A$6:$CQ$6,0))=0," ",INDEX('Rate Trajectory Calc'!$A$6:$CQ$92,MATCH('Rate Trajectory Report'!$B14,'Rate Trajectory Calc'!$A$6:$A$92,0),MATCH('Rate Trajectory Report'!J$5,'Rate Trajectory Calc'!$A$6:$CQ$6,0))/1000) ->  | K14: =IF(INDEX('Rate Trajectory Calc'!$A$6:$CQ$92,MATCH('Rate Trajectory Report'!$B14,'Rate Trajectory Calc'!$A$6:$A$92,0),MATCH('Rate Trajectory Report'!K$5,'Rate Trajectory Calc'!$A$6:$CQ$6,0))=0," ",INDEX('Rate Trajectory Calc'!$A$6:$CQ$92,MATCH('Rate Trajectory Report'!$B14,'Rate Trajectory Calc'!$A$6:$A$92,0),MATCH('Rate Trajectory Report'!K$5,'Rate Trajectory Calc'!$A$6:$CQ$6,0))/1000) ->  | L14: =IF(INDEX('Rate Trajectory Calc'!$A$6:$CQ$92,MATCH('Rate Trajectory Report'!$B14,'Rate Trajectory Calc'!$A$6:$A$92,0),MATCH('Rate Trajectory Report'!L$5,'Rate Trajectory Calc'!$A$6:$CQ$6,0))=0," ",INDEX('Rate Trajectory Calc'!$A$6:$CQ$92,MATCH('Rate Trajectory Report'!$B14,'Rate Trajectory Calc'!$A$6:$A$92,0),MATCH('Rate Trajectory Report'!L$5,'Rate Trajectory Calc'!$A$6:$CQ$6,0))/1000) ->  | M14: =IF(INDEX('Rate Trajectory Calc'!$A$6:$CQ$92,MATCH('Rate Trajectory Report'!$B14,'Rate Trajectory Calc'!$A$6:$A$92,0),MATCH('Rate Trajectory Report'!M$5,'Rate Trajectory Calc'!$A$6:$CQ$6,0))=0," ",INDEX('Rate Trajectory Calc'!$A$6:$CQ$92,MATCH('Rate Trajectory Report'!$B14,'Rate Trajectory Calc'!$A$6:$A$92,0),MATCH('Rate Trajectory Report'!M$5,'Rate Trajectory Calc'!$A$6:$CQ$6,0))/1000) ->  | N14: =IF(INDEX('Rate Trajectory Calc'!$A$6:$CQ$92,MATCH('Rate Trajectory Report'!$B14,'Rate Trajectory Calc'!$A$6:$A$92,0),MATCH('Rate Trajectory Report'!N$5,'Rate Trajectory Calc'!$A$6:$CQ$6,0))=0," ",INDEX('Rate Trajectory Calc'!$A$6:$CQ$92,MATCH('Rate Trajectory Report'!$B14,'Rate Trajectory Calc'!$A$6:$A$92,0),MATCH('Rate Trajectory Report'!N$5,'Rate Trajectory Calc'!$A$6:$CQ$6,0))/1000) ->  | O14: =IF(INDEX('Rate Trajectory Calc'!$A$6:$CQ$92,MATCH('Rate Trajectory Report'!$B14,'Rate Trajectory Calc'!$A$6:$A$92,0),MATCH('Rate Trajectory Report'!O$5,'Rate Trajectory Calc'!$A$6:$CQ$6,0))=0," ",INDEX('Rate Trajectory Calc'!$A$6:$CQ$92,MATCH('Rate Trajectory Report'!$B14,'Rate Trajectory Calc'!$A$6:$A$92,0),MATCH('Rate Trajectory Report'!O$5,'Rate Trajectory Calc'!$A$6:$CQ$6,0))/1000) ->  | P14: =IF(INDEX('Rate Trajectory Calc'!$A$6:$CQ$92,MATCH('Rate Trajectory Report'!$B14,'Rate Trajectory Calc'!$A$6:$A$92,0),MATCH('Rate Trajectory Report'!P$5,'Rate Trajectory Calc'!$A$6:$CQ$6,0))=0," ",INDEX('Rate Trajectory Calc'!$A$6:$CQ$92,MATCH('Rate Trajectory Report'!$B14,'Rate Trajectory Calc'!$A$6:$A$92,0),MATCH('Rate Trajectory Report'!P$5,'Rate Trajectory Calc'!$A$6:$CQ$6,0))/1000) ->  | Q14: =IF(INDEX('Rate Trajectory Calc'!$A$6:$CQ$92,MATCH('Rate Trajectory Report'!$B14,'Rate Trajectory Calc'!$A$6:$A$92,0),MATCH('Rate Trajectory Report'!Q$5,'Rate Trajectory Calc'!$A$6:$CQ$6,0))=0," ",INDEX('Rate Trajectory Calc'!$A$6:$CQ$92,MATCH('Rate Trajectory Report'!$B14,'Rate Trajectory Calc'!$A$6:$A$92,0),MATCH('Rate Trajectory Report'!Q$5,'Rate Trajectory Calc'!$A$6:$CQ$6,0))/1000) ->  | R14: =IF(INDEX('Rate Trajectory Calc'!$A$6:$CQ$92,MATCH('Rate Trajectory Report'!$B14,'Rate Trajectory Calc'!$A$6:$A$92,0),MATCH('Rate Trajectory Report'!R$5,'Rate Trajectory Calc'!$A$6:$CQ$6,0))=0," ",INDEX('Rate Trajectory Calc'!$A$6:$CQ$92,MATCH('Rate Trajectory Report'!$B14,'Rate Trajectory Calc'!$A$6:$A$92,0),MATCH('Rate Trajectory Report'!R$5,'Rate Trajectory Calc'!$A$6:$CQ$6,0))/1000) ->  | S14: =IF(INDEX('Rate Trajectory Calc'!$A$6:$CQ$92,MATCH('Rate Trajectory Report'!$B14,'Rate Trajectory Calc'!$A$6:$A$92,0),MATCH('Rate Trajectory Report'!S$5,'Rate Trajectory Calc'!$A$6:$CQ$6,0))=0," ",INDEX('Rate Trajectory Calc'!$A$6:$CQ$92,MATCH('Rate Trajectory Report'!$B14,'Rate Trajectory Calc'!$A$6:$A$92,0),MATCH('Rate Trajectory Report'!S$5,'Rate Trajectory Calc'!$A$6:$CQ$6,0))/1000) ->  | T14: =IF(INDEX('Rate Trajectory Calc'!$A$6:$CQ$92,MATCH('Rate Trajectory Report'!$B14,'Rate Trajectory Calc'!$A$6:$A$92,0),MATCH('Rate Trajectory Report'!T$5,'Rate Trajectory Calc'!$A$6:$CQ$6,0))=0," ",INDEX('Rate Trajectory Calc'!$A$6:$CQ$92,MATCH('Rate Trajectory Report'!$B14,'Rate Trajectory Calc'!$A$6:$A$92,0),MATCH('Rate Trajectory Report'!T$5,'Rate Trajectory Calc'!$A$6:$CQ$6,0))/1000) ->  | U14: =IF(INDEX('Rate Trajectory Calc'!$A$6:$CQ$92,MATCH('Rate Trajectory Report'!$B14,'Rate Trajectory Calc'!$A$6:$A$92,0),MATCH('Rate Trajectory Report'!U$5,'Rate Trajectory Calc'!$A$6:$CQ$6,0))=0," ",INDEX('Rate Trajectory Calc'!$A$6:$CQ$92,MATCH('Rate Trajectory Report'!$B14,'Rate Trajectory Calc'!$A$6:$A$92,0),MATCH('Rate Trajectory Report'!U$5,'Rate Trajectory Calc'!$A$6:$CQ$6,0))/1000) ->  | V14: =IF(INDEX('Rate Trajectory Calc'!$A$6:$CQ$92,MATCH('Rate Trajectory Report'!$B14,'Rate Trajectory Calc'!$A$6:$A$92,0),MATCH('Rate Trajectory Report'!V$5,'Rate Trajectory Calc'!$A$6:$CQ$6,0))=0," ",INDEX('Rate Trajectory Calc'!$A$6:$CQ$92,MATCH('Rate Trajectory Report'!$B14,'Rate Trajectory Calc'!$A$6:$A$92,0),MATCH('Rate Trajectory Report'!V$5,'Rate Trajectory Calc'!$A$6:$CQ$6,0))/1000) ->  | W14: =IF(INDEX('Rate Trajectory Calc'!$A$6:$CQ$92,MATCH('Rate Trajectory Report'!$B14,'Rate Trajectory Calc'!$A$6:$A$92,0),MATCH('Rate Trajectory Report'!W$5,'Rate Trajectory Calc'!$A$6:$CQ$6,0))=0," ",INDEX('Rate Trajectory Calc'!$A$6:$CQ$92,MATCH('Rate Trajectory Report'!$B14,'Rate Trajectory Calc'!$A$6:$A$92,0),MATCH('Rate Trajectory Report'!W$5,'Rate Trajectory Calc'!$A$6:$CQ$6,0))/1000) ->  | X14: =IF(INDEX('Rate Trajectory Calc'!$A$6:$CQ$92,MATCH('Rate Trajectory Report'!$B14,'Rate Trajectory Calc'!$A$6:$A$92,0),MATCH('Rate Trajectory Report'!X$5,'Rate Trajectory Calc'!$A$6:$CQ$6,0))=0," ",INDEX('Rate Trajectory Calc'!$A$6:$CQ$92,MATCH('Rate Trajectory Report'!$B14,'Rate Trajectory Calc'!$A$6:$A$92,0),MATCH('Rate Trajectory Report'!X$5,'Rate Trajectory Calc'!$A$6:$CQ$6,0))/1000) ->  | Y14: =IF(INDEX('Rate Trajectory Calc'!$A$6:$CQ$92,MATCH('Rate Trajectory Report'!$B14,'Rate Trajectory Calc'!$A$6:$A$92,0),MATCH('Rate Trajectory Report'!Y$5,'Rate Trajectory Calc'!$A$6:$CQ$6,0))=0," ",INDEX('Rate Trajectory Calc'!$A$6:$CQ$92,MATCH('Rate Trajectory Report'!$B14,'Rate Trajectory Calc'!$A$6:$A$92,0),MATCH('Rate Trajectory Report'!Y$5,'Rate Trajectory Calc'!$A$6:$CQ$6,0))/1000) ->  | Z14: =IF(INDEX('Rate Trajectory Calc'!$A$6:$CQ$92,MATCH('Rate Trajectory Report'!$B14,'Rate Trajectory Calc'!$A$6:$A$92,0),MATCH('Rate Trajectory Report'!Z$5,'Rate Trajectory Calc'!$A$6:$CQ$6,0))=0," ",INDEX('Rate Trajectory Calc'!$A$6:$CQ$92,MATCH('Rate Trajectory Report'!$B14,'Rate Trajectory Calc'!$A$6:$A$92,0),MATCH('Rate Trajectory Report'!Z$5,'Rate Trajectory Calc'!$A$6:$CQ$6,0))/1000) ->  | AA14: =IF(INDEX('Rate Trajectory Calc'!$A$6:$CQ$92,MATCH('Rate Trajectory Report'!$B14,'Rate Trajectory Calc'!$A$6:$A$92,0),MATCH('Rate Trajectory Report'!AA$5,'Rate Trajectory Calc'!$A$6:$CQ$6,0))=0," ",INDEX('Rate Trajectory Calc'!$A$6:$CQ$92,MATCH('Rate Trajectory Report'!$B14,'Rate Trajectory Calc'!$A$6:$A$92,0),MATCH('Rate Trajectory Report'!AA$5,'Rate Trajectory Calc'!$A$6:$CQ$6,0))/1000) -> 
A15: 3b | B15: Income Qualified Program (CARE) PY 2028-2033 | C15: =IFERROR(VLOOKUP(B15,'Rate Trajectory Dashboard'!$B$12:$D$96,3,FALSE)/1000,'Rate Trajectory Report'!C13) -> 2.95754 | D15: =IF(SUM(D13:D14)=0," ",SUBTOTAL(9,D13:D14)) ->  | E15: =IF(SUM(E13:E14)=0," ",SUBTOTAL(9,E13:E14)) -> 
A16: 3 | B16: Income Qualified Program | C16: =IFERROR(VLOOKUP(B16,'Rate Trajectory Dashboard'!$B$12:$D$96,3,FALSE)/1000,'Rate Trajectory Report'!C14) -> 2.95754 | D16: =IF(SUM(D10:D15)=0," ",SUBTOTAL(9,D10:D15)) ->  | E16: =IF(SUM(E10:E15)=0," ",SUBTOTAL(9,E10:E15)) -> 
B17: ='Rate Trajectory Dashboard'!B18 -> Billing Modernization (Distribution) - Year 2026 | C17: =IFERROR(VLOOKUP(B17,'Rate Trajectory Dashboard'!$B$12:$D$96,3,FALSE)/1000,'Rate Trajectory Report'!C15) -> 0 | D17: =IF(INDEX('Rate Trajectory Calc'!$A$6:$CQ$92,MATCH('Rate Trajectory Report'!$B17,'Rate Trajectory Calc'!$A$6:$A$92,0),MATCH('Rate Trajectory Report'!D$5,'Rate Trajectory Calc'!$A$6:$CQ$6,0))=0," ",INDEX('Rate Trajectory Calc'!$A$6:$CQ$92,MATCH('Rate Trajectory Report'!$B17,'Rate Trajectory Calc'!$A$6:$A$92,0),MATCH('Rate Trajectory Report'!D$5,'Rate Trajectory Calc'!$A$6:$CQ$6,0))/1000) ->  | E17: =IF(INDEX('Rate Trajectory Calc'!$A$6:$CQ$92,MATCH('Rate Trajectory Report'!$B17,'Rate Trajectory Calc'!$A$6:$A$92,0),MATCH('Rate Trajectory Report'!E$5,'Rate Trajectory Calc'!$A$6:$CQ$6,0))=0," ",INDEX('Rate Trajectory Calc'!$A$6:$CQ$92,MATCH('Rate Trajectory Report'!$B17,'Rate Trajectory Calc'!$A$6:$A$92,0),MATCH('Rate Trajectory Report'!E$5,'Rate Trajectory Calc'!$A$6:$CQ$6,0))/1000) ->  | F17: =IF(INDEX('Rate Trajectory Calc'!$A$6:$CQ$92,MATCH('Rate Trajectory Report'!$B17,'Rate Trajectory Calc'!$A$6:$A$92,0),MATCH('Rate Trajectory Report'!F$5,'Rate Trajectory Calc'!$A$6:$CQ$6,0))=0," ",INDEX('Rate Trajectory Calc'!$A$6:$CQ$92,MATCH('Rate Trajectory Report'!$B17,'Rate Trajectory Calc'!$A$6:$A$92,0),MATCH('Rate Trajectory Report'!F$5,'Rate Trajectory Calc'!$A$6:$CQ$6,0))/1000) ->  | G17: =IF(INDEX('Rate Trajectory Calc'!$A$6:$CQ$92,MATCH('Rate Trajectory Report'!$B17,'Rate Trajectory Calc'!$A$6:$A$92,0),MATCH('Rate Trajectory Report'!G$5,'Rate Trajectory Calc'!$A$6:$CQ$6,0))=0," ",INDEX('Rate Trajectory Calc'!$A$6:$CQ$92,MATCH('Rate Trajectory Report'!$B17,'Rate Trajectory Calc'!$A$6:$A$92,0),MATCH('Rate Trajectory Report'!G$5,'Rate Trajectory Calc'!$A$6:$CQ$6,0))/1000) ->  | H17: =IF(INDEX('Rate Trajectory Calc'!$A$6:$CQ$92,MATCH('Rate Trajectory Report'!$B17,'Rate Trajectory Calc'!$A$6:$A$92,0),MATCH('Rate Trajectory Report'!H$5,'Rate Trajectory Calc'!$A$6:$CQ$6,0))=0," ",INDEX('Rate Trajectory Calc'!$A$6:$CQ$92,MATCH('Rate Trajectory Report'!$B17,'Rate Trajectory Calc'!$A$6:$A$92,0),MATCH('Rate Trajectory Report'!H$5,'Rate Trajectory Calc'!$A$6:$CQ$6,0))/1000) ->  | I17: =IF(INDEX('Rate Trajectory Calc'!$A$6:$CQ$92,MATCH('Rate Trajectory Report'!$B17,'Rate Trajectory Calc'!$A$6:$A$92,0),MATCH('Rate Trajectory Report'!I$5,'Rate Trajectory Calc'!$A$6:$CQ$6,0))=0," ",INDEX('Rate Trajectory Calc'!$A$6:$CQ$92,MATCH('Rate Trajectory Report'!$B17,'Rate Trajectory Calc'!$A$6:$A$92,0),MATCH('Rate Trajectory Report'!I$5,'Rate Trajectory Calc'!$A$6:$CQ$6,0))/1000) ->  | J17: =IF(INDEX('Rate Trajectory Calc'!$A$6:$CQ$92,MATCH('Rate Trajectory Report'!$B17,'Rate Trajectory Calc'!$A$6:$A$92,0),MATCH('Rate Trajectory Report'!J$5,'Rate Trajectory Calc'!$A$6:$CQ$6,0))=0," ",INDEX('Rate Trajectory Calc'!$A$6:$CQ$92,MATCH('Rate Trajectory Report'!$B17,'Rate Trajectory Calc'!$A$6:$A$92,0),MATCH('Rate Trajectory Report'!J$5,'Rate Trajectory Calc'!$A$6:$CQ$6,0))/1000) ->  | K17: =IF(INDEX('Rate Trajectory Calc'!$A$6:$CQ$92,MATCH('Rate Trajectory Report'!$B17,'Rate Trajectory Calc'!$A$6:$A$92,0),MATCH('Rate Trajectory Report'!K$5,'Rate Trajectory Calc'!$A$6:$CQ$6,0))=0," ",INDEX('Rate Trajectory Calc'!$A$6:$CQ$92,MATCH('Rate Trajectory Report'!$B17,'Rate Trajectory Calc'!$A$6:$A$92,0),MATCH('Rate Trajectory Report'!K$5,'Rate Trajectory Calc'!$A$6:$CQ$6,0))/1000) ->  | L17: =IF(INDEX('Rate Trajectory Calc'!$A$6:$CQ$92,MATCH('Rate Trajectory Report'!$B17,'Rate Trajectory Calc'!$A$6:$A$92,0),MATCH('Rate Trajectory Report'!L$5,'Rate Trajectory Calc'!$A$6:$CQ$6,0))=0," ",INDEX('Rate Trajectory Calc'!$A$6:$CQ$92,MATCH('Rate Trajectory Report'!$B17,'Rate Trajectory Calc'!$A$6:$A$92,0),MATCH('Rate Trajectory Report'!L$5,'Rate Trajectory Calc'!$A$6:$CQ$6,0))/1000) -> 18.71217383 | M17: =IF(INDEX('Rate Trajectory Calc'!$A$6:$CQ$92,MATCH('Rate Trajectory Report'!$B17,'Rate Trajectory Calc'!$A$6:$A$92,0),MATCH('Rate Trajectory Report'!M$5,'Rate Trajectory Calc'!$A$6:$CQ$6,0))=0," ",INDEX('Rate Trajectory Calc'!$A$6:$CQ$92,MATCH('Rate Trajectory Report'!$B17,'Rate Trajectory Calc'!$A$6:$A$92,0),MATCH('Rate Trajectory Report'!M$5,'Rate Trajectory Calc'!$A$6:$CQ$6,0))/1000) ->  | N17: =IF(INDEX('Rate Trajectory Calc'!$A$6:$CQ$92,MATCH('Rate Trajectory Report'!$B17,'Rate Trajectory Calc'!$A$6:$A$92,0),MATCH('Rate Trajectory Report'!N$5,'Rate Trajectory Calc'!$A$6:$CQ$6,0))=0," ",INDEX('Rate Trajectory Calc'!$A$6:$CQ$92,MATCH('Rate Trajectory Report'!$B17,'Rate Trajectory Calc'!$A$6:$A$92,0),MATCH('Rate Trajectory Report'!N$5,'Rate Trajectory Calc'!$A$6:$CQ$6,0))/1000) ->  | O17: =IF(INDEX('Rate Trajectory Calc'!$A$6:$CQ$92,MATCH('Rate Trajectory Report'!$B17,'Rate Trajectory Calc'!$A$6:$A$92,0),MATCH('Rate Trajectory Report'!O$5,'Rate Trajectory Calc'!$A$6:$CQ$6,0))=0," ",INDEX('Rate Trajectory Calc'!$A$6:$CQ$92,MATCH('Rate Trajectory Report'!$B17,'Rate Trajectory Calc'!$A$6:$A$92,0),MATCH('Rate Trajectory Report'!O$5,'Rate Trajectory Calc'!$A$6:$CQ$6,0))/1000) ->  | P17: =IF(INDEX('Rate Trajectory Calc'!$A$6:$CQ$92,MATCH('Rate Trajectory Report'!$B17,'Rate Trajectory Calc'!$A$6:$A$92,0),MATCH('Rate Trajectory Report'!P$5,'Rate Trajectory Calc'!$A$6:$CQ$6,0))=0," ",INDEX('Rate Trajectory Calc'!$A$6:$CQ$92,MATCH('Rate Trajectory Report'!$B17,'Rate Trajectory Calc'!$A$6:$A$92,0),MATCH('Rate Trajectory Report'!P$5,'Rate Trajectory Calc'!$A$6:$CQ$6,0))/1000) ->  | Q17: =IF(INDEX('Rate Trajectory Calc'!$A$6:$CQ$92,MATCH('Rate Trajectory Report'!$B17,'Rate Trajectory Calc'!$A$6:$A$92,0),MATCH('Rate Trajectory Report'!Q$5,'Rate Trajectory Calc'!$A$6:$CQ$6,0))=0," ",INDEX('Rate Trajectory Calc'!$A$6:$CQ$92,MATCH('Rate Trajectory Report'!$B17,'Rate Trajectory Calc'!$A$6:$A$92,0),MATCH('Rate Trajectory Report'!Q$5,'Rate Trajectory Calc'!$A$6:$CQ$6,0))/1000) ->  | R17: =IF(INDEX('Rate Trajectory Calc'!$A$6:$CQ$92,MATCH('Rate Trajectory Report'!$B17,'Rate Trajectory Calc'!$A$6:$A$92,0),MATCH('Rate Trajectory Report'!R$5,'Rate Trajectory Calc'!$A$6:$CQ$6,0))=0," ",INDEX('Rate Trajectory Calc'!$A$6:$CQ$92,MATCH('Rate Trajectory Report'!$B17,'Rate Trajectory Calc'!$A$6:$A$92,0),MATCH('Rate Trajectory Report'!R$5,'Rate Trajectory Calc'!$A$6:$CQ$6,0))/1000) ->  | S17: =IF(INDEX('Rate Trajectory Calc'!$A$6:$CQ$92,MATCH('Rate Trajectory Report'!$B17,'Rate Trajectory Calc'!$A$6:$A$92,0),MATCH('Rate Trajectory Report'!S$5,'Rate Trajectory Calc'!$A$6:$CQ$6,0))=0," ",INDEX('Rate Trajectory Calc'!$A$6:$CQ$92,MATCH('Rate Trajectory Report'!$B17,'Rate Trajectory Calc'!$A$6:$A$92,0),MATCH('Rate Trajectory Report'!S$5,'Rate Trajectory Calc'!$A$6:$CQ$6,0))/1000) ->  | T17: =IF(INDEX('Rate Trajectory Calc'!$A$6:$CQ$92,MATCH('Rate Trajectory Report'!$B17,'Rate Trajectory Calc'!$A$6:$A$92,0),MATCH('Rate Trajectory Report'!T$5,'Rate Trajectory Calc'!$A$6:$CQ$6,0))=0," ",INDEX('Rate Trajectory Calc'!$A$6:$CQ$92,MATCH('Rate Trajectory Report'!$B17,'Rate Trajectory Calc'!$A$6:$A$92,0),MATCH('Rate Trajectory Report'!T$5,'Rate Trajectory Calc'!$A$6:$CQ$6,0))/1000) ->  | U17: =IF(INDEX('Rate Trajectory Calc'!$A$6:$CQ$92,MATCH('Rate Trajectory Report'!$B17,'Rate Trajectory Calc'!$A$6:$A$92,0),MATCH('Rate Trajectory Report'!U$5,'Rate Trajectory Calc'!$A$6:$CQ$6,0))=0," ",INDEX('Rate Trajectory Calc'!$A$6:$CQ$92,MATCH('Rate Trajectory Report'!$B17,'Rate Trajectory Calc'!$A$6:$A$92,0),MATCH('Rate Trajectory Report'!U$5,'Rate Trajectory Calc'!$A$6:$CQ$6,0))/1000) ->  | V17: =IF(INDEX('Rate Trajectory Calc'!$A$6:$CQ$92,MATCH('Rate Trajectory Report'!$B17,'Rate Trajectory Calc'!$A$6:$A$92,0),MATCH('Rate Trajectory Report'!V$5,'Rate Trajectory Calc'!$A$6:$CQ$6,0))=0," ",INDEX('Rate Trajectory Calc'!$A$6:$CQ$92,MATCH('Rate Trajectory Report'!$B17,'Rate Trajectory Calc'!$A$6:$A$92,0),MATCH('Rate Trajectory Report'!V$5,'Rate Trajectory Calc'!$A$6:$CQ$6,0))/1000) ->  | W17: =IF(INDEX('Rate Trajectory Calc'!$A$6:$CQ$92,MATCH('Rate Trajectory Report'!$B17,'Rate Trajectory Calc'!$A$6:$A$92,0),MATCH('Rate Trajectory Report'!W$5,'Rate Trajectory Calc'!$A$6:$CQ$6,0))=0," ",INDEX('Rate Trajectory Calc'!$A$6:$CQ$92,MATCH('Rate Trajectory Report'!$B17,'Rate Trajectory Calc'!$A$6:$A$92,0),MATCH('Rate Trajectory Report'!W$5,'Rate Trajectory Calc'!$A$6:$CQ$6,0))/1000) ->  | X17: =IF(INDEX('Rate Trajectory Calc'!$A$6:$CQ$92,MATCH('Rate Trajectory Report'!$B17,'Rate Trajectory Calc'!$A$6:$A$92,0),MATCH('Rate Trajectory Report'!X$5,'Rate Trajectory Calc'!$A$6:$CQ$6,0))=0," ",INDEX('Rate Trajectory Calc'!$A$6:$CQ$92,MATCH('Rate Trajectory Report'!$B17,'Rate Trajectory Calc'!$A$6:$A$92,0),MATCH('Rate Trajectory Report'!X$5,'Rate Trajectory Calc'!$A$6:$CQ$6,0))/1000) -> -18.71217383 | Y17: =IF(INDEX('Rate Trajectory Calc'!$A$6:$CQ$92,MATCH('Rate Trajectory Report'!$B17,'Rate Trajectory Calc'!$A$6:$A$92,0),MATCH('Rate Trajectory Report'!Y$5,'Rate Trajectory Calc'!$A$6:$CQ$6,0))=0," ",INDEX('Rate Trajectory Calc'!$A$6:$CQ$92,MATCH('Rate Trajectory Report'!$B17,'Rate Trajectory Calc'!$A$6:$A$92,0),MATCH('Rate Trajectory Report'!Y$5,'Rate Trajectory Calc'!$A$6:$CQ$6,0))/1000) ->  | Z17: =IF(INDEX('Rate Trajectory Calc'!$A$6:$CQ$92,MATCH('Rate Trajectory Report'!$B17,'Rate Trajectory Calc'!$A$6:$A$92,0),MATCH('Rate Trajectory Report'!Z$5,'Rate Trajectory Calc'!$A$6:$CQ$6,0))=0," ",INDEX('Rate Trajectory Calc'!$A$6:$CQ$92,MATCH('Rate Trajectory Report'!$B17,'Rate Trajectory Calc'!$A$6:$A$92,0),MATCH('Rate Trajectory Report'!Z$5,'Rate Trajectory Calc'!$A$6:$CQ$6,0))/1000) ->  | AA17: =IF(INDEX('Rate Trajectory Calc'!$A$6:$CQ$92,MATCH('Rate Trajectory Report'!$B17,'Rate Trajectory Calc'!$A$6:$A$92,0),MATCH('Rate Trajectory Report'!AA$5,'Rate Trajectory Calc'!$A$6:$CQ$6,0))=0," ",INDEX('Rate Trajectory Calc'!$A$6:$CQ$92,MATCH('Rate Trajectory Report'!$B17,'Rate Trajectory Calc'!$A$6:$A$92,0),MATCH('Rate Trajectory Report'!AA$5,'Rate Trajectory Calc'!$A$6:$CQ$6,0))/1000) -> 
B18: ='Rate Trajectory Dashboard'!B19 -> Billing Modernization (Distribution) - Year 2027 | C18: =IFERROR(VLOOKUP(B18,'Rate Trajectory Dashboard'!$B$12:$D$96,3,FALSE)/1000,'Rate Trajectory Report'!C16) -> 0 | D18: =IF(INDEX('Rate Trajectory Calc'!$A$6:$CQ$92,MATCH('Rate Trajectory Report'!$B18,'Rate Trajectory Calc'!$A$6:$A$92,0),MATCH('Rate Trajectory Report'!D$5,'Rate Trajectory Calc'!$A$6:$CQ$6,0))=0," ",INDEX('Rate Trajectory Calc'!$A$6:$CQ$92,MATCH('Rate Trajectory Report'!$B18,'Rate Trajectory Calc'!$A$6:$A$92,0),MATCH('Rate Trajectory Report'!D$5,'Rate Trajectory Calc'!$A$6:$CQ$6,0))/1000) ->  | E18: =IF(INDEX('Rate Trajectory Calc'!$A$6:$CQ$92,MATCH('Rate Trajectory Report'!$B18,'Rate Trajectory Calc'!$A$6:$A$92,0),MATCH('Rate Trajectory Report'!E$5,'Rate Trajectory Calc'!$A$6:$CQ$6,0))=0," ",INDEX('Rate Trajectory Calc'!$A$6:$CQ$92,MATCH('Rate Trajectory Report'!$B18,'Rate Trajectory Calc'!$A$6:$A$92,0),MATCH('Rate Trajectory Report'!E$5,'Rate Trajectory Calc'!$A$6:$CQ$6,0))/1000) ->  | F18: =IF(INDEX('Rate Trajectory Calc'!$A$6:$CQ$92,MATCH('Rate Trajectory Report'!$B18,'Rate Trajectory Calc'!$A$6:$A$92,0),MATCH('Rate Trajectory Report'!F$5,'Rate Trajectory Calc'!$A$6:$CQ$6,0))=0," ",INDEX('Rate Trajectory Calc'!$A$6:$CQ$92,MATCH('Rate Trajectory Report'!$B18,'Rate Trajectory Calc'!$A$6:$A$92,0),MATCH('Rate Trajectory Report'!F$5,'Rate Trajectory Calc'!$A$6:$CQ$6,0))/1000) ->  | G18: =IF(INDEX('Rate Trajectory Calc'!$A$6:$CQ$92,MATCH('Rate Trajectory Report'!$B18,'Rate Trajectory Calc'!$A$6:$A$92,0),MATCH('Rate Trajectory Report'!G$5,'Rate Trajectory Calc'!$A$6:$CQ$6,0))=0," ",INDEX('Rate Trajectory Calc'!$A$6:$CQ$92,MATCH('Rate Trajectory Report'!$B18,'Rate Trajectory Calc'!$A$6:$A$92,0),MATCH('Rate Trajectory Report'!G$5,'Rate Trajectory Calc'!$A$6:$CQ$6,0))/1000) ->  | H18: =IF(INDEX('Rate Trajectory Calc'!$A$6:$CQ$92,MATCH('Rate Trajectory Report'!$B18,'Rate Trajectory Calc'!$A$6:$A$92,0),MATCH('Rate Trajectory Report'!H$5,'Rate Trajectory Calc'!$A$6:$CQ$6,0))=0," ",INDEX('Rate Trajectory Calc'!$A$6:$CQ$92,MATCH('Rate Trajectory Report'!$B18,'Rate Trajectory Calc'!$A$6:$A$92,0),MATCH('Rate Trajectory Report'!H$5,'Rate Trajectory Calc'!$A$6:$CQ$6,0))/1000) ->  | I18: =IF(INDEX('Rate Trajectory Calc'!$A$6:$CQ$92,MATCH('Rate Trajectory Report'!$B18,'Rate Trajectory Calc'!$A$6:$A$92,0),MATCH('Rate Trajectory Report'!I$5,'Rate Trajectory Calc'!$A$6:$CQ$6,0))=0," ",INDEX('Rate Trajectory Calc'!$A$6:$CQ$92,MATCH('Rate Trajectory Report'!$B18,'Rate Trajectory Calc'!$A$6:$A$92,0),MATCH('Rate Trajectory Report'!I$5,'Rate Trajectory Calc'!$A$6:$CQ$6,0))/1000) ->  | J18: =IF(INDEX('Rate Trajectory Calc'!$A$6:$CQ$92,MATCH('Rate Trajectory Report'!$B18,'Rate Trajectory Calc'!$A$6:$A$92,0),MATCH('Rate Trajectory Report'!J$5,'Rate Trajectory Calc'!$A$6:$CQ$6,0))=0," ",INDEX('Rate Trajectory Calc'!$A$6:$CQ$92,MATCH('Rate Trajectory Report'!$B18,'Rate Trajectory Calc'!$A$6:$A$92,0),MATCH('Rate Trajectory Report'!J$5,'Rate Trajectory Calc'!$A$6:$CQ$6,0))/1000) ->  | K18: =IF(INDEX('Rate Trajectory Calc'!$A$6:$CQ$92,MATCH('Rate Trajectory Report'!$B18,'Rate Trajectory Calc'!$A$6:$A$92,0),MATCH('Rate Trajectory Report'!K$5,'Rate Trajectory Calc'!$A$6:$CQ$6,0))=0," ",INDEX('Rate Trajectory Calc'!$A$6:$CQ$92,MATCH('Rate Trajectory Report'!$B18,'Rate Trajectory Calc'!$A$6:$A$92,0),MATCH('Rate Trajectory Report'!K$5,'Rate Trajectory Calc'!$A$6:$CQ$6,0))/1000) ->  | L18: =IF(INDEX('Rate Trajectory Calc'!$A$6:$CQ$92,MATCH('Rate Trajectory Report'!$B18,'Rate Trajectory Calc'!$A$6:$A$92,0),MATCH('Rate Trajectory Report'!L$5,'Rate Trajectory Calc'!$A$6:$CQ$6,0))=0," ",INDEX('Rate Trajectory Calc'!$A$6:$CQ$92,MATCH('Rate Trajectory Report'!$B18,'Rate Trajectory Calc'!$A$6:$A$92,0),MATCH('Rate Trajectory Report'!L$5,'Rate Trajectory Calc'!$A$6:$CQ$6,0))/1000) ->  | M18: =IF(INDEX('Rate Trajectory Calc'!$A$6:$CQ$92,MATCH('Rate Trajectory Report'!$B18,'Rate Trajectory Calc'!$A$6:$A$92,0),MATCH('Rate Trajectory Report'!M$5,'Rate Trajectory Calc'!$A$6:$CQ$6,0))=0," ",INDEX('Rate Trajectory Calc'!$A$6:$CQ$92,MATCH('Rate Trajectory Report'!$B18,'Rate Trajectory Calc'!$A$6:$A$92,0),MATCH('Rate Trajectory Report'!M$5,'Rate Trajectory Calc'!$A$6:$CQ$6,0))/1000) ->  | N18: =IF(INDEX('Rate Trajectory Calc'!$A$6:$CQ$92,MATCH('Rate Trajectory Report'!$B18,'Rate Trajectory Calc'!$A$6:$A$92,0),MATCH('Rate Trajectory Report'!N$5,'Rate Trajectory Calc'!$A$6:$CQ$6,0))=0," ",INDEX('Rate Trajectory Calc'!$A$6:$CQ$92,MATCH('Rate Trajectory Report'!$B18,'Rate Trajectory Calc'!$A$6:$A$92,0),MATCH('Rate Trajectory Report'!N$5,'Rate Trajectory Calc'!$A$6:$CQ$6,0))/1000) ->  | O18: =IF(INDEX('Rate Trajectory Calc'!$A$6:$CQ$92,MATCH('Rate Trajectory Report'!$B18,'Rate Trajectory Calc'!$A$6:$A$92,0),MATCH('Rate Trajectory Report'!O$5,'Rate Trajectory Calc'!$A$6:$CQ$6,0))=0," ",INDEX('Rate Trajectory Calc'!$A$6:$CQ$92,MATCH('Rate Trajectory Report'!$B18,'Rate Trajectory Calc'!$A$6:$A$92,0),MATCH('Rate Trajectory Report'!O$5,'Rate Trajectory Calc'!$A$6:$CQ$6,0))/1000) ->  | P18: =IF(INDEX('Rate Trajectory Calc'!$A$6:$CQ$92,MATCH('Rate Trajectory Report'!$B18,'Rate Trajectory Calc'!$A$6:$A$92,0),MATCH('Rate Trajectory Report'!P$5,'Rate Trajectory Calc'!$A$6:$CQ$6,0))=0," ",INDEX('Rate Trajectory Calc'!$A$6:$CQ$92,MATCH('Rate Trajectory Report'!$B18,'Rate Trajectory Calc'!$A$6:$A$92,0),MATCH('Rate Trajectory Report'!P$5,'Rate Trajectory Calc'!$A$6:$CQ$6,0))/1000) ->  | Q18: =IF(INDEX('Rate Trajectory Calc'!$A$6:$CQ$92,MATCH('Rate Trajectory Report'!$B18,'Rate Trajectory Calc'!$A$6:$A$92,0),MATCH('Rate Trajectory Report'!Q$5,'Rate Trajectory Calc'!$A$6:$CQ$6,0))=0," ",INDEX('Rate Trajectory Calc'!$A$6:$CQ$92,MATCH('Rate Trajectory Report'!$B18,'Rate Trajectory Calc'!$A$6:$A$92,0),MATCH('Rate Trajectory Report'!Q$5,'Rate Trajectory Calc'!$A$6:$CQ$6,0))/1000) ->  | R18: =IF(INDEX('Rate Trajectory Calc'!$A$6:$CQ$92,MATCH('Rate Trajectory Report'!$B18,'Rate Trajectory Calc'!$A$6:$A$92,0),MATCH('Rate Trajectory Report'!R$5,'Rate Trajectory Calc'!$A$6:$CQ$6,0))=0," ",INDEX('Rate Trajectory Calc'!$A$6:$CQ$92,MATCH('Rate Trajectory Report'!$B18,'Rate Trajectory Calc'!$A$6:$A$92,0),MATCH('Rate Trajectory Report'!R$5,'Rate Trajectory Calc'!$A$6:$CQ$6,0))/1000) ->  | S18: =IF(INDEX('Rate Trajectory Calc'!$A$6:$CQ$92,MATCH('Rate Trajectory Report'!$B18,'Rate Trajectory Calc'!$A$6:$A$92,0),MATCH('Rate Trajectory Report'!S$5,'Rate Trajectory Calc'!$A$6:$CQ$6,0))=0," ",INDEX('Rate Trajectory Calc'!$A$6:$CQ$92,MATCH('Rate Trajectory Report'!$B18,'Rate Trajectory Calc'!$A$6:$A$92,0),MATCH('Rate Trajectory Report'!S$5,'Rate Trajectory Calc'!$A$6:$CQ$6,0))/1000) ->  | T18: =IF(INDEX('Rate Trajectory Calc'!$A$6:$CQ$92,MATCH('Rate Trajectory Report'!$B18,'Rate Trajectory Calc'!$A$6:$A$92,0),MATCH('Rate Trajectory Report'!T$5,'Rate Trajectory Calc'!$A$6:$CQ$6,0))=0," ",INDEX('Rate Trajectory Calc'!$A$6:$CQ$92,MATCH('Rate Trajectory Report'!$B18,'Rate Trajectory Calc'!$A$6:$A$92,0),MATCH('Rate Trajectory Report'!T$5,'Rate Trajectory Calc'!$A$6:$CQ$6,0))/1000) ->  | U18: =IF(INDEX('Rate Trajectory Calc'!$A$6:$CQ$92,MATCH('Rate Trajectory Report'!$B18,'Rate Trajectory Calc'!$A$6:$A$92,0),MATCH('Rate Trajectory Report'!U$5,'Rate Trajectory Calc'!$A$6:$CQ$6,0))=0," ",INDEX('Rate Trajectory Calc'!$A$6:$CQ$92,MATCH('Rate Trajectory Report'!$B18,'Rate Trajectory Calc'!$A$6:$A$92,0),MATCH('Rate Trajectory Report'!U$5,'Rate Trajectory Calc'!$A$6:$CQ$6,0))/1000) ->  | V18: =IF(INDEX('Rate Trajectory Calc'!$A$6:$CQ$92,MATCH('Rate Trajectory Report'!$B18,'Rate Trajectory Calc'!$A$6:$A$92,0),MATCH('Rate Trajectory Report'!V$5,'Rate Trajectory Calc'!$A$6:$CQ$6,0))=0," ",INDEX('Rate Trajectory Calc'!$A$6:$CQ$92,MATCH('Rate Trajectory Report'!$B18,'Rate Trajectory Calc'!$A$6:$A$92,0),MATCH('Rate Trajectory Report'!V$5,'Rate Trajectory Calc'!$A$6:$CQ$6,0))/1000) ->  | W18: =IF(INDEX('Rate Trajectory Calc'!$A$6:$CQ$92,MATCH('Rate Trajectory Report'!$B18,'Rate Trajectory Calc'!$A$6:$A$92,0),MATCH('Rate Trajectory Report'!W$5,'Rate Trajectory Calc'!$A$6:$CQ$6,0))=0," ",INDEX('Rate Trajectory Calc'!$A$6:$CQ$92,MATCH('Rate Trajectory Report'!$B18,'Rate Trajectory Calc'!$A$6:$A$92,0),MATCH('Rate Trajectory Report'!W$5,'Rate Trajectory Calc'!$A$6:$CQ$6,0))/1000) ->  | X18: =IF(INDEX('Rate Trajectory Calc'!$A$6:$CQ$92,MATCH('Rate Trajectory Report'!$B18,'Rate Trajectory Calc'!$A$6:$A$92,0),MATCH('Rate Trajectory Report'!X$5,'Rate Trajectory Calc'!$A$6:$CQ$6,0))=0," ",INDEX('Rate Trajectory Calc'!$A$6:$CQ$92,MATCH('Rate Trajectory Report'!$B18,'Rate Trajectory Calc'!$A$6:$A$92,0),MATCH('Rate Trajectory Report'!X$5,'Rate Trajectory Calc'!$A$6:$CQ$6,0))/1000) -> 17.75134183 | Y18: =IF(INDEX('Rate Trajectory Calc'!$A$6:$CQ$92,MATCH('Rate Trajectory Report'!$B18,'Rate Trajectory Calc'!$A$6:$A$92,0),MATCH('Rate Trajectory Report'!Y$5,'Rate Trajectory Calc'!$A$6:$CQ$6,0))=0," ",INDEX('Rate Trajectory Calc'!$A$6:$CQ$92,MATCH('Rate Trajectory Report'!$B18,'Rate Trajectory Calc'!$A$6:$A$92,0),MATCH('Rate Trajectory Report'!Y$5,'Rate Trajectory Calc'!$A$6:$CQ$6,0))/1000) ->  | Z18: =IF(INDEX('Rate Trajectory Calc'!$A$6:$CQ$92,MATCH('Rate Trajectory Report'!$B18,'Rate Trajectory Calc'!$A$6:$A$92,0),MATCH('Rate Trajectory Report'!Z$5,'Rate Trajectory Calc'!$A$6:$CQ$6,0))=0," ",INDEX('Rate Trajectory Calc'!$A$6:$CQ$92,MATCH('Rate Trajectory Report'!$B18,'Rate Trajectory Calc'!$A$6:$A$92,0),MATCH('Rate Trajectory Report'!Z$5,'Rate Trajectory Calc'!$A$6:$CQ$6,0))/1000) ->  | AA18: =IF(INDEX('Rate Trajectory Calc'!$A$6:$CQ$92,MATCH('Rate Trajectory Report'!$B18,'Rate Trajectory Calc'!$A$6:$A$92,0),MATCH('Rate Trajectory Report'!AA$5,'Rate Trajectory Calc'!$A$6:$CQ$6,0))=0," ",INDEX('Rate Trajectory Calc'!$A$6:$CQ$92,MATCH('Rate Trajectory Report'!$B18,'Rate Trajectory Calc'!$A$6:$A$92,0),MATCH('Rate Trajectory Report'!AA$5,'Rate Trajectory Calc'!$A$6:$CQ$6,0))/1000) -> 
